Workbook

Sheet Cover
A1: RIIO Price Control Financial Model (PCFM)
B2: Gas Distribution
C3: =MID(CELL("filename"),SEARCH("[",CELL("filename"))+1,SEARCH("]",CELL("filename"))-SEARCH("[",CELL("filename"))-1) -> NGN LiMo GD2 20191107 d 4.1 (NGN).xlsm
C4: DISCLAIMER: The purpose of this model is used to calculate Base Revenue (PU) at Final Proposals and MOD terms in subsequent years for Licensees on the basis of Financial Handbook and Licence conditions of the relevant Network Operator
B5: =IF(m_PCFM_year_t=1,"RIIO GD1 Price Control Financial Model for the Annual Iteration Process that will take place by 30 November 2013-14","RIIO GD1 Price Control Financial Model for the Annual Iteration Process that will take place by 30 November " & YEAR(UserInterface!$G$10)-2) -> RIIO GD1 Price Control Financial Model for the Annual Iteration Process that will take place by 30 November 2026
B7: Model key
E9: Sample | G9: Calculated value | I9: Sample | K9: Information and interface
E10: Sample | G10: Import | I10: Sample | K10: FP fixed input value
E11: Sample | G11: Export | I11: Sample | K11: Annual update input
E12: Sample | G12: Named range | I12: Sample | K12: Input linked from annual update
E13: Sample | G13: Formula change in cells to the right | I13: Sample | K13: Notes and instructions
I14: Sample | K14: Sheet or calculation included in FP Model
I15: Sample | K15: Input value imported/exported from scenario sheet
I16: Sample | K16: Adjusted calculations in "CoSheets"
I17: Sample | K17: External input (e.g. link to Business Plan Data Template)
I18: Sample | K18: Ofgem pre-populated input value
I19: Sample | K19: Company input value
B21: Contents
E23: INTERFACE > | I23: COMPANY SPECIFIC INPUT SHEETS >
E24: Cover | G24: Model key and content directory
E25: UserInterface | G25: Model operation | I25: East | K25: Inputs for East DNO
E26: TaxTrigger | G26: Tax trigger calculations | I26: London | K26: Inputs for London DNO
E27: INPUT SELECTION > | I27: North West | K27: Inputs for North West DNO
E28: Input | G28: Inputs for selected licensee | I28: West Midlands | K28: Inputs for West Midlands DNO
E29: CALCULATION > | I29: Northern | K29: Inputs for Northern DNO
E30: MOD | G30: Summary of calculated MOD terms | I30: Scotland | K30: Inputs for Scotland DNO
E31: Totex | G31: Totex allowance and actuals | I31: Southern | K31: Inputs for Southern DNO
E32: TIM | G32: Totex Incentive Mechanism and capitalisation | I32: Wales & West | K32: Inputs for Wales & West DNO
E33: DARTs | G33: Direct Allowance Revenue Terms
E34: Depn | G34: Gas distribution regulatory depreciation | I34: East (Scenarios) | K34: Inputs for East DNO notional and financeability scenario modelling
E35: FuelPoor | G35: Fuel poor RAV calculations | I35: London (Scenarios) | K35: Inputs for London DNO notional and financeability scenario modelling
E36: Return&RAV | G36: RAV and return calculations | I36: North West (Scenarios) | K36: Inputs for North West DNO notional and financeability scenario modelling
E37: TaxPools | G37: Tax pools and capital allowances | I37: West Midlands (Scenarios) | K37: Inputs for West Midlands DNO notional and financeability scenario modelling
E38: Finance&Tax | G38: Net debt, equity issuance, financing costs and tax | I38: Northern (Scenarios) | K38: Inputs for Northern DNO notional and financeability scenario modelling
E39: Revenue | G39: Revenue and MOD | I39: Scotland (Scenarios) | K39: Inputs for Scotland DNO notional and financeability scenario modelling
E40: OUTPUT > | I40: Southern (Scenarios) | K40: Inputs for Southern DNO notional and financeability scenario modelling
E41: LiveResults | G41: Results for selected company | I41: Wales & West (Scenarios) | K41: Inputs for Wales & West DNO notional and financeability scenario modelling
E42: SavedResults | G42: Saved results for all companies
E43: FINANCIAL ANALYSIS SUPPORTING SHEETS ("CO-SHEETS") > | I43: GENERAL INPUT SHEETS >
E44: FinInput | G44: Inputs and supporting calculations for selected company and financeability scenario (for CoFinance&Tax sheet) | I44: CoE | K44: Derivation of Cost of Equity base case
E45: CoFinance&Tax | G45: Net debt, equity issuance, financing costs and tax calculations for financeabiliy analysis
E46: FINANCIAL ANALYSIS SHEETS >
E47: FinancialStatements | G47: Financial statements for selected company
E48: FinancialRatios | G48: Financial ratios for selected company
B50: End of sheet

Sheet UserInterface
A1: User Interface
B3: Model operation
C5: PCFM year t
C6: Instruction: Use the following drop-down list to identify year t in the model. Year t is identified here by its end date.
E8: Year t selection:
E10: Year t selected: | G10: =INDEX(NumberofYear,m_PCFM_year_t) -> 2028-03-31
C12: Active company
C13: Instruction: Use the following drop-down list to select the active company in the model.
E15: Company selection:
E17: Selected company: | G17: =INDEX(E50:E58, E59) -> Northern
C19: Model state
C20: Instruction: Use the following drop-down list to set the model state and run it as either the "Licence Model" or the "Tax Trigger Tool."
C21: Note: "Tax Trigger Tool" must be selected here for functionality on the "TaxTrigger" sheet to function.
C22: Selecting "Licence Model" ensures that the Tax Trigger Tool functionality is deactivated and does not affect the calculations in the model.
E24: Model status selection:
E26: Selected model status: | G26: =INDEX(E67:E68, E69) -> Licence Model
C28: Run model for all licensees
C29: Instruction: Click on the left button to save results for the selected company only. Click the right button to save results for all.
C30: Note: Annual iterations must have been completed for all prior years before running the model to generate MOD.
C31: The macros save results and values required for future years which cannot be recreated once inputs are revised.
C32: Running the macro saves the output from year t's iteration for use in future iterations.
C33: Results for the selected company can be found on the "LiveResults" sheet and also on the "SavedResults" sheet once saved by a macro.
B43: User selection lists
B44: Note: The lists below drive the drop-down lists above.
B45: Using the drop-down lists above returns an integer in the "cell link" positioned below their "source list."
B46: The number returned in the cell link corresponds to the position of the selected item in the source list.
B47: The company selection output is set as a "named range." This gives a stable anchor point for the "RunForAll" macro to change the company.
E49: ="Source for ''"&C12&"'' drop-down list" -> Source for ''Active company'' drop-down list | G49: ="Source for ''"&C5&"'' drop-down list" -> Source for ''PCFM year t'' drop-down list
E50: Cadent | G50: 2022-03-31
E51: East | G51: 2023-03-31
E52: London | G52: 2024-03-31
E53: North West | G53: 2025-03-31
E54: West Midlands | G54: 2026-03-31
E55: Northern | G55: 2027-03-31
E56: Scotland | G56: 2028-03-31
E57: Southern | G57: 7
E58: Wales & West | G58: Adjacent named range: m_PCFM_year_t
E59: 6
E60: Adjacent named range: m_identity
E66: ="Source for ''"&C19&"'' drop-down list" -> Source for ''Model state'' drop-down list
E67: Licence Model
E68: Tax Trigger Tool
E69: 1
E70: Adjacent named range: m_model_state
B72: End of sheet

Sheet TaxTrigger
A1: Tax Trigger
B2: =UserInterface!G17 -> Northern
E3: Parameter | G3: Units | I3: Constant | AH3: Annual values
E4: PCFM year ending | I4: =UserInterface!$G$10 -> 2028-03-31 | K4: 1991-03-31 | L4: 1992-03-31 | M4: 1993-03-31 | N4: 1994-03-31 | O4: 1995-03-31 | P4: 1996-03-31 | Q4: 1997-03-31 | R4: 1998-03-31 | S4: 1999-03-31 | T4: 2000-03-31 | U4: 2001-03-31 | V4: 2002-03-31 | W4: 2003-03-31 | X4: 2004-03-31 | Y4: 2005-03-31 | Z4: 2006-03-31 | AA4: 2007-03-31 | AB4: 2008-03-31 | AC4: 2009-03-31 | AD4: 2010-03-31 | AE4: 2011-03-31 | AF4: 2012-03-31 | AG4: 2013-03-31 | AH4: 2014-03-31 | AI4: 2015-03-31 | AJ4: 2016-03-31 | AK4: 2017-03-31 | AL4: 2018-03-31 | AM4: 2019-03-31 | AN4: 2020-03-31 | AO4: 2021-03-31 | AP4: 2022-03-31 | AQ4: 2023-03-31 | AR4: 2024-03-31 | AS4: 2025-03-31 | AT4: 2026-03-31
B6: Tax trigger calculation
C8: Test operation
C9: Instruction: To run the model as the Tax Trigger Tool, the "model state" must be set to "Tax Trigger Tool" on the "UserInterface" sheet. The model state selected is shown below.
C10: Clicking the macro button below runs the "TaxTrigger" macro, performing the Tax Trigger adjustment calculation for the selected licensee for year t.
C11: The output generated by the macro can be replicated manually using the following steps:
C12: 1. Clear any values from previous tests in the "Test state output" section below (named range "m_saved_original_results")
C13: 2. Set testing state to "Licence Model"
C14: 3. Copy the cells marked as the "m_calculated_tax" named range and paste them at the named range "m_saved_original_test."
C15: 4. Set testing state to "Tax Trigger Calculation"
C16: Note: The Tax Trigger Tool is disabled if the "Model state" below reads "Licence Model."
E18: Model state
E19: =UserInterface!G26 -> Licence Model
E22: State selection
E25: State options
E26: Licence Model
E27: Tax Trigger Calculation
E28: 1
E29: Adjacent named range: m_tax_trigger_state
E31: State selected
E32: =IF(E19 = "Licence Model", "Licence Model", INDEX(E26:E27, E28)) -> Licence Model
E34: Run macro
C40: Tax calculation
I42: Instruction
E43: Profits attributable to corporation tax | G43: £m 18/19 prices | AP43: ='Finance&Tax'!AP206 / GDNpf -> 89.39723929 | AQ43: ='Finance&Tax'!AQ206 / GDNpf -> 84.82077378 | AR43: ='Finance&Tax'!AR206 / GDNpf -> 86.48761125 | AS43: ='Finance&Tax'!AS206 / GDNpf -> 88.3709998 | AT43: ='Finance&Tax'!AT206 / GDNpf -> 90.55960374
E44: Corporation tax rate | G44: % | AP44: ='Finance&Tax'!AP223 -> 0.17 | AQ44: ='Finance&Tax'!AQ223 -> 0.17 | AR44: ='Finance&Tax'!AR223 -> 0.17 | AS44: ='Finance&Tax'!AS223 -> 0.17 | AT44: ='Finance&Tax'!AT223 -> 0.17
E45: "Grossing-up" factor for tax on tax charge | G45: scalar | AP45: ='Finance&Tax'!AP226 -> 1.204819277 | AQ45: ='Finance&Tax'!AQ226 -> 1.204819277 | AR45: ='Finance&Tax'!AR226 -> 1.204819277 | AS45: ='Finance&Tax'!AS226 -> 1.204819277 | AT45: ='Finance&Tax'!AT226 -> 1.204819277
E46: Corporation tax charge (tax allowance) before losses | G46: £m 18/19 prices | AP46: =AP44*AP43*AP45 -> 18.31027793 | AQ46: 17.37292957 | AR46: 17.71433001 | AS46: 18.1000843 | AT46: 18.54835257
E48: Tax allowance (pre losses) before tax trigger | G48: £m 18/19 prices | AP48: =AP46 -> 18.31027793 | AQ48: 17.37292957 | AR48: 17.71433001 | AS48: 18.1000843 | AT48: 18.54835257
E49: B event value | G49: £m 18/19 prices | AP49: =AP137 -> 0 | AQ49: 0 | AR49: 0 | AS49: 0 | AT49: 0
E50: Threshold value adjustment | G50: £m 18/19 prices | AP50: =AP78 -> 0 | AQ50: 0 | AR50: 0 | AS50: 0 | AT50: 0
E51: Tax allowance | G51: £m 18/19 prices | I51: =IF(m_tax_trigger_state = 1, "Copy cells -->", "-") -> Copy cells --> | AP51: =SUM(AP48:AP50) -> 18.31027793 | AQ51: 17.37292957 | AR51: 17.71433001 | AS51: 18.1000843 | AT51: 18.54835257
AP52: Adjacent named range: m_calculated_tax
C53: Test state output
C54: Note: The formula determines whether the recalculated tax is above or below the threshold and sets the adjustment accordingly
I56: Instruction
E57: Value with original settings | G57: £m 18/19 prices | I57: =IF( m_tax_trigger_state = 1, "Paste cells -->","-") -> Paste cells -->
AP58: Named ranges above: m_saved_original_test
E59: Value with new settings and threshold adjustment | G59: £m 18/19 prices | AP59: =AP51 -> 18.31027793 | AQ59: 17.37292957 | AR59: 17.71433001 | AS59: 18.1000843 | AT59: 18.54835257
C61: Result and output
C62: Note: Once the test is complete, the "Tax Trigger adjustment" below can be taken from below and inputted to the PCFM set to run as the Licence Model, rather than the Tax Trigger Tool.
E64: Tax trigger adjustment | G64: £m 18/19 prices | AP64: =IF(AND(m_tax_trigger_state=2,m_model_state=2),IF(ABS((AP48+AP49)-AP57)> ABS(AP78), AP59 - AP57, 0),0) -> 0 | AQ64: 0 | AR64: 0 | AS64: 0 | AT64: 0
B66: Tax trigger parameters
B67: Instruction: Enter values in the yellow cells below for use in the Tax Trigger test.
B68: Note: Flags are used throughout to indicate whether the original or Tax Trigger value is being used. The live values below are exported for use throughout the model.
C70: Active policy
E72: Tax trigger tax settings are used | G72: flag | AP72: =IF(AND(AP$4 <= $I4, m_tax_trigger_state = 2, UserInterface!$G$26 = "Tax Trigger Tool"), TRUE, FALSE) -> FALSE | AQ72: =IF(AND(AQ$4 <= $I4, m_tax_trigger_state = 2, UserInterface!$G$26 = "Tax Trigger Tool"), TRUE, FALSE) -> FALSE | AR72: =IF(AND(AR$4 <= $I4, m_tax_trigger_state = 2, UserInterface!$G$26 = "Tax Trigger Tool"), TRUE, FALSE) -> FALSE | AS72: =IF(AND(AS$4 <= $I4, m_tax_trigger_state = 2, UserInterface!$G$26 = "Tax Trigger Tool"), TRUE, FALSE) -> FALSE | AT72: =IF(AND(AT$4 <= $I4, m_tax_trigger_state = 2, UserInterface!$G$26 = "Tax Trigger Tool"), TRUE, FALSE) -> FALSE
C74: Threshold
E76: Threshold value | G76: £m 18/19 prices | AP76: =CHOOSE(m_identity,AP142,AP143,AP144,AP145,AP146,AP147,AP148,AP149) -> 1.184452839 | AQ76: 1.184452839 | AR76: 1.184452839 | AS76: 1.184452839 | AT76: 1.184452839
E78: Threshold value applied | G78: £m 18/19 prices | AP78: =IF(OR((AP48+AP49) = AP57, AP57 = ""), 0, IF(AP57 < (AP48+AP49), -AP76, +AP76)) -> 0 | AQ78: 0 | AR78: 0 | AS78: 0 | AT78: 0
C80: Corporation tax rate
E82: Active | G82: text | AH82: =AH$72 = FALSE() -> TRUE | AI82: TRUE | AJ82: TRUE | AK82: TRUE | AL82: TRUE | AM82: TRUE | AN82: TRUE | AO82: TRUE | AP82: TRUE | AQ82: TRUE | AR82: TRUE | AS82: TRUE | AT82: TRUE
E83: RIIO | G83: % | J83: > | Y83: =Input!Y374 -> 0.3 | Z83: =Input!Z374 -> 0.3 | AA83: =Input!AA374 -> 0.3 | AB83: =Input!AB374 -> 0.3 | AC83: =Input!AC374 -> 0.28 | AD83: =Input!AD374 -> 0.28 | AE83: =Input!AE374 -> 0.28 | AF83: =Input!AF374 -> 0.26 | AG83: =Input!AG374 -> 0.24 | AH83: =Input!AH374 -> 0.23 | AI83: =Input!AI374 -> 0.21 | AJ83: =Input!AJ374 -> 0.2 | AK83: =Input!AK374 -> 0.2 | AL83: =Input!AL374 -> 0.19 | AM83: =Input!AM374 -> 0.19 | AN83: =Input!AN374 -> 0.19 | AO83: =Input!AO374 -> 0.17 | AP83: =Input!AP374 -> 0.17 | AQ83: =Input!AQ374 -> 0.17 | AR83: =Input!AR374 -> 0.17 | AS83: =Input!AS374 -> 0.17 | AT83: =Input!AT374 -> 0.17
E85: Active | G85: text | AH85: =AH$72 -> 0 | AI85: 0 | AJ85: 0 | AK85: 0 | AL85: 0 | AM85: 0 | AN85: 0 | AO85: 0 | AP85: FALSE | AQ85: FALSE | AR85: FALSE | AS85: FALSE | AT85: FALSE
E86: Tax trigger | G86: % | AH86: 0.23 | AI86: 0.21 | AJ86: 0.2 | AK86: 0.2 | AL86: 0.19 | AM86: 0.19 | AN86: 0.19 | AO86: 0.17 | AP86: 0.17 | AQ86: 0.17 | AR86: 0.17 | AS86: 0.17 | AT86: 0.17
E88: Applied | G88: % | J88: > | Y88: =Y83 -> 0.3 | Z88: =Z83 -> 0.3 | AA88: =AA83 -> 0.3 | AB88: 0.3 | AC88: 0.28 | AD88: 0.28 | AE88: 0.28 | AF88: 0.26 | AG88: 0.24 | AH88: =(AH82 * AH83) + (AH85 * AH86) -> 0.23 | AI88: =(AI82 * AI83) + (AI85 * AI86) -> 0.21 | AJ88: 0.2 | AK88: 0.2 | AL88: 0.19 | AM88: 0.19 | AN88: 0.19 | AO88: 0.17 | AP88: 0.17 | AQ88: 0.17 | AR88: 0.17 | AS88: 0.17 | AT88: 0.17
C90: Capital allowance rate
D92: General pool
E94: Active | G94: text | AH94: =AH$72 = FALSE() -> TRUE | AI94: TRUE | AJ94: TRUE | AK94: TRUE | AL94: TRUE | AM94: TRUE | AN94: TRUE | AO94: TRUE | AP94: TRUE | AQ94: TRUE | AR94: TRUE | AS94: TRUE | AT94: TRUE
E95: RIIO | G95: % | V95: =Input!V376 -> 0.25 | W95: =Input!W376 -> 0.25 | X95: =Input!X376 -> 0.25 | Y95: =Input!Y376 -> 0.25 | Z95: =Input!Z376 -> 0.25 | AA95: =Input!AA376 -> 0.25 | AB95: =Input!AB376 -> 0.25 | AC95: =Input!AC376 -> 0.2 | AD95: =Input!AD376 -> 0.2 | AE95: =Input!AE376 -> 0.2 | AF95: =Input!AF376 -> 0.2 | AG95: =Input!AG376 -> 0.18 | AH95: =Input!AH376 -> 0.18 | AI95: =Input!AI376 -> 0.18 | AJ95: =Input!AJ376 -> 0.18 | AK95: =Input!AK376 -> 0.18 | AL95: =Input!AL376 -> 0.18 | AM95: =Input!AM376 -> 0.18 | AN95: =Input!AN376 -> 0.18 | AO95: =Input!AO376 -> 0.18 | AP95: =Input!AP376 -> 0.18 | AQ95: =Input!AQ376 -> 0.18 | AR95: =Input!AR376 -> 0.18 | AS95: =Input!AS376 -> 0.18 | AT95: =Input!AT376 -> 0.18
E97: Active | G97: text | AH97: =AH$72 -> 0 | AI97: 0 | AJ97: 0 | AK97: 0 | AL97: 0 | AM97: 0 | AN97: 0 | AO97: 0 | AP97: FALSE | AQ97: FALSE | AR97: FALSE | AS97: FALSE | AT97: FALSE
E98: Tax trigger | G98: % | AH98: =AH95 -> 0.18 | AI98: =AI95 -> 0.18 | AJ98: 0.18 | AK98: 0.18 | AL98: 0.18 | AM98: 0.18 | AN98: 0.18 | AO98: 0.18 | AP98: 0.18 | AQ98: 0.18 | AR98: 0.18 | AS98: 0.18 | AT98: 0.18
E100: Applied | G100: % | V100: =V95 -> 0.25 | W100: 0.25 | X100: 0.25 | Y100: 0.25 | Z100: 0.25 | AA100: 0.25 | AB100: 0.25 | AC100: 0.2 | AD100: 0.2 | AE100: 0.2 | AF100: 0.2 | AG100: =AG95 -> 0.18 | AH100: =(AH94 * AH95) + (AH97 * AH98) -> 0.18 | AI100: 0.18 | AJ100: 0.18 | AK100: 0.18 | AL100: 0.18 | AM100: 0.18 | AN100: 0.18 | AO100: 0.18 | AP100: 0.18 | AQ100: 0.18 | AR100: 0.18 | AS100: 0.18 | AT100: 0.18
D102: Special Rate pool
E104: Active | G104: text | AH104: =AH$72 = FALSE() -> TRUE | AI104: TRUE | AJ104: TRUE | AK104: TRUE | AL104: TRUE | AM104: TRUE | AN104: TRUE | AO104: TRUE | AP104: TRUE | AQ104: TRUE | AR104: TRUE | AS104: TRUE | AT104: TRUE
E105: RIIO | G105: % | J105: > | V105: =Input!V377 -> 0.06 | W105: =Input!W377 -> 0.06 | X105: =Input!X377 -> 0.06 | Y105: =Input!Y377 -> 0.06 | Z105: =Input!Z377 -> 0.06 | AA105: =Input!AA377 -> 0.06 | AB105: =Input!AB377 -> 0.06 | AC105: =Input!AC377 -> 0.1 | AD105: =Input!AD377 -> 0.1 | AE105: =Input!AE377 -> 0.1 | AF105: =Input!AF377 -> 0.1 | AG105: =Input!AG377 -> 0.08 | AH105: =Input!AH377 -> 0.08 | AI105: =Input!AI377 -> 0.08 | AJ105: =Input!AJ377 -> 0.08 | AK105: =Input!AK377 -> 0.08 | AL105: =Input!AL377 -> 0.08 | AM105: =Input!AM377 -> 0.08 | AN105: =Input!AN377 -> 0.06 | AO105: =Input!AO377 -> 0.06 | AP105: =Input!AP377 -> 0.06 | AQ105: =Input!AQ377 -> 0.06 | AR105: =Input!AR377 -> 0.06 | AS105: =Input!AS377 -> 0.06 | AT105: =Input!AT377 -> 0.06
E107: Active | G107: text | AH107: =AH$72 -> 0 | AI107: 0 | AJ107: 0 | AK107: 0 | AL107: 0 | AM107: 0 | AN107: 0 | AO107: 0 | AP107: FALSE | AQ107: FALSE | AR107: FALSE | AS107: FALSE | AT107: FALSE
E108: Tax trigger | G108: % | AH108: =AH105 -> 0.08 | AI108: =AI105 -> 0.08 | AJ108: 0.08 | AK108: 0.08 | AL108: 0.08 | AM108: 0.08 | AN108: 0.06 | AO108: 0.06 | AP108: 0.06 | AQ108: 0.06 | AR108: 0.06 | AS108: 0.06 | AT108: 0.06
E110: Applied | G110: % | J110: > | V110: =V105 -> 0.06 | W110: =W105 -> 0.06 | X110: =X105 -> 0.06 | Y110: =Y105 -> 0.06 | Z110: =Z105 -> 0.06 | AA110: =AA105 -> 0.06 | AB110: 0.06 | AC110: 0.1 | AD110: 0.1 | AE110: 0.1 | AF110: 0.1 | AG110: 0.08 | AH110: =(AH104 * AH105) + (AH107 * AH108) -> 0.08 | AI110: 0.08 | AJ110: 0.08 | AK110: 0.08 | AL110: 0.08 | AM110: 0.08 | AN110: 0.06 | AO110: 0.06 | AP110: 0.06 | AQ110: 0.06 | AR110: 0.06 | AS110: 0.06 | AT110: 0.06
D112: Structures and Buildings pool
E114: Active | G114: text | AH114: =AH$72 = FALSE() -> TRUE | AI114: TRUE | AJ114: TRUE | AK114: TRUE | AL114: TRUE | AM114: TRUE | AN114: TRUE | AO114: TRUE | AP114: TRUE | AQ114: TRUE | AR114: TRUE | AS114: TRUE | AT114: TRUE
E115: RIIO | G115: % | J115: > | V115: =Input!V387 -> 0 | W115: =Input!W387 -> 0 | X115: =Input!X387 -> 0 | Y115: =Input!Y387 -> 0 | Z115: =Input!Z387 -> 0 | AA115: =Input!AA387 -> 0 | AB115: =Input!AB387 -> 0 | AC115: =Input!AC387 -> 0 | AD115: =Input!AD387 -> 0 | AE115: =Input!AE387 -> 0 | AF115: =Input!AF387 -> 0 | AG115: =Input!AG387 -> 0 | AH115: =Input!AH378 -> 0 | AI115: =Input!AI378 -> 0 | AJ115: =Input!AJ378 -> 0 | AK115: =Input!AK378 -> 0 | AL115: =Input!AL378 -> 0 | AM115: =Input!AM378 -> 0 | AN115: =Input!AN378 -> 0 | AO115: =Input!AO378 -> 0 | AP115: =Input!AP378 -> 0 | AQ115: =Input!AQ378 -> 0 | AR115: =Input!AR378 -> 0 | AS115: =Input!AS378 -> 0 | AT115: =Input!AT378 -> 0
E117: Active | G117: text | AH117: =AH$72 -> 0 | AI117: 0 | AJ117: 0 | AK117: 0 | AL117: 0 | AM117: 0 | AN117: 0 | AO117: 0 | AP117: FALSE | AQ117: FALSE | AR117: FALSE | AS117: FALSE | AT117: FALSE
E118: Tax trigger | G118: % | AH118: 0 | AI118: 0 | AJ118: 0 | AK118: 0 | AL118: 0 | AM118: 0 | AN118: 0 | AO118: 0 | AP118: 0.02 | AQ118: 0.02 | AR118: 0.02 | AS118: 0.02 | AT118: 0.02
E120: Applied | G120: % | J120: > | V120: =V115 -> 0 | W120: =W115 -> 0 | X120: =X115 -> 0 | Y120: =Y115 -> 0 | Z120: =Z115 -> 0 | AA120: =AA115 -> 0 | AB120: 0 | AC120: 0 | AD120: 0 | AE120: 0 | AF120: 0 | AG120: 0 | AH120: =(AH114 * AH115) + (AH117 * AH118) -> 0 | AI120: 0 | AJ120: 0 | AK120: 0 | AL120: 0 | AM120: 0 | AN120: 0 | AO120: 0 | AP120: 0 | AQ120: 0 | AR120: 0 | AS120: 0 | AT120: 0
D122: Deferred revenue writing down allowance rate
E124: Active | G124: text | AH124: =AH$72 = FALSE() -> TRUE | AI124: TRUE | AJ124: TRUE | AK124: TRUE | AL124: TRUE | AM124: TRUE | AN124: TRUE | AO124: TRUE | AP124: TRUE | AQ124: TRUE | AR124: TRUE | AS124: TRUE | AT124: TRUE
E125: RIIO | G125: % | J125: > | V125: =Input!V379 -> 0 | W125: =Input!W379 -> 0 | X125: =Input!X379 -> 0 | Y125: =Input!Y379 -> 0 | Z125: =Input!Z379 -> 0 | AA125: =Input!AA379 -> 0 | AB125: =Input!AB379 -> 0 | AC125: =Input!AC379 -> 0 | AD125: =Input!AD379 -> 0 | AE125: =Input!AE379 -> 0 | AF125: =Input!AF379 -> 0 | AG125: =Input!AG379 -> 0 | AH125: =Input!AH379 -> 0.0222 | AI125: =Input!AI379 -> 0.0222 | AJ125: =Input!AJ379 -> 0.0222 | AK125: =Input!AK379 -> 0.0222 | AL125: =Input!AL379 -> 0.0222 | AM125: =Input!AM379 -> 0.0222 | AN125: =Input!AN379 -> 0.0222 | AO125: =Input!AO379 -> 0.0222 | AP125: =Input!AP379 -> 0.0222 | AQ125: =Input!AQ379 -> 0.0222 | AR125: =Input!AR379 -> 0.0222 | AS125: =Input!AS379 -> 0.0222 | AT125: =Input!AT379 -> 0.0222
E127: Active | G127: text | AH127: =AH$72 -> 0 | AI127: 0 | AJ127: 0 | AK127: 0 | AL127: 0 | AM127: 0 | AN127: 0 | AO127: 0 | AP127: FALSE | AQ127: FALSE | AR127: FALSE | AS127: FALSE | AT127: FALSE
E128: Tax trigger | G128: % | AH128: =AH125 -> 0.0222 | AI128: =AI125 -> 0.0222 | AJ128: 0.0222 | AK128: 0.0222 | AL128: 0.0222 | AM128: 0.0222 | AN128: 0.0222 | AO128: 0.0222 | AP128: 0.0222 | AQ128: 0.0222 | AR128: 0.0222 | AS128: 0.0222 | AT128: 0.0222
E130: Applied | G130: % | J130: > | V130: =V125 -> 0 | W130: 0 | X130: 0 | Y130: 0 | Z130: 0 | AA130: 0 | AB130: 0 | AC130: 0 | AD130: 0 | AE130: 0 | AF130: 0 | AG130: =AG125 -> 0 | AH130: =(AH124 * AH125) + (AH127 * AH128) -> 0.0222 | AI130: 0.0222 | AJ130: 0.0222 | AK130: 0.0222 | AL130: 0.0222 | AM130: 0.0222 | AN130: 0.0222 | AO130: 0.0222 | AP130: 0.0222 | AQ130: 0.0222 | AR130: 0.0222 | AS130: 0.0222 | AT130: 0.0222
C132: B event value
E134: Active | G134: text | AP134: =AP$72 -> FALSE | AQ134: FALSE | AR134: FALSE | AS134: FALSE | AT134: FALSE
E135: Tax trigger | G135: £m 18/19 prices | AP135: =INDEX(AP153:AP161,MATCH($B$2,$E$153:$E$161,0),1) -> 0 | AQ135: =INDEX(AQ153:AQ161,MATCH($B$2,$E$153:$E$161,0),1) -> 0 | AR135: 0 | AS135: 0 | AT135: 0
E137: Applied | G137: £m 18/19 prices | AP137: =AP134 * AP135 -> 0 | AQ137: 0 | AR137: 0 | AS137: 0 | AT137: 0
C139: Tax Trigger Deadbands
E141: Cadent | G141: £m 18/19 prices | AH141: =Cadent!AH$454 -> 6.846878149 | AI141: =Cadent!AI$454 -> 6.637307289 | AJ141: =Cadent!AJ$454 -> 6.759949941 | AK141: =Cadent!AK$454 -> 6.616425618 | AL141: =Cadent!AL$454 -> 6.611130623 | AM141: =Cadent!AM$454 -> 6.59658007 | AN141: =Cadent!AN$454 -> 6.560950806 | AO141: =Cadent!AO$454 -> 6.551421004 | AP141: =Cadent!AP$454 -> 6.551421004 | AQ141: =Cadent!AQ$454 -> 6.551421004 | AR141: =Cadent!AR$454 -> 6.551421004 | AS141: =Cadent!AS$454 -> 6.551421004 | AT141: =Cadent!AT$454 -> 6.551421004
E142: East | G142: £m 18/19 prices | AH142: =East!AH$454 -> 2.326286784 | AI142: =East!AI$454 -> 2.243739921 | AJ142: =East!AJ$454 -> 2.257712693 | AK142: =East!AK$454 -> 2.216551341 | AL142: =East!AL$454 -> 2.211286649 | AM142: =East!AM$454 -> 2.206626873 | AN142: =East!AN$454 -> 2.194340783 | AO142: =East!AO$454 -> 2.199390292 | AP142: =East!AP$454 -> 2.199390292 | AQ142: =East!AQ$454 -> 2.199390292 | AR142: =East!AR$454 -> 2.199390292 | AS142: =East!AS$454 -> 2.199390292 | AT142: =East!AT$454 -> 2.199390292
E143: London | G143: £m 18/19 prices | AH143: =London!AH$454 -> 1.584014782 | AI143: =London!AI$454 -> 1.554970299 | AJ143: =London!AJ$454 -> 1.650930528 | AK143: =London!AK$454 -> 1.609043648 | AL143: =London!AL$454 -> 1.58819508 | AM143: =London!AM$454 -> 1.583747163 | AN143: =London!AN$454 -> 1.560163218 | AO143: =London!AO$454 -> 1.558583964 | AP143: =London!AP$454 -> 1.558583964 | AQ143: =London!AQ$454 -> 1.558583964 | AR143: =London!AR$454 -> 1.558583964 | AS143: =London!AS$454 -> 1.558583964 | AT143: =London!AT$454 -> 1.558583964
E144: North West | G144: £m 18/19 prices | AH144: ='North West'!AH$454 -> 1.705347408 | AI144: ='North West'!AI$454 -> 1.631650288 | AJ144: ='North West'!AJ$454 -> 1.644363826 | AK144: ='North West'!AK$454 -> 1.617716066 | AL144: ='North West'!AL$454 -> 1.625020589 | AM144: ='North West'!AM$454 -> 1.618220542 | AN144: ='North West'!AN$454 -> 1.617201615 | AO144: ='North West'!AO$454 -> 1.613859137 | AP144: ='North West'!AP$454 -> 1.613859137 | AQ144: ='North West'!AQ$454 -> 1.613859137 | AR144: ='North West'!AR$454 -> 1.613859137 | AS144: ='North West'!AS$454 -> 1.613859137 | AT144: ='North West'!AT$454 -> 1.613859137
E145: West Midlands | G145: £m 18/19 prices | AH145: ='West Midlands'!AH$454 -> 1.231229175 | AI145: ='West Midlands'!AI$454 -> 1.206946782 | AJ145: ='West Midlands'!AJ$454 -> 1.206942893 | AK145: ='West Midlands'!AK$454 -> 1.173114562 | AL145: ='West Midlands'!AL$454 -> 1.186628305 | AM145: ='West Midlands'!AM$454 -> 1.187985491 | AN145: ='West Midlands'!AN$454 -> 1.18924519 | AO145: ='West Midlands'!AO$454 -> 1.179587611 | AP145: ='West Midlands'!AP$454 -> 1.179587611 | AQ145: ='West Midlands'!AQ$454 -> 1.179587611 | AR145: ='West Midlands'!AR$454 -> 1.179587611 | AS145: ='West Midlands'!AS$454 -> 1.179587611 | AT145: ='West Midlands'!AT$454 -> 1.179587611
E146: Northern | G146: £m 18/19 prices | AH146: =Northern!AH$454 -> 1.475415688 | AI146: =Northern!AI$454 -> 1.467307029 | AJ146: =Northern!AJ$454 -> 1.511577975 | AK146: =Northern!AK$454 -> 1.473984418 | AL146: =Northern!AL$454 -> 1.433395399 | AM146: =Northern!AM$454 -> 1.445260252 | AN146: =Northern!AN$454 -> 1.456848558 | AO146: =Northern!AO$454 -> 1.477627302 | AP146: =Northern!AP$454 -> 1.477627302 | AQ146: =Northern!AQ$454 -> 1.477627302 | AR146: =Northern!AR$454 -> 1.477627302 | AS146: =Northern!AS$454 -> 1.477627302 | AT146: =Northern!AT$454 -> 1.477627302
E147: Scotland | G147: £m 18/19 prices | AH147: =Scotland!AH$454 -> 1.161089197 | AI147: =Scotland!AI$454 -> 1.130686788 | AJ147: =Scotland!AJ$454 -> 1.104288944 | AK147: =Scotland!AK$454 -> 1.159374194 | AL147: =Scotland!AL$454 -> 1.174716176 | AM147: =Scotland!AM$454 -> 1.183771646 | AN147: =Scotland!AN$454 -> 1.164495255 | AO147: =Scotland!AO$454 -> 1.184452839 | AP147: =Scotland!AP$454 -> 1.184452839 | AQ147: =Scotland!AQ$454 -> 1.184452839 | AR147: =Scotland!AR$454 -> 1.184452839 | AS147: =Scotland!AS$454 -> 1.184452839 | AT147: =Scotland!AT$454 -> 1.184452839
E148: Southern | G148: £m 18/19 prices | AH148: =Southern!AH$454 -> 2.702540221 | AI148: =Southern!AI$454 -> 2.61497723 | AJ148: =Southern!AJ$454 -> 2.662137431 | AK148: =Southern!AK$454 -> 2.669767593 | AL148: =Southern!AL$454 -> 2.686500835 | AM148: =Southern!AM$454 -> 2.698857631 | AN148: =Southern!AN$454 -> 2.672201626 | AO148: =Southern!AO$454 -> 2.688390724 | AP148: =Southern!AP$454 -> 2.688390724 | AQ148: =Southern!AQ$454 -> 2.688390724 | AR148: =Southern!AR$454 -> 2.688390724 | AS148: =Southern!AS$454 -> 2.688390724 | AT148: =Southern!AT$454 -> 2.688390724
E149: Wales & West | G149: £m 18/19 prices | AH149: ='Wales & West'!AH$454 -> 1.510690477 | AI149: ='Wales & West'!AI$454 -> 1.491777999 | AJ149: ='Wales & West'!AJ$454 -> 1.469801856 | AK149: ='Wales & West'!AK$454 -> 1.474197186 | AL149: ='Wales & West'!AL$454 -> 1.523155642 | AM149: ='Wales & West'!AM$454 -> 1.507117868 | AN149: ='Wales & West'!AN$454 -> 1.504607308 | AO149: ='Wales & West'!AO$454 -> 1.495077212 | AP149: ='Wales & West'!AP$454 -> 1.495077212 | AQ149: ='Wales & West'!AQ$454 -> 1.495077212 | AR149: ='Wales & West'!AR$454 -> 1.495077212 | AS149: ='Wales & West'!AS$454 -> 1.495077212 | AT149: ='Wales & West'!AT$454 -> 1.495077212
C151: B event value by Licencee
E153: Cadent | G153: £m 18/19 prices | AH153: 0 | AI153: 0 | AJ153: 0 | AK153: 0 | AL153: 0 | AM153: 0 | AN153: 0 | AO153: 0 | AP153: 0 | AQ153: 0 | AR153: 0 | AS153: 0 | AT153: 0
E154: East | G154: £m 18/19 prices | AH154: 0 | AI154: 0 | AJ154: 0 | AK154: 0 | AL154: 0 | AM154: 0 | AN154: 0 | AO154: 0 | AP154: 0 | AQ154: 0 | AR154: 0 | AS154: 0 | AT154: 0
E155: London | G155: £m 18/19 prices | AH155: 0 | AI155: 0 | AJ155: 0 | AK155: 0 | AL155: 0 | AM155: 0 | AN155: 0 | AO155: 0 | AP155: 0 | AQ155: 0 | AR155: 0 | AS155: 0 | AT155: 0
E156: North West | G156: £m 18/19 prices | AH156: 0 | AI156: 0 | AJ156: 0 | AK156: 0 | AL156: 0 | AM156: 0 | AN156: 0 | AO156: 0 | AP156: 0 | AQ156: 0 | AR156: 0 | AS156: 0 | AT156: 0
E157: West Midlands | G157: £m 18/19 prices | AH157: 0 | AI157: 0 | AJ157: 0 | AK157: 0 | AL157: 0 | AM157: 0 | AN157: 0 | AO157: 0 | AP157: 0 | AQ157: 0 | AR157: 0 | AS157: 0 | AT157: 0
E158: Northern | G158: £m 18/19 prices | AH158: 0 | AI158: 0 | AJ158: 0 | AK158: 0 | AL158: 0 | AM158: 0 | AN158: 0 | AO158: 0 | AP158: 0 | AQ158: 0 | AR158: 0 | AS158: 0 | AT158: 0
E159: Scotland | G159: £m 18/19 prices | AH159: 0 | AI159: 0 | AJ159: 0 | AK159: 0 | AL159: 0 | AM159: 0 | AN159: 0 | AO159: 0 | AP159: 0 | AQ159: 0 | AR159: 0 | AS159: 0 | AT159: 0
E160: Southern | G160: £m 18/19 prices | AH160: 0 | AI160: 0 | AJ160: 0 | AK160: 0 | AL160: 0 | AM160: 0 | AN160: 0 | AO160: 0 | AP160: 0 | AQ160: 0 | AR160: 0 | AS160: 0 | AT160: 0
E161: Wales & West | G161: £m 18/19 prices | AH161: 0 | AI161: 0 | AJ161: 0 | AK161: 0 | AL161: 0 | AM161: 0 | AN161: 0 | AO161: 0 | AP161: 0 | AQ161: 0 | AR161: 0 | AS161: 0 | AT161: 0
B163: End of sheet

Sheet MOD
A1: MOD | AI1: CADENT: | AJ1: EAST: | AK1: LONDON: | AL1: NW: | AM1: WM: | AN1: NORTH: | AO1: SCO: | AP1: SOUTH: | AQ1: W&W:
B2: =UserInterface!G17 -> Northern
E3: Parameter | G3: Units | I3: Constant | AH3: Annual values
E4: PCFM year ending | I4: =UserInterface!$G$10 -> 2028-03-31 | K4: 1991-03-31 | L4: 1992-03-31 | M4: 1993-03-31 | N4: 1994-03-31 | O4: 1995-03-31 | P4: 1996-03-31 | Q4: 1997-03-31 | R4: 1998-03-31 | S4: 1999-03-31 | T4: 2000-03-31 | U4: 2001-03-31 | V4: 2002-03-31 | W4: 2003-03-31 | X4: 2004-03-31 | Y4: 2005-03-31 | Z4: 2006-03-31 | AA4: 2007-03-31 | AB4: 2008-03-31 | AC4: 2009-03-31 | AD4: 2010-03-31 | AE4: 2011-03-31 | AF4: 2012-03-31 | AG4: 2013-03-31 | AH4: 2014-03-31 | AI4: 2015-03-31 | AJ4: 2016-03-31 | AK4: 2017-03-31 | AL4: 2018-03-31 | AM4: 2019-03-31 | AN4: 2020-03-31 | AO4: 2021-03-31 | AP4: 2022-03-31 | AQ4: 2023-03-31 | AR4: 2024-03-31 | AS4: 2025-03-31 | AT4: 2026-03-31
D5: Note: Base revenue referred to in the PCFM is not the BRt terms quoted in the licence as this also includes the terms TRUE and RPIFt which relate to retail price index adjustments
E6: =UserInterface!E10 -> Year t selected: | G6: =UserInterface!G10 -> 2028-03-31
E8: =Revenue!E65 -> Final Proposals base revenue | G8: £m 18/19 prices | AP8: =Revenue!AP65 -> 404.8765881 | AQ8: =Revenue!AQ65 -> 401.5206444 | AR8: =Revenue!AR65 -> 403.7462424 | AS8: =Revenue!AS65 -> 405.6145072 | AT8: =Revenue!AT65 -> 408.8569551
E9: =Revenue!E66 -> MOD | G9: £m 18/19 prices | AP9: =Revenue!AP66 -> 0 | AQ9: =Revenue!AQ66 -> -0.001755219516 | AR9: =Revenue!AR66 -> -0.0001170990643 | AS9: =Revenue!AS66 -> -0.0001206579693 | AT9: =Revenue!AT66 -> -0.000124144046
E10: =Revenue!E67 -> Base revenue | G10: £m 18/19 prices | AP10: =Revenue!AP67 -> 404.8765881 | AQ10: =Revenue!AQ67 -> 401.5188892 | AR10: =Revenue!AR67 -> 403.7461253 | AS10: =Revenue!AS67 -> 405.6143866 | AT10: =Revenue!AT67 -> 408.8568309
B12: End of sheet

Sheet Incentives
A1: Incentives and other revenue | AI1: CADENT: | AJ1: EAST: | AK1: LONDON: | AL1: NW: | AM1: WM: | AN1: NORTH: | AO1: SCO: | AP1: SOUTH: | AQ1: W&W:
B2: =UserInterface!G17 -> Northern
E3: Parameter | G3: Units | I3: Constant | AH3: Annual values
E4: PCFM year ending | I4: =UserInterface!$G$10 -> 2028-03-31 | K4: 1991-03-31 | L4: 1992-03-31 | M4: 1993-03-31 | N4: 1994-03-31 | O4: 1995-03-31 | P4: 1996-03-31 | Q4: 1997-03-31 | R4: 1998-03-31 | S4: 1999-03-31 | T4: 2000-03-31 | U4: 2001-03-31 | V4: 2002-03-31 | W4: 2003-03-31 | X4: 2004-03-31 | Y4: 2005-03-31 | Z4: 2006-03-31 | AA4: 2007-03-31 | AB4: 2008-03-31 | AC4: 2009-03-31 | AD4: 2010-03-31 | AE4: 2011-03-31 | AF4: 2012-03-31 | AG4: 2013-03-31 | AH4: 2014-03-31 | AI4: 2015-03-31 | AJ4: 2016-03-31 | AK4: 2017-03-31 | AL4: 2018-03-31 | AM4: 2019-03-31 | AN4: 2020-03-31 | AO4: 2021-03-31 | AP4: 2022-03-31 | AQ4: 2023-03-31 | AR4: 2024-03-31 | AS4: 2025-03-31 | AT4: 2026-03-31
B6: Incentives and other non-base revenue items
C8: Incentives and other revenues
E10: Include in net debt and tax (for base revenue calculation) | G10: text | I10: =Input!I294 -> FALSE
E12: Incentive revenue adjustment | G12: £m nominal | AP12: =Input!AP296 -> 0 | AQ12: =Input!AQ296 -> 0 | AR12: =Input!AR296 -> 0 | AS12: =Input!AS296 -> 0 | AT12: =Input!AT296 -> 0
E13: Adjustments for Allowed Pass-Through items | G13: £m nominal | AP13: =Input!AP297 -> 0 | AQ13: =Input!AQ297 -> 0 | AR13: =Input!AR297 -> 0 | AS13: =Input!AS297 -> 0 | AT13: =Input!AT297 -> 0
E14: Low Carbon Networks Fund revenue adjustment | G14: £m nominal | AP14: =Input!AP298 -> 0 | AQ14: =Input!AQ298 -> 0 | AR14: =Input!AR298 -> 0 | AS14: =Input!AS298 -> 0 | AT14: =Input!AT298 -> 0
E15: National Innovation Competition (Pass through) | G15: £m nominal | AP15: =Input!AP299 -> 0 | AQ15: =Input!AQ299 -> 0 | AR15: =Input!AR299 -> 0 | AS15: =Input!AS299 -> 0 | AT15: =Input!AT299 -> 0
E16: Other items | G16: £m nominal | AP16: =Input!AP300 -> 0 | AQ16: =Input!AQ300 -> 0 | AR16: =Input!AR300 -> 0 | AS16: =Input!AS300 -> 0 | AT16: =Input!AT300 -> 0
E17: Correction factor | G17: £m nominal | AP17: =Input!AP301 -> 0 | AQ17: =Input!AQ301 -> 0 | AR17: =Input!AR301 -> 0 | AS17: =Input!AS301 -> 0 | AT17: =Input!AT301 -> 0
E18: Network Innovation Allowance | G18: £m nominal | AP18: =Input!AP302 -> 0 | AQ18: =Input!AQ302 -> 0 | AR18: =Input!AR302 -> 0 | AS18: =Input!AS302 -> 0 | AT18: =Input!AT302 -> 0
E19: Total incentives and other non base revenue items | G19: £m nominal | AP19: =SUM(AP12:AP16, -AP17, AP18) -> 0 | AQ19: =SUM(AQ12:AQ16, -AQ17, AQ18) -> 0 | AR19: 0 | AS19: 0 | AT19: 0
E21: Total incentives and other non base revenue items (for net debt and tax) | G21: £m nominal | AP21: =AP19*$I$10 -> 0 | AQ21: 0 | AR21: 0 | AS21: 0 | AT21: 0
C23: Incentives expected outperformance
E25: Expected outperformance on RoRE (NGN's Base case) | G25: annual real % | I25: =I26 -> 0 | AU25: Zero RoRe outperformance represents NGN's Base case position.
E26: Expected outperformance on RoRE (modelling assumption) | G26: annual real % | I26: =Input!I309 -> 0
E27: Include in net debt and tax (for base revenue calculation) | G27: text | I27: =Input!I310 -> TRUE
E29: Input actuals used | G29: text | AP29: =Totex!AP46 -> TRUE | AQ29: =Totex!AQ46 -> TRUE | AR29: =Totex!AR46 -> TRUE | AS29: =Totex!AS46 -> TRUE | AT29: =Totex!AT46 -> TRUE
E30: Annual RoRE outperformance | G30: text | AP30: =IF(AP29, $I$26, $I$25) -> 0 | AQ30: =IF(AQ29, $I$26, $I$25) -> 0 | AR30: 0 | AS30: 0 | AT30: 0
E32: Assumed equity portion of RAV | G32: % | AP32: =1 - Input!AP66 -> 0.4 | AQ32: =1 - Input!AQ66 -> 0.4 | AR32: =1 - Input!AR66 -> 0.4 | AS32: =1 - Input!AS66 -> 0.4 | AT32: =1 - Input!AT66 -> 0.4
E33: NPV-neutral RAV return base | G33: £m 18/19 prices | AP33: ='Return&RAV'!AP25 -> 2216.562586 | AQ33: ='Return&RAV'!AQ25 -> 2263.335192 | AR33: ='Return&RAV'!AR25 -> 2309.804739 | AS33: ='Return&RAV'!AS25 -> 2350.025658 | AT33: ='Return&RAV'!AT25 -> 2380.855485
E34: Equity portion of NPV-neutral RAV | G34: £m 18/19 prices | AP34: =AP32 * AP33 -> 886.6250346 | AQ34: =AQ32 * AQ33 -> 905.3340768 | AR34: 923.9218955 | AS34: 940.0102632 | AT34: 952.342194
E36: Outperformance revenue (pre-tax) | G36: £m 18/19 prices | AP36: =AP34 * AP30 -> 0 | AQ36: =AQ34 * AQ30 -> 0 | AR36: 0 | AS36: 0 | AT36: 0
E38: Outperformance revenue (pre-tax) | G38: £m nominal | AP38: =AP36 * GDNpf -> 0 | AQ38: =AQ36 * GDNpf -> 0 | AR38: =AR36 * GDNpf -> 0 | AS38: =AS36 * GDNpf -> 0 | AT38: =AT36 * GDNpf -> 0
E40: Outperformance revenue (for net debt and tax) | G40: £m nominal | AP40: =AP38 * $I$27 -> 0 | AQ40: =AQ38 * $I$27 -> 0 | AR40: 0 | AS40: 0 | AT40: 0
C42: Total incentives and other revenue
E44: Total incentives and other revenue (for net debt and tax) | G44: £m nominal | AP44: =SUM(AP21, AP40) -> 0 | AQ44: =SUM(AQ21, AQ40) -> 0 | AR44: =SUM(AR21, AR40) -> 0 | AS44: =SUM(AS21, AS40) -> 0 | AT44: =SUM(AT21, AT40) -> 0
B46: End of sheet

Sheet Totex
A1: Totex | AI1: CADENT: | AJ1: EAST: | AK1: LONDON: | AL1: NW: | AM1: WM: | AN1: NORTH: | AO1: SCO: | AP1: SOUTH: | AQ1: W&W:
B2: =UserInterface!G17 -> Northern
E3: Parameter | G3: Units | I3: Constant | AH3: Annual values
E4: PCFM year ending | I4: =UserInterface!$G$10 -> 2028-03-31 | K4: 1991-03-31 | L4: 1992-03-31 | M4: 1993-03-31 | N4: 1994-03-31 | O4: 1995-03-31 | P4: 1996-03-31 | Q4: 1997-03-31 | R4: 1998-03-31 | S4: 1999-03-31 | T4: 2000-03-31 | U4: 2001-03-31 | V4: 2002-03-31 | W4: 2003-03-31 | X4: 2004-03-31 | Y4: 2005-03-31 | Z4: 2006-03-31 | AA4: 2007-03-31 | AB4: 2008-03-31 | AC4: 2009-03-31 | AD4: 2010-03-31 | AE4: 2011-03-31 | AF4: 2012-03-31 | AG4: 2013-03-31 | AH4: 2014-03-31 | AI4: 2015-03-31 | AJ4: 2016-03-31 | AK4: 2017-03-31 | AL4: 2018-03-31 | AM4: 2019-03-31 | AN4: 2020-03-31 | AO4: 2021-03-31 | AP4: 2022-03-31 | AQ4: 2023-03-31 | AR4: 2024-03-31 | AS4: 2025-03-31 | AT4: 2026-03-31
B6: Totex
C8: Allowed totex aggregated by sub-category
C9: Note: Totex is the sum of a number of cost categories, with all totex allowances falling under one (or more) of them. They have significance in the model as each sub-category can have its own set of tax pool allocation rules.
D11: Non-variant allowances
D12: Note: These values are set at final proposals and are not updated during the price control
E14: Non-variant allowed load related capex | G14: £m 18/19 prices | AH14: =Input!AH139 -> 27.31402773 | AI14: =Input!AI139 -> 28.2934812 | AJ14: =Input!AJ139 -> 37.3197309 | AK14: =Input!AK139 -> 33.45487859 | AL14: =Input!AL139 -> 30.29724808 | AM14: =Input!AM139 -> 30.54983912 | AN14: =Input!AN139 -> 27.20931141 | AO14: =Input!AO139 -> 27.82151302 | AP14: =Input!AP139 -> 28.83030261 | AQ14: =Input!AQ139 -> 36.71064392 | AR14: =Input!AR139 -> 40.72257892 | AS14: =Input!AS139 -> 36.41405352 | AT14: =Input!AT139 -> 32.06273022
E15: Non-variant allowed non-load related capex - other | G15: £m 18/19 prices | AH15: =Input!AH140 -> 30.33565817 | AI15: =Input!AI140 -> 34.02305903 | AJ15: =Input!AJ140 -> 28.41027471 | AK15: =Input!AK140 -> 27.83787291 | AL15: =Input!AL140 -> 16.50339292 | AM15: =Input!AM140 -> 16.76640906 | AN15: =Input!AN140 -> 20.17643405 | AO15: =Input!AO140 -> 20.45492554 | AP15: =Input!AP140 -> 25.21849609 | AQ15: =Input!AQ140 -> 25.32276764 | AR15: =Input!AR140 -> 22.04242266 | AS15: =Input!AS140 -> 22.13376328 | AT15: =Input!AT140 -> 20.54626479
E16: Non-variant allowed controllable opex | G16: £m 18/19 prices | AH16: =Input!AH141 -> 105.5434621 | AI16: =Input!AI141 -> 106.6283339 | AJ16: =Input!AJ141 -> 107.1649606 | AK16: =Input!AK141 -> 107.1844939 | AL16: =Input!AL141 -> 105.3351188 | AM16: =Input!AM141 -> 105.0950243 | AN16: =Input!AN141 -> 104.7363652 | AO16: =Input!AO141 -> 103.4776273 | AP16: =Input!AP141 -> 87.82689644 | AQ16: =Input!AQ141 -> 86.56301282 | AR16: =Input!AR141 -> 85.81641898 | AS16: =Input!AS141 -> 84.19843206 | AT16: =Input!AT141 -> 84.90971894
E17: Non-variant allowed repex | G17: £m 18/19 prices | AH17: =Input!AH142 -> 103.9693948 | AI17: =Input!AI142 -> 106.5261537 | AJ17: =Input!AJ142 -> 107.1692586 | AK17: =Input!AK142 -> 108.250679 | AL17: =Input!AL142 -> 108.4948983 | AM17: =Input!AM142 -> 108.4694427 | AN17: =Input!AN142 -> 109.9241593 | AO17: =Input!AO142 -> 109.8369114 | AP17: =Input!AP142 -> 107.3320319 | AQ17: =Input!AQ142 -> 106.67759 | AR17: =Input!AR142 -> 106.0293531 | AS17: =Input!AS142 -> 105.3872171 | AT17: =Input!AT142 -> 104.7510803
D19: Variant
D20: Note: Licence conditions may allow for non-baseline allowances to be granted. These are added to the baseline to generate the allowed sub-categories and thereby the overall allowed totex.
E22: =Input!E248 -> Variant allowed load related capex | G22: =Input!G248 -> £m 18/19 prices | AH22: =Input!AH248 -> 0 | AI22: =Input!AI248 -> 0 | AJ22: =Input!AJ248 -> 0 | AK22: =Input!AK248 -> 0 | AL22: =Input!AL248 -> 0 | AM22: =Input!AM248 -> 0 | AN22: =Input!AN248 -> 0 | AO22: =Input!AO248 -> 0 | AP22: =Input!AP248 -> 0 | AQ22: =Input!AQ248 -> 0 | AR22: =Input!AR248 -> 0 | AS22: =Input!AS248 -> 0 | AT22: =Input!AT248 -> 0
E23: =Input!E249 -> Variant allowed non-load related capex - other | G23: =Input!G249 -> £m 18/19 prices | AH23: =Input!AH249 -> 0 | AI23: =Input!AI249 -> 0 | AJ23: =Input!AJ249 -> 0 | AK23: =Input!AK249 -> 0 | AL23: =Input!AL249 -> 0 | AM23: =Input!AM249 -> 0 | AN23: =Input!AN249 -> 0 | AO23: =Input!AO249 -> 0 | AP23: =Input!AP249 -> 0 | AQ23: =Input!AQ249 -> 0 | AR23: =Input!AR249 -> 0 | AS23: =Input!AS249 -> 0 | AT23: =Input!AT249 -> 0
E24: =Input!E250 -> Variant allowed controllable opex | G24: =Input!G250 -> £m 18/19 prices | AH24: =Input!AH250 -> 0 | AI24: =Input!AI250 -> 0 | AJ24: =Input!AJ250 -> 0 | AK24: =Input!AK250 -> 0 | AL24: =Input!AL250 -> 0 | AM24: =Input!AM250 -> 0 | AN24: =Input!AN250 -> 0 | AO24: =Input!AO250 -> 0 | AP24: =Input!AP250 -> 0 | AQ24: =Input!AQ250 -> 0 | AR24: =Input!AR250 -> 0 | AS24: =Input!AS250 -> 0 | AT24: =Input!AT250 -> 0
E25: =Input!E251 -> Variant allowed repex | G25: =Input!G251 -> £m 18/19 prices | AH25: =Input!AH251 -> 0 | AI25: =Input!AI251 -> 0 | AJ25: =Input!AJ251 -> 0 | AK25: =Input!AK251 -> 0 | AL25: =Input!AL251 -> 0 | AM25: =Input!AM251 -> 0 | AN25: =Input!AN251 -> 0 | AO25: =Input!AO251 -> 0 | AP25: =Input!AP251 -> 0 | AQ25: =Input!AQ251 -> 0 | AR25: =Input!AR251 -> 0 | AS25: =Input!AS251 -> 0 | AT25: =Input!AT251 -> 0
D27: Allowance
D28: Note: "Allowed totex" is exported to be used in the TIM calculation. The allowed totex sub-categories are used below to create forecast actuals for the tax calculation and the TIM calculation when actuals are not yet available.
E30: Allowed load related capex | G30: £m 18/19 prices | AH30: =AH14 + AH22 -> 27.31402773 | AI30: 28.2934812 | AJ30: 37.3197309 | AK30: 33.45487859 | AL30: 30.29724808 | AM30: 30.54983912 | AN30: 27.20931141 | AO30: 27.82151302 | AP30: =AP14 + AP22 -> 28.83030261 | AQ30: 36.71064392 | AR30: 40.72257892 | AS30: 36.41405352 | AT30: 32.06273022
E31: Allowed non-load related capex - other | G31: £m 18/19 prices | AH31: =AH15 + AH23 -> 30.33565817 | AI31: 34.02305903 | AJ31: 28.41027471 | AK31: 27.83787291 | AL31: 16.50339292 | AM31: 16.76640906 | AN31: 20.17643405 | AO31: 20.45492554 | AP31: =AP15 + AP23 -> 25.21849609 | AQ31: 25.32276764 | AR31: 22.04242266 | AS31: 22.13376328 | AT31: 20.54626479
E32: Allowed controllable opex | G32: £m 18/19 prices | AH32: =AH16 + AH24 -> 105.5434621 | AI32: 106.6283339 | AJ32: 107.1649606 | AK32: 107.1844939 | AL32: 105.3351188 | AM32: 105.0950243 | AN32: 104.7363652 | AO32: 103.4776273 | AP32: =AP16 + AP24 -> 87.82689644 | AQ32: 86.56301282 | AR32: 85.81641898 | AS32: 84.19843206 | AT32: 84.90971894
E33: Allowed repex | G33: £m 18/19 prices | AH33: =AH17 + AH25 -> 103.9693948 | AI33: 106.5261537 | AJ33: 107.1692586 | AK33: 108.250679 | AL33: 108.4948983 | AM33: 108.4694427 | AN33: 109.9241593 | AO33: 109.8369114 | AP33: =AP17 + AP25 -> 107.3320319 | AQ33: 106.67759 | AR33: 106.0293531 | AS33: 105.3872171 | AT33: 104.7510803
E34: Allowed totex | G34: £m 18/19 prices | AH34: =SUM(AH30:AH33) -> 267.1625428 | AI34: 275.4710278 | AJ34: 280.0642248 | AK34: 276.7279244 | AL34: 260.6306581 | AM34: 260.8807151 | AN34: 262.04627 | AO34: 261.5909772 | AP34: =SUM(AP30:AP33) -> 249.2077271 | AQ34: 255.2740144 | AR34: 254.6107737 | AS34: 248.133466 | AT34: 242.2697943
C36: Actual totex
D38: Source of actuals
D39: Note: The model assumes that there is a time lag from year t until actual expenditure data becomes available for the model. After the lag, actual expenditure inputs are used. Up to that point the model generates a forecast actual expenditure.
D40: When required in the model, forecasts assume that actuals are equal to their corresponding allowance.
D41: In a year where actual totex is assumed to be available, values must be inputted to the model as it will not generate a forecast and the empty input cell will be read as an actual spend of zero.
E43: RIIO-1 year | G43: text | AH43: =Input!AH57 -> TRUE | AI43: =Input!AI57 -> TRUE | AJ43: =Input!AJ57 -> TRUE | AK43: =Input!AK57 -> TRUE | AL43: =Input!AL57 -> TRUE | AM43: =Input!AM57 -> TRUE | AN43: =Input!AN57 -> TRUE | AO43: =Input!AO57 -> TRUE | AP43: =Input!AP57 -> FALSE | AQ43: =Input!AQ57 -> FALSE | AR43: =Input!AR57 -> FALSE | AS43: =Input!AS57 -> FALSE | AT43: =Input!AT57 -> FALSE
E45: Years from t until normal reporting of actual costs | G45: years | I45: =Input!I96 -> 2
E46: Input actuals used | G46: text | AH46: =OR(AH43,YEAR($I$4) >= YEAR(AH$4) + $I45) -> TRUE | AI46: =OR(AI43,YEAR($I$4) >= YEAR(AI$4) + $I45) -> TRUE | AJ46: TRUE | AK46: TRUE | AL46: TRUE | AM46: TRUE | AN46: TRUE | AO46: TRUE | AP46: TRUE | AQ46: TRUE | AR46: TRUE | AS46: TRUE | AT46: TRUE
E47: Forecast actuals generated from allowances | G47: text | AH47: =IF(AH46, FALSE, TRUE) -> FALSE | AI47: =IF(AI46, FALSE, TRUE) -> FALSE | AJ47: FALSE | AK47: FALSE | AL47: FALSE | AM47: FALSE | AN47: FALSE | AO47: FALSE | AP47: FALSE | AQ47: FALSE | AR47: FALSE | AS47: FALSE | AT47: FALSE
D49: Actual totex from cost reporting processes and final proposals
E51: Actual load related capex | G51: £m 18/19 prices | AH51: =IF(AH$46, Input!AH255, 0) -> 23.66437778 | AI51: =IF(AI$46, Input!AI255, 0) -> 29.16863494 | AJ51: =IF(AJ$46, Input!AJ255, 0) -> 39.8046141 | AK51: =IF(AK$46, Input!AK255, 0) -> 33.19531512 | AL51: =IF(AL$46, Input!AL255, 0) -> 27.77328335 | AM51: =IF(AM$46, Input!AM255, 0) -> 32.62032305 | AN51: =IF(AN$46, Input!AN255, 0) -> 33.86719093 | AO51: =IF(AO$46, Input!AO255, 0) -> 35.20545848 | AP51: =IF(AP$46, Input!AP255, 0) -> 28.83030261 | AQ51: =IF(AQ$46, Input!AQ255, 0) -> 36.71064392 | AR51: =IF(AR$46, Input!AR255, 0) -> 40.72257892 | AS51: =IF(AS$46, Input!AS255, 0) -> 36.41405352 | AT51: =IF(AT$46, Input!AT255, 0) -> 32.06273022
E52: Actual non-load related capex - other | G52: £m 18/19 prices | AH52: =IF(AH$46, Input!AH256, 0) -> 22.44813574 | AI52: =IF(AI$46, Input!AI256, 0) -> 26.07059324 | AJ52: =IF(AJ$46, Input!AJ256, 0) -> 28.61381934 | AK52: =IF(AK$46, Input!AK256, 0) -> 33.56750435 | AL52: =IF(AL$46, Input!AL256, 0) -> 28.18507408 | AM52: =IF(AM$46, Input!AM256, 0) -> 28.62937606 | AN52: =IF(AN$46, Input!AN256, 0) -> 28.3731481 | AO52: =IF(AO$46, Input!AO256, 0) -> 21.69278447 | AP52: =IF(AP$46, Input!AP256, 0) -> 25.21849609 | AQ52: =IF(AQ$46, Input!AQ256, 0) -> 25.32276764 | AR52: =IF(AR$46, Input!AR256, 0) -> 22.04242266 | AS52: =IF(AS$46, Input!AS256, 0) -> 22.13376328 | AT52: =IF(AT$46, Input!AT256, 0) -> 20.54626479
E53: Actual controllable opex | G53: £m 18/19 prices | AH53: =IF(AH$46, Input!AH257, 0) -> 89.82254748 | AI53: =IF(AI$46, Input!AI257, 0) -> 91.28205694 | AJ53: =IF(AJ$46, Input!AJ257, 0) -> 85.60311474 | AK53: =IF(AK$46, Input!AK257, 0) -> 84.19004334 | AL53: =IF(AL$46, Input!AL257, 0) -> 83.68289756 | AM53: =IF(AM$46, Input!AM257, 0) -> 80.57780819 | AN53: =IF(AN$46, Input!AN257, 0) -> 85.69559814 | AO53: =IF(AO$46, Input!AO257, 0) -> 87.49376707 | AP53: =IF(AP$46, Input!AP257, 0) -> 87.82689644 | AQ53: =IF(AQ$46, Input!AQ257, 0) -> 86.56301282 | AR53: =IF(AR$46, Input!AR257, 0) -> 85.81641898 | AS53: =IF(AS$46, Input!AS257, 0) -> 84.19843206 | AT53: =IF(AT$46, Input!AT257, 0) -> 84.90971894
E54: Actual repex | G54: £m 18/19 prices | AH54: =IF(AH$46, Input!AH258, 0) -> 99.33626704 | AI54: =IF(AI$46, Input!AI258, 0) -> 104.2167858 | AJ54: =IF(AJ$46, Input!AJ258, 0) -> 93.95979647 | AK54: =IF(AK$46, Input!AK258, 0) -> 91.2647359 | AL54: =IF(AL$46, Input!AL258, 0) -> 93.87813823 | AM54: =IF(AM$46, Input!AM258, 0) -> 97.11098431 | AN54: =IF(AN$46, Input!AN258, 0) -> 98.28782943 | AO54: =IF(AO$46, Input!AO258, 0) -> 89.37588341 | AP54: =IF(AP$46, Input!AP258, 0) -> 107.3320319 | AQ54: =IF(AQ$46, Input!AQ258, 0) -> 106.67759 | AR54: =IF(AR$46, Input!AR258, 0) -> 106.0293531 | AS54: =IF(AS$46, Input!AS258, 0) -> 105.3872171 | AT54: =IF(AT$46, Input!AT258, 0) -> 104.7510803
D56: Forecast totex from new allowances
E58: Forecast actual load related capex | G58: £m 18/19 prices | AH58: =IF(AH$47, AH30, 0) -> 0 | AI58: 0 | AJ58: 0 | AK58: 0 | AL58: 0 | AM58: 0 | AN58: 0 | AO58: 0 | AP58: 0 | AQ58: 0 | AR58: 0 | AS58: 0 | AT58: 0
E59: Forecast actual non-load related capex - other | G59: £m 18/19 prices | AH59: =IF(AH$47, AH31, 0) -> 0 | AI59: 0 | AJ59: 0 | AK59: 0 | AL59: 0 | AM59: 0 | AN59: 0 | AO59: 0 | AP59: 0 | AQ59: 0 | AR59: 0 | AS59: 0 | AT59: 0
E60: Forecast actual controllable opex | G60: £m 18/19 prices | AH60: =IF(AH$47, AH32, 0) -> 0 | AI60: 0 | AJ60: 0 | AK60: 0 | AL60: 0 | AM60: 0 | AN60: 0 | AO60: 0 | AP60: 0 | AQ60: 0 | AR60: 0 | AS60: 0 | AT60: 0
E61: Forecast actual repex | G61: £m 18/19 prices | AH61: =IF(AH$47, AH33, 0) -> 0 | AI61: 0 | AJ61: 0 | AK61: 0 | AL61: 0 | AM61: 0 | AN61: 0 | AO61: 0 | AP61: 0 | AQ61: 0 | AR61: 0 | AS61: 0 | AT61: 0
D63: Totex applied
D64: Note: Actuals are exported both to identify performance against the allowance and to generate writing down allowances used in the tax calculation.
E66: Actual totex outperformance | G66: % | AH66: =Input!$I$120 * Input!AH$58 * AH46 -> 0 | AI66: =Input!$I$120 * Input!AI$58 * AI46 -> 0 | AJ66: =Input!$I$120 * Input!AJ$58 * AJ46 -> 0 | AK66: =Input!$I$120 * Input!AK$58 * AK46 -> 0 | AL66: =Input!$I$120 * Input!AL$58 * AL46 -> 0 | AM66: =Input!$I$120 * Input!AM$58 * AM46 -> 0 | AN66: =Input!$I$120 * Input!AN$58 * AN46 -> 0 | AO66: =Input!$I$120 * Input!AO$58 * AO46 -> 0 | AP66: =Input!$I$120 * Input!AP$58 * AP46 -> 0 | AQ66: =Input!$I$120 * Input!AQ$58 * AQ46 -> 0 | AR66: =Input!$I$120 * Input!AR$58 * AR46 -> 0 | AS66: =Input!$I$120 * Input!AS$58 * AS46 -> 0 | AT66: =Input!$I$120 * Input!AT$58 * AT46 -> 0
E68: Actual load related capex | G68: £m 18/19 prices | AH68: =(AH51 + AH58) * (1+AH$66) -> 23.66437778 | AI68: 29.16863494 | AJ68: 39.8046141 | AK68: 33.19531512 | AL68: 27.77328335 | AM68: 32.62032305 | AN68: 33.86719093 | AO68: 35.20545848 | AP68: =(AP51 + AP58) * (1+AP$66) -> 28.83030261 | AQ68: 36.71064392 | AR68: 40.72257892 | AS68: 36.41405352 | AT68: 32.06273022
E69: Actual non-load related capex - other | G69: £m 18/19 prices | AH69: =(AH52 + AH59) * (1+AH$66) -> 22.44813574 | AI69: 26.07059324 | AJ69: 28.61381934 | AK69: 33.56750435 | AL69: 28.18507408 | AM69: 28.62937606 | AN69: 28.3731481 | AO69: 21.69278447 | AP69: =(AP52 + AP59) * (1+AP$66) -> 25.21849609 | AQ69: 25.32276764 | AR69: 22.04242266 | AS69: 22.13376328 | AT69: 20.54626479
E70: Actual controllable opex | G70: £m 18/19 prices | AH70: =(AH53 + AH60) * (1+AH$66) -> 89.82254748 | AI70: 91.28205694 | AJ70: 85.60311474 | AK70: 84.19004334 | AL70: 83.68289756 | AM70: 80.57780819 | AN70: 85.69559814 | AO70: 87.49376707 | AP70: =(AP53 + AP60) * (1+AP$66) -> 87.82689644 | AQ70: 86.56301282 | AR70: 85.81641898 | AS70: 84.19843206 | AT70: 84.90971894
E71: Actual repex | G71: £m 18/19 prices | AH71: =(AH54 + AH61) * (1+AH$66) -> 99.33626704 | AI71: 104.2167858 | AJ71: 93.95979647 | AK71: 91.2647359 | AL71: 93.87813823 | AM71: 97.11098431 | AN71: 98.28782943 | AO71: 89.37588341 | AP71: =(AP54 + AP61) * (1+AP$66) -> 107.3320319 | AQ71: 106.67759 | AR71: 106.0293531 | AS71: 105.3872171 | AT71: 104.7510803
E72: Actual totex | G72: £m 18/19 prices | AH72: =SUM(AH68:AH71) -> 235.271328 | AI72: 250.7380709 | AJ72: 247.9813446 | AK72: 242.2175987 | AL72: 233.5193932 | AM72: 238.9384916 | AN72: 246.2237666 | AO72: 233.7678934 | AP72: =SUM(AP68:AP71) -> 249.2077271 | AQ72: 255.2740144 | AR72: 254.6107737 | AS72: 248.133466 | AT72: 242.2697943
D74: Totex applied
D75: Note: Actuals are exported both to identify performance against the allowance and to generate writing down allowances used in the tax calculation.
E77: Actual load related capex | G77: £m 18/19 prices | AH77: =AH68 -> 23.66437778 | AI77: 29.16863494 | AJ77: 39.8046141 | AK77: 33.19531512 | AL77: 27.77328335 | AM77: 32.62032305 | AN77: 33.86719093 | AO77: 35.20545848 | AP77: =AP68 -> 28.83030261 | AQ77: 36.71064392 | AR77: 40.72257892 | AS77: 36.41405352 | AT77: 32.06273022
E78: Actual non-load related capex - other | G78: £m 18/19 prices | AH78: =AH69 -> 22.44813574 | AI78: 26.07059324 | AJ78: 28.61381934 | AK78: 33.56750435 | AL78: 28.18507408 | AM78: 28.62937606 | AN78: 28.3731481 | AO78: 21.69278447 | AP78: =AP69 -> 25.21849609 | AQ78: 25.32276764 | AR78: 22.04242266 | AS78: 22.13376328 | AT78: 20.54626479
E79: Actual controllable opex | G79: £m 18/19 prices | AH79: =AH70 -> 89.82254748 | AI79: 91.28205694 | AJ79: 85.60311474 | AK79: 84.19004334 | AL79: 83.68289756 | AM79: 80.57780819 | AN79: 85.69559814 | AO79: 87.49376707 | AP79: =AP70 -> 87.82689644 | AQ79: 86.56301282 | AR79: 85.81641898 | AS79: 84.19843206 | AT79: 84.90971894
E80: Actual repex | G80: £m 18/19 prices | AH80: =AH71 -> 99.33626704 | AI80: 104.2167858 | AJ80: 93.95979647 | AK80: 91.2647359 | AL80: 93.87813823 | AM80: 97.11098431 | AN80: 98.28782943 | AO80: 89.37588341 | AP80: =AP71 -> 107.3320319 | AQ80: 106.67759 | AR80: 106.0293531 | AS80: 105.3872171 | AT80: 104.7510803
E81: Actual totex | G81: £m 18/19 prices | AH81: =SUM(AH77:AH80) -> 235.271328 | AI81: 250.7380709 | AJ81: 247.9813446 | AK81: 242.2175987 | AL81: 233.5193932 | AM81: 238.9384916 | AN81: 246.2237666 | AO81: 233.7678934 | AP81: =SUM(AP77:AP80) -> 249.2077271 | AQ81: 255.2740144 | AR81: 254.6107737 | AS81: 248.133466 | AT81: 242.2697943
B83: End of sheet

Sheet TIM
A1: Totex Incentive Mechanism (TIM) | AI1: CADENT: | AJ1: EAST: | AK1: LONDON: | AL1: NW: | AM1: WM: | AN1: NORTH: | AO1: SCO: | AP1: SOUTH: | AQ1: W&W:
B2: =UserInterface!G17 -> Northern
E3: Parameter | G3: Units | I3: Constant | AH3: Annual values
E4: PCFM year ending | I4: =UserInterface!$G$10 -> 2028-03-31 | K4: 1991-03-31 | L4: 1992-03-31 | M4: 1993-03-31 | N4: 1994-03-31 | O4: 1995-03-31 | P4: 1996-03-31 | Q4: 1997-03-31 | R4: 1998-03-31 | S4: 1999-03-31 | T4: 2000-03-31 | U4: 2001-03-31 | V4: 2002-03-31 | W4: 2003-03-31 | X4: 2004-03-31 | Y4: 2005-03-31 | Z4: 2006-03-31 | AA4: 2007-03-31 | AB4: 2008-03-31 | AC4: 2009-03-31 | AD4: 2010-03-31 | AE4: 2011-03-31 | AF4: 2012-03-31 | AG4: 2013-03-31 | AH4: 2014-03-31 | AI4: 2015-03-31 | AJ4: 2016-03-31 | AK4: 2017-03-31 | AL4: 2018-03-31 | AM4: 2019-03-31 | AN4: 2020-03-31 | AO4: 2021-03-31 | AP4: 2022-03-31 | AQ4: 2023-03-31 | AR4: 2024-03-31 | AS4: 2025-03-31 | AT4: 2026-03-31
B6: Efficiency incentive
C8: Incentive strength
E10: Incentive rate (slope) | G10: scalar | I10: =Input!I103 -> -0.001666666667
E11: Incentive rate (intercept) | G11: scalar | I11: =Input!I104 -> 0.8166666667
E12: Group rate | G12: ratio | I12: =Input!I116/Input!I115*100 -> 106.116916
E14: RIIO-1 incentive strength | G14: % | I14: =ROUND(I11+I10*I12,4) -> 0.6398
E15: RIIO-2 incentive strength | G15: % | I15: =1-Input!$I$118 -> 0.325
C17: Additional income
E19: Ofgem view | G19: % | I19: =Input!I107 -> 0.75
E20: Operator view | G20: % | I20: =Input!I108 -> 0.25
E22: Ofgem view of group price control totex | G22: £m 18/19 prices | I22: =Input!I115 -> 2169.312191
E24: Additional income (intercept) | G24: scalar | I24: =Input!I105 -> 14.58333333
E25: First order parameter | G25: % | I25: =(-(I10 * I19*100) - (I11 * I20)) -> -0.07916666667
E26: Second order parameter | G26: % | I26: =(0.5-I20) * I10 -> -0.0004166666667
E27: Additional income scalar | G27: % | I27: =(I24+I25*(I12)+I26*(I12)^2) -> 1.490410879
E29: Additional income at group level | G29: £m 18/19 prices | I29: =I22*I27/100 -> 32.33166489
E31: Forecast licensee totex | G31: £m 18/19 prices | I31: =Input!I112*Input!$I$107+Input!I113*Input!$I$108 -> 2202.485941
E32: Forecast group totex | G32: £m 18/19 prices | I32: =Input!I115*I19 + Input!I116*I20 -> 2202.485941
E33: Percentage of group totex at licensee level | G33: % | I33: =I31 / I32 -> 1
B35: Efficiency incentive
C37: Post-TIM overspend (underspend)
C38: Note: Totex overspend (underspend) is identified and subject to the "efficiency incentive rate." Repex is separated at this stage in order to apply the repex capitalisation rate to any overspend (underspend)
D40: Totex excluding repex and asses class 1-2
E42: Actual totex excluding repex | G42: £m 18/19 prices | AP42: =Totex!AP81 - AP52 - AP62 - AP72 -> 141.8756951 | AQ42: =Totex!AQ81 - AQ52 - AQ62 - AQ72 -> 148.5964244 | AR42: =Totex!AR81 - AR52 - AR62 - AR72 -> 148.5814206 | AS42: =Totex!AS81 - AS52 - AS62 - AS72 -> 142.7462489 | AT42: =Totex!AT81 - AT52 - AT62 - AT72 -> 137.518714
E43: Less allowed totex excluding repex | G43: £m 18/19 prices | AP43: =-Totex!AP34 - AP53 - AP63 - AP73 -> -141.8756951 | AQ43: =-Totex!AQ34 - AQ53 - AQ63 - AQ73 -> -148.5964244 | AR43: =-Totex!AR34 - AR53 - AR63 - AR73 -> -148.5814206 | AS43: =-Totex!AS34 - AS53 - AS63 - AS73 -> -142.7462489 | AT43: =-Totex!AT34 - AT53 - AT63 - AT73 -> -137.518714
E44: Pre-TIM totex excluding repex overspend (underspend) | G44: £m 18/19 prices | AP44: =SUM(AP42:AP43) -> 0 | AQ44: 0 | AR44: 0 | AS44: 0 | AT44: 0
E46: Funding Adjustment Rate (often referred to as 'sharing factor') | G46: % | AP46: =(1 - $I$14) * Input!AP57 + (1 - $I$15) * Input!AP58 -> 0.675 | AQ46: =(1 - $I$14) * Input!AQ57 + (1 - $I$15) * Input!AQ58 -> 0.675 | AR46: =(1 - $I$14) * Input!AR57 + (1 - $I$15) * Input!AR58 -> 0.675 | AS46: =(1 - $I$14) * Input!AS57 + (1 - $I$15) * Input!AS58 -> 0.675 | AT46: =(1 - $I$14) * Input!AT57 + (1 - $I$15) * Input!AT58 -> 0.675
E48: Post-TIM totex excluding repex overspend (underspend) | G48: £m 18/19 prices | AP48: =AP$46 * AP44 -> 0 | AQ48: 0 | AR48: 0 | AS48: 0 | AT48: 0
D50: Repex
E52: Actual repex | G52: £m 18/19 prices | AP52: =Totex!AP80 -> 107.3320319 | AQ52: =Totex!AQ80 -> 106.67759 | AR52: =Totex!AR80 -> 106.0293531 | AS52: =Totex!AS80 -> 105.3872171 | AT52: =Totex!AT80 -> 104.7510803
E53: Less allowed repex | G53: £m 18/19 prices | AP53: =-Totex!AP33 -> -107.3320319 | AQ53: =-Totex!AQ33 -> -106.67759 | AR53: =-Totex!AR33 -> -106.0293531 | AS53: =-Totex!AS33 -> -105.3872171 | AT53: =-Totex!AT33 -> -104.7510803
E54: Pre-TIM repex overspend (underspend) | G54: £m 18/19 prices | AP54: =SUM(AP52:AP53) -> 0 | AQ54: 0 | AR54: 0 | AS54: 0 | AT54: 0
E56: Funding Adjustment Rate (often referred to as 'sharing factor') | G56: % | AP56: =AP$46 -> 0.675 | AQ56: 0.675 | AR56: 0.675 | AS56: 0.675 | AT56: 0.675
E58: Post-TIM repex overspend (underspend) | G58: £m 18/19 prices | AP58: =AP$56 * AP54 -> 0 | AQ58: 0 | AR58: 0 | AS58: 0 | AT58: 0
D60: Asset class 1 totex
E62: Actual asset 1 totex | G62: £m 18/19 prices | AP62: =IF(Totex!AP47,Input!AP36,Input!AP33) * (1+Totex!AP66) -> 0 | AQ62: =IF(Totex!AQ47,Input!AQ36,Input!AQ33) * (1+Totex!AQ66) -> 0 | AR62: =IF(Totex!AR47,Input!AR36,Input!AR33) * (1+Totex!AR66) -> 0 | AS62: =IF(Totex!AS47,Input!AS36,Input!AS33) * (1+Totex!AS66) -> 0 | AT62: =IF(Totex!AT47,Input!AT36,Input!AT33) * (1+Totex!AT66) -> 0
E63: Less allowed asset class 1 totex | G63: £m 18/19 prices | AP63: =-Input!AP36 -> 0 | AQ63: =-Input!AQ36 -> 0 | AR63: =-Input!AR36 -> 0 | AS63: =-Input!AS36 -> 0 | AT63: =-Input!AT36 -> 0
E64: Pre-TIM asset class 1 overspend (underspend) | G64: £m 18/19 prices | AP64: =SUM(AP62:AP63) -> 0 | AQ64: 0 | AR64: 0 | AS64: 0 | AT64: 0
E66: Funding Adjustment Rate (often referred to as 'sharing factor') - asset class 1 | G66: % | AP66: =AP$46 -> 0.675 | AQ66: 0.675 | AR66: 0.675 | AS66: 0.675 | AT66: 0.675
E68: Post-TIM asset class 1 overspend (underspend) | G68: £m 18/19 prices | AP68: =AP$66 * AP64 -> 0 | AQ68: 0 | AR68: 0 | AS68: 0 | AT68: 0
D70: Asset class 2 totex
E72: Actual asset 2 totex | G72: £m 18/19 prices | AP72: =IF(Totex!AP47,Input!AP37,Input!AP34) * (1+Totex!AP66) -> 0 | AQ72: =IF(Totex!AQ47,Input!AQ37,Input!AQ34) * (1+Totex!AQ66) -> 0 | AR72: =IF(Totex!AR47,Input!AR37,Input!AR34) * (1+Totex!AR66) -> 0 | AS72: =IF(Totex!AS47,Input!AS37,Input!AS34) * (1+Totex!AS66) -> 0 | AT72: =IF(Totex!AT47,Input!AT37,Input!AT34) * (1+Totex!AT66) -> 0
E73: Less allowed asset class 2 totex | G73: £m 18/19 prices | AP73: =-Input!AP37 -> 0 | AQ73: =-Input!AQ37 -> 0 | AR73: =-Input!AR37 -> 0 | AS73: =-Input!AS37 -> 0 | AT73: =-Input!AT37 -> 0
E74: Pre-TIM asset class 2 overspend (underspend) | G74: £m 18/19 prices | AP74: =SUM(AP72:AP73) -> 0 | AQ74: 0 | AR74: 0 | AS74: 0 | AT74: 0
E76: Funding Adjustment Rate (often referred to as 'sharing factor') - asset class 2 | G76: % | AP76: =AP$46 -> 0.675 | AQ76: 0.675 | AR76: 0.675 | AS76: 0.675 | AT76: 0.675
E78: Post-TIM asset class 2 overspend (underspend) | G78: £m 18/19 prices | AP78: =AP$76 * AP74 -> 0 | AQ78: 0 | AR78: 0 | AS78: 0 | AT78: 0
C80: Post-TIM totex
C81: Note: "Post-TIM overspend (underspend)" is added to the allowed totex value to give the Post-TIM totex allowance to be split into fast and slow money.
D83: Totex excluding repex and asset class 1-2
E85: Allowed totex excluding repex and asset class 1-2 | G85: £m 18/19 prices | AP85: =-AP43 -> 141.8756951 | AQ85: 148.5964244 | AR85: 148.5814206 | AS85: 142.7462489 | AT85: 137.518714
E86: Post-TIM totex excluding repex and asset class 1-2 overspend (underspend) | G86: £m 18/19 prices | AP86: =AP48 -> 0 | AQ86: 0 | AR86: 0 | AS86: 0 | AT86: 0
E87: Post-TIM totex excluding repex and asset class 1-2 | G87: £m 18/19 prices | AP87: =SUM(AP85:AP86) -> 141.8756951 | AQ87: 148.5964244 | AR87: 148.5814206 | AS87: 142.7462489 | AT87: 137.518714
D89: Repex
E91: Allowed repex | G91: £m 18/19 prices | AP91: =-AP53 -> 107.3320319 | AQ91: 106.67759 | AR91: 106.0293531 | AS91: 105.3872171 | AT91: 104.7510803
E92: Post-TIM repex overspend (underspend) | G92: £m 18/19 prices | AP92: =AP58 -> 0 | AQ92: 0 | AR92: 0 | AS92: 0 | AT92: 0
E93: Post-TIM repex | G93: £m 18/19 prices | AP93: =SUM(AP91:AP92) -> 107.3320319 | AQ93: 106.67759 | AR93: 106.0293531 | AS93: 105.3872171 | AT93: 104.7510803
D95: Asset class 1
E97: Allowed asset class 1 totex | G97: £m 18/19 prices | AP97: =-AP63 -> 0 | AQ97: 0 | AR97: 0 | AS97: 0 | AT97: 0
E98: Post-TIM asset class 1 totex overspend (underspend) | G98: £m 18/19 prices | AP98: =AP68 -> 0 | AQ98: 0 | AR98: 0 | AS98: 0 | AT98: 0
E99: Post-TIM asset class 1 totex | G99: £m 18/19 prices | AP99: =SUM(AP97:AP98) -> 0 | AQ99: 0 | AR99: 0 | AS99: 0 | AT99: 0
D101: Asset class 2
E103: Allowed asset class 2 totex | G103: £m 18/19 prices | AP103: =-AP73 -> 0 | AQ103: 0 | AR103: 0 | AS103: 0 | AT103: 0
E104: Post-TIM asset class 2 totex overspend (underspend) | G104: £m 18/19 prices | AP104: =AP78 -> 0 | AQ104: 0 | AR104: 0 | AS104: 0 | AT104: 0
E105: Post-TIM asset class 2 totex | G105: £m 18/19 prices | AP105: =SUM(AP103:AP104) -> 0 | AQ105: 0 | AR105: 0 | AS105: 0 | AT105: 0
B107: Capitalisation
B108: Note: Post-TIM totex (excluding repex) and repex are allocated into "fast" and "slow" elements based on a pre-set percentage split:
B109: - "fast money " is exported to the "Revenue" sheet where it is included as an element of "recalculated base revenue;" and
B110: - "slow money " is exported to the "Depn" sheet where it is added to RAV. Slow money is recovered over the life of the RAV through regulatory depreciation and return allowances.
C112: Separate capitalisation
D114: Totex excluding repex and asset class 1-2
E116: Post-TIM totex excluding repex and asset class 1-2 | G116: £m 18/19 prices | AP116: =AP87 -> 141.8756951 | AQ116: =AQ87 -> 148.5964244 | AR116: =AR87 -> 148.5814206 | AS116: =AS87 -> 142.7462489 | AT116: =AT87 -> 137.518714
E117: Capitalised share of totex (excluding repex and asset class 1-2) | G117: % | AP117: =Input!AP98 -> 0.3809588291 | AQ117: =Input!AQ98 -> 0.4174623435 | AR117: =Input!AR98 -> 0.4224283315 | AS117: =Input!AS98 -> 0.4101531022 | AT117: =Input!AT98 -> 0.382558806
E118: Totex excluding repex and asset class 1-2 fast pot expenditure | G118: £m 18/19 prices | AP118: =AP116-AP119 -> 87.82689644 | AQ118: 86.56301282 | AR118: 85.81641898 | AS118: 84.19843206 | AT118: 84.90971894
E119: Totex excluding repex and asset class 1-2 slow pot expenditure | G119: £m 18/19 prices | AP119: =AP116 * AP117 -> 54.0487987 | AQ119: 62.03341156 | AR119: 62.76500157 | AS119: 58.5478168 | AT119: 52.60899501
D121: Repex
E123: Post-TIM repex | G123: £m 18/19 prices | AP123: =AP93 -> 107.3320319 | AQ123: =AQ93 -> 106.67759 | AR123: =AR93 -> 106.0293531 | AS123: =AS93 -> 105.3872171 | AT123: =AT93 -> 104.7510803
E124: Capitalised share of repex | G124: % | AP124: =Input!AP99 -> 1 | AQ124: =Input!AQ99 -> 1 | AR124: =Input!AR99 -> 1 | AS124: =Input!AS99 -> 1 | AT124: =Input!AT99 -> 1
E125: Fast pot expenditure | G125: £m 18/19 prices | AP125: =AP123-AP126 -> 0 | AQ125: 0 | AR125: 0 | AS125: 0 | AT125: 0
E126: Slow pot expenditure | G126: £m 18/19 prices | AP126: =AP123 * AP124 -> 107.3320319 | AQ126: 106.67759 | AR126: 106.0293531 | AS126: 105.3872171 | AT126: 104.7510803
D128: Asset class 1
E130: Post-TIM asset class 1 totex | G130: £m 18/19 prices | AP130: =AP99 -> 0 | AQ130: =AQ99 -> 0 | AR130: =AR99 -> 0 | AS130: =AS99 -> 0 | AT130: =AT99 -> 0
E131: Capitalised share of asset class 1 totex | G131: % | AP131: =Input!AP100 -> 0 | AQ131: =Input!AQ100 -> 0 | AR131: =Input!AR100 -> 0 | AS131: =Input!AS100 -> 0 | AT131: =Input!AT100 -> 0
E132: Fast pot expenditure | G132: £m 18/19 prices | AP132: =AP130-AP133 -> 0 | AQ132: 0 | AR132: 0 | AS132: 0 | AT132: 0
E133: Slow pot expenditure | G133: £m 18/19 prices | AP133: =AP130 * AP131 -> 0 | AQ133: 0 | AR133: 0 | AS133: 0 | AT133: 0
D135: Asset class 2
E137: Post-TIM asset class 2 totex | G137: £m 18/19 prices | AP137: =AP105 -> 0 | AQ137: =AQ105 -> 0 | AR137: =AR105 -> 0 | AS137: =AS105 -> 0 | AT137: =AT105 -> 0
E138: Capitalised share of asset class 2 totex | G138: % | AP138: =Input!AP101 -> 0 | AQ138: =Input!AQ101 -> 0 | AR138: =Input!AR101 -> 0 | AS138: =Input!AS101 -> 0 | AT138: =Input!AT101 -> 0
E139: Fast pot expenditure | G139: £m 18/19 prices | AP139: =AP137-AP140 -> 0 | AQ139: 0 | AR139: 0 | AS139: 0 | AT139: 0
E140: Slow pot expenditure | G140: £m 18/19 prices | AP140: =AP137 * AP138 -> 0 | AQ140: 0 | AR140: 0 | AS140: 0 | AT140: 0
C142: Totex
E144: Fast pot expenditure | G144: £m 18/19 prices | AP144: =AP118 + AP125 + AP132 + AP139 -> 87.82689644 | AQ144: =AQ118 + AQ125 + AQ132 + AQ139 -> 86.56301282 | AR144: 85.81641898 | AS144: 84.19843206 | AT144: 84.90971894
E146: Slow pot expenditure | G146: £m 18/19 prices | AP146: =AP119 + AP126 + AP133 + AP140 -> 161.3808306 | AQ146: =AQ119 + AQ126 + AQ133 + AQ140 -> 168.7110016 | AR146: 168.7943547 | AS146: 163.9350339 | AT146: 157.3600753
B148: Additional income
C150: RIIO-1 Information Quality Incentive (IQI)
C151: Note: The IQI additional income lump sum is recovered across the price control and is matched to the profile of allowed totex set at final proposals.
E153: IQI additional income | G153: £m 18/19 prices | I153: =I29*I33 -> 32.33166489
E155: RIIO-1 original allowed totex (set at final proposals) | G155: £m 18/19 prices | AP155: =Input!AP$464 -> 0 | AQ155: =Input!AQ$464 -> 0 | AR155: =Input!AR$464 -> 0 | AS155: =Input!AS$464 -> 0 | AT155: =Input!AT$464 -> 0
E156: RIIO-1 total allowed totex (set at final proposals) | G156: £m 18/19 prices | I156: =Input!$I$465 -> 2144.57434
E158: Share of additional income allowed in year | G158: % | AP158: =AP155 / $I156 -> 0 | AQ158: 0 | AR158: 0 | AS158: 0 | AT158: 0
E160: IQI additional income | G160: £m 18/19 prices | AP160: =$I153 * AP158 -> 0 | AQ160: 0 | AR160: 0 | AS160: 0 | AT160: 0
C162: RIIO-2 Business Plan Incentive (BPI)
C163: Note: The BPI additional income lump sum is an upfront reward/payment, recovered in the first year of RIIO-2 price control.
E165: Year BPI reward/penalty is recovered | G165: year ending | I165: =Input!$I$469 -> 2022-03-31
E166: BPI recovered in year | G166: text | AP166: =$I$165=AP$4 -> TRUE | AQ166: =$I$165=AQ$4 -> FALSE | AR166: =$I$165=AR$4 -> FALSE | AS166: =$I$165=AS$4 -> FALSE | AT166: =$I$165=AT$4 -> FALSE
E168: BPI reward/penalty | G168: £m 18/19 prices | I168: =Input!$I$478 -> 0
E170: BPI additional income | G170: £m 18/19 prices | AP170: =$I$168* AP166 -> 0 | AQ170: 0 | AR170: 0 | AS170: 0 | AT170: 0
C172: Total additional income
E174: Additional income | G174: £m 18/19 prices | AP174: =SUM(AP160,AP170) -> 0 | AQ174: 0 | AR174: 0 | AS174: 0 | AT174: 0
B176: End of sheet

Sheet DARTs
A1: Direct Allowed Revenue Terms (DARTs) | AI1: CADENT: | AJ1: EAST: | AK1: LONDON: | AL1: NW: | AM1: WM: | AN1: NORTH: | AO1: SCO: | AP1: SOUTH: | AQ1: W&W:
B2: =UserInterface!G17 -> Northern
E3: Parameter | G3: Units | I3: Constant | AH3: Annual values
E4: PCFM year ending | I4: =UserInterface!$G$10 -> 2028-03-31 | K4: 1991-03-31 | L4: 1992-03-31 | M4: 1993-03-31 | N4: 1994-03-31 | O4: 1995-03-31 | P4: 1996-03-31 | Q4: 1997-03-31 | R4: 1998-03-31 | S4: 1999-03-31 | T4: 2000-03-31 | U4: 2001-03-31 | V4: 2002-03-31 | W4: 2003-03-31 | X4: 2004-03-31 | Y4: 2005-03-31 | Z4: 2006-03-31 | AA4: 2007-03-31 | AB4: 2008-03-31 | AC4: 2009-03-31 | AD4: 2010-03-31 | AE4: 2011-03-31 | AF4: 2012-03-31 | AG4: 2013-03-31 | AH4: 2014-03-31 | AI4: 2015-03-31 | AJ4: 2016-03-31 | AK4: 2017-03-31 | AL4: 2018-03-31 | AM4: 2019-03-31 | AN4: 2020-03-31 | AO4: 2021-03-31 | AP4: 2022-03-31 | AQ4: 2023-03-31 | AR4: 2024-03-31 | AS4: 2025-03-31 | AT4: 2026-03-31
B6: Direct Allowed Revenue Terms (DARTs)
B7: Note: DARTs are allowances with minimal processing required in the model as they flow directly from input to revenue.
B8: They do however have different indirect impacts on equity issuance and tax. They are grouped here by their treatment type to aid common treatment of DARTs through the rest of the model.
B9: "Post-tax" allowances can be included in the tax calculation but "Pre-tax" allowances cannot.
B10: "Passthrough-style" allowances are treated as an equal revenue and cost. Therefore they have no net cash flow impact. "Revenue" allowances are just set as a revenue amount with any costs relating to them are dealt with elsewhere.
C12: Base Revenue
D14: No impact on net debt or tax
E16: Pension admin and PPF levy | G16: £m 18/19 prices | AP16: =Input!AP269 -> 0 | AQ16: =Input!AQ269 -> 0 | AR16: =Input!AR269 -> 0 | AS16: =Input!AS269 -> 0 | AT16: =Input!AT269 -> 0
E17: Established pension deficit repair | G17: £m 18/19 prices | AP17: =Input!AP270 -> 4.2 | AQ17: =Input!AQ270 -> 4.2 | AR17: =Input!AR270 -> 4.2 | AS17: =Input!AS270 -> 4.2 | AT17: =Input!AT270 -> 4.2
E18: Base Revenue DARTs with no impact on net debt or tax | G18: £m 18/19 prices | AP18: =SUM(AP16:AP17) -> 4.2 | AQ18: 4.2 | AR18: 4.2 | AS18: 4.2 | AT18: 4.2
D20: Impact net debt and tax
E22: Pension true-up from previous price controls | G22: £m 18/19 prices | AP22: =Input!AP272 -> 0 | AQ22: =Input!AQ272 -> 0 | AR22: =Input!AR272 -> 0 | AS22: =Input!AS272 -> 0 | AT22: =Input!AT272 -> 0
E23: Base Revenue DARTs impacting both net debt and tax | G23: £m 18/19 prices | AP23: =SUM(AP22:AP22) -> 0 | AQ23: 0 | AR23: 0 | AS23: 0 | AT23: 0
D25: Impact net debt, no impact on tax
E27: RIIO-1 revenue adjustment from previous controls | G27: £m 18/19 prices | AP27: =Input!AP276 -> 0 | AQ27: =Input!AQ276 -> 0 | AR27: =Input!AR276 -> 0 | AS27: =Input!AS276 -> 0 | AT27: =Input!AT276 -> 0
E28: RIIO-2 revenue adjustment from previous control | G28: £m 18/19 prices | AP28: =Input!AP280 -> 0 | AQ28: =Input!AQ280 -> 0 | AR28: =Input!AR280 -> 0 | AS28: =Input!AS280 -> 0 | AT28: =Input!AT280 -> 0
E29: Base Revenue DARTs impacting net debt but not tax | G29: £m 18/19 prices | AP29: =SUM(AP27:AP28) -> 0 | AQ29: =SUM(AQ27:AQ28) -> 0 | AR29: 0 | AS29: 0 | AT29: 0
C31: Directly-charged
D33: No impact on debt or tax
E35: Excluded services net position | G35: £m 18/19 prices | AP35: =Input!AP288 -> 0 | AQ35: =Input!AQ288 -> 0 | AR35: =Input!AR288 -> 0 | AS35: =Input!AS288 -> 0 | AT35: =Input!AT288 -> 0
E36: Directly-charged post-tax passthrough-style allowance | G36: £m 18/19 prices | AP36: =SUM(AP35) -> 0 | AQ36: 0 | AR36: 0 | AS36: 0 | AT36: 0
C38: DART groups
C39: Note: The following subtotals are exported to the rest of the model allowing common treatment of DARTs after this stage.
C40: Excluded services are directly charged to users. It is treated here as a negative Base Revenue DART and positive Non Base Revenue DART. It is tax and cash flow neutral.
C41: "Net impact of DARTs on core net debt" removes the passthrough-style allowances from the cash flow, netting off their impact after being added to revenue.
C42: "Net DART impact on core tax calculation" removes passthrough and pre-tax allowances from the tax base such that only post-tax revenue allowances have an impact.
E44: Base revenue DARTs | G44: £m 18/19 prices | AP44: =AP18 + AP23 + AP29 - AP36 -> 4.2 | AQ44: 4.2 | AR44: 4.2 | AS44: 4.2 | AT44: 4.2
E46: Non Base Revenue DARTs | G46: £m 18/19 prices | AP46: =AP36 -> 0 | AQ46: 0 | AR46: 0 | AS46: 0 | AT46: 0
E48: Net impact of DARTs on core net debt | G48: £m 18/19 prices | AP48: =- AP18 + AP36 -> -4.2 | AQ48: -4.2 | AR48: -4.2 | AS48: -4.2 | AT48: -4.2
E50: Net DART impact on core tax calculation | G50: £m 18/19 prices | AP50: =- AP18 - AP29 + AP36 -> -4.2 | AQ50: -4.2 | AR50: -4.2 | AS50: -4.2 | AT50: -4.2
B52: End of sheet

Sheet Depn
A1: Regulatory Depreciation | AI1: CADENT: | AJ1: EAST: | AK1: LONDON: | AL1: NW: | AM1: WM: | AN1: NORTH: | AO1: SCO: | AP1: SOUTH: | AQ1: W&W:
B2: =UserInterface!G17 -> Northern
E3: Parameter | G3: Units | I3: Constant | AH3: Annual values
E4: PCFM year ending | I4: =UserInterface!$G$10 -> 2028-03-31 | K4: 1991-03-31 | L4: 1992-03-31 | M4: 1993-03-31 | N4: 1994-03-31 | O4: 1995-03-31 | P4: 1996-03-31 | Q4: 1997-03-31 | R4: 1998-03-31 | S4: 1999-03-31 | T4: 2000-03-31 | U4: 2001-03-31 | V4: 2002-03-31 | W4: 2003-03-31 | X4: 2004-03-31 | Y4: 2005-03-31 | Z4: 2006-03-31 | AA4: 2007-03-31 | AB4: 2008-03-31 | AC4: 2009-03-31 | AD4: 2010-03-31 | AE4: 2011-03-31 | AF4: 2012-03-31 | AG4: 2013-03-31 | AH4: 2014-03-31 | AI4: 2015-03-31 | AJ4: 2016-03-31 | AK4: 2017-03-31 | AL4: 2018-03-31 | AM4: 2019-03-31 | AN4: 2020-03-31 | AO4: 2021-03-31 | AP4: 2022-03-31 | AQ4: 2023-03-31 | AR4: 2024-03-31 | AS4: 2025-03-31 | AT4: 2026-03-31
B6: Regulatory depreciation
C8: Net RAV additions (after disposals)
C9: Note: Additions to RAV are combined before feeding into the depreciation calculations. Disposals are treated as negative additions. Pre-RIIO values are used to build up the post-vesting RAV from vesting.
E11: Slow money (excluding asset class 1, 2) | G11: £m 18/19 prices | AP11: =TIM!AP119+TIM!AP126 -> 161.3808306 | AQ11: =TIM!AQ119+TIM!AQ126 -> 168.7110016 | AR11: =TIM!AR119+TIM!AR126 -> 168.7943547 | AS11: =TIM!AS119+TIM!AS126 -> 163.9350339 | AT11: =TIM!AT119+TIM!AT126 -> 157.3600753
E12: Slow money (asset class 1) | G12: £m 18/19 prices | AP12: =TIM!AP133 -> 0 | AQ12: =TIM!AQ133 -> 0 | AR12: =TIM!AR133 -> 0 | AS12: =TIM!AS133 -> 0 | AT12: =TIM!AT133 -> 0
E13: Slow money (asset class 2) | G13: £m 18/19 prices | AP13: =TIM!AP140 -> 0 | AQ13: =TIM!AQ140 -> 0 | AR13: =TIM!AR140 -> 0 | AS13: =TIM!AS140 -> 0 | AT13: =TIM!AT140 -> 0
E14: RIIO-1 net RAV additions | G14: £m 18/19 prices | AH14: =Input!AH352 -> 106.871019 | AI14: =Input!AI352 -> 118.658252 | AJ14: =Input!AJ352 -> 125.6495071 | AK14: =Input!AK352 -> 131.3311574 | AL14: =Input!AL352 -> 134.7828895 | AM14: =Input!AM352 -> 140.9399265 | AN14: =Input!AN352 -> 152.581717 | AO14: =Input!AO352 -> 157.6913424 | AP14: =Input!AP352 -> 0 | AQ14: =Input!AQ352 -> -0.206111128 | AR14: =Input!AR352 -> 0 | AS14: =Input!AS352 -> -0.1 | AT14: =Input!AT352 -> -0.1
E15: Net adjustments | G15: £m 18/19 prices | AH15: =SUM(Input!AH330:AH333) -> -18.61067888 | AI15: =SUM(Input!AI330:AI333) -> 0 | AJ15: =SUM(Input!AJ330:AJ333) -> 0 | AK15: =SUM(Input!AK330:AK333) -> 0.1193671554 | AL15: =SUM(Input!AL330:AL333) -> 0 | AM15: =SUM(Input!AM330:AM333) -> 0 | AN15: =SUM(Input!AN330:AN333) -> 0 | AO15: =SUM(Input!AO330:AO333) -> 0 | AP15: =SUM(Input!AP330:AP333) -> 0 | AQ15: =SUM(Input!AQ330:AQ333) -> 0 | AR15: =SUM(Input!AR330:AR333) -> 0 | AS15: =SUM(Input!AS330:AS333) -> 0 | AT15: =SUM(Input!AT330:AT333) -> 0
E16: Pre-RIIO net RAV additions (after disposals) | G16: £m 18/19 prices | W16: =Input!W329 -> 107.6850059 | X16: =Input!X329 -> 66.60625703 | Y16: =Input!Y329 -> 67.77993557 | Z16: =Input!Z329 -> 65.05807538 | AA16: =Input!AA329 -> 72.19368893 | AB16: =Input!AB329 -> 92.9221229 | AC16: =Input!AC329 -> 101.2866549 | AD16: =Input!AD329 -> 88.56702 | AE16: =Input!AE329 -> 112.184233 | AF16: =Input!AF329 -> 126.1514364 | AG16: =Input!AG329 -> 106.1608787
E17: Net RAV additions (after disposals) | G17: £m 18/19 prices | J17: > | W17: =SUM(W11:W16) -> 107.6850059 | X17: 66.60625703 | Y17: 67.77993557 | Z17: 65.05807538 | AA17: 72.19368893 | AB17: 92.9221229 | AC17: 101.2866549 | AD17: 88.56702 | AE17: 112.184233 | AF17: 126.1514364 | AG17: 106.1608787 | AH17: 88.26034009 | AI17: 118.658252 | AJ17: 125.6495071 | AK17: 131.4505245 | AL17: 134.7828895 | AM17: 140.9399265 | AN17: 152.581717 | AO17: 157.6913424 | AP17: 161.3808306 | AQ17: 168.5048905 | AR17: 168.7943547 | AS17: 163.8350339 | AT17: 157.2600753
C19: Net depreciation additions (after disposals)
C20: Note:
E22: Pre-RIIO transfers to depreciation | G22: £m 18/19 prices | J22: > | V22: =Input!V334 -> 0 | W22: =Input!W334 -> 0 | X22: =Input!X334 -> 0 | Y22: =Input!Y334 -> 0 | Z22: =Input!Z334 -> 0 | AA22: =Input!AA334 -> 0 | AB22: =Input!AB334 -> 0.1916706913 | AC22: =Input!AC334 -> 1.834911313 | AD22: =Input!AD334 -> 0.6502281369 | AE22: =Input!AE334 -> 1.998022695 | AF22: =Input!AF334 -> 3.100422928 | AG22: =Input!AG334 -> 0
C24: Pre-vesting depreciation
C25: Note: The following depreciation factor is used to depreciate the pre-vesting balance on the "Return&RAV" sheet.
E27: Pre-vesting asset life | G27: years | I27: =Input!I319 -> 56
E28: Sum of digits | G28: integer | I28: =I27 * (1 + I27) / 2 -> 1596
E29: Years of pre-vesting depreciation remaining | G29: years | AH29: =Input!AH321 -> 45 | AI29: =Input!AI321 -> 44 | AJ29: =Input!AJ321 -> 43 | AK29: =Input!AK321 -> 42 | AL29: =Input!AL321 -> 41 | AM29: =Input!AM321 -> 40 | AN29: =Input!AN321 -> 39 | AO29: =Input!AO321 -> 38 | AP29: =Input!AP321 -> 37 | AQ29: =Input!AQ321 -> 36 | AR29: =Input!AR321 -> 35 | AS29: =Input!AS321 -> 34 | AT29: =Input!AT321 -> 33
E31: Sum-of-digits pre-vesting depreciation factor | G31: % | AH31: =AH29 / $I28 -> 0.02819548872 | AI31: =AI29 / $I28 -> 0.02756892231 | AJ31: 0.02694235589 | AK31: 0.02631578947 | AL31: 0.02568922306 | AM31: 0.02506265664 | AN31: 0.02443609023 | AO31: 0.02380952381 | AP31: 0.02318295739 | AQ31: 0.02255639098 | AR31: 0.02192982456 | AS31: 0.02130325815 | AT31: 0.02067669173
C33: Sum-of-digit post-vesting depreciation
C34: Note: Sum-of-digit depreciation calculations provide the main allowed depreciation after the start of RIIO but are also used to establish the "RAV differential" generated before the start of the price control.
D36: Depreciation parameters
E38: Post-vesting asset life | G38: years | I38: =Input!$I$326 -> 45
E39: Post-vesting asset life sum of digits | G39: integer | I39: =I38 * (I38 + 1) / 2 -> 1035
E40: Sum-of-digit post-vesting depreciation applied | G40: text | J40: > | X40: =X$4 >= $I111 -> FALSE | Y40: FALSE | Z40: FALSE | AA40: FALSE | AB40: FALSE | AC40: FALSE | AD40: FALSE | AE40: FALSE | AF40: FALSE | AG40: FALSE | AH40: TRUE | AI40: TRUE | AJ40: TRUE | AK40: TRUE | AL40: TRUE | AM40: TRUE | AN40: TRUE | AO40: TRUE | AP40: TRUE | AQ40: TRUE | AR40: TRUE | AS40: TRUE | AT40: TRUE
D42: Depreciation schedule
E44: Sum-of-digit depreciation of additions from year ending | I44: Net additions
E45: 2003-03-31 | G45: £m 18/19 prices | I45: =I81 -> 107.6850059 | J45: > | X45: =$I45 * ($I$38 - COUNT($W45:W45)) / $I$39 -> 4.681956777 | Y45: =$I45 * ($I$38 - COUNT($W45:X45)) / $I$39 -> 4.577913293 | Z45: =$I45 * ($I$38 - COUNT($W45:Y45)) / $I$39 -> 4.473869809 | AA45: =$I45 * ($I$38 - COUNT($W45:Z45)) / $I$39 -> 4.369826325 | AB45: =$I45 * ($I$38 - COUNT($W45:AA45)) / $I$39 -> 4.265782841 | AC45: =$I45 * ($I$38 - COUNT($W45:AB45)) / $I$39 -> 4.161739357 | AD45: =$I45 * ($I$38 - COUNT($W45:AC45)) / $I$39 -> 4.057695873 | AE45: =$I45 * ($I$38 - COUNT($W45:AD45)) / $I$39 -> 3.953652389 | AF45: =$I45 * ($I$38 - COUNT($W45:AE45)) / $I$39 -> 3.849608905 | AG45: =$I45 * ($I$38 - COUNT($W45:AF45)) / $I$39 -> 3.745565421 | AH45: =$I45 * ($I$38 - COUNT($W45:AG45)) / $I$39 -> 3.641521938 | AI45: =$I45 * ($I$38 - COUNT($W45:AH45)) / $I$39 -> 3.537478454 | AJ45: =$I45 * ($I$38 - COUNT($W45:AI45)) / $I$39 -> 3.43343497 | AK45: =$I45 * ($I$38 - COUNT($W45:AJ45)) / $I$39 -> 3.329391486 | AL45: =$I45 * ($I$38 - COUNT($W45:AK45)) / $I$39 -> 3.225348002 | AM45: =$I45 * ($I$38 - COUNT($W45:AL45)) / $I$39 -> 3.121304518 | AN45: =$I45 * ($I$38 - COUNT($W45:AM45)) / $I$39 -> 3.017261034 | AO45: =$I45 * ($I$38 - COUNT($W45:AN45)) / $I$39 -> 2.91321755 | AP45: =$I45 * ($I$38 - COUNT($W45:AO45)) / $I$39 -> 2.809174066 | AQ45: =$I45 * ($I$38 - COUNT($W45:AP45)) / $I$39 -> 2.705130582 | AR45: =$I45 * ($I$38 - COUNT($W45:AQ45)) / $I$39 -> 2.601087098 | AS45: =$I45 * ($I$38 - COUNT($W45:AR45)) / $I$39 -> 2.497043614 | AT45: =$I45 * ($I$38 - COUNT($W45:AS45)) / $I$39 -> 2.39300013
E46: 2004-03-31 | G46: £m 18/19 prices | I46: =I82 -> 66.60625703 | J46: > | Y46: =$I46 * ($I$38 - COUNT($W46:X46)) / $I$39 -> 2.895924219 | Z46: =$I46 * ($I$38 - COUNT($W46:Y46)) / $I$39 -> 2.831570347 | AA46: =$I46 * ($I$38 - COUNT($W46:Z46)) / $I$39 -> 2.767216476 | AB46: =$I46 * ($I$38 - COUNT($W46:AA46)) / $I$39 -> 2.702862604 | AC46: =$I46 * ($I$38 - COUNT($W46:AB46)) / $I$39 -> 2.638508733 | AD46: =$I46 * ($I$38 - COUNT($W46:AC46)) / $I$39 -> 2.574154861 | AE46: =$I46 * ($I$38 - COUNT($W46:AD46)) / $I$39 -> 2.50980099 | AF46: =$I46 * ($I$38 - COUNT($W46:AE46)) / $I$39 -> 2.445447118 | AG46: =$I46 * ($I$38 - COUNT($W46:AF46)) / $I$39 -> 2.381093247 | AH46: =$I46 * ($I$38 - COUNT($W46:AG46)) / $I$39 -> 2.316739375 | AI46: =$I46 * ($I$38 - COUNT($W46:AH46)) / $I$39 -> 2.252385504 | AJ46: =$I46 * ($I$38 - COUNT($W46:AI46)) / $I$39 -> 2.188031632 | AK46: =$I46 * ($I$38 - COUNT($W46:AJ46)) / $I$39 -> 2.123677761 | AL46: =$I46 * ($I$38 - COUNT($W46:AK46)) / $I$39 -> 2.059323889 | AM46: =$I46 * ($I$38 - COUNT($W46:AL46)) / $I$39 -> 1.994970017 | AN46: =$I46 * ($I$38 - COUNT($W46:AM46)) / $I$39 -> 1.930616146 | AO46: =$I46 * ($I$38 - COUNT($W46:AN46)) / $I$39 -> 1.866262274 | AP46: =$I46 * ($I$38 - COUNT($W46:AO46)) / $I$39 -> 1.801908403 | AQ46: =$I46 * ($I$38 - COUNT($W46:AP46)) / $I$39 -> 1.737554531 | AR46: =$I46 * ($I$38 - COUNT($W46:AQ46)) / $I$39 -> 1.67320066 | AS46: =$I46 * ($I$38 - COUNT($W46:AR46)) / $I$39 -> 1.608846788 | AT46: =$I46 * ($I$38 - COUNT($W46:AS46)) / $I$39 -> 1.544492917
E47: 2005-03-31 | G47: £m 18/19 prices | I47: 67.77993557 | J47: > | Z47: =$I47 * ($I$38 - COUNT($W47:Y47)) / $I$39 -> 2.946953721 | AA47: =$I47 * ($I$38 - COUNT($W47:Z47)) / $I$39 -> 2.88146586 | AB47: =$I47 * ($I$38 - COUNT($W47:AA47)) / $I$39 -> 2.815978 | AC47: =$I47 * ($I$38 - COUNT($W47:AB47)) / $I$39 -> 2.750490139 | AD47: =$I47 * ($I$38 - COUNT($W47:AC47)) / $I$39 -> 2.685002279 | AE47: =$I47 * ($I$38 - COUNT($W47:AD47)) / $I$39 -> 2.619514418 | AF47: =$I47 * ($I$38 - COUNT($W47:AE47)) / $I$39 -> 2.554026558 | AG47: =$I47 * ($I$38 - COUNT($W47:AF47)) / $I$39 -> 2.488538697 | AH47: =$I47 * ($I$38 - COUNT($W47:AG47)) / $I$39 -> 2.423050837 | AI47: =$I47 * ($I$38 - COUNT($W47:AH47)) / $I$39 -> 2.357562976 | AJ47: =$I47 * ($I$38 - COUNT($W47:AI47)) / $I$39 -> 2.292075116 | AK47: =$I47 * ($I$38 - COUNT($W47:AJ47)) / $I$39 -> 2.226587256 | AL47: =$I47 * ($I$38 - COUNT($W47:AK47)) / $I$39 -> 2.161099395 | AM47: =$I47 * ($I$38 - COUNT($W47:AL47)) / $I$39 -> 2.095611535 | AN47: =$I47 * ($I$38 - COUNT($W47:AM47)) / $I$39 -> 2.030123674 | AO47: =$I47 * ($I$38 - COUNT($W47:AN47)) / $I$39 -> 1.964635814 | AP47: =$I47 * ($I$38 - COUNT($W47:AO47)) / $I$39 -> 1.899147953 | AQ47: =$I47 * ($I$38 - COUNT($W47:AP47)) / $I$39 -> 1.833660093 | AR47: =$I47 * ($I$38 - COUNT($W47:AQ47)) / $I$39 -> 1.768172232 | AS47: =$I47 * ($I$38 - COUNT($W47:AR47)) / $I$39 -> 1.702684372 | AT47: =$I47 * ($I$38 - COUNT($W47:AS47)) / $I$39 -> 1.637196511
E48: 2006-03-31 | G48: £m 18/19 prices | I48: 65.05807538 | J48: > | AA48: =$I48 * ($I$38 - COUNT($W48:Z48)) / $I$39 -> 2.828611973 | AB48: =$I48 * ($I$38 - COUNT($W48:AA48)) / $I$39 -> 2.765753929 | AC48: =$I48 * ($I$38 - COUNT($W48:AB48)) / $I$39 -> 2.702895885 | AD48: =$I48 * ($I$38 - COUNT($W48:AC48)) / $I$39 -> 2.640037842 | AE48: =$I48 * ($I$38 - COUNT($W48:AD48)) / $I$39 -> 2.577179798 | AF48: =$I48 * ($I$38 - COUNT($W48:AE48)) / $I$39 -> 2.514321754 | AG48: =$I48 * ($I$38 - COUNT($W48:AF48)) / $I$39 -> 2.45146371 | AH48: =$I48 * ($I$38 - COUNT($W48:AG48)) / $I$39 -> 2.388605666 | AI48: =$I48 * ($I$38 - COUNT($W48:AH48)) / $I$39 -> 2.325747622 | AJ48: =$I48 * ($I$38 - COUNT($W48:AI48)) / $I$39 -> 2.262889578 | AK48: =$I48 * ($I$38 - COUNT($W48:AJ48)) / $I$39 -> 2.200031535 | AL48: =$I48 * ($I$38 - COUNT($W48:AK48)) / $I$39 -> 2.137173491 | AM48: =$I48 * ($I$38 - COUNT($W48:AL48)) / $I$39 -> 2.074315447 | AN48: =$I48 * ($I$38 - COUNT($W48:AM48)) / $I$39 -> 2.011457403 | AO48: =$I48 * ($I$38 - COUNT($W48:AN48)) / $I$39 -> 1.948599359 | AP48: =$I48 * ($I$38 - COUNT($W48:AO48)) / $I$39 -> 1.885741315 | AQ48: =$I48 * ($I$38 - COUNT($W48:AP48)) / $I$39 -> 1.822883272 | AR48: =$I48 * ($I$38 - COUNT($W48:AQ48)) / $I$39 -> 1.760025228 | AS48: =$I48 * ($I$38 - COUNT($W48:AR48)) / $I$39 -> 1.697167184 | AT48: =$I48 * ($I$38 - COUNT($W48:AS48)) / $I$39 -> 1.63430914
E49: 2007-03-31 | G49: £m 18/19 prices | I49: 72.19368893 | J49: > | AB49: =$I49 * ($I$38 - COUNT($W49:AA49)) / $I$39 -> 3.13885604 | AC49: =$I49 * ($I$38 - COUNT($W49:AB49)) / $I$39 -> 3.069103684 | AD49: =$I49 * ($I$38 - COUNT($W49:AC49)) / $I$39 -> 2.999351327 | AE49: =$I49 * ($I$38 - COUNT($W49:AD49)) / $I$39 -> 2.929598971 | AF49: =$I49 * ($I$38 - COUNT($W49:AE49)) / $I$39 -> 2.859846614 | AG49: =$I49 * ($I$38 - COUNT($W49:AF49)) / $I$39 -> 2.790094258 | AH49: =$I49 * ($I$38 - COUNT($W49:AG49)) / $I$39 -> 2.720341902 | AI49: =$I49 * ($I$38 - COUNT($W49:AH49)) / $I$39 -> 2.650589545 | AJ49: =$I49 * ($I$38 - COUNT($W49:AI49)) / $I$39 -> 2.580837189 | AK49: =$I49 * ($I$38 - COUNT($W49:AJ49)) / $I$39 -> 2.511084832 | AL49: =$I49 * ($I$38 - COUNT($W49:AK49)) / $I$39 -> 2.441332476 | AM49: =$I49 * ($I$38 - COUNT($W49:AL49)) / $I$39 -> 2.371580119 | AN49: =$I49 * ($I$38 - COUNT($W49:AM49)) / $I$39 -> 2.301827763 | AO49: =$I49 * ($I$38 - COUNT($W49:AN49)) / $I$39 -> 2.232075406 | AP49: =$I49 * ($I$38 - COUNT($W49:AO49)) / $I$39 -> 2.16232305 | AQ49: =$I49 * ($I$38 - COUNT($W49:AP49)) / $I$39 -> 2.092570694 | AR49: =$I49 * ($I$38 - COUNT($W49:AQ49)) / $I$39 -> 2.022818337 | AS49: =$I49 * ($I$38 - COUNT($W49:AR49)) / $I$39 -> 1.953065981 | AT49: =$I49 * ($I$38 - COUNT($W49:AS49)) / $I$39 -> 1.883313624
E50: 2008-03-31 | G50: £m 18/19 prices | I50: 92.9221229 | J50: > | AC50: =$I50 * ($I$38 - COUNT($W50:AB50)) / $I$39 -> 4.0400923 | AD50: =$I50 * ($I$38 - COUNT($W50:AC50)) / $I$39 -> 3.950312471 | AE50: =$I50 * ($I$38 - COUNT($W50:AD50)) / $I$39 -> 3.860532642 | AF50: =$I50 * ($I$38 - COUNT($W50:AE50)) / $I$39 -> 3.770752813 | AG50: =$I50 * ($I$38 - COUNT($W50:AF50)) / $I$39 -> 3.680972984 | AH50: =$I50 * ($I$38 - COUNT($W50:AG50)) / $I$39 -> 3.591193155 | AI50: =$I50 * ($I$38 - COUNT($W50:AH50)) / $I$39 -> 3.501413326 | AJ50: =$I50 * ($I$38 - COUNT($W50:AI50)) / $I$39 -> 3.411633498 | AK50: =$I50 * ($I$38 - COUNT($W50:AJ50)) / $I$39 -> 3.321853669 | AL50: =$I50 * ($I$38 - COUNT($W50:AK50)) / $I$39 -> 3.23207384 | AM50: =$I50 * ($I$38 - COUNT($W50:AL50)) / $I$39 -> 3.142294011 | AN50: =$I50 * ($I$38 - COUNT($W50:AM50)) / $I$39 -> 3.052514182 | AO50: =$I50 * ($I$38 - COUNT($W50:AN50)) / $I$39 -> 2.962734353 | AP50: =$I50 * ($I$38 - COUNT($W50:AO50)) / $I$39 -> 2.872954524 | AQ50: =$I50 * ($I$38 - COUNT($W50:AP50)) / $I$39 -> 2.783174695 | AR50: =$I50 * ($I$38 - COUNT($W50:AQ50)) / $I$39 -> 2.693394867 | AS50: =$I50 * ($I$38 - COUNT($W50:AR50)) / $I$39 -> 2.603615038 | AT50: =$I50 * ($I$38 - COUNT($W50:AS50)) / $I$39 -> 2.513835209
E51: 2009-03-31 | G51: £m 18/19 prices | I51: 101.2866549 | J51: > | AD51: =$I51 * ($I$38 - COUNT($W51:AC51)) / $I$39 -> 4.403767606 | AE51: =$I51 * ($I$38 - COUNT($W51:AD51)) / $I$39 -> 4.305906104 | AF51: =$I51 * ($I$38 - COUNT($W51:AE51)) / $I$39 -> 4.208044601 | AG51: =$I51 * ($I$38 - COUNT($W51:AF51)) / $I$39 -> 4.110183099 | AH51: =$I51 * ($I$38 - COUNT($W51:AG51)) / $I$39 -> 4.012321596 | AI51: =$I51 * ($I$38 - COUNT($W51:AH51)) / $I$39 -> 3.914460094 | AJ51: =$I51 * ($I$38 - COUNT($W51:AI51)) / $I$39 -> 3.816598592 | AK51: =$I51 * ($I$38 - COUNT($W51:AJ51)) / $I$39 -> 3.718737089 | AL51: =$I51 * ($I$38 - COUNT($W51:AK51)) / $I$39 -> 3.620875587 | AM51: =$I51 * ($I$38 - COUNT($W51:AL51)) / $I$39 -> 3.523014085 | AN51: =$I51 * ($I$38 - COUNT($W51:AM51)) / $I$39 -> 3.425152582 | AO51: =$I51 * ($I$38 - COUNT($W51:AN51)) / $I$39 -> 3.32729108 | AP51: =$I51 * ($I$38 - COUNT($W51:AO51)) / $I$39 -> 3.229429578 | AQ51: =$I51 * ($I$38 - COUNT($W51:AP51)) / $I$39 -> 3.131568075 | AR51: =$I51 * ($I$38 - COUNT($W51:AQ51)) / $I$39 -> 3.033706573 | AS51: =$I51 * ($I$38 - COUNT($W51:AR51)) / $I$39 -> 2.935845071 | AT51: =$I51 * ($I$38 - COUNT($W51:AS51)) / $I$39 -> 2.837983568
E52: 2010-03-31 | G52: £m 18/19 prices | I52: 88.56702 | J52: > | AE52: =$I52 * ($I$38 - COUNT($W52:AD52)) / $I$39 -> 3.85074 | AF52: =$I52 * ($I$38 - COUNT($W52:AE52)) / $I$39 -> 3.765168 | AG52: =$I52 * ($I$38 - COUNT($W52:AF52)) / $I$39 -> 3.679596 | AH52: =$I52 * ($I$38 - COUNT($W52:AG52)) / $I$39 -> 3.594024 | AI52: =$I52 * ($I$38 - COUNT($W52:AH52)) / $I$39 -> 3.508452 | AJ52: =$I52 * ($I$38 - COUNT($W52:AI52)) / $I$39 -> 3.42288 | AK52: =$I52 * ($I$38 - COUNT($W52:AJ52)) / $I$39 -> 3.337308 | AL52: =$I52 * ($I$38 - COUNT($W52:AK52)) / $I$39 -> 3.251736 | AM52: =$I52 * ($I$38 - COUNT($W52:AL52)) / $I$39 -> 3.166164 | AN52: =$I52 * ($I$38 - COUNT($W52:AM52)) / $I$39 -> 3.080592 | AO52: =$I52 * ($I$38 - COUNT($W52:AN52)) / $I$39 -> 2.99502 | AP52: =$I52 * ($I$38 - COUNT($W52:AO52)) / $I$39 -> 2.909448 | AQ52: =$I52 * ($I$38 - COUNT($W52:AP52)) / $I$39 -> 2.823876 | AR52: =$I52 * ($I$38 - COUNT($W52:AQ52)) / $I$39 -> 2.738304 | AS52: =$I52 * ($I$38 - COUNT($W52:AR52)) / $I$39 -> 2.652732 | AT52: =$I52 * ($I$38 - COUNT($W52:AS52)) / $I$39 -> 2.56716
E53: 2011-03-31 | G53: £m 18/19 prices | I53: 112.184233 | J53: > | AF53: =$I53 * ($I$38 - COUNT($W53:AE53)) / $I$39 -> 4.877575349 | AG53: =$I53 * ($I$38 - COUNT($W53:AF53)) / $I$39 -> 4.769184786 | AH53: =$I53 * ($I$38 - COUNT($W53:AG53)) / $I$39 -> 4.660794223 | AI53: =$I53 * ($I$38 - COUNT($W53:AH53)) / $I$39 -> 4.552403659 | AJ53: =$I53 * ($I$38 - COUNT($W53:AI53)) / $I$39 -> 4.444013096 | AK53: =$I53 * ($I$38 - COUNT($W53:AJ53)) / $I$39 -> 4.335622533 | AL53: =$I53 * ($I$38 - COUNT($W53:AK53)) / $I$39 -> 4.227231969 | AM53: =$I53 * ($I$38 - COUNT($W53:AL53)) / $I$39 -> 4.118841406 | AN53: =$I53 * ($I$38 - COUNT($W53:AM53)) / $I$39 -> 4.010450843 | AO53: =$I53 * ($I$38 - COUNT($W53:AN53)) / $I$39 -> 3.90206028 | AP53: =$I53 * ($I$38 - COUNT($W53:AO53)) / $I$39 -> 3.793669716 | AQ53: =$I53 * ($I$38 - COUNT($W53:AP53)) / $I$39 -> 3.685279153 | AR53: =$I53 * ($I$38 - COUNT($W53:AQ53)) / $I$39 -> 3.57688859 | AS53: =$I53 * ($I$38 - COUNT($W53:AR53)) / $I$39 -> 3.468498026 | AT53: =$I53 * ($I$38 - COUNT($W53:AS53)) / $I$39 -> 3.360107463
E54: 2012-03-31 | G54: £m 18/19 prices | I54: 126.1514364 | J54: > | AG54: =$I54 * ($I$38 - COUNT($W54:AF54)) / $I$39 -> 5.484845062 | AH54: =$I54 * ($I$38 - COUNT($W54:AG54)) / $I$39 -> 5.362959616 | AI54: =$I54 * ($I$38 - COUNT($W54:AH54)) / $I$39 -> 5.24107417 | AJ54: =$I54 * ($I$38 - COUNT($W54:AI54)) / $I$39 -> 5.119188724 | AK54: =$I54 * ($I$38 - COUNT($W54:AJ54)) / $I$39 -> 4.997303278 | AL54: =$I54 * ($I$38 - COUNT($W54:AK54)) / $I$39 -> 4.875417832 | AM54: =$I54 * ($I$38 - COUNT($W54:AL54)) / $I$39 -> 4.753532387 | AN54: =$I54 * ($I$38 - COUNT($W54:AM54)) / $I$39 -> 4.631646941 | AO54: =$I54 * ($I$38 - COUNT($W54:AN54)) / $I$39 -> 4.509761495 | AP54: =$I54 * ($I$38 - COUNT($W54:AO54)) / $I$39 -> 4.387876049 | AQ54: =$I54 * ($I$38 - COUNT($W54:AP54)) / $I$39 -> 4.265990603 | AR54: =$I54 * ($I$38 - COUNT($W54:AQ54)) / $I$39 -> 4.144105158 | AS54: =$I54 * ($I$38 - COUNT($W54:AR54)) / $I$39 -> 4.022219712 | AT54: =$I54 * ($I$38 - COUNT($W54:AS54)) / $I$39 -> 3.900334266
E55: 2013-03-31 | G55: £m 18/19 prices | I55: 106.1608787 | AH55: =$I55 * ($I$38 - COUNT($W55:AG55)) / $I$39 -> 4.615690379 | AI55: =$I55 * ($I$38 - COUNT($W55:AH55)) / $I$39 -> 4.513119481 | AJ55: =$I55 * ($I$38 - COUNT($W55:AI55)) / $I$39 -> 4.410548584 | AK55: =$I55 * ($I$38 - COUNT($W55:AJ55)) / $I$39 -> 4.307977687 | AL55: =$I55 * ($I$38 - COUNT($W55:AK55)) / $I$39 -> 4.205406789 | AM55: =$I55 * ($I$38 - COUNT($W55:AL55)) / $I$39 -> 4.102835892 | AN55: =$I55 * ($I$38 - COUNT($W55:AM55)) / $I$39 -> 4.000264995 | AO55: =$I55 * ($I$38 - COUNT($W55:AN55)) / $I$39 -> 3.897694098 | AP55: =$I55 * ($I$38 - COUNT($W55:AO55)) / $I$39 -> 3.7951232 | AQ55: =$I55 * ($I$38 - COUNT($W55:AP55)) / $I$39 -> 3.692552303 | AR55: =$I55 * ($I$38 - COUNT($W55:AQ55)) / $I$39 -> 3.589981406 | AS55: =$I55 * ($I$38 - COUNT($W55:AR55)) / $I$39 -> 3.487410508 | AT55: =$I55 * ($I$38 - COUNT($W55:AS55)) / $I$39 -> 3.384839611
E56: 2014-03-31 | G56: £m 18/19 prices | I56: 88.26034009 | AI56: =$I56 * ($I$38 - COUNT($W56:AH56)) / $I$39 -> 3.837406091 | AJ56: =$I56 * ($I$38 - COUNT($W56:AI56)) / $I$39 -> 3.7521304 | AK56: =$I56 * ($I$38 - COUNT($W56:AJ56)) / $I$39 -> 3.666854709 | AL56: =$I56 * ($I$38 - COUNT($W56:AK56)) / $I$39 -> 3.581579018 | AM56: =$I56 * ($I$38 - COUNT($W56:AL56)) / $I$39 -> 3.496303327 | AN56: =$I56 * ($I$38 - COUNT($W56:AM56)) / $I$39 -> 3.411027636 | AO56: =$I56 * ($I$38 - COUNT($W56:AN56)) / $I$39 -> 3.325751946 | AP56: =$I56 * ($I$38 - COUNT($W56:AO56)) / $I$39 -> 3.240476255 | AQ56: =$I56 * ($I$38 - COUNT($W56:AP56)) / $I$39 -> 3.155200564 | AR56: =$I56 * ($I$38 - COUNT($W56:AQ56)) / $I$39 -> 3.069924873 | AS56: =$I56 * ($I$38 - COUNT($W56:AR56)) / $I$39 -> 2.984649182 | AT56: =$I56 * ($I$38 - COUNT($W56:AS56)) / $I$39 -> 2.899373491
E57: 2015-03-31 | G57: £m 18/19 prices | I57: 118.658252 | AJ57: =$I57 * ($I$38 - COUNT($W57:AI57)) / $I$39 -> 5.159054435 | AK57: =$I57 * ($I$38 - COUNT($W57:AJ57)) / $I$39 -> 5.044408781 | AL57: =$I57 * ($I$38 - COUNT($W57:AK57)) / $I$39 -> 4.929763127 | AM57: =$I57 * ($I$38 - COUNT($W57:AL57)) / $I$39 -> 4.815117472 | AN57: =$I57 * ($I$38 - COUNT($W57:AM57)) / $I$39 -> 4.700471818 | AO57: =$I57 * ($I$38 - COUNT($W57:AN57)) / $I$39 -> 4.585826164 | AP57: =$I57 * ($I$38 - COUNT($W57:AO57)) / $I$39 -> 4.47118051 | AQ57: =$I57 * ($I$38 - COUNT($W57:AP57)) / $I$39 -> 4.356534856 | AR57: =$I57 * ($I$38 - COUNT($W57:AQ57)) / $I$39 -> 4.241889202 | AS57: =$I57 * ($I$38 - COUNT($W57:AR57)) / $I$39 -> 4.127243548 | AT57: =$I57 * ($I$38 - COUNT($W57:AS57)) / $I$39 -> 4.012597894
E58: 2016-03-31 | G58: £m 18/19 prices | I58: 125.6495071 | AK58: =$I58 * ($I$38 - COUNT($W58:AJ58)) / $I$39 -> 5.463022048 | AL58: =$I58 * ($I$38 - COUNT($W58:AK58)) / $I$39 -> 5.341621558 | AM58: =$I58 * ($I$38 - COUNT($W58:AL58)) / $I$39 -> 5.220221068 | AN58: =$I58 * ($I$38 - COUNT($W58:AM58)) / $I$39 -> 5.098820578 | AO58: =$I58 * ($I$38 - COUNT($W58:AN58)) / $I$39 -> 4.977420088 | AP58: =$I58 * ($I$38 - COUNT($W58:AO58)) / $I$39 -> 4.856019598 | AQ58: =$I58 * ($I$38 - COUNT($W58:AP58)) / $I$39 -> 4.734619108 | AR58: =$I58 * ($I$38 - COUNT($W58:AQ58)) / $I$39 -> 4.613218618 | AS58: =$I58 * ($I$38 - COUNT($W58:AR58)) / $I$39 -> 4.491818128 | AT58: =$I58 * ($I$38 - COUNT($W58:AS58)) / $I$39 -> 4.370417638
E59: 2017-03-31 | G59: £m 18/19 prices | I59: 131.4505245 | AL59: =$I59 * ($I$38 - COUNT($W59:AK59)) / $I$39 -> 5.715240196 | AM59: =$I59 * ($I$38 - COUNT($W59:AL59)) / $I$39 -> 5.588234858 | AN59: =$I59 * ($I$38 - COUNT($W59:AM59)) / $I$39 -> 5.461229521 | AO59: =$I59 * ($I$38 - COUNT($W59:AN59)) / $I$39 -> 5.334224183 | AP59: =$I59 * ($I$38 - COUNT($W59:AO59)) / $I$39 -> 5.207218845 | AQ59: =$I59 * ($I$38 - COUNT($W59:AP59)) / $I$39 -> 5.080213508 | AR59: =$I59 * ($I$38 - COUNT($W59:AQ59)) / $I$39 -> 4.95320817 | AS59: =$I59 * ($I$38 - COUNT($W59:AR59)) / $I$39 -> 4.826202832 | AT59: =$I59 * ($I$38 - COUNT($W59:AS59)) / $I$39 -> 4.699197494
E60: 2018-03-31 | G60: £m 18/19 prices | I60: 134.7828895 | AM60: =$I60 * ($I$38 - COUNT($W60:AL60)) / $I$39 -> 5.860125629 | AN60: =$I60 * ($I$38 - COUNT($W60:AM60)) / $I$39 -> 5.729900615 | AO60: =$I60 * ($I$38 - COUNT($W60:AN60)) / $I$39 -> 5.599675601 | AP60: =$I60 * ($I$38 - COUNT($W60:AO60)) / $I$39 -> 5.469450587 | AQ60: =$I60 * ($I$38 - COUNT($W60:AP60)) / $I$39 -> 5.339225573 | AR60: =$I60 * ($I$38 - COUNT($W60:AQ60)) / $I$39 -> 5.209000559 | AS60: =$I60 * ($I$38 - COUNT($W60:AR60)) / $I$39 -> 5.078775545 | AT60: =$I60 * ($I$38 - COUNT($W60:AS60)) / $I$39 -> 4.948550531
E61: 2019-03-31 | G61: £m 18/19 prices | I61: 140.9399265 | AN61: =$I61 * ($I$38 - COUNT($W61:AM61)) / $I$39 -> 6.12782289 | AO61: =$I61 * ($I$38 - COUNT($W61:AN61)) / $I$39 -> 5.991649048 | AP61: =$I61 * ($I$38 - COUNT($W61:AO61)) / $I$39 -> 5.855475206 | AQ61: =$I61 * ($I$38 - COUNT($W61:AP61)) / $I$39 -> 5.719301364 | AR61: =$I61 * ($I$38 - COUNT($W61:AQ61)) / $I$39 -> 5.583127522 | AS61: =$I61 * ($I$38 - COUNT($W61:AR61)) / $I$39 -> 5.44695368 | AT61: =$I61 * ($I$38 - COUNT($W61:AS61)) / $I$39 -> 5.310779838
E62: 2020-03-31 | G62: £m 18/19 prices | I62: 152.581717 | AO62: =$I62 * ($I$38 - COUNT($W62:AN62)) / $I$39 -> 6.633987694 | AP62: =$I62 * ($I$38 - COUNT($W62:AO62)) / $I$39 -> 6.486565745 | AQ62: =$I62 * ($I$38 - COUNT($W62:AP62)) / $I$39 -> 6.339143796 | AR62: =$I62 * ($I$38 - COUNT($W62:AQ62)) / $I$39 -> 6.191721848 | AS62: =$I62 * ($I$38 - COUNT($W62:AR62)) / $I$39 -> 6.044299899 | AT62: =$I62 * ($I$38 - COUNT($W62:AS62)) / $I$39 -> 5.89687795
E63: 2021-03-31 | G63: £m 18/19 prices | I63: 157.6913424 | AP63: =$I63 * ($I$38 - COUNT($W63:AO63)) / $I$39 -> 6.856145322 | AQ63: =$I63 * ($I$38 - COUNT($W63:AP63)) / $I$39 -> 6.703786537 | AR63: =$I63 * ($I$38 - COUNT($W63:AQ63)) / $I$39 -> 6.551427752 | AS63: =$I63 * ($I$38 - COUNT($W63:AR63)) / $I$39 -> 6.399068968 | AT63: =$I63 * ($I$38 - COUNT($W63:AS63)) / $I$39 -> 6.246710183
E64: 2022-03-31 | G64: £m 18/19 prices | I64: 161.3808306 | AQ64: =$I64 * ($I$38 - COUNT($W64:AP64)) / $I$39 -> 7.016557853 | AR64: =$I64 * ($I$38 - COUNT($W64:AQ64)) / $I$39 -> 6.860634346 | AS64: =$I64 * ($I$38 - COUNT($W64:AR64)) / $I$39 -> 6.704710838 | AT64: =$I64 * ($I$38 - COUNT($W64:AS64)) / $I$39 -> 6.54878733
E65: 2023-03-31 | G65: £m 18/19 prices | I65: 168.5048905 | AR65: =$I65 * ($I$38 - COUNT($W65:AQ65)) / $I$39 -> 7.326299586 | AS65: =$I65 * ($I$38 - COUNT($W65:AR65)) / $I$39 -> 7.163492928 | AT65: =$I65 * ($I$38 - COUNT($W65:AS65)) / $I$39 -> 7.000686271
E66: 2024-03-31 | G66: £m 18/19 prices | I66: 168.7943547 | AS66: =$I66 * ($I$38 - COUNT($W66:AR66)) / $I$39 -> 7.338884986 | AT66: =$I66 * ($I$38 - COUNT($W66:AS66)) / $I$39 -> 7.175798653
E67: 2025-03-31 | G67: £m 18/19 prices | I67: 163.8350339 | AT67: =$I67 * ($I$38 - COUNT($W67:AS67)) / $I$39 -> 7.123262344
E68: 2026-03-31 | G68: £m 18/19 prices | I68: 157.2600753
C70: Straight line post-vesting depreciation
C71: Note: Straight line calculations are used to establish the "RAV differential" based on the accumulated difference between it and if sum-of-digit depreciation was in place before RIIO.
D73: Depreciation parameters
E75: Post-vesting asset life | G75: years | I75: =I38 -> 45
E76: Straight line depreciation applied | G76: text | J76: > | X76: =X$4<$I111 -> TRUE | Y76: =Y4<$I111 -> TRUE | Z76: TRUE | AA76: TRUE | AB76: TRUE | AC76: TRUE | AD76: TRUE | AE76: TRUE | AF76: TRUE | AG76: TRUE | AH76: FALSE | AI76: FALSE | AJ76: FALSE | AK76: FALSE | AL76: FALSE | AM76: FALSE | AN76: FALSE | AO76: FALSE | AP76: FALSE | AQ76: FALSE | AR76: FALSE | AS76: FALSE | AT76: FALSE
D78: Depreciation schedule
E80: Straight line depreciation of additions from year ending | I80: Net additions
E81: 2003-03-31 | G81: £m 18/19 prices | I81: =TRANSPOSE(W17:AT17) - TRANSPOSE(W12:AT12) - TRANSPOSE(W13:AT13) -> 107.6850059 | J81: > | X81: =$I81 / $I$75 -> 2.39300013 | Y81: =IF($I81 >0, MIN(X81,$I81-SUM($W81:X81)), MAX(X81,$I81-SUM($W81:X81))) -> 2.39300013 | Z81: =IF($I81 >0, MIN(Y81,$I81-SUM($W81:Y81)), MAX(Y81,$I81-SUM($W81:Y81))) -> 2.39300013 | AA81: =IF($I81 >0, MIN(Z81,$I81-SUM($W81:Z81)), MAX(Z81,$I81-SUM($W81:Z81))) -> 2.39300013 | AB81: =IF($I81 >0, MIN(AA81,$I81-SUM($W81:AA81)), MAX(AA81,$I81-SUM($W81:AA81))) -> 2.39300013 | AC81: =IF($I81 >0, MIN(AB81,$I81-SUM($W81:AB81)), MAX(AB81,$I81-SUM($W81:AB81))) -> 2.39300013 | AD81: =IF($I81 >0, MIN(AC81,$I81-SUM($W81:AC81)), MAX(AC81,$I81-SUM($W81:AC81))) -> 2.39300013 | AE81: =IF($I81 >0, MIN(AD81,$I81-SUM($W81:AD81)), MAX(AD81,$I81-SUM($W81:AD81))) -> 2.39300013 | AF81: =IF($I81 >0, MIN(AE81,$I81-SUM($W81:AE81)), MAX(AE81,$I81-SUM($W81:AE81))) -> 2.39300013 | AG81: =IF($I81 >0, MIN(AF81,$I81-SUM($W81:AF81)), MAX(AF81,$I81-SUM($W81:AF81))) -> 2.39300013 | AH81: =IF($I81 >0, MIN(AG81,$I81-SUM($W81:AG81)), MAX(AG81,$I81-SUM($W81:AG81))) -> 2.39300013 | AI81: =IF($I81 >0, MIN(AH81,$I81-SUM($W81:AH81)), MAX(AH81,$I81-SUM($W81:AH81))) -> 2.39300013 | AJ81: =IF($I81 >0, MIN(AI81,$I81-SUM($W81:AI81)), MAX(AI81,$I81-SUM($W81:AI81))) -> 2.39300013 | AK81: =IF($I81 >0, MIN(AJ81,$I81-SUM($W81:AJ81)), MAX(AJ81,$I81-SUM($W81:AJ81))) -> 2.39300013 | AL81: =IF($I81 >0, MIN(AK81,$I81-SUM($W81:AK81)), MAX(AK81,$I81-SUM($W81:AK81))) -> 2.39300013 | AM81: =IF($I81 >0, MIN(AL81,$I81-SUM($W81:AL81)), MAX(AL81,$I81-SUM($W81:AL81))) -> 2.39300013 | AN81: =IF($I81 >0, MIN(AM81,$I81-SUM($W81:AM81)), MAX(AM81,$I81-SUM($W81:AM81))) -> 2.39300013 | AO81: =IF($I81 >0, MIN(AN81,$I81-SUM($W81:AN81)), MAX(AN81,$I81-SUM($W81:AN81))) -> 2.39300013 | AP81: =IF($I81 >0, MIN(AO81,$I81-SUM($W81:AO81)), MAX(AO81,$I81-SUM($W81:AO81))) -> 2.39300013 | AQ81: =IF($I81 >0, MIN(AP81,$I81-SUM($W81:AP81)), MAX(AP81,$I81-SUM($W81:AP81))) -> 2.39300013 | AR81: =IF($I81 >0, MIN(AQ81,$I81-SUM($W81:AQ81)), MAX(AQ81,$I81-SUM($W81:AQ81))) -> 2.39300013 | AS81: =IF($I81 >0, MIN(AR81,$I81-SUM($W81:AR81)), MAX(AR81,$I81-SUM($W81:AR81))) -> 2.39300013 | AT81: =IF($I81 >0, MIN(AS81,$I81-SUM($W81:AS81)), MAX(AS81,$I81-SUM($W81:AS81))) -> 2.39300013
E82: 2004-03-31 | G82: £m 18/19 prices | I82: 66.60625703 | J82: > | Y82: =$I82 / $I$75 -> 1.480139045 | Z82: =IF($I82 >0, MIN(Y82,$I82-SUM($W82:Y82)), MAX(Y82,$I82-SUM($W82:Y82))) -> 1.480139045 | AA82: =IF($I82 >0, MIN(Z82,$I82-SUM($W82:Z82)), MAX(Z82,$I82-SUM($W82:Z82))) -> 1.480139045 | AB82: =IF($I82 >0, MIN(AA82,$I82-SUM($W82:AA82)), MAX(AA82,$I82-SUM($W82:AA82))) -> 1.480139045 | AC82: =IF($I82 >0, MIN(AB82,$I82-SUM($W82:AB82)), MAX(AB82,$I82-SUM($W82:AB82))) -> 1.480139045 | AD82: =IF($I82 >0, MIN(AC82,$I82-SUM($W82:AC82)), MAX(AC82,$I82-SUM($W82:AC82))) -> 1.480139045 | AE82: =IF($I82 >0, MIN(AD82,$I82-SUM($W82:AD82)), MAX(AD82,$I82-SUM($W82:AD82))) -> 1.480139045 | AF82: =IF($I82 >0, MIN(AE82,$I82-SUM($W82:AE82)), MAX(AE82,$I82-SUM($W82:AE82))) -> 1.480139045 | AG82: =IF($I82 >0, MIN(AF82,$I82-SUM($W82:AF82)), MAX(AF82,$I82-SUM($W82:AF82))) -> 1.480139045 | AH82: =IF($I82 >0, MIN(AG82,$I82-SUM($W82:AG82)), MAX(AG82,$I82-SUM($W82:AG82))) -> 1.480139045 | AI82: =IF($I82 >0, MIN(AH82,$I82-SUM($W82:AH82)), MAX(AH82,$I82-SUM($W82:AH82))) -> 1.480139045 | AJ82: =IF($I82 >0, MIN(AI82,$I82-SUM($W82:AI82)), MAX(AI82,$I82-SUM($W82:AI82))) -> 1.480139045 | AK82: =IF($I82 >0, MIN(AJ82,$I82-SUM($W82:AJ82)), MAX(AJ82,$I82-SUM($W82:AJ82))) -> 1.480139045 | AL82: =IF($I82 >0, MIN(AK82,$I82-SUM($W82:AK82)), MAX(AK82,$I82-SUM($W82:AK82))) -> 1.480139045 | AM82: =IF($I82 >0, MIN(AL82,$I82-SUM($W82:AL82)), MAX(AL82,$I82-SUM($W82:AL82))) -> 1.480139045 | AN82: =IF($I82 >0, MIN(AM82,$I82-SUM($W82:AM82)), MAX(AM82,$I82-SUM($W82:AM82))) -> 1.480139045 | AO82: =IF($I82 >0, MIN(AN82,$I82-SUM($W82:AN82)), MAX(AN82,$I82-SUM($W82:AN82))) -> 1.480139045 | AP82: =IF($I82 >0, MIN(AO82,$I82-SUM($W82:AO82)), MAX(AO82,$I82-SUM($W82:AO82))) -> 1.480139045 | AQ82: =IF($I82 >0, MIN(AP82,$I82-SUM($W82:AP82)), MAX(AP82,$I82-SUM($W82:AP82))) -> 1.480139045 | AR82: =IF($I82 >0, MIN(AQ82,$I82-SUM($W82:AQ82)), MAX(AQ82,$I82-SUM($W82:AQ82))) -> 1.480139045 | AS82: =IF($I82 >0, MIN(AR82,$I82-SUM($W82:AR82)), MAX(AR82,$I82-SUM($W82:AR82))) -> 1.480139045 | AT82: =IF($I82 >0, MIN(AS82,$I82-SUM($W82:AS82)), MAX(AS82,$I82-SUM($W82:AS82))) -> 1.480139045
E83: 2005-03-31 | G83: £m 18/19 prices | I83: 67.77993557 | J83: > | Z83: =$I83 / $I$75 -> 1.506220791 | AA83: =IF($I83 >0, MIN(Z83,$I83-SUM($W83:Z83)), MAX(Z83,$I83-SUM($W83:Z83))) -> 1.506220791 | AB83: =IF($I83 >0, MIN(AA83,$I83-SUM($W83:AA83)), MAX(AA83,$I83-SUM($W83:AA83))) -> 1.506220791 | AC83: =IF($I83 >0, MIN(AB83,$I83-SUM($W83:AB83)), MAX(AB83,$I83-SUM($W83:AB83))) -> 1.506220791 | AD83: =IF($I83 >0, MIN(AC83,$I83-SUM($W83:AC83)), MAX(AC83,$I83-SUM($W83:AC83))) -> 1.506220791 | AE83: =IF($I83 >0, MIN(AD83,$I83-SUM($W83:AD83)), MAX(AD83,$I83-SUM($W83:AD83))) -> 1.506220791 | AF83: =IF($I83 >0, MIN(AE83,$I83-SUM($W83:AE83)), MAX(AE83,$I83-SUM($W83:AE83))) -> 1.506220791 | AG83: =IF($I83 >0, MIN(AF83,$I83-SUM($W83:AF83)), MAX(AF83,$I83-SUM($W83:AF83))) -> 1.506220791 | AH83: =IF($I83 >0, MIN(AG83,$I83-SUM($W83:AG83)), MAX(AG83,$I83-SUM($W83:AG83))) -> 1.506220791 | AI83: =IF($I83 >0, MIN(AH83,$I83-SUM($W83:AH83)), MAX(AH83,$I83-SUM($W83:AH83))) -> 1.506220791 | AJ83: =IF($I83 >0, MIN(AI83,$I83-SUM($W83:AI83)), MAX(AI83,$I83-SUM($W83:AI83))) -> 1.506220791 | AK83: =IF($I83 >0, MIN(AJ83,$I83-SUM($W83:AJ83)), MAX(AJ83,$I83-SUM($W83:AJ83))) -> 1.506220791 | AL83: =IF($I83 >0, MIN(AK83,$I83-SUM($W83:AK83)), MAX(AK83,$I83-SUM($W83:AK83))) -> 1.506220791 | AM83: =IF($I83 >0, MIN(AL83,$I83-SUM($W83:AL83)), MAX(AL83,$I83-SUM($W83:AL83))) -> 1.506220791 | AN83: =IF($I83 >0, MIN(AM83,$I83-SUM($W83:AM83)), MAX(AM83,$I83-SUM($W83:AM83))) -> 1.506220791 | AO83: =IF($I83 >0, MIN(AN83,$I83-SUM($W83:AN83)), MAX(AN83,$I83-SUM($W83:AN83))) -> 1.506220791 | AP83: =IF($I83 >0, MIN(AO83,$I83-SUM($W83:AO83)), MAX(AO83,$I83-SUM($W83:AO83))) -> 1.506220791 | AQ83: =IF($I83 >0, MIN(AP83,$I83-SUM($W83:AP83)), MAX(AP83,$I83-SUM($W83:AP83))) -> 1.506220791 | AR83: =IF($I83 >0, MIN(AQ83,$I83-SUM($W83:AQ83)), MAX(AQ83,$I83-SUM($W83:AQ83))) -> 1.506220791 | AS83: =IF($I83 >0, MIN(AR83,$I83-SUM($W83:AR83)), MAX(AR83,$I83-SUM($W83:AR83))) -> 1.506220791 | AT83: =IF($I83 >0, MIN(AS83,$I83-SUM($W83:AS83)), MAX(AS83,$I83-SUM($W83:AS83))) -> 1.506220791
E84: 2006-03-31 | G84: £m 18/19 prices | I84: 65.05807538 | J84: > | AA84: =$I84 / $I$75 -> 1.445735008 | AB84: =IF($I84 >0, MIN(AA84,$I84-SUM($W84:AA84)), MAX(AA84,$I84-SUM($W84:AA84))) -> 1.445735008 | AC84: =IF($I84 >0, MIN(AB84,$I84-SUM($W84:AB84)), MAX(AB84,$I84-SUM($W84:AB84))) -> 1.445735008 | AD84: =IF($I84 >0, MIN(AC84,$I84-SUM($W84:AC84)), MAX(AC84,$I84-SUM($W84:AC84))) -> 1.445735008 | AE84: =IF($I84 >0, MIN(AD84,$I84-SUM($W84:AD84)), MAX(AD84,$I84-SUM($W84:AD84))) -> 1.445735008 | AF84: =IF($I84 >0, MIN(AE84,$I84-SUM($W84:AE84)), MAX(AE84,$I84-SUM($W84:AE84))) -> 1.445735008 | AG84: =IF($I84 >0, MIN(AF84,$I84-SUM($W84:AF84)), MAX(AF84,$I84-SUM($W84:AF84))) -> 1.445735008 | AH84: =IF($I84 >0, MIN(AG84,$I84-SUM($W84:AG84)), MAX(AG84,$I84-SUM($W84:AG84))) -> 1.445735008 | AI84: =IF($I84 >0, MIN(AH84,$I84-SUM($W84:AH84)), MAX(AH84,$I84-SUM($W84:AH84))) -> 1.445735008 | AJ84: =IF($I84 >0, MIN(AI84,$I84-SUM($W84:AI84)), MAX(AI84,$I84-SUM($W84:AI84))) -> 1.445735008 | AK84: =IF($I84 >0, MIN(AJ84,$I84-SUM($W84:AJ84)), MAX(AJ84,$I84-SUM($W84:AJ84))) -> 1.445735008 | AL84: =IF($I84 >0, MIN(AK84,$I84-SUM($W84:AK84)), MAX(AK84,$I84-SUM($W84:AK84))) -> 1.445735008 | AM84: =IF($I84 >0, MIN(AL84,$I84-SUM($W84:AL84)), MAX(AL84,$I84-SUM($W84:AL84))) -> 1.445735008 | AN84: =IF($I84 >0, MIN(AM84,$I84-SUM($W84:AM84)), MAX(AM84,$I84-SUM($W84:AM84))) -> 1.445735008 | AO84: =IF($I84 >0, MIN(AN84,$I84-SUM($W84:AN84)), MAX(AN84,$I84-SUM($W84:AN84))) -> 1.445735008 | AP84: =IF($I84 >0, MIN(AO84,$I84-SUM($W84:AO84)), MAX(AO84,$I84-SUM($W84:AO84))) -> 1.445735008 | AQ84: =IF($I84 >0, MIN(AP84,$I84-SUM($W84:AP84)), MAX(AP84,$I84-SUM($W84:AP84))) -> 1.445735008 | AR84: =IF($I84 >0, MIN(AQ84,$I84-SUM($W84:AQ84)), MAX(AQ84,$I84-SUM($W84:AQ84))) -> 1.445735008 | AS84: =IF($I84 >0, MIN(AR84,$I84-SUM($W84:AR84)), MAX(AR84,$I84-SUM($W84:AR84))) -> 1.445735008 | AT84: =IF($I84 >0, MIN(AS84,$I84-SUM($W84:AS84)), MAX(AS84,$I84-SUM($W84:AS84))) -> 1.445735008
E85: 2007-03-31 | G85: £m 18/19 prices | I85: 72.19368893 | J85: > | AB85: =$I85 / $I$75 -> 1.604304198 | AC85: =IF($I85 >0, MIN(AB85,$I85-SUM($W85:AB85)), MAX(AB85,$I85-SUM($W85:AB85))) -> 1.604304198 | AD85: =IF($I85 >0, MIN(AC85,$I85-SUM($W85:AC85)), MAX(AC85,$I85-SUM($W85:AC85))) -> 1.604304198 | AE85: =IF($I85 >0, MIN(AD85,$I85-SUM($W85:AD85)), MAX(AD85,$I85-SUM($W85:AD85))) -> 1.604304198 | AF85: =IF($I85 >0, MIN(AE85,$I85-SUM($W85:AE85)), MAX(AE85,$I85-SUM($W85:AE85))) -> 1.604304198 | AG85: =IF($I85 >0, MIN(AF85,$I85-SUM($W85:AF85)), MAX(AF85,$I85-SUM($W85:AF85))) -> 1.604304198 | AH85: =IF($I85 >0, MIN(AG85,$I85-SUM($W85:AG85)), MAX(AG85,$I85-SUM($W85:AG85))) -> 1.604304198 | AI85: =IF($I85 >0, MIN(AH85,$I85-SUM($W85:AH85)), MAX(AH85,$I85-SUM($W85:AH85))) -> 1.604304198 | AJ85: =IF($I85 >0, MIN(AI85,$I85-SUM($W85:AI85)), MAX(AI85,$I85-SUM($W85:AI85))) -> 1.604304198 | AK85: =IF($I85 >0, MIN(AJ85,$I85-SUM($W85:AJ85)), MAX(AJ85,$I85-SUM($W85:AJ85))) -> 1.604304198 | AL85: =IF($I85 >0, MIN(AK85,$I85-SUM($W85:AK85)), MAX(AK85,$I85-SUM($W85:AK85))) -> 1.604304198 | AM85: =IF($I85 >0, MIN(AL85,$I85-SUM($W85:AL85)), MAX(AL85,$I85-SUM($W85:AL85))) -> 1.604304198 | AN85: =IF($I85 >0, MIN(AM85,$I85-SUM($W85:AM85)), MAX(AM85,$I85-SUM($W85:AM85))) -> 1.604304198 | AO85: =IF($I85 >0, MIN(AN85,$I85-SUM($W85:AN85)), MAX(AN85,$I85-SUM($W85:AN85))) -> 1.604304198 | AP85: =IF($I85 >0, MIN(AO85,$I85-SUM($W85:AO85)), MAX(AO85,$I85-SUM($W85:AO85))) -> 1.604304198 | AQ85: =IF($I85 >0, MIN(AP85,$I85-SUM($W85:AP85)), MAX(AP85,$I85-SUM($W85:AP85))) -> 1.604304198 | AR85: =IF($I85 >0, MIN(AQ85,$I85-SUM($W85:AQ85)), MAX(AQ85,$I85-SUM($W85:AQ85))) -> 1.604304198 | AS85: =IF($I85 >0, MIN(AR85,$I85-SUM($W85:AR85)), MAX(AR85,$I85-SUM($W85:AR85))) -> 1.604304198 | AT85: =IF($I85 >0, MIN(AS85,$I85-SUM($W85:AS85)), MAX(AS85,$I85-SUM($W85:AS85))) -> 1.604304198
E86: 2008-03-31 | G86: £m 18/19 prices | I86: 92.9221229 | J86: > | AC86: =$I86 / $I$75 -> 2.064936064 | AD86: =IF($I86 >0, MIN(AC86,$I86-SUM($W86:AC86)), MAX(AC86,$I86-SUM($W86:AC86))) -> 2.064936064 | AE86: =IF($I86 >0, MIN(AD86,$I86-SUM($W86:AD86)), MAX(AD86,$I86-SUM($W86:AD86))) -> 2.064936064 | AF86: =IF($I86 >0, MIN(AE86,$I86-SUM($W86:AE86)), MAX(AE86,$I86-SUM($W86:AE86))) -> 2.064936064 | AG86: =IF($I86 >0, MIN(AF86,$I86-SUM($W86:AF86)), MAX(AF86,$I86-SUM($W86:AF86))) -> 2.064936064 | AH86: =IF($I86 >0, MIN(AG86,$I86-SUM($W86:AG86)), MAX(AG86,$I86-SUM($W86:AG86))) -> 2.064936064 | AI86: =IF($I86 >0, MIN(AH86,$I86-SUM($W86:AH86)), MAX(AH86,$I86-SUM($W86:AH86))) -> 2.064936064 | AJ86: =IF($I86 >0, MIN(AI86,$I86-SUM($W86:AI86)), MAX(AI86,$I86-SUM($W86:AI86))) -> 2.064936064 | AK86: =IF($I86 >0, MIN(AJ86,$I86-SUM($W86:AJ86)), MAX(AJ86,$I86-SUM($W86:AJ86))) -> 2.064936064 | AL86: =IF($I86 >0, MIN(AK86,$I86-SUM($W86:AK86)), MAX(AK86,$I86-SUM($W86:AK86))) -> 2.064936064 | AM86: =IF($I86 >0, MIN(AL86,$I86-SUM($W86:AL86)), MAX(AL86,$I86-SUM($W86:AL86))) -> 2.064936064 | AN86: =IF($I86 >0, MIN(AM86,$I86-SUM($W86:AM86)), MAX(AM86,$I86-SUM($W86:AM86))) -> 2.064936064 | AO86: =IF($I86 >0, MIN(AN86,$I86-SUM($W86:AN86)), MAX(AN86,$I86-SUM($W86:AN86))) -> 2.064936064 | AP86: =IF($I86 >0, MIN(AO86,$I86-SUM($W86:AO86)), MAX(AO86,$I86-SUM($W86:AO86))) -> 2.064936064 | AQ86: =IF($I86 >0, MIN(AP86,$I86-SUM($W86:AP86)), MAX(AP86,$I86-SUM($W86:AP86))) -> 2.064936064 | AR86: =IF($I86 >0, MIN(AQ86,$I86-SUM($W86:AQ86)), MAX(AQ86,$I86-SUM($W86:AQ86))) -> 2.064936064 | AS86: =IF($I86 >0, MIN(AR86,$I86-SUM($W86:AR86)), MAX(AR86,$I86-SUM($W86:AR86))) -> 2.064936064 | AT86: =IF($I86 >0, MIN(AS86,$I86-SUM($W86:AS86)), MAX(AS86,$I86-SUM($W86:AS86))) -> 2.064936064
E87: 2009-03-31 | G87: £m 18/19 prices | I87: 101.2866549 | J87: > | AD87: =$I87 / $I$75 -> 2.250814554 | AE87: =IF($I87 >0, MIN(AD87,$I87-SUM($W87:AD87)), MAX(AD87,$I87-SUM($W87:AD87))) -> 2.250814554 | AF87: =IF($I87 >0, MIN(AE87,$I87-SUM($W87:AE87)), MAX(AE87,$I87-SUM($W87:AE87))) -> 2.250814554 | AG87: =IF($I87 >0, MIN(AF87,$I87-SUM($W87:AF87)), MAX(AF87,$I87-SUM($W87:AF87))) -> 2.250814554 | AH87: =IF($I87 >0, MIN(AG87,$I87-SUM($W87:AG87)), MAX(AG87,$I87-SUM($W87:AG87))) -> 2.250814554 | AI87: =IF($I87 >0, MIN(AH87,$I87-SUM($W87:AH87)), MAX(AH87,$I87-SUM($W87:AH87))) -> 2.250814554 | AJ87: =IF($I87 >0, MIN(AI87,$I87-SUM($W87:AI87)), MAX(AI87,$I87-SUM($W87:AI87))) -> 2.250814554 | AK87: =IF($I87 >0, MIN(AJ87,$I87-SUM($W87:AJ87)), MAX(AJ87,$I87-SUM($W87:AJ87))) -> 2.250814554 | AL87: =IF($I87 >0, MIN(AK87,$I87-SUM($W87:AK87)), MAX(AK87,$I87-SUM($W87:AK87))) -> 2.250814554 | AM87: =IF($I87 >0, MIN(AL87,$I87-SUM($W87:AL87)), MAX(AL87,$I87-SUM($W87:AL87))) -> 2.250814554 | AN87: =IF($I87 >0, MIN(AM87,$I87-SUM($W87:AM87)), MAX(AM87,$I87-SUM($W87:AM87))) -> 2.250814554 | AO87: =IF($I87 >0, MIN(AN87,$I87-SUM($W87:AN87)), MAX(AN87,$I87-SUM($W87:AN87))) -> 2.250814554 | AP87: =IF($I87 >0, MIN(AO87,$I87-SUM($W87:AO87)), MAX(AO87,$I87-SUM($W87:AO87))) -> 2.250814554 | AQ87: =IF($I87 >0, MIN(AP87,$I87-SUM($W87:AP87)), MAX(AP87,$I87-SUM($W87:AP87))) -> 2.250814554 | AR87: =IF($I87 >0, MIN(AQ87,$I87-SUM($W87:AQ87)), MAX(AQ87,$I87-SUM($W87:AQ87))) -> 2.250814554 | AS87: =IF($I87 >0, MIN(AR87,$I87-SUM($W87:AR87)), MAX(AR87,$I87-SUM($W87:AR87))) -> 2.250814554 | AT87: =IF($I87 >0, MIN(AS87,$I87-SUM($W87:AS87)), MAX(AS87,$I87-SUM($W87:AS87))) -> 2.250814554
E88: 2010-03-31 | G88: £m 18/19 prices | I88: 88.56702 | J88: > | AE88: =$I88 / $I$75 -> 1.968156 | AF88: =IF($I88 >0, MIN(AE88,$I88-SUM($W88:AE88)), MAX(AE88,$I88-SUM($W88:AE88))) -> 1.968156 | AG88: =IF($I88 >0, MIN(AF88,$I88-SUM($W88:AF88)), MAX(AF88,$I88-SUM($W88:AF88))) -> 1.968156 | AH88: =IF($I88 >0, MIN(AG88,$I88-SUM($W88:AG88)), MAX(AG88,$I88-SUM($W88:AG88))) -> 1.968156 | AI88: =IF($I88 >0, MIN(AH88,$I88-SUM($W88:AH88)), MAX(AH88,$I88-SUM($W88:AH88))) -> 1.968156 | AJ88: =IF($I88 >0, MIN(AI88,$I88-SUM($W88:AI88)), MAX(AI88,$I88-SUM($W88:AI88))) -> 1.968156 | AK88: =IF($I88 >0, MIN(AJ88,$I88-SUM($W88:AJ88)), MAX(AJ88,$I88-SUM($W88:AJ88))) -> 1.968156 | AL88: =IF($I88 >0, MIN(AK88,$I88-SUM($W88:AK88)), MAX(AK88,$I88-SUM($W88:AK88))) -> 1.968156 | AM88: =IF($I88 >0, MIN(AL88,$I88-SUM($W88:AL88)), MAX(AL88,$I88-SUM($W88:AL88))) -> 1.968156 | AN88: =IF($I88 >0, MIN(AM88,$I88-SUM($W88:AM88)), MAX(AM88,$I88-SUM($W88:AM88))) -> 1.968156 | AO88: =IF($I88 >0, MIN(AN88,$I88-SUM($W88:AN88)), MAX(AN88,$I88-SUM($W88:AN88))) -> 1.968156 | AP88: =IF($I88 >0, MIN(AO88,$I88-SUM($W88:AO88)), MAX(AO88,$I88-SUM($W88:AO88))) -> 1.968156 | AQ88: =IF($I88 >0, MIN(AP88,$I88-SUM($W88:AP88)), MAX(AP88,$I88-SUM($W88:AP88))) -> 1.968156 | AR88: =IF($I88 >0, MIN(AQ88,$I88-SUM($W88:AQ88)), MAX(AQ88,$I88-SUM($W88:AQ88))) -> 1.968156 | AS88: =IF($I88 >0, MIN(AR88,$I88-SUM($W88:AR88)), MAX(AR88,$I88-SUM($W88:AR88))) -> 1.968156 | AT88: =IF($I88 >0, MIN(AS88,$I88-SUM($W88:AS88)), MAX(AS88,$I88-SUM($W88:AS88))) -> 1.968156
E89: 2011-03-31 | G89: £m 18/19 prices | I89: 112.184233 | J89: > | AF89: =$I89 / $I$75 -> 2.492982956 | AG89: =IF($I89 >0, MIN(AF89,$I89-SUM($W89:AF89)), MAX(AF89,$I89-SUM($W89:AF89))) -> 2.492982956 | AH89: =IF($I89 >0, MIN(AG89,$I89-SUM($W89:AG89)), MAX(AG89,$I89-SUM($W89:AG89))) -> 2.492982956 | AI89: =IF($I89 >0, MIN(AH89,$I89-SUM($W89:AH89)), MAX(AH89,$I89-SUM($W89:AH89))) -> 2.492982956 | AJ89: =IF($I89 >0, MIN(AI89,$I89-SUM($W89:AI89)), MAX(AI89,$I89-SUM($W89:AI89))) -> 2.492982956 | AK89: =IF($I89 >0, MIN(AJ89,$I89-SUM($W89:AJ89)), MAX(AJ89,$I89-SUM($W89:AJ89))) -> 2.492982956 | AL89: =IF($I89 >0, MIN(AK89,$I89-SUM($W89:AK89)), MAX(AK89,$I89-SUM($W89:AK89))) -> 2.492982956 | AM89: =IF($I89 >0, MIN(AL89,$I89-SUM($W89:AL89)), MAX(AL89,$I89-SUM($W89:AL89))) -> 2.492982956 | AN89: =IF($I89 >0, MIN(AM89,$I89-SUM($W89:AM89)), MAX(AM89,$I89-SUM($W89:AM89))) -> 2.492982956 | AO89: =IF($I89 >0, MIN(AN89,$I89-SUM($W89:AN89)), MAX(AN89,$I89-SUM($W89:AN89))) -> 2.492982956 | AP89: =IF($I89 >0, MIN(AO89,$I89-SUM($W89:AO89)), MAX(AO89,$I89-SUM($W89:AO89))) -> 2.492982956 | AQ89: =IF($I89 >0, MIN(AP89,$I89-SUM($W89:AP89)), MAX(AP89,$I89-SUM($W89:AP89))) -> 2.492982956 | AR89: =IF($I89 >0, MIN(AQ89,$I89-SUM($W89:AQ89)), MAX(AQ89,$I89-SUM($W89:AQ89))) -> 2.492982956 | AS89: =IF($I89 >0, MIN(AR89,$I89-SUM($W89:AR89)), MAX(AR89,$I89-SUM($W89:AR89))) -> 2.492982956 | AT89: =IF($I89 >0, MIN(AS89,$I89-SUM($W89:AS89)), MAX(AS89,$I89-SUM($W89:AS89))) -> 2.492982956
E90: 2012-03-31 | G90: £m 18/19 prices | I90: 126.1514364 | J90: > | AG90: =$I90 / $I$75 -> 2.803365254 | AH90: =IF($I90 >0, MIN(AG90,$I90-SUM($W90:AG90)), MAX(AG90,$I90-SUM($W90:AG90))) -> 2.803365254 | AI90: =IF($I90 >0, MIN(AH90,$I90-SUM($W90:AH90)), MAX(AH90,$I90-SUM($W90:AH90))) -> 2.803365254 | AJ90: =IF($I90 >0, MIN(AI90,$I90-SUM($W90:AI90)), MAX(AI90,$I90-SUM($W90:AI90))) -> 2.803365254 | AK90: =IF($I90 >0, MIN(AJ90,$I90-SUM($W90:AJ90)), MAX(AJ90,$I90-SUM($W90:AJ90))) -> 2.803365254 | AL90: =IF($I90 >0, MIN(AK90,$I90-SUM($W90:AK90)), MAX(AK90,$I90-SUM($W90:AK90))) -> 2.803365254 | AM90: =IF($I90 >0, MIN(AL90,$I90-SUM($W90:AL90)), MAX(AL90,$I90-SUM($W90:AL90))) -> 2.803365254 | AN90: =IF($I90 >0, MIN(AM90,$I90-SUM($W90:AM90)), MAX(AM90,$I90-SUM($W90:AM90))) -> 2.803365254 | AO90: =IF($I90 >0, MIN(AN90,$I90-SUM($W90:AN90)), MAX(AN90,$I90-SUM($W90:AN90))) -> 2.803365254 | AP90: =IF($I90 >0, MIN(AO90,$I90-SUM($W90:AO90)), MAX(AO90,$I90-SUM($W90:AO90))) -> 2.803365254 | AQ90: =IF($I90 >0, MIN(AP90,$I90-SUM($W90:AP90)), MAX(AP90,$I90-SUM($W90:AP90))) -> 2.803365254 | AR90: =IF($I90 >0, MIN(AQ90,$I90-SUM($W90:AQ90)), MAX(AQ90,$I90-SUM($W90:AQ90))) -> 2.803365254 | AS90: =IF($I90 >0, MIN(AR90,$I90-SUM($W90:AR90)), MAX(AR90,$I90-SUM($W90:AR90))) -> 2.803365254 | AT90: =IF($I90 >0, MIN(AS90,$I90-SUM($W90:AS90)), MAX(AS90,$I90-SUM($W90:AS90))) -> 2.803365254
E91: 2013-03-31 | G91: £m 18/19 prices | I91: 106.1608787 | AH91: =$I91 / $I$75 -> 2.359130638 | AI91: =IF($I91 >0, MIN(AH91,$I91-SUM($W91:AH91)), MAX(AH91,$I91-SUM($W91:AH91))) -> 2.359130638 | AJ91: =IF($I91 >0, MIN(AI91,$I91-SUM($W91:AI91)), MAX(AI91,$I91-SUM($W91:AI91))) -> 2.359130638 | AK91: =IF($I91 >0, MIN(AJ91,$I91-SUM($W91:AJ91)), MAX(AJ91,$I91-SUM($W91:AJ91))) -> 2.359130638 | AL91: =IF($I91 >0, MIN(AK91,$I91-SUM($W91:AK91)), MAX(AK91,$I91-SUM($W91:AK91))) -> 2.359130638 | AM91: =IF($I91 >0, MIN(AL91,$I91-SUM($W91:AL91)), MAX(AL91,$I91-SUM($W91:AL91))) -> 2.359130638 | AN91: =IF($I91 >0, MIN(AM91,$I91-SUM($W91:AM91)), MAX(AM91,$I91-SUM($W91:AM91))) -> 2.359130638 | AO91: =IF($I91 >0, MIN(AN91,$I91-SUM($W91:AN91)), MAX(AN91,$I91-SUM($W91:AN91))) -> 2.359130638 | AP91: =IF($I91 >0, MIN(AO91,$I91-SUM($W91:AO91)), MAX(AO91,$I91-SUM($W91:AO91))) -> 2.359130638 | AQ91: =IF($I91 >0, MIN(AP91,$I91-SUM($W91:AP91)), MAX(AP91,$I91-SUM($W91:AP91))) -> 2.359130638 | AR91: =IF($I91 >0, MIN(AQ91,$I91-SUM($W91:AQ91)), MAX(AQ91,$I91-SUM($W91:AQ91))) -> 2.359130638 | AS91: =IF($I91 >0, MIN(AR91,$I91-SUM($W91:AR91)), MAX(AR91,$I91-SUM($W91:AR91))) -> 2.359130638 | AT91: =IF($I91 >0, MIN(AS91,$I91-SUM($W91:AS91)), MAX(AS91,$I91-SUM($W91:AS91))) -> 2.359130638
E92: 2014-03-31 | G92: £m 18/19 prices | I92: 88.26034009 | AI92: =$I92 / $I$75 -> 1.961340891 | AJ92: =IF($I92 >0, MIN(AI92,$I92-SUM($W92:AI92)), MAX(AI92,$I92-SUM($W92:AI92))) -> 1.961340891 | AK92: =IF($I92 >0, MIN(AJ92,$I92-SUM($W92:AJ92)), MAX(AJ92,$I92-SUM($W92:AJ92))) -> 1.961340891 | AL92: =IF($I92 >0, MIN(AK92,$I92-SUM($W92:AK92)), MAX(AK92,$I92-SUM($W92:AK92))) -> 1.961340891 | AM92: =IF($I92 >0, MIN(AL92,$I92-SUM($W92:AL92)), MAX(AL92,$I92-SUM($W92:AL92))) -> 1.961340891 | AN92: =IF($I92 >0, MIN(AM92,$I92-SUM($W92:AM92)), MAX(AM92,$I92-SUM($W92:AM92))) -> 1.961340891 | AO92: =IF($I92 >0, MIN(AN92,$I92-SUM($W92:AN92)), MAX(AN92,$I92-SUM($W92:AN92))) -> 1.961340891 | AP92: =IF($I92 >0, MIN(AO92,$I92-SUM($W92:AO92)), MAX(AO92,$I92-SUM($W92:AO92))) -> 1.961340891 | AQ92: =IF($I92 >0, MIN(AP92,$I92-SUM($W92:AP92)), MAX(AP92,$I92-SUM($W92:AP92))) -> 1.961340891 | AR92: =IF($I92 >0, MIN(AQ92,$I92-SUM($W92:AQ92)), MAX(AQ92,$I92-SUM($W92:AQ92))) -> 1.961340891 | AS92: =IF($I92 >0, MIN(AR92,$I92-SUM($W92:AR92)), MAX(AR92,$I92-SUM($W92:AR92))) -> 1.961340891 | AT92: =IF($I92 >0, MIN(AS92,$I92-SUM($W92:AS92)), MAX(AS92,$I92-SUM($W92:AS92))) -> 1.961340891
E93: 2015-03-31 | G93: £m 18/19 prices | I93: 118.658252 | AJ93: =$I93 / $I$75 -> 2.636850044 | AK93: =IF($I93 >0, MIN(AJ93,$I93-SUM($W93:AJ93)), MAX(AJ93,$I93-SUM($W93:AJ93))) -> 2.636850044 | AL93: =IF($I93 >0, MIN(AK93,$I93-SUM($W93:AK93)), MAX(AK93,$I93-SUM($W93:AK93))) -> 2.636850044 | AM93: =IF($I93 >0, MIN(AL93,$I93-SUM($W93:AL93)), MAX(AL93,$I93-SUM($W93:AL93))) -> 2.636850044 | AN93: =IF($I93 >0, MIN(AM93,$I93-SUM($W93:AM93)), MAX(AM93,$I93-SUM($W93:AM93))) -> 2.636850044 | AO93: =IF($I93 >0, MIN(AN93,$I93-SUM($W93:AN93)), MAX(AN93,$I93-SUM($W93:AN93))) -> 2.636850044 | AP93: =IF($I93 >0, MIN(AO93,$I93-SUM($W93:AO93)), MAX(AO93,$I93-SUM($W93:AO93))) -> 2.636850044 | AQ93: =IF($I93 >0, MIN(AP93,$I93-SUM($W93:AP93)), MAX(AP93,$I93-SUM($W93:AP93))) -> 2.636850044 | AR93: =IF($I93 >0, MIN(AQ93,$I93-SUM($W93:AQ93)), MAX(AQ93,$I93-SUM($W93:AQ93))) -> 2.636850044 | AS93: =IF($I93 >0, MIN(AR93,$I93-SUM($W93:AR93)), MAX(AR93,$I93-SUM($W93:AR93))) -> 2.636850044 | AT93: =IF($I93 >0, MIN(AS93,$I93-SUM($W93:AS93)), MAX(AS93,$I93-SUM($W93:AS93))) -> 2.636850044
E94: 2016-03-31 | G94: £m 18/19 prices | I94: 125.6495071 | AK94: =$I94 / $I$75 -> 2.792211269 | AL94: =IF($I94 >0, MIN(AK94,$I94-SUM($W94:AK94)), MAX(AK94,$I94-SUM($W94:AK94))) -> 2.792211269 | AM94: =IF($I94 >0, MIN(AL94,$I94-SUM($W94:AL94)), MAX(AL94,$I94-SUM($W94:AL94))) -> 2.792211269 | AN94: =IF($I94 >0, MIN(AM94,$I94-SUM($W94:AM94)), MAX(AM94,$I94-SUM($W94:AM94))) -> 2.792211269 | AO94: =IF($I94 >0, MIN(AN94,$I94-SUM($W94:AN94)), MAX(AN94,$I94-SUM($W94:AN94))) -> 2.792211269 | AP94: =IF($I94 >0, MIN(AO94,$I94-SUM($W94:AO94)), MAX(AO94,$I94-SUM($W94:AO94))) -> 2.792211269 | AQ94: =IF($I94 >0, MIN(AP94,$I94-SUM($W94:AP94)), MAX(AP94,$I94-SUM($W94:AP94))) -> 2.792211269 | AR94: =IF($I94 >0, MIN(AQ94,$I94-SUM($W94:AQ94)), MAX(AQ94,$I94-SUM($W94:AQ94))) -> 2.792211269 | AS94: =IF($I94 >0, MIN(AR94,$I94-SUM($W94:AR94)), MAX(AR94,$I94-SUM($W94:AR94))) -> 2.792211269 | AT94: =IF($I94 >0, MIN(AS94,$I94-SUM($W94:AS94)), MAX(AS94,$I94-SUM($W94:AS94))) -> 2.792211269
E95: 2017-03-31 | G95: £m 18/19 prices | I95: 131.4505245 | AL95: =$I95 / $I$75 -> 2.921122767 | AM95: =IF($I95 >0, MIN(AL95,$I95-SUM($W95:AL95)), MAX(AL95,$I95-SUM($W95:AL95))) -> 2.921122767 | AN95: =IF($I95 >0, MIN(AM95,$I95-SUM($W95:AM95)), MAX(AM95,$I95-SUM($W95:AM95))) -> 2.921122767 | AO95: =IF($I95 >0, MIN(AN95,$I95-SUM($W95:AN95)), MAX(AN95,$I95-SUM($W95:AN95))) -> 2.921122767 | AP95: =IF($I95 >0, MIN(AO95,$I95-SUM($W95:AO95)), MAX(AO95,$I95-SUM($W95:AO95))) -> 2.921122767 | AQ95: =IF($I95 >0, MIN(AP95,$I95-SUM($W95:AP95)), MAX(AP95,$I95-SUM($W95:AP95))) -> 2.921122767 | AR95: =IF($I95 >0, MIN(AQ95,$I95-SUM($W95:AQ95)), MAX(AQ95,$I95-SUM($W95:AQ95))) -> 2.921122767 | AS95: =IF($I95 >0, MIN(AR95,$I95-SUM($W95:AR95)), MAX(AR95,$I95-SUM($W95:AR95))) -> 2.921122767 | AT95: =IF($I95 >0, MIN(AS95,$I95-SUM($W95:AS95)), MAX(AS95,$I95-SUM($W95:AS95))) -> 2.921122767
E96: 2018-03-31 | G96: £m 18/19 prices | I96: 134.7828895 | AM96: =$I96 / $I$75 -> 2.995175322 | AN96: =IF($I96 >0, MIN(AM96,$I96-SUM($W96:AM96)), MAX(AM96,$I96-SUM($W96:AM96))) -> 2.995175322 | AO96: =IF($I96 >0, MIN(AN96,$I96-SUM($W96:AN96)), MAX(AN96,$I96-SUM($W96:AN96))) -> 2.995175322 | AP96: =IF($I96 >0, MIN(AO96,$I96-SUM($W96:AO96)), MAX(AO96,$I96-SUM($W96:AO96))) -> 2.995175322 | AQ96: =IF($I96 >0, MIN(AP96,$I96-SUM($W96:AP96)), MAX(AP96,$I96-SUM($W96:AP96))) -> 2.995175322 | AR96: =IF($I96 >0, MIN(AQ96,$I96-SUM($W96:AQ96)), MAX(AQ96,$I96-SUM($W96:AQ96))) -> 2.995175322 | AS96: =IF($I96 >0, MIN(AR96,$I96-SUM($W96:AR96)), MAX(AR96,$I96-SUM($W96:AR96))) -> 2.995175322 | AT96: =IF($I96 >0, MIN(AS96,$I96-SUM($W96:AS96)), MAX(AS96,$I96-SUM($W96:AS96))) -> 2.995175322
E97: 2019-03-31 | G97: £m 18/19 prices | I97: 140.9399265 | AN97: =$I97 / $I$75 -> 3.131998366 | AO97: =IF($I97 >0, MIN(AN97,$I97-SUM($W97:AN97)), MAX(AN97,$I97-SUM($W97:AN97))) -> 3.131998366 | AP97: =IF($I97 >0, MIN(AO97,$I97-SUM($W97:AO97)), MAX(AO97,$I97-SUM($W97:AO97))) -> 3.131998366 | AQ97: =IF($I97 >0, MIN(AP97,$I97-SUM($W97:AP97)), MAX(AP97,$I97-SUM($W97:AP97))) -> 3.131998366 | AR97: =IF($I97 >0, MIN(AQ97,$I97-SUM($W97:AQ97)), MAX(AQ97,$I97-SUM($W97:AQ97))) -> 3.131998366 | AS97: =IF($I97 >0, MIN(AR97,$I97-SUM($W97:AR97)), MAX(AR97,$I97-SUM($W97:AR97))) -> 3.131998366 | AT97: =IF($I97 >0, MIN(AS97,$I97-SUM($W97:AS97)), MAX(AS97,$I97-SUM($W97:AS97))) -> 3.131998366
E98: 2020-03-31 | G98: £m 18/19 prices | I98: 152.581717 | AO98: =$I98 / $I$75 -> 3.390704821 | AP98: =IF($I98 >0, MIN(AO98,$I98-SUM($W98:AO98)), MAX(AO98,$I98-SUM($W98:AO98))) -> 3.390704821 | AQ98: =IF($I98 >0, MIN(AP98,$I98-SUM($W98:AP98)), MAX(AP98,$I98-SUM($W98:AP98))) -> 3.390704821 | AR98: =IF($I98 >0, MIN(AQ98,$I98-SUM($W98:AQ98)), MAX(AQ98,$I98-SUM($W98:AQ98))) -> 3.390704821 | AS98: =IF($I98 >0, MIN(AR98,$I98-SUM($W98:AR98)), MAX(AR98,$I98-SUM($W98:AR98))) -> 3.390704821 | AT98: =IF($I98 >0, MIN(AS98,$I98-SUM($W98:AS98)), MAX(AS98,$I98-SUM($W98:AS98))) -> 3.390704821
E99: 2021-03-31 | G99: £m 18/19 prices | I99: 157.6913424 | AP99: =$I99 / $I$75 -> 3.504252054 | AQ99: =IF($I99 >0, MIN(AP99,$I99-SUM($W99:AP99)), MAX(AP99,$I99-SUM($W99:AP99))) -> 3.504252054 | AR99: =IF($I99 >0, MIN(AQ99,$I99-SUM($W99:AQ99)), MAX(AQ99,$I99-SUM($W99:AQ99))) -> 3.504252054 | AS99: =IF($I99 >0, MIN(AR99,$I99-SUM($W99:AR99)), MAX(AR99,$I99-SUM($W99:AR99))) -> 3.504252054 | AT99: =IF($I99 >0, MIN(AS99,$I99-SUM($W99:AS99)), MAX(AS99,$I99-SUM($W99:AS99))) -> 3.504252054
E100: 2022-03-31 | G100: £m 18/19 prices | I100: 161.3808306 | AQ100: =$I100 / $I$75 -> 3.586240681 | AR100: =IF($I100 >0, MIN(AQ100,$I100-SUM($W100:AQ100)), MAX(AQ100,$I100-SUM($W100:AQ100))) -> 3.586240681 | AS100: =IF($I100 >0, MIN(AR100,$I100-SUM($W100:AR100)), MAX(AR100,$I100-SUM($W100:AR100))) -> 3.586240681 | AT100: =IF($I100 >0, MIN(AS100,$I100-SUM($W100:AS100)), MAX(AS100,$I100-SUM($W100:AS100))) -> 3.586240681
E101: 2023-03-31 | G101: £m 18/19 prices | I101: 168.5048905 | AR101: =$I101 / $I$75 -> 3.744553121 | AS101: =IF($I101 >0, MIN(AR101,$I101-SUM($W101:AR101)), MAX(AR101,$I101-SUM($W101:AR101))) -> 3.744553121 | AT101: =IF($I101 >0, MIN(AS101,$I101-SUM($W101:AS101)), MAX(AS101,$I101-SUM($W101:AS101))) -> 3.744553121
E102: 2024-03-31 | G102: £m 18/19 prices | I102: 168.7943547 | AS102: =$I102 / $I$75 -> 3.75098566 | AT102: =IF($I102 >0, MIN(AS102,$I102-SUM($W102:AS102)), MAX(AS102,$I102-SUM($W102:AS102))) -> 3.75098566
E103: 2025-03-31 | G103: £m 18/19 prices | I103: 163.8350339 | AT103: =$I103 / $I$75 -> 3.640778531
E104: 2026-03-31 | G104: £m 18/19 prices | I104: 157.2600753
C106: Accelerated RAV differential post-vesting depreciation
C107: Note: The RAV differential accumulated from the straight line and sum-of-digit schedules above is released after the start of RIIO over an input smoothing profile.
D109: Depreciation parameters
E111: Smoothing period starting year | G111: year ending | I111: =Input!I328 -> 2014-03-31
E112: RAV differential is accruing differences | G112: flag | J112: > | X112: =IF(X$4 < $I111, 1, 0 ) -> 1 | Y112: 1 | Z112: 1 | AA112: 1 | AB112: 1 | AC112: 1 | AD112: 1 | AE112: 1 | AF112: 1 | AG112: 1 | AH112: 0 | AI112: 0 | AJ112: 0 | AK112: 0 | AL112: 0 | AM112: 0 | AN112: 0 | AO112: 0 | AP112: =IF(AP$4 < $I111, 1, 0 ) -> 0 | AQ112: 0 | AR112: 0 | AS112: 0 | AT112: 0
E113: Smoothing profile for recovery of backlog depreciation | G113: % | AH113: =Input!AH327 -> 0.15 | AI113: =Input!AI327 -> 0.15 | AJ113: =Input!AJ327 -> 0.025 | AK113: =Input!AK327 -> 0 | AL113: =Input!AL327 -> 0.05 | AM113: =Input!AM327 -> 0.125 | AN113: =Input!AN327 -> 0.2 | AO113: =Input!AO327 -> 0.3 | AP113: =Input!AP327 -> 0 | AQ113: =Input!AQ327 -> 0 | AR113: =Input!AR327 -> 0 | AS113: =Input!AS327 -> 0 | AT113: =Input!AT327 -> 0
D115: Depreciation schedule
E117: RAV differential depreciation of additions from year ending | I117: RAV differential
E118: 2003-03-31 | G118: £m 18/19 prices | I118: =SUMPRODUCT(X45:AT45, X$112:AT$112) - SUMPRODUCT(X81:AT81, X$112:AT$112) -> 18.20760969 | J118: > | X118: =$I118 * X$113 -> 0 | Y118: 0 | Z118: 0 | AA118: 0 | AB118: 0 | AC118: 0 | AD118: 0 | AE118: 0 | AF118: 0 | AG118: 0 | AH118: 2.731141453 | AI118: 2.731141453 | AJ118: 0.4551902422 | AK118: 0 | AL118: 0.9103804844 | AM118: 2.275951211 | AN118: 3.641521938 | AO118: 5.462282906 | AP118: 0 | AQ118: 0 | AR118: 0 | AS118: 0 | AT118: 0
E119: 2004-03-31 | G119: £m 18/19 prices | I119: =SUMPRODUCT(X46:AT46, X$112:AT$112) - SUMPRODUCT(X82:AT82, X$112:AT$112) -> 10.42532719 | J119: > | Y119: =$I119 * Y$113 -> 0 | Z119: 0 | AA119: 0 | AB119: 0 | AC119: 0 | AD119: 0 | AE119: 0 | AF119: 0 | AG119: 0 | AH119: 1.563799078 | AI119: 1.563799078 | AJ119: 0.2606331797 | AK119: 0 | AL119: 0.5212663594 | AM119: 1.303165899 | AN119: 2.085065438 | AO119: 3.127598156 | AP119: 0 | AQ119: 0 | AR119: 0 | AS119: 0 | AT119: 0
E120: 2005-03-31 | G120: £m 18/19 prices | I120: 9.692203348 | J120: > | Z120: =$I120 * Z$113 -> 0 | AA120: 0 | AB120: 0 | AC120: 0 | AD120: 0 | AE120: 0 | AF120: 0 | AG120: 0 | AH120: 1.453830502 | AI120: 1.453830502 | AJ120: 0.2423050837 | AK120: 0 | AL120: 0.4846101674 | AM120: 1.211525418 | AN120: 1.93844067 | AO120: 2.907661004 | AP120: 0 | AQ120: 0 | AR120: 0 | AS120: 0 | AT120: 0
E121: 2006-03-31 | G121: £m 18/19 prices | I121: 8.360119831 | J121: > | AA121: =$I121 * AA$113 -> 0 | AB121: 0 | AC121: 0 | AD121: 0 | AE121: 0 | AF121: 0 | AG121: 0 | AH121: 1.254017975 | AI121: 1.254017975 | AJ121: 0.2090029958 | AK121: 0 | AL121: 0.4180059916 | AM121: 1.045014979 | AN121: 1.672023966 | AO121: 2.508035949 | AP121: 0 | AQ121: 0 | AR121: 0 | AS121: 0 | AT121: 0
E122: 2007-03-31 | G122: £m 18/19 prices | I122: 8.161025705 | J122: > | AB122: =$I122 * AB$113 -> 0 | AC122: 0 | AD122: 0 | AE122: 0 | AF122: 0 | AG122: 0 | AH122: 1.224153856 | AI122: 1.224153856 | AJ122: 0.2040256426 | AK122: 0 | AL122: 0.4080512852 | AM122: 1.020128213 | AN122: 1.632205141 | AO122: 2.448307711 | AP122: 0 | AQ122: 0 | AR122: 0 | AS122: 0 | AT122: 0
E123: 2008-03-31 | G123: £m 18/19 prices | I123: 8.977982888 | J123: > | AC123: =$I123 * AC$113 -> 0 | AD123: 0 | AE123: 0 | AF123: 0 | AG123: 0 | AH123: 1.346697433 | AI123: 1.346697433 | AJ123: 0.2244495722 | AK123: 0 | AL123: 0.4488991444 | AM123: 1.122247861 | AN123: 1.795596578 | AO123: 2.693394867 | AP123: 0 | AQ123: 0 | AR123: 0 | AS123: 0 | AT123: 0
E124: 2009-03-31 | G124: £m 18/19 prices | I124: 8.024643193 | J124: > | AD124: =$I124 * AD$113 -> 0 | AE124: 0 | AF124: 0 | AG124: 0 | AH124: 1.203696479 | AI124: 1.203696479 | AJ124: 0.2006160798 | AK124: 0 | AL124: 0.4012321596 | AM124: 1.003080399 | AN124: 1.604928639 | AO124: 2.407392958 | AP124: 0 | AQ124: 0 | AR124: 0 | AS124: 0 | AT124: 0
E125: 2010-03-31 | G125: £m 18/19 prices | I125: 5.391036 | J125: > | AE125: =$I125 * AE$113 -> 0 | AF125: 0 | AG125: 0 | AH125: 0.8086554 | AI125: 0.8086554 | AJ125: 0.1347759 | AK125: 0 | AL125: 0.2695518 | AM125: 0.6738795 | AN125: 1.0782072 | AO125: 1.6173108 | AP125: 0 | AQ125: 0 | AR125: 0 | AS125: 0 | AT125: 0
E126: 2011-03-31 | G126: £m 18/19 prices | I126: 4.660794223 | J126: > | AF126: =$I126 * AF$113 -> 0 | AG126: 0 | AH126: 0.6991191334 | AI126: 0.6991191334 | AJ126: 0.1165198556 | AK126: 0 | AL126: 0.2330397111 | AM126: 0.5825992778 | AN126: 0.9321588446 | AO126: 1.398238267 | AP126: 0 | AQ126: 0 | AR126: 0 | AS126: 0 | AT126: 0
E127: 2012-03-31 | G127: £m 18/19 prices | I127: 2.681479808 | J127: > | AG127: =$I127 * AG$113 -> 0 | AH127: 0.4022219712 | AI127: 0.4022219712 | AJ127: 0.0670369952 | AK127: 0 | AL127: 0.1340739904 | AM127: 0.335184976 | AN127: 0.5362959616 | AO127: 0.8044439424 | AP127: 0 | AQ127: 0 | AR127: 0 | AS127: 0 | AT127: 0
E128: 2013-03-31 | G128: £m 18/19 prices | I128: 0 | AH128: =$I128 * AH$113 -> 0 | AI128: 0 | AJ128: 0 | AK128: 0 | AL128: 0 | AM128: 0 | AN128: 0 | AO128: 0 | AP128: 0 | AQ128: 0 | AR128: 0 | AS128: 0 | AT128: 0
E129: 2014-03-31 | G129: £m 18/19 prices | I129: 0 | AI129: =$I129 * AI$113 -> 0 | AJ129: 0 | AK129: 0 | AL129: 0 | AM129: 0 | AN129: 0 | AO129: 0 | AP129: 0 | AQ129: 0 | AR129: 0 | AS129: 0 | AT129: 0
E130: 2015-03-31 | G130: £m 18/19 prices | I130: 0 | AJ130: =$I130 * AJ$113 -> 0 | AK130: 0 | AL130: 0 | AM130: 0 | AN130: 0 | AO130: 0 | AP130: 0 | AQ130: 0 | AR130: 0 | AS130: 0 | AT130: 0
E131: 2016-03-31 | G131: £m 18/19 prices | I131: 0 | AK131: =$I131 * AK$113 -> 0 | AL131: =$I131 * AL$113 -> 0 | AM131: =$I131 * AM$113 -> 0 | AN131: =$I131 * AN$113 -> 0 | AO131: =$I131 * AO$113 -> 0 | AP131: 0 | AQ131: 0 | AR131: 0 | AS131: 0 | AT131: 0
E132: 2017-03-31 | G132: £m 18/19 prices | I132: 0 | AL132: =$I132 * AL$113 -> 0 | AM132: =$I132 * AM$113 -> 0 | AN132: =$I132 * AN$113 -> 0 | AO132: =$I132 * AO$113 -> 0 | AP132: 0 | AQ132: 0 | AR132: 0 | AS132: 0 | AT132: 0
E133: 2018-03-31 | G133: £m 18/19 prices | I133: 0 | AM133: =$I133 * AM$113 -> 0 | AN133: =$I133 * AN$113 -> 0 | AO133: =$I133 * AO$113 -> 0 | AP133: 0 | AQ133: 0 | AR133: 0 | AS133: 0 | AT133: 0
E134: 2019-03-31 | G134: £m 18/19 prices | I134: 0 | AN134: =$I134 * AN$113 -> 0 | AO134: =$I134 * AO$113 -> 0 | AP134: 0 | AQ134: 0 | AR134: 0 | AS134: 0 | AT134: 0
E135: 2020-03-31 | G135: £m 18/19 prices | I135: 0 | AO135: =$I135 * AO$113 -> 0 | AP135: 0 | AQ135: 0 | AR135: 0 | AS135: 0 | AT135: 0
E136: 2021-03-31 | G136: £m 18/19 prices | I136: 0 | AP136: 0 | AQ136: 0 | AR136: 0 | AS136: 0 | AT136: 0
E137: 2022-03-31 | G137: £m 18/19 prices | I137: 0 | AQ137: 0 | AR137: 0 | AS137: 0 | AT137: 0
E138: 2023-03-31 | G138: £m 18/19 prices | I138: 0 | AR138: 0 | AS138: 0 | AT138: 0
E139: 2024-03-31 | G139: £m 18/19 prices | I139: 0 | AS139: 0 | AT139: 0
E140: 2025-03-31 | G140: £m 18/19 prices | I140: 0 | AT140: 0
E141: 2026-03-31 | G141: £m 18/19 prices | I141: 0
C143: Depreciation values applied
C144: Note: Before RIIO, regulatory depreciation is straight-line. From the start of RIIO, it is sum-of-digit depreciation plus any smoothed RAV differential value available.
E146: Depreciation allowed on additions from year ending | I146: Net additions
E147: 2003-03-31 | G147: £m 18/19 prices | I147: =I81 -> 107.6850059 | J147: > | X147: =(X$76 * X81) + (X$40 * X45) + X118 -> 2.39300013 | Y147: 2.39300013 | Z147: 2.39300013 | AA147: 2.39300013 | AB147: 2.39300013 | AC147: 2.39300013 | AD147: 2.39300013 | AE147: 2.39300013 | AF147: 2.39300013 | AG147: 2.39300013 | AH147: 6.372663391 | AI147: 6.268619907 | AJ147: 3.888625212 | AK147: 3.329391486 | AL147: 4.135728486 | AM147: 5.397255729 | AN147: 6.658782971 | AO147: 8.375500456 | AP147: =(AP$76 * AP81) + (AP$40 * AP45) + AP118 -> 2.809174066 | AQ147: 2.705130582 | AR147: 2.601087098 | AS147: 2.497043614 | AT147: 2.39300013
E148: 2004-03-31 | G148: £m 18/19 prices | I148: 66.60625703 | J148: > | Y148: =(Y$76 * Y82) + (Y$40 * Y46) + Y119 -> 1.480139045 | Z148: 1.480139045 | AA148: 1.480139045 | AB148: 1.480139045 | AC148: 1.480139045 | AD148: 1.480139045 | AE148: 1.480139045 | AF148: 1.480139045 | AG148: 1.480139045 | AH148: 3.880538453 | AI148: 3.816184582 | AJ148: 2.448664812 | AK148: 2.123677761 | AL148: 2.580590248 | AM148: 3.298135916 | AN148: 4.015681584 | AO148: 4.993860431 | AP148: =(AP$76 * AP82) + (AP$40 * AP46) + AP119 -> 1.801908403 | AQ148: 1.737554531 | AR148: 1.67320066 | AS148: 1.608846788 | AT148: 1.544492917
E149: 2005-03-31 | G149: £m 18/19 prices | I149: 67.77993557 | J149: > | Z149: =(Z$76 * Z83) + (Z$40 * Z47) + Z120 -> 1.506220791 | AA149: 1.506220791 | AB149: 1.506220791 | AC149: 1.506220791 | AD149: 1.506220791 | AE149: 1.506220791 | AF149: 1.506220791 | AG149: 1.506220791 | AH149: 3.876881339 | AI149: 3.811393479 | AJ149: 2.5343802 | AK149: 2.226587256 | AL149: 2.645709562 | AM149: 3.307136953 | AN149: 3.968564344 | AO149: 4.872296818 | AP149: =(AP$76 * AP83) + (AP$40 * AP47) + AP120 -> 1.899147953 | AQ149: 1.833660093 | AR149: 1.768172232 | AS149: 1.702684372 | AT149: 1.637196511
E150: 2006-03-31 | G150: £m 18/19 prices | I150: 65.05807538 | J150: > | AA150: =(AA$76 * AA84) + (AA$40 * AA48) + AA121 -> 1.445735008 | AB150: 1.445735008 | AC150: 1.445735008 | AD150: 1.445735008 | AE150: 1.445735008 | AF150: 1.445735008 | AG150: 1.445735008 | AH150: 3.642623641 | AI150: 3.579765597 | AJ150: 2.471892574 | AK150: 2.200031535 | AL150: 2.555179482 | AM150: 3.119330426 | AN150: 3.683481369 | AO150: 4.456635309 | AP150: =(AP$76 * AP84) + (AP$40 * AP48) + AP121 -> 1.885741315 | AQ150: 1.822883272 | AR150: 1.760025228 | AS150: 1.697167184 | AT150: 1.63430914
E151: 2007-03-31 | G151: £m 18/19 prices | I151: 72.19368893 | J151: > | AB151: =(AB$76 * AB85) + (AB$40 * AB49) + AB122 -> 1.604304198 | AC151: 1.604304198 | AD151: 1.604304198 | AE151: 1.604304198 | AF151: 1.604304198 | AG151: 1.604304198 | AH151: 3.944495757 | AI151: 3.874743401 | AJ151: 2.784862831 | AK151: 2.511084832 | AL151: 2.849383761 | AM151: 3.391708332 | AN151: 3.934032904 | AO151: 4.680383118 | AP151: =(AP$76 * AP85) + (AP$40 * AP49) + AP122 -> 2.16232305 | AQ151: 2.092570694 | AR151: 2.022818337 | AS151: 1.953065981 | AT151: 1.883313624
E152: 2008-03-31 | G152: £m 18/19 prices | I152: 92.9221229 | J152: > | AC152: =(AC$76 * AC86) + (AC$40 * AC50) + AC123 -> 2.064936064 | AD152: 2.064936064 | AE152: 2.064936064 | AF152: 2.064936064 | AG152: 2.064936064 | AH152: 4.937890589 | AI152: 4.84811076 | AJ152: 3.63608307 | AK152: 3.321853669 | AL152: 3.680972984 | AM152: 4.264541872 | AN152: 4.84811076 | AO152: 5.65612922 | AP152: =(AP$76 * AP86) + (AP$40 * AP50) + AP123 -> 2.872954524 | AQ152: 2.783174695 | AR152: 2.693394867 | AS152: 2.603615038 | AT152: 2.513835209
E153: 2009-03-31 | G153: £m 18/19 prices | I153: 101.2866549 | J153: > | AD153: =(AD$76 * AD87) + (AD$40 * AD51) + AD124 -> 2.250814554 | AE153: 2.250814554 | AF153: 2.250814554 | AG153: 2.250814554 | AH153: 5.216018075 | AI153: 5.118156573 | AJ153: 4.017214672 | AK153: 3.718737089 | AL153: 4.022107747 | AM153: 4.526094484 | AN153: 5.030081221 | AO153: 5.734684038 | AP153: =(AP$76 * AP87) + (AP$40 * AP51) + AP124 -> 3.229429578 | AQ153: 3.131568075 | AR153: 3.033706573 | AS153: 2.935845071 | AT153: 2.837983568
E154: 2010-03-31 | G154: £m 18/19 prices | I154: 88.56702 | J154: > | AE154: =(AE$76 * AE88) + (AE$40 * AE52) + AE125 -> 1.968156 | AF154: 1.968156 | AG154: 1.968156 | AH154: 4.4026794 | AI154: 4.3171074 | AJ154: 3.5576559 | AK154: 3.337308 | AL154: 3.5212878 | AM154: 3.8400435 | AN154: 4.1587992 | AO154: 4.6123308 | AP154: =(AP$76 * AP88) + (AP$40 * AP52) + AP125 -> 2.909448 | AQ154: 2.823876 | AR154: 2.738304 | AS154: 2.652732 | AT154: 2.56716
E155: 2011-03-31 | G155: £m 18/19 prices | I155: 112.184233 | J155: > | AF155: =(AF$76 * AF89) + (AF$40 * AF53) + AF126 -> 2.492982956 | AG155: 2.492982956 | AH155: 5.359913356 | AI155: 5.251522793 | AJ155: 4.560532952 | AK155: 4.335622533 | AL155: 4.460271681 | AM155: 4.701440684 | AN155: 4.942609687 | AO155: 5.300298546 | AP155: =(AP$76 * AP89) + (AP$40 * AP53) + AP126 -> 3.793669716 | AQ155: 3.685279153 | AR155: 3.57688859 | AS155: 3.468498026 | AT155: 3.360107463
E156: 2012-03-31 | G156: £m 18/19 prices | I156: 126.1514364 | J156: > | AG156: =(AG$76 * AG90) + (AG$40 * AG54) + AG127 -> 2.803365254 | AH156: 5.765181587 | AI156: 5.643296141 | AJ156: 5.186225719 | AK156: 4.997303278 | AL156: 5.009491823 | AM156: 5.088717363 | AN156: 5.167942902 | AO156: 5.314205437 | AP156: =(AP$76 * AP90) + (AP$40 * AP54) + AP127 -> 4.387876049 | AQ156: 4.265990603 | AR156: 4.144105158 | AS156: 4.022219712 | AT156: 3.900334266
E157: 2013-03-31 | G157: £m 18/19 prices | I157: 106.1608787 | AH157: =(AH$76 * AH91) + (AH$40 * AH55) + AH128 -> 4.615690379 | AI157: 4.513119481 | AJ157: 4.410548584 | AK157: 4.307977687 | AL157: 4.205406789 | AM157: 4.102835892 | AN157: 4.000264995 | AO157: 3.897694098 | AP157: =(AP$76 * AP91) + (AP$40 * AP55) + AP128 -> 3.7951232 | AQ157: 3.692552303 | AR157: 3.589981406 | AS157: 3.487410508 | AT157: 3.384839611
E158: 2014-03-31 | G158: £m 18/19 prices | I158: 88.26034009 | AI158: =(AI$76 * AI92) + (AI$40 * AI56) + AI129 -> 3.837406091 | AJ158: 3.7521304 | AK158: 3.666854709 | AL158: 3.581579018 | AM158: 3.496303327 | AN158: 3.411027636 | AO158: 3.325751946 | AP158: =(AP$76 * AP92) + (AP$40 * AP56) + AP129 -> 3.240476255 | AQ158: 3.155200564 | AR158: 3.069924873 | AS158: 2.984649182 | AT158: 2.899373491
E159: 2015-03-31 | G159: £m 18/19 prices | I159: 118.658252 | AJ159: =(AJ$76 * AJ93) + (AJ$40 * AJ57) + AJ130 -> 5.159054435 | AK159: 5.044408781 | AL159: 4.929763127 | AM159: 4.815117472 | AN159: 4.700471818 | AO159: 4.585826164 | AP159: =(AP$76 * AP93) + (AP$40 * AP57) + AP130 -> 4.47118051 | AQ159: 4.356534856 | AR159: 4.241889202 | AS159: 4.127243548 | AT159: 4.012597894
E160: 2016-03-31 | G160: £m 18/19 prices | I160: 125.6495071 | AK160: =(AK$76 * AK94) + (AK$40 * AK58) + AK131 -> 5.463022048 | AL160: =(AL$76 * AL94) + (AL$40 * AL58) + AL131 -> 5.341621558 | AM160: =(AM$76 * AM94) + (AM$40 * AM58) + AM131 -> 5.220221068 | AN160: =(AN$76 * AN94) + (AN$40 * AN58) + AN131 -> 5.098820578 | AO160: =(AO$76 * AO94) + (AO$40 * AO58) + AO131 -> 4.977420088 | AP160: =(AP$76 * AP94) + (AP$40 * AP58) + AP131 -> 4.856019598 | AQ160: 4.734619108 | AR160: 4.613218618 | AS160: 4.491818128 | AT160: 4.370417638
E161: 2017-03-31 | G161: £m 18/19 prices | I161: 131.4505245 | AL161: =(AL$76 * AL95) + (AL$40 * AL59) + AL132 -> 5.715240196 | AM161: =(AM$76 * AM95) + (AM$40 * AM59) + AM132 -> 5.588234858 | AN161: =(AN$76 * AN95) + (AN$40 * AN59) + AN132 -> 5.461229521 | AO161: =(AO$76 * AO95) + (AO$40 * AO59) + AO132 -> 5.334224183 | AP161: =(AP$76 * AP95) + (AP$40 * AP59) + AP132 -> 5.207218845 | AQ161: 5.080213508 | AR161: 4.95320817 | AS161: 4.826202832 | AT161: 4.699197494
E162: 2018-03-31 | G162: £m 18/19 prices | I162: 134.7828895 | AM162: =(AM$76 * AM96) + (AM$40 * AM60) + AM133 -> 5.860125629 | AN162: =(AN$76 * AN96) + (AN$40 * AN60) + AN133 -> 5.729900615 | AO162: =(AO$76 * AO96) + (AO$40 * AO60) + AO133 -> 5.599675601 | AP162: =(AP$76 * AP96) + (AP$40 * AP60) + AP133 -> 5.469450587 | AQ162: 5.339225573 | AR162: 5.209000559 | AS162: 5.078775545 | AT162: 4.948550531
E163: 2019-03-31 | G163: £m 18/19 prices | I163: 140.9399265 | AN163: =(AN$76 * AN97) + (AN$40 * AN61) + AN134 -> 6.12782289 | AO163: =(AO$76 * AO97) + (AO$40 * AO61) + AO134 -> 5.991649048 | AP163: =(AP$76 * AP97) + (AP$40 * AP61) + AP134 -> 5.855475206 | AQ163: 5.719301364 | AR163: 5.583127522 | AS163: 5.44695368 | AT163: 5.310779838
E164: 2020-03-31 | G164: £m 18/19 prices | I164: 152.581717 | AO164: =(AO$76 * AO98) + (AO$40 * AO62) + AO135 -> 6.633987694 | AP164: =(AP$76 * AP98) + (AP$40 * AP62) + AP135 -> 6.486565745 | AQ164: 6.339143796 | AR164: 6.191721848 | AS164: 6.044299899 | AT164: 5.89687795
E165: 2021-03-31 | G165: £m 18/19 prices | I165: 157.6913424 | AP165: =(AP$76 * AP99) + (AP$40 * AP63) + AP136 -> 6.856145322 | AQ165: 6.703786537 | AR165: 6.551427752 | AS165: 6.399068968 | AT165: 6.246710183
E166: 2022-03-31 | G166: £m 18/19 prices | I166: =I100 -> 161.3808306 | AQ166: =(AQ$76 * AQ100) + (AQ$40 * AQ64) + AQ137 -> 7.016557853 | AR166: 6.860634346 | AS166: 6.704710838 | AT166: 6.54878733
E167: 2023-03-31 | G167: £m 18/19 prices | I167: 168.5048905 | AR167: =(AR$76 * AR101) + (AR$40 * AR65) + AR138 -> 7.326299586 | AS167: 7.163492928 | AT167: 7.000686271
E168: 2024-03-31 | G168: £m 18/19 prices | I168: 168.7943547 | AS168: =(AS$76 * AS102) + (AS$40 * AS66) + AS139 -> 7.338884986 | AT168: 7.175798653
E169: 2025-03-31 | G169: £m 18/19 prices | I169: 163.8350339 | AT169: =(AT$76 * AT103) + (AT$40 * AT67) + AT140 -> 7.123262344
E170: 2026-03-31 | G170: £m 18/19 prices | I170: 157.2600753
E171: Total | G171: £m 18/19 prices | X171: =SUM(X147:X170) -> 2.39300013 | Y171: =SUM(Y147:Y170) -> 3.873139176 | Z171: 5.379359966 | AA171: 6.825094975 | AB171: 8.429399173 | AC171: 10.49433524 | AD171: 12.74514979 | AE171: 14.71330579 | AF171: 17.20628875 | AG171: 20.009654 | AH171: 52.01457597 | AI171: 54.8794262 | AJ171: 48.40787136 | AK171: 50.58386066 | AL171: 59.23433426 | AM171: 70.01724351 | AN171: 80.937625 | AO171: 94.34255299 | AP171: =SUM(AP147:AP170) -> 73.98932792 | AQ171: =SUM(AQ147:AQ170) -> 79.01882316 | AR171: =SUM(AR147:AR170) -> 84.20213662 | AS171: =SUM(AS147:AS170) -> 89.23522883 | AT171: =SUM(AT147:AT170) -> 93.88961206
C173: Asset class 1 depreciation (straight line)
D175: Depreciation parameters
E177: Asset life | G177: years | J177: > | K177: =Input!K354 -> 45 | L177: =Input!L354 -> 45 | M177: =Input!M354 -> 45 | N177: =Input!N354 -> 45 | O177: =Input!O354 -> 45 | P177: =Input!P354 -> 45 | Q177: =Input!Q354 -> 45 | R177: =Input!R354 -> 45 | S177: =Input!S354 -> 45 | T177: =Input!T354 -> 45 | U177: =Input!U354 -> 45 | V177: =Input!V354 -> 45 | W177: =Input!W354 -> 45 | X177: =Input!X354 -> 45 | Y177: =Input!Y354 -> 45 | Z177: =Input!Z354 -> 45 | AA177: =Input!AA354 -> 45 | AB177: =Input!AB354 -> 45 | AC177: =Input!AC354 -> 45 | AD177: =Input!AD354 -> 45 | AE177: =Input!AE354 -> 45 | AF177: =Input!AF354 -> 45 | AG177: =Input!AG354 -> 45 | AH177: =Input!AH354 -> 45 | AI177: =Input!AI354 -> 45 | AJ177: =Input!AJ354 -> 45 | AK177: =Input!AK354 -> 45 | AL177: =Input!AL354 -> 45 | AM177: =Input!AM354 -> 45 | AN177: =Input!AN354 -> 45 | AO177: =Input!AO354 -> 45 | AP177: =Input!AP354 -> 45 | AQ177: =Input!AQ354 -> 45 | AR177: =Input!AR354 -> 45 | AS177: =Input!AS354 -> 45 | AT177: =Input!AT354 -> 45
D179: Depreciation schedule
E181: Depreciation of additions from year ending | I181: Net additions
E182: 2003-03-31 | G182: £m 18/19 prices | I182: =TRANSPOSE(W12:AT12) -> 0 | J182: > | X182: =$I182/W$177 -> 0 | Y182: =IF($I182 >0, MIN(X182,$I182-SUM($W182:X182)), MAX(X182,$I182-SUM($W182:X182))) -> 0 | Z182: =IF($I182 >0, MIN(Y182,$I182-SUM($W182:Y182)), MAX(Y182,$I182-SUM($W182:Y182))) -> 0 | AA182: =IF($I182 >0, MIN(Z182,$I182-SUM($W182:Z182)), MAX(Z182,$I182-SUM($W182:Z182))) -> 0 | AB182: =IF($I182 >0, MIN(AA182,$I182-SUM($W182:AA182)), MAX(AA182,$I182-SUM($W182:AA182))) -> 0 | AC182: =IF($I182 >0, MIN(AB182,$I182-SUM($W182:AB182)), MAX(AB182,$I182-SUM($W182:AB182))) -> 0 | AD182: =IF($I182 >0, MIN(AC182,$I182-SUM($W182:AC182)), MAX(AC182,$I182-SUM($W182:AC182))) -> 0 | AE182: =IF($I182 >0, MIN(AD182,$I182-SUM($W182:AD182)), MAX(AD182,$I182-SUM($W182:AD182))) -> 0 | AF182: =IF($I182 >0, MIN(AE182,$I182-SUM($W182:AE182)), MAX(AE182,$I182-SUM($W182:AE182))) -> 0 | AG182: =IF($I182 >0, MIN(AF182,$I182-SUM($W182:AF182)), MAX(AF182,$I182-SUM($W182:AF182))) -> 0 | AH182: =IF($I182 >0, MIN(AG182,$I182-SUM($W182:AG182)), MAX(AG182,$I182-SUM($W182:AG182))) -> 0 | AI182: =IF($I182 >0, MIN(AH182,$I182-SUM($W182:AH182)), MAX(AH182,$I182-SUM($W182:AH182))) -> 0 | AJ182: =IF($I182 >0, MIN(AI182,$I182-SUM($W182:AI182)), MAX(AI182,$I182-SUM($W182:AI182))) -> 0 | AK182: =IF($I182 >0, MIN(AJ182,$I182-SUM($W182:AJ182)), MAX(AJ182,$I182-SUM($W182:AJ182))) -> 0 | AL182: =IF($I182 >0, MIN(AK182,$I182-SUM($W182:AK182)), MAX(AK182,$I182-SUM($W182:AK182))) -> 0 | AM182: =IF($I182 >0, MIN(AL182,$I182-SUM($W182:AL182)), MAX(AL182,$I182-SUM($W182:AL182))) -> 0 | AN182: =IF($I182 >0, MIN(AM182,$I182-SUM($W182:AM182)), MAX(AM182,$I182-SUM($W182:AM182))) -> 0 | AO182: =IF($I182 >0, MIN(AN182,$I182-SUM($W182:AN182)), MAX(AN182,$I182-SUM($W182:AN182))) -> 0 | AP182: =IF($I182 >0, MIN(AO182,$I182-SUM($W182:AO182)), MAX(AO182,$I182-SUM($W182:AO182))) -> 0 | AQ182: =IF($I182 >0, MIN(AP182,$I182-SUM($W182:AP182)), MAX(AP182,$I182-SUM($W182:AP182))) -> 0 | AR182: =IF($I182 >0, MIN(AQ182,$I182-SUM($W182:AQ182)), MAX(AQ182,$I182-SUM($W182:AQ182))) -> 0 | AS182: =IF($I182 >0, MIN(AR182,$I182-SUM($W182:AR182)), MAX(AR182,$I182-SUM($W182:AR182))) -> 0 | AT182: =IF($I182 >0, MIN(AS182,$I182-SUM($W182:AS182)), MAX(AS182,$I182-SUM($W182:AS182))) -> 0
E183: 2004-03-31 | G183: £m 18/19 prices | I183: 0 | J183: > | Y183: =$I183/X$177 -> 0 | Z183: =IF($I183 >0, MIN(Y183,$I183-SUM($W183:Y183)), MAX(Y183,$I183-SUM($W183:Y183))) -> 0 | AA183: =IF($I183 >0, MIN(Z183,$I183-SUM($W183:Z183)), MAX(Z183,$I183-SUM($W183:Z183))) -> 0 | AB183: =IF($I183 >0, MIN(AA183,$I183-SUM($W183:AA183)), MAX(AA183,$I183-SUM($W183:AA183))) -> 0 | AC183: =IF($I183 >0, MIN(AB183,$I183-SUM($W183:AB183)), MAX(AB183,$I183-SUM($W183:AB183))) -> 0 | AD183: =IF($I183 >0, MIN(AC183,$I183-SUM($W183:AC183)), MAX(AC183,$I183-SUM($W183:AC183))) -> 0 | AE183: =IF($I183 >0, MIN(AD183,$I183-SUM($W183:AD183)), MAX(AD183,$I183-SUM($W183:AD183))) -> 0 | AF183: =IF($I183 >0, MIN(AE183,$I183-SUM($W183:AE183)), MAX(AE183,$I183-SUM($W183:AE183))) -> 0 | AG183: =IF($I183 >0, MIN(AF183,$I183-SUM($W183:AF183)), MAX(AF183,$I183-SUM($W183:AF183))) -> 0 | AH183: =IF($I183 >0, MIN(AG183,$I183-SUM($W183:AG183)), MAX(AG183,$I183-SUM($W183:AG183))) -> 0 | AI183: =IF($I183 >0, MIN(AH183,$I183-SUM($W183:AH183)), MAX(AH183,$I183-SUM($W183:AH183))) -> 0 | AJ183: =IF($I183 >0, MIN(AI183,$I183-SUM($W183:AI183)), MAX(AI183,$I183-SUM($W183:AI183))) -> 0 | AK183: =IF($I183 >0, MIN(AJ183,$I183-SUM($W183:AJ183)), MAX(AJ183,$I183-SUM($W183:AJ183))) -> 0 | AL183: =IF($I183 >0, MIN(AK183,$I183-SUM($W183:AK183)), MAX(AK183,$I183-SUM($W183:AK183))) -> 0 | AM183: =IF($I183 >0, MIN(AL183,$I183-SUM($W183:AL183)), MAX(AL183,$I183-SUM($W183:AL183))) -> 0 | AN183: =IF($I183 >0, MIN(AM183,$I183-SUM($W183:AM183)), MAX(AM183,$I183-SUM($W183:AM183))) -> 0 | AO183: =IF($I183 >0, MIN(AN183,$I183-SUM($W183:AN183)), MAX(AN183,$I183-SUM($W183:AN183))) -> 0 | AP183: =IF($I183 >0, MIN(AO183,$I183-SUM($W183:AO183)), MAX(AO183,$I183-SUM($W183:AO183))) -> 0 | AQ183: =IF($I183 >0, MIN(AP183,$I183-SUM($W183:AP183)), MAX(AP183,$I183-SUM($W183:AP183))) -> 0 | AR183: =IF($I183 >0, MIN(AQ183,$I183-SUM($W183:AQ183)), MAX(AQ183,$I183-SUM($W183:AQ183))) -> 0 | AS183: =IF($I183 >0, MIN(AR183,$I183-SUM($W183:AR183)), MAX(AR183,$I183-SUM($W183:AR183))) -> 0 | AT183: =IF($I183 >0, MIN(AS183,$I183-SUM($W183:AS183)), MAX(AS183,$I183-SUM($W183:AS183))) -> 0
E184: 2005-03-31 | G184: £m 18/19 prices | I184: 0 | J184: > | Z184: =$I184/Y$177 -> 0 | AA184: =IF($I184 >0, MIN(Z184,$I184-SUM($W184:Z184)), MAX(Z184,$I184-SUM($W184:Z184))) -> 0 | AB184: =IF($I184 >0, MIN(AA184,$I184-SUM($W184:AA184)), MAX(AA184,$I184-SUM($W184:AA184))) -> 0 | AC184: =IF($I184 >0, MIN(AB184,$I184-SUM($W184:AB184)), MAX(AB184,$I184-SUM($W184:AB184))) -> 0 | AD184: =IF($I184 >0, MIN(AC184,$I184-SUM($W184:AC184)), MAX(AC184,$I184-SUM($W184:AC184))) -> 0 | AE184: =IF($I184 >0, MIN(AD184,$I184-SUM($W184:AD184)), MAX(AD184,$I184-SUM($W184:AD184))) -> 0 | AF184: =IF($I184 >0, MIN(AE184,$I184-SUM($W184:AE184)), MAX(AE184,$I184-SUM($W184:AE184))) -> 0 | AG184: =IF($I184 >0, MIN(AF184,$I184-SUM($W184:AF184)), MAX(AF184,$I184-SUM($W184:AF184))) -> 0 | AH184: =IF($I184 >0, MIN(AG184,$I184-SUM($W184:AG184)), MAX(AG184,$I184-SUM($W184:AG184))) -> 0 | AI184: =IF($I184 >0, MIN(AH184,$I184-SUM($W184:AH184)), MAX(AH184,$I184-SUM($W184:AH184))) -> 0 | AJ184: =IF($I184 >0, MIN(AI184,$I184-SUM($W184:AI184)), MAX(AI184,$I184-SUM($W184:AI184))) -> 0 | AK184: =IF($I184 >0, MIN(AJ184,$I184-SUM($W184:AJ184)), MAX(AJ184,$I184-SUM($W184:AJ184))) -> 0 | AL184: =IF($I184 >0, MIN(AK184,$I184-SUM($W184:AK184)), MAX(AK184,$I184-SUM($W184:AK184))) -> 0 | AM184: =IF($I184 >0, MIN(AL184,$I184-SUM($W184:AL184)), MAX(AL184,$I184-SUM($W184:AL184))) -> 0 | AN184: =IF($I184 >0, MIN(AM184,$I184-SUM($W184:AM184)), MAX(AM184,$I184-SUM($W184:AM184))) -> 0 | AO184: =IF($I184 >0, MIN(AN184,$I184-SUM($W184:AN184)), MAX(AN184,$I184-SUM($W184:AN184))) -> 0 | AP184: =IF($I184 >0, MIN(AO184,$I184-SUM($W184:AO184)), MAX(AO184,$I184-SUM($W184:AO184))) -> 0 | AQ184: =IF($I184 >0, MIN(AP184,$I184-SUM($W184:AP184)), MAX(AP184,$I184-SUM($W184:AP184))) -> 0 | AR184: =IF($I184 >0, MIN(AQ184,$I184-SUM($W184:AQ184)), MAX(AQ184,$I184-SUM($W184:AQ184))) -> 0 | AS184: =IF($I184 >0, MIN(AR184,$I184-SUM($W184:AR184)), MAX(AR184,$I184-SUM($W184:AR184))) -> 0 | AT184: =IF($I184 >0, MIN(AS184,$I184-SUM($W184:AS184)), MAX(AS184,$I184-SUM($W184:AS184))) -> 0
E185: 2006-03-31 | G185: £m 18/19 prices | I185: 0 | J185: > | AA185: =$I185/Z$177 -> 0 | AB185: =IF($I185 >0, MIN(AA185,$I185-SUM($W185:AA185)), MAX(AA185,$I185-SUM($W185:AA185))) -> 0 | AC185: =IF($I185 >0, MIN(AB185,$I185-SUM($W185:AB185)), MAX(AB185,$I185-SUM($W185:AB185))) -> 0 | AD185: =IF($I185 >0, MIN(AC185,$I185-SUM($W185:AC185)), MAX(AC185,$I185-SUM($W185:AC185))) -> 0 | AE185: =IF($I185 >0, MIN(AD185,$I185-SUM($W185:AD185)), MAX(AD185,$I185-SUM($W185:AD185))) -> 0 | AF185: =IF($I185 >0, MIN(AE185,$I185-SUM($W185:AE185)), MAX(AE185,$I185-SUM($W185:AE185))) -> 0 | AG185: =IF($I185 >0, MIN(AF185,$I185-SUM($W185:AF185)), MAX(AF185,$I185-SUM($W185:AF185))) -> 0 | AH185: =IF($I185 >0, MIN(AG185,$I185-SUM($W185:AG185)), MAX(AG185,$I185-SUM($W185:AG185))) -> 0 | AI185: =IF($I185 >0, MIN(AH185,$I185-SUM($W185:AH185)), MAX(AH185,$I185-SUM($W185:AH185))) -> 0 | AJ185: =IF($I185 >0, MIN(AI185,$I185-SUM($W185:AI185)), MAX(AI185,$I185-SUM($W185:AI185))) -> 0 | AK185: =IF($I185 >0, MIN(AJ185,$I185-SUM($W185:AJ185)), MAX(AJ185,$I185-SUM($W185:AJ185))) -> 0 | AL185: =IF($I185 >0, MIN(AK185,$I185-SUM($W185:AK185)), MAX(AK185,$I185-SUM($W185:AK185))) -> 0 | AM185: =IF($I185 >0, MIN(AL185,$I185-SUM($W185:AL185)), MAX(AL185,$I185-SUM($W185:AL185))) -> 0 | AN185: =IF($I185 >0, MIN(AM185,$I185-SUM($W185:AM185)), MAX(AM185,$I185-SUM($W185:AM185))) -> 0 | AO185: =IF($I185 >0, MIN(AN185,$I185-SUM($W185:AN185)), MAX(AN185,$I185-SUM($W185:AN185))) -> 0 | AP185: =IF($I185 >0, MIN(AO185,$I185-SUM($W185:AO185)), MAX(AO185,$I185-SUM($W185:AO185))) -> 0 | AQ185: =IF($I185 >0, MIN(AP185,$I185-SUM($W185:AP185)), MAX(AP185,$I185-SUM($W185:AP185))) -> 0 | AR185: =IF($I185 >0, MIN(AQ185,$I185-SUM($W185:AQ185)), MAX(AQ185,$I185-SUM($W185:AQ185))) -> 0 | AS185: =IF($I185 >0, MIN(AR185,$I185-SUM($W185:AR185)), MAX(AR185,$I185-SUM($W185:AR185))) -> 0 | AT185: =IF($I185 >0, MIN(AS185,$I185-SUM($W185:AS185)), MAX(AS185,$I185-SUM($W185:AS185))) -> 0
E186: 2007-03-31 | G186: £m 18/19 prices | I186: 0 | J186: > | AB186: =$I186/AA$177 -> 0 | AC186: =IF($I186 >0, MIN(AB186,$I186-SUM($W186:AB186)), MAX(AB186,$I186-SUM($W186:AB186))) -> 0 | AD186: =IF($I186 >0, MIN(AC186,$I186-SUM($W186:AC186)), MAX(AC186,$I186-SUM($W186:AC186))) -> 0 | AE186: =IF($I186 >0, MIN(AD186,$I186-SUM($W186:AD186)), MAX(AD186,$I186-SUM($W186:AD186))) -> 0 | AF186: =IF($I186 >0, MIN(AE186,$I186-SUM($W186:AE186)), MAX(AE186,$I186-SUM($W186:AE186))) -> 0 | AG186: =IF($I186 >0, MIN(AF186,$I186-SUM($W186:AF186)), MAX(AF186,$I186-SUM($W186:AF186))) -> 0 | AH186: =IF($I186 >0, MIN(AG186,$I186-SUM($W186:AG186)), MAX(AG186,$I186-SUM($W186:AG186))) -> 0 | AI186: =IF($I186 >0, MIN(AH186,$I186-SUM($W186:AH186)), MAX(AH186,$I186-SUM($W186:AH186))) -> 0 | AJ186: =IF($I186 >0, MIN(AI186,$I186-SUM($W186:AI186)), MAX(AI186,$I186-SUM($W186:AI186))) -> 0 | AK186: =IF($I186 >0, MIN(AJ186,$I186-SUM($W186:AJ186)), MAX(AJ186,$I186-SUM($W186:AJ186))) -> 0 | AL186: =IF($I186 >0, MIN(AK186,$I186-SUM($W186:AK186)), MAX(AK186,$I186-SUM($W186:AK186))) -> 0 | AM186: =IF($I186 >0, MIN(AL186,$I186-SUM($W186:AL186)), MAX(AL186,$I186-SUM($W186:AL186))) -> 0 | AN186: =IF($I186 >0, MIN(AM186,$I186-SUM($W186:AM186)), MAX(AM186,$I186-SUM($W186:AM186))) -> 0 | AO186: =IF($I186 >0, MIN(AN186,$I186-SUM($W186:AN186)), MAX(AN186,$I186-SUM($W186:AN186))) -> 0 | AP186: =IF($I186 >0, MIN(AO186,$I186-SUM($W186:AO186)), MAX(AO186,$I186-SUM($W186:AO186))) -> 0 | AQ186: =IF($I186 >0, MIN(AP186,$I186-SUM($W186:AP186)), MAX(AP186,$I186-SUM($W186:AP186))) -> 0 | AR186: =IF($I186 >0, MIN(AQ186,$I186-SUM($W186:AQ186)), MAX(AQ186,$I186-SUM($W186:AQ186))) -> 0 | AS186: =IF($I186 >0, MIN(AR186,$I186-SUM($W186:AR186)), MAX(AR186,$I186-SUM($W186:AR186))) -> 0 | AT186: =IF($I186 >0, MIN(AS186,$I186-SUM($W186:AS186)), MAX(AS186,$I186-SUM($W186:AS186))) -> 0
E187: 2008-03-31 | G187: £m 18/19 prices | I187: 0 | J187: > | AC187: =$I187/AB$177 -> 0 | AD187: =IF($I187 >0, MIN(AC187,$I187-SUM($W187:AC187)), MAX(AC187,$I187-SUM($W187:AC187))) -> 0 | AE187: =IF($I187 >0, MIN(AD187,$I187-SUM($W187:AD187)), MAX(AD187,$I187-SUM($W187:AD187))) -> 0 | AF187: =IF($I187 >0, MIN(AE187,$I187-SUM($W187:AE187)), MAX(AE187,$I187-SUM($W187:AE187))) -> 0 | AG187: =IF($I187 >0, MIN(AF187,$I187-SUM($W187:AF187)), MAX(AF187,$I187-SUM($W187:AF187))) -> 0 | AH187: =IF($I187 >0, MIN(AG187,$I187-SUM($W187:AG187)), MAX(AG187,$I187-SUM($W187:AG187))) -> 0 | AI187: =IF($I187 >0, MIN(AH187,$I187-SUM($W187:AH187)), MAX(AH187,$I187-SUM($W187:AH187))) -> 0 | AJ187: =IF($I187 >0, MIN(AI187,$I187-SUM($W187:AI187)), MAX(AI187,$I187-SUM($W187:AI187))) -> 0 | AK187: =IF($I187 >0, MIN(AJ187,$I187-SUM($W187:AJ187)), MAX(AJ187,$I187-SUM($W187:AJ187))) -> 0 | AL187: =IF($I187 >0, MIN(AK187,$I187-SUM($W187:AK187)), MAX(AK187,$I187-SUM($W187:AK187))) -> 0 | AM187: =IF($I187 >0, MIN(AL187,$I187-SUM($W187:AL187)), MAX(AL187,$I187-SUM($W187:AL187))) -> 0 | AN187: =IF($I187 >0, MIN(AM187,$I187-SUM($W187:AM187)), MAX(AM187,$I187-SUM($W187:AM187))) -> 0 | AO187: =IF($I187 >0, MIN(AN187,$I187-SUM($W187:AN187)), MAX(AN187,$I187-SUM($W187:AN187))) -> 0 | AP187: =IF($I187 >0, MIN(AO187,$I187-SUM($W187:AO187)), MAX(AO187,$I187-SUM($W187:AO187))) -> 0 | AQ187: =IF($I187 >0, MIN(AP187,$I187-SUM($W187:AP187)), MAX(AP187,$I187-SUM($W187:AP187))) -> 0 | AR187: =IF($I187 >0, MIN(AQ187,$I187-SUM($W187:AQ187)), MAX(AQ187,$I187-SUM($W187:AQ187))) -> 0 | AS187: =IF($I187 >0, MIN(AR187,$I187-SUM($W187:AR187)), MAX(AR187,$I187-SUM($W187:AR187))) -> 0 | AT187: =IF($I187 >0, MIN(AS187,$I187-SUM($W187:AS187)), MAX(AS187,$I187-SUM($W187:AS187))) -> 0
E188: 2009-03-31 | G188: £m 18/19 prices | I188: 0 | J188: > | AD188: =$I188/AC$177 -> 0 | AE188: =IF($I188 >0, MIN(AD188,$I188-SUM($W188:AD188)), MAX(AD188,$I188-SUM($W188:AD188))) -> 0 | AF188: =IF($I188 >0, MIN(AE188,$I188-SUM($W188:AE188)), MAX(AE188,$I188-SUM($W188:AE188))) -> 0 | AG188: =IF($I188 >0, MIN(AF188,$I188-SUM($W188:AF188)), MAX(AF188,$I188-SUM($W188:AF188))) -> 0 | AH188: =IF($I188 >0, MIN(AG188,$I188-SUM($W188:AG188)), MAX(AG188,$I188-SUM($W188:AG188))) -> 0 | AI188: =IF($I188 >0, MIN(AH188,$I188-SUM($W188:AH188)), MAX(AH188,$I188-SUM($W188:AH188))) -> 0 | AJ188: =IF($I188 >0, MIN(AI188,$I188-SUM($W188:AI188)), MAX(AI188,$I188-SUM($W188:AI188))) -> 0 | AK188: =IF($I188 >0, MIN(AJ188,$I188-SUM($W188:AJ188)), MAX(AJ188,$I188-SUM($W188:AJ188))) -> 0 | AL188: =IF($I188 >0, MIN(AK188,$I188-SUM($W188:AK188)), MAX(AK188,$I188-SUM($W188:AK188))) -> 0 | AM188: =IF($I188 >0, MIN(AL188,$I188-SUM($W188:AL188)), MAX(AL188,$I188-SUM($W188:AL188))) -> 0 | AN188: =IF($I188 >0, MIN(AM188,$I188-SUM($W188:AM188)), MAX(AM188,$I188-SUM($W188:AM188))) -> 0 | AO188: =IF($I188 >0, MIN(AN188,$I188-SUM($W188:AN188)), MAX(AN188,$I188-SUM($W188:AN188))) -> 0 | AP188: =IF($I188 >0, MIN(AO188,$I188-SUM($W188:AO188)), MAX(AO188,$I188-SUM($W188:AO188))) -> 0 | AQ188: =IF($I188 >0, MIN(AP188,$I188-SUM($W188:AP188)), MAX(AP188,$I188-SUM($W188:AP188))) -> 0 | AR188: =IF($I188 >0, MIN(AQ188,$I188-SUM($W188:AQ188)), MAX(AQ188,$I188-SUM($W188:AQ188))) -> 0 | AS188: =IF($I188 >0, MIN(AR188,$I188-SUM($W188:AR188)), MAX(AR188,$I188-SUM($W188:AR188))) -> 0 | AT188: =IF($I188 >0, MIN(AS188,$I188-SUM($W188:AS188)), MAX(AS188,$I188-SUM($W188:AS188))) -> 0
E189: 2010-03-31 | G189: £m 18/19 prices | I189: 0 | J189: > | AE189: =$I189/AD$177 -> 0 | AF189: =IF($I189 >0, MIN(AE189,$I189-SUM($W189:AE189)), MAX(AE189,$I189-SUM($W189:AE189))) -> 0 | AG189: =IF($I189 >0, MIN(AF189,$I189-SUM($W189:AF189)), MAX(AF189,$I189-SUM($W189:AF189))) -> 0 | AH189: =IF($I189 >0, MIN(AG189,$I189-SUM($W189:AG189)), MAX(AG189,$I189-SUM($W189:AG189))) -> 0 | AI189: =IF($I189 >0, MIN(AH189,$I189-SUM($W189:AH189)), MAX(AH189,$I189-SUM($W189:AH189))) -> 0 | AJ189: =IF($I189 >0, MIN(AI189,$I189-SUM($W189:AI189)), MAX(AI189,$I189-SUM($W189:AI189))) -> 0 | AK189: =IF($I189 >0, MIN(AJ189,$I189-SUM($W189:AJ189)), MAX(AJ189,$I189-SUM($W189:AJ189))) -> 0 | AL189: =IF($I189 >0, MIN(AK189,$I189-SUM($W189:AK189)), MAX(AK189,$I189-SUM($W189:AK189))) -> 0 | AM189: =IF($I189 >0, MIN(AL189,$I189-SUM($W189:AL189)), MAX(AL189,$I189-SUM($W189:AL189))) -> 0 | AN189: =IF($I189 >0, MIN(AM189,$I189-SUM($W189:AM189)), MAX(AM189,$I189-SUM($W189:AM189))) -> 0 | AO189: =IF($I189 >0, MIN(AN189,$I189-SUM($W189:AN189)), MAX(AN189,$I189-SUM($W189:AN189))) -> 0 | AP189: =IF($I189 >0, MIN(AO189,$I189-SUM($W189:AO189)), MAX(AO189,$I189-SUM($W189:AO189))) -> 0 | AQ189: =IF($I189 >0, MIN(AP189,$I189-SUM($W189:AP189)), MAX(AP189,$I189-SUM($W189:AP189))) -> 0 | AR189: =IF($I189 >0, MIN(AQ189,$I189-SUM($W189:AQ189)), MAX(AQ189,$I189-SUM($W189:AQ189))) -> 0 | AS189: =IF($I189 >0, MIN(AR189,$I189-SUM($W189:AR189)), MAX(AR189,$I189-SUM($W189:AR189))) -> 0 | AT189: =IF($I189 >0, MIN(AS189,$I189-SUM($W189:AS189)), MAX(AS189,$I189-SUM($W189:AS189))) -> 0
E190: 2011-03-31 | G190: £m 18/19 prices | I190: 0 | J190: > | AF190: =$I190/AE$177 -> 0 | AG190: =IF($I190 >0, MIN(AF190,$I190-SUM($W190:AF190)), MAX(AF190,$I190-SUM($W190:AF190))) -> 0 | AH190: =IF($I190 >0, MIN(AG190,$I190-SUM($W190:AG190)), MAX(AG190,$I190-SUM($W190:AG190))) -> 0 | AI190: =IF($I190 >0, MIN(AH190,$I190-SUM($W190:AH190)), MAX(AH190,$I190-SUM($W190:AH190))) -> 0 | AJ190: =IF($I190 >0, MIN(AI190,$I190-SUM($W190:AI190)), MAX(AI190,$I190-SUM($W190:AI190))) -> 0 | AK190: =IF($I190 >0, MIN(AJ190,$I190-SUM($W190:AJ190)), MAX(AJ190,$I190-SUM($W190:AJ190))) -> 0 | AL190: =IF($I190 >0, MIN(AK190,$I190-SUM($W190:AK190)), MAX(AK190,$I190-SUM($W190:AK190))) -> 0 | AM190: =IF($I190 >0, MIN(AL190,$I190-SUM($W190:AL190)), MAX(AL190,$I190-SUM($W190:AL190))) -> 0 | AN190: =IF($I190 >0, MIN(AM190,$I190-SUM($W190:AM190)), MAX(AM190,$I190-SUM($W190:AM190))) -> 0 | AO190: =IF($I190 >0, MIN(AN190,$I190-SUM($W190:AN190)), MAX(AN190,$I190-SUM($W190:AN190))) -> 0 | AP190: =IF($I190 >0, MIN(AO190,$I190-SUM($W190:AO190)), MAX(AO190,$I190-SUM($W190:AO190))) -> 0 | AQ190: =IF($I190 >0, MIN(AP190,$I190-SUM($W190:AP190)), MAX(AP190,$I190-SUM($W190:AP190))) -> 0 | AR190: =IF($I190 >0, MIN(AQ190,$I190-SUM($W190:AQ190)), MAX(AQ190,$I190-SUM($W190:AQ190))) -> 0 | AS190: =IF($I190 >0, MIN(AR190,$I190-SUM($W190:AR190)), MAX(AR190,$I190-SUM($W190:AR190))) -> 0 | AT190: =IF($I190 >0, MIN(AS190,$I190-SUM($W190:AS190)), MAX(AS190,$I190-SUM($W190:AS190))) -> 0
E191: 2012-03-31 | G191: £m 18/19 prices | I191: 0 | J191: > | AG191: =$I191/AF$177 -> 0 | AH191: =IF($I191 >0, MIN(AG191,$I191-SUM($W191:AG191)), MAX(AG191,$I191-SUM($W191:AG191))) -> 0 | AI191: =IF($I191 >0, MIN(AH191,$I191-SUM($W191:AH191)), MAX(AH191,$I191-SUM($W191:AH191))) -> 0 | AJ191: =IF($I191 >0, MIN(AI191,$I191-SUM($W191:AI191)), MAX(AI191,$I191-SUM($W191:AI191))) -> 0 | AK191: =IF($I191 >0, MIN(AJ191,$I191-SUM($W191:AJ191)), MAX(AJ191,$I191-SUM($W191:AJ191))) -> 0 | AL191: =IF($I191 >0, MIN(AK191,$I191-SUM($W191:AK191)), MAX(AK191,$I191-SUM($W191:AK191))) -> 0 | AM191: =IF($I191 >0, MIN(AL191,$I191-SUM($W191:AL191)), MAX(AL191,$I191-SUM($W191:AL191))) -> 0 | AN191: =IF($I191 >0, MIN(AM191,$I191-SUM($W191:AM191)), MAX(AM191,$I191-SUM($W191:AM191))) -> 0 | AO191: =IF($I191 >0, MIN(AN191,$I191-SUM($W191:AN191)), MAX(AN191,$I191-SUM($W191:AN191))) -> 0 | AP191: =IF($I191 >0, MIN(AO191,$I191-SUM($W191:AO191)), MAX(AO191,$I191-SUM($W191:AO191))) -> 0 | AQ191: =IF($I191 >0, MIN(AP191,$I191-SUM($W191:AP191)), MAX(AP191,$I191-SUM($W191:AP191))) -> 0 | AR191: =IF($I191 >0, MIN(AQ191,$I191-SUM($W191:AQ191)), MAX(AQ191,$I191-SUM($W191:AQ191))) -> 0 | AS191: =IF($I191 >0, MIN(AR191,$I191-SUM($W191:AR191)), MAX(AR191,$I191-SUM($W191:AR191))) -> 0 | AT191: =IF($I191 >0, MIN(AS191,$I191-SUM($W191:AS191)), MAX(AS191,$I191-SUM($W191:AS191))) -> 0
E192: 2013-03-31 | G192: £m 18/19 prices | I192: 0 | AH192: =$I192/AG$177 -> 0 | AI192: =IF($I192 >0, MIN(AH192,$I192-SUM($W192:AH192)), MAX(AH192,$I192-SUM($W192:AH192))) -> 0 | AJ192: =IF($I192 >0, MIN(AI192,$I192-SUM($W192:AI192)), MAX(AI192,$I192-SUM($W192:AI192))) -> 0 | AK192: =IF($I192 >0, MIN(AJ192,$I192-SUM($W192:AJ192)), MAX(AJ192,$I192-SUM($W192:AJ192))) -> 0 | AL192: =IF($I192 >0, MIN(AK192,$I192-SUM($W192:AK192)), MAX(AK192,$I192-SUM($W192:AK192))) -> 0 | AM192: =IF($I192 >0, MIN(AL192,$I192-SUM($W192:AL192)), MAX(AL192,$I192-SUM($W192:AL192))) -> 0 | AN192: =IF($I192 >0, MIN(AM192,$I192-SUM($W192:AM192)), MAX(AM192,$I192-SUM($W192:AM192))) -> 0 | AO192: =IF($I192 >0, MIN(AN192,$I192-SUM($W192:AN192)), MAX(AN192,$I192-SUM($W192:AN192))) -> 0 | AP192: =IF($I192 >0, MIN(AO192,$I192-SUM($W192:AO192)), MAX(AO192,$I192-SUM($W192:AO192))) -> 0 | AQ192: =IF($I192 >0, MIN(AP192,$I192-SUM($W192:AP192)), MAX(AP192,$I192-SUM($W192:AP192))) -> 0 | AR192: =IF($I192 >0, MIN(AQ192,$I192-SUM($W192:AQ192)), MAX(AQ192,$I192-SUM($W192:AQ192))) -> 0 | AS192: =IF($I192 >0, MIN(AR192,$I192-SUM($W192:AR192)), MAX(AR192,$I192-SUM($W192:AR192))) -> 0 | AT192: =IF($I192 >0, MIN(AS192,$I192-SUM($W192:AS192)), MAX(AS192,$I192-SUM($W192:AS192))) -> 0
E193: 2014-03-31 | G193: £m 18/19 prices | I193: 0 | AI193: =$I193/AH$177 -> 0 | AJ193: =IF($I193 >0, MIN(AI193,$I193-SUM($W193:AI193)), MAX(AI193,$I193-SUM($W193:AI193))) -> 0 | AK193: =IF($I193 >0, MIN(AJ193,$I193-SUM($W193:AJ193)), MAX(AJ193,$I193-SUM($W193:AJ193))) -> 0 | AL193: =IF($I193 >0, MIN(AK193,$I193-SUM($W193:AK193)), MAX(AK193,$I193-SUM($W193:AK193))) -> 0 | AM193: =IF($I193 >0, MIN(AL193,$I193-SUM($W193:AL193)), MAX(AL193,$I193-SUM($W193:AL193))) -> 0 | AN193: =IF($I193 >0, MIN(AM193,$I193-SUM($W193:AM193)), MAX(AM193,$I193-SUM($W193:AM193))) -> 0 | AO193: =IF($I193 >0, MIN(AN193,$I193-SUM($W193:AN193)), MAX(AN193,$I193-SUM($W193:AN193))) -> 0 | AP193: =IF($I193 >0, MIN(AO193,$I193-SUM($W193:AO193)), MAX(AO193,$I193-SUM($W193:AO193))) -> 0 | AQ193: =IF($I193 >0, MIN(AP193,$I193-SUM($W193:AP193)), MAX(AP193,$I193-SUM($W193:AP193))) -> 0 | AR193: =IF($I193 >0, MIN(AQ193,$I193-SUM($W193:AQ193)), MAX(AQ193,$I193-SUM($W193:AQ193))) -> 0 | AS193: =IF($I193 >0, MIN(AR193,$I193-SUM($W193:AR193)), MAX(AR193,$I193-SUM($W193:AR193))) -> 0 | AT193: =IF($I193 >0, MIN(AS193,$I193-SUM($W193:AS193)), MAX(AS193,$I193-SUM($W193:AS193))) -> 0
E194: 2015-03-31 | G194: £m 18/19 prices | I194: 0 | AJ194: =$I194/AI$177 -> 0 | AK194: =IF($I194 >0, MIN(AJ194,$I194-SUM($W194:AJ194)), MAX(AJ194,$I194-SUM($W194:AJ194))) -> 0 | AL194: =IF($I194 >0, MIN(AK194,$I194-SUM($W194:AK194)), MAX(AK194,$I194-SUM($W194:AK194))) -> 0 | AM194: =IF($I194 >0, MIN(AL194,$I194-SUM($W194:AL194)), MAX(AL194,$I194-SUM($W194:AL194))) -> 0 | AN194: =IF($I194 >0, MIN(AM194,$I194-SUM($W194:AM194)), MAX(AM194,$I194-SUM($W194:AM194))) -> 0 | AO194: =IF($I194 >0, MIN(AN194,$I194-SUM($W194:AN194)), MAX(AN194,$I194-SUM($W194:AN194))) -> 0 | AP194: =IF($I194 >0, MIN(AO194,$I194-SUM($W194:AO194)), MAX(AO194,$I194-SUM($W194:AO194))) -> 0 | AQ194: =IF($I194 >0, MIN(AP194,$I194-SUM($W194:AP194)), MAX(AP194,$I194-SUM($W194:AP194))) -> 0 | AR194: =IF($I194 >0, MIN(AQ194,$I194-SUM($W194:AQ194)), MAX(AQ194,$I194-SUM($W194:AQ194))) -> 0 | AS194: =IF($I194 >0, MIN(AR194,$I194-SUM($W194:AR194)), MAX(AR194,$I194-SUM($W194:AR194))) -> 0 | AT194: =IF($I194 >0, MIN(AS194,$I194-SUM($W194:AS194)), MAX(AS194,$I194-SUM($W194:AS194))) -> 0
E195: 2016-03-31 | G195: £m 18/19 prices | I195: 0 | AK195: =$I195/AJ$177 -> 0 | AL195: =IF($I195 >0, MIN(AK195,$I195-SUM($W195:AK195)), MAX(AK195,$I195-SUM($W195:AK195))) -> 0 | AM195: =IF($I195 >0, MIN(AL195,$I195-SUM($W195:AL195)), MAX(AL195,$I195-SUM($W195:AL195))) -> 0 | AN195: =IF($I195 >0, MIN(AM195,$I195-SUM($W195:AM195)), MAX(AM195,$I195-SUM($W195:AM195))) -> 0 | AO195: =IF($I195 >0, MIN(AN195,$I195-SUM($W195:AN195)), MAX(AN195,$I195-SUM($W195:AN195))) -> 0 | AP195: =IF($I195 >0, MIN(AO195,$I195-SUM($W195:AO195)), MAX(AO195,$I195-SUM($W195:AO195))) -> 0 | AQ195: =IF($I195 >0, MIN(AP195,$I195-SUM($W195:AP195)), MAX(AP195,$I195-SUM($W195:AP195))) -> 0 | AR195: =IF($I195 >0, MIN(AQ195,$I195-SUM($W195:AQ195)), MAX(AQ195,$I195-SUM($W195:AQ195))) -> 0 | AS195: =IF($I195 >0, MIN(AR195,$I195-SUM($W195:AR195)), MAX(AR195,$I195-SUM($W195:AR195))) -> 0 | AT195: =IF($I195 >0, MIN(AS195,$I195-SUM($W195:AS195)), MAX(AS195,$I195-SUM($W195:AS195))) -> 0
E196: 2017-03-31 | G196: £m 18/19 prices | I196: 0 | AL196: =$I196/AK$177 -> 0 | AM196: =IF($I196 >0, MIN(AL196,$I196-SUM($W196:AL196)), MAX(AL196,$I196-SUM($W196:AL196))) -> 0 | AN196: =IF($I196 >0, MIN(AM196,$I196-SUM($W196:AM196)), MAX(AM196,$I196-SUM($W196:AM196))) -> 0 | AO196: =IF($I196 >0, MIN(AN196,$I196-SUM($W196:AN196)), MAX(AN196,$I196-SUM($W196:AN196))) -> 0 | AP196: =IF($I196 >0, MIN(AO196,$I196-SUM($W196:AO196)), MAX(AO196,$I196-SUM($W196:AO196))) -> 0 | AQ196: =IF($I196 >0, MIN(AP196,$I196-SUM($W196:AP196)), MAX(AP196,$I196-SUM($W196:AP196))) -> 0 | AR196: =IF($I196 >0, MIN(AQ196,$I196-SUM($W196:AQ196)), MAX(AQ196,$I196-SUM($W196:AQ196))) -> 0 | AS196: =IF($I196 >0, MIN(AR196,$I196-SUM($W196:AR196)), MAX(AR196,$I196-SUM($W196:AR196))) -> 0 | AT196: =IF($I196 >0, MIN(AS196,$I196-SUM($W196:AS196)), MAX(AS196,$I196-SUM($W196:AS196))) -> 0
E197: 2018-03-31 | G197: £m 18/19 prices | I197: 0 | AM197: =$I197/AL$177 -> 0 | AN197: =IF($I197 >0, MIN(AM197,$I197-SUM($W197:AM197)), MAX(AM197,$I197-SUM($W197:AM197))) -> 0 | AO197: =IF($I197 >0, MIN(AN197,$I197-SUM($W197:AN197)), MAX(AN197,$I197-SUM($W197:AN197))) -> 0 | AP197: =IF($I197 >0, MIN(AO197,$I197-SUM($W197:AO197)), MAX(AO197,$I197-SUM($W197:AO197))) -> 0 | AQ197: =IF($I197 >0, MIN(AP197,$I197-SUM($W197:AP197)), MAX(AP197,$I197-SUM($W197:AP197))) -> 0 | AR197: =IF($I197 >0, MIN(AQ197,$I197-SUM($W197:AQ197)), MAX(AQ197,$I197-SUM($W197:AQ197))) -> 0 | AS197: =IF($I197 >0, MIN(AR197,$I197-SUM($W197:AR197)), MAX(AR197,$I197-SUM($W197:AR197))) -> 0 | AT197: =IF($I197 >0, MIN(AS197,$I197-SUM($W197:AS197)), MAX(AS197,$I197-SUM($W197:AS197))) -> 0
E198: 2019-03-31 | G198: £m 18/19 prices | I198: 0 | AN198: =$I198/AM$177 -> 0 | AO198: =IF($I198 >0, MIN(AN198,$I198-SUM($W198:AN198)), MAX(AN198,$I198-SUM($W198:AN198))) -> 0 | AP198: =IF($I198 >0, MIN(AO198,$I198-SUM($W198:AO198)), MAX(AO198,$I198-SUM($W198:AO198))) -> 0 | AQ198: =IF($I198 >0, MIN(AP198,$I198-SUM($W198:AP198)), MAX(AP198,$I198-SUM($W198:AP198))) -> 0 | AR198: =IF($I198 >0, MIN(AQ198,$I198-SUM($W198:AQ198)), MAX(AQ198,$I198-SUM($W198:AQ198))) -> 0 | AS198: =IF($I198 >0, MIN(AR198,$I198-SUM($W198:AR198)), MAX(AR198,$I198-SUM($W198:AR198))) -> 0 | AT198: =IF($I198 >0, MIN(AS198,$I198-SUM($W198:AS198)), MAX(AS198,$I198-SUM($W198:AS198))) -> 0
E199: 2020-03-31 | G199: £m 18/19 prices | I199: 0 | AO199: =$I199/AN$177 -> 0 | AP199: =IF($I199 >0, MIN(AO199,$I199-SUM($W199:AO199)), MAX(AO199,$I199-SUM($W199:AO199))) -> 0 | AQ199: =IF($I199 >0, MIN(AP199,$I199-SUM($W199:AP199)), MAX(AP199,$I199-SUM($W199:AP199))) -> 0 | AR199: =IF($I199 >0, MIN(AQ199,$I199-SUM($W199:AQ199)), MAX(AQ199,$I199-SUM($W199:AQ199))) -> 0 | AS199: =IF($I199 >0, MIN(AR199,$I199-SUM($W199:AR199)), MAX(AR199,$I199-SUM($W199:AR199))) -> 0 | AT199: =IF($I199 >0, MIN(AS199,$I199-SUM($W199:AS199)), MAX(AS199,$I199-SUM($W199:AS199))) -> 0
E200: 2021-03-31 | G200: £m 18/19 prices | I200: 0 | AP200: =$I200/AO$177 -> 0 | AQ200: =IF($I200 >0, MIN(AP200,$I200-SUM($W200:AP200)), MAX(AP200,$I200-SUM($W200:AP200))) -> 0 | AR200: =IF($I200 >0, MIN(AQ200,$I200-SUM($W200:AQ200)), MAX(AQ200,$I200-SUM($W200:AQ200))) -> 0 | AS200: =IF($I200 >0, MIN(AR200,$I200-SUM($W200:AR200)), MAX(AR200,$I200-SUM($W200:AR200))) -> 0 | AT200: =IF($I200 >0, MIN(AS200,$I200-SUM($W200:AS200)), MAX(AS200,$I200-SUM($W200:AS200))) -> 0
E201: 2022-03-31 | G201: £m 18/19 prices | I201: 0 | AQ201: =$I201/AP$177 -> 0 | AR201: =IF($I201 >0, MIN(AQ201,$I201-SUM($W201:AQ201)), MAX(AQ201,$I201-SUM($W201:AQ201))) -> 0 | AS201: =IF($I201 >0, MIN(AR201,$I201-SUM($W201:AR201)), MAX(AR201,$I201-SUM($W201:AR201))) -> 0 | AT201: =IF($I201 >0, MIN(AS201,$I201-SUM($W201:AS201)), MAX(AS201,$I201-SUM($W201:AS201))) -> 0
E202: 2023-03-31 | G202: £m 18/19 prices | I202: 0 | AR202: =$I202/AQ$177 -> 0 | AS202: =IF($I202 >0, MIN(AR202,$I202-SUM($W202:AR202)), MAX(AR202,$I202-SUM($W202:AR202))) -> 0 | AT202: =IF($I202 >0, MIN(AS202,$I202-SUM($W202:AS202)), MAX(AS202,$I202-SUM($W202:AS202))) -> 0
E203: 2024-03-31 | G203: £m 18/19 prices | I203: 0 | AS203: =$I203/AR$177 -> 0 | AT203: =IF($I203 >0, MIN(AS203,$I203-SUM($W203:AS203)), MAX(AS203,$I203-SUM($W203:AS203))) -> 0
E204: 2025-03-31 | G204: £m 18/19 prices | I204: 0 | AT204: =$I204/AS$177 -> 0
E205: 2026-03-31 | G205: £m 18/19 prices | I205: 0
E206: Total | G206: £m 18/19 prices | X206: =SUM(X182:X205) -> 0 | Y206: 0 | Z206: 0 | AA206: 0 | AB206: 0 | AC206: 0 | AD206: 0 | AE206: 0 | AF206: 0 | AG206: 0 | AH206: 0 | AI206: 0 | AJ206: 0 | AK206: 0 | AL206: 0 | AM206: 0 | AN206: 0 | AO206: 0 | AP206: 0 | AQ206: 0 | AR206: 0 | AS206: 0 | AT206: 0
C208: Asset class 2 depreciation (sum of digits)
D210: Depreciation parameters
E212: Asset life | G212: years | I212: =Input!$I$355 -> 45
E213: Asset life sum of digits | G213: integer | I213: =(I212*(I212+1))/2 -> 1035
D215: Depreciation schedule
E217: Depreciation of additions from year ending | I217: Net additions
E218: 2003-03-31 | G218: £m 18/19 prices | I218: =TRANSPOSE(W13:AT13) -> 0 | J218: > | X218: =($I218 * ($I$212 - COUNT($W218:W218)) / $I$213) * (ABS(SUM($W218:W218))<ABS($I218)) -> 0 | Y218: =($I218 * ($I$212 - COUNT($W218:X218)) / $I$213) * (ABS(SUM($W218:X218))<ABS($I218)) -> 0 | Z218: =($I218 * ($I$212 - COUNT($W218:Y218)) / $I$213) * (ABS(SUM($W218:Y218))<ABS($I218)) -> 0 | AA218: =($I218 * ($I$212 - COUNT($W218:Z218)) / $I$213) * (ABS(SUM($W218:Z218))<ABS($I218)) -> 0 | AB218: =($I218 * ($I$212 - COUNT($W218:AA218)) / $I$213) * (ABS(SUM($W218:AA218))<ABS($I218)) -> 0 | AC218: =($I218 * ($I$212 - COUNT($W218:AB218)) / $I$213) * (ABS(SUM($W218:AB218))<ABS($I218)) -> 0 | AD218: =($I218 * ($I$212 - COUNT($W218:AC218)) / $I$213) * (ABS(SUM($W218:AC218))<ABS($I218)) -> 0 | AE218: =($I218 * ($I$212 - COUNT($W218:AD218)) / $I$213) * (ABS(SUM($W218:AD218))<ABS($I218)) -> 0 | AF218: =($I218 * ($I$212 - COUNT($W218:AE218)) / $I$213) * (ABS(SUM($W218:AE218))<ABS($I218)) -> 0 | AG218: =($I218 * ($I$212 - COUNT($W218:AF218)) / $I$213) * (ABS(SUM($W218:AF218))<ABS($I218)) -> 0 | AH218: =($I218 * ($I$212 - COUNT($W218:AG218)) / $I$213) * (ABS(SUM($W218:AG218))<ABS($I218)) -> 0 | AI218: =($I218 * ($I$212 - COUNT($W218:AH218)) / $I$213) * (ABS(SUM($W218:AH218))<ABS($I218)) -> 0 | AJ218: =($I218 * ($I$212 - COUNT($W218:AI218)) / $I$213) * (ABS(SUM($W218:AI218))<ABS($I218)) -> 0 | AK218: =($I218 * ($I$212 - COUNT($W218:AJ218)) / $I$213) * (ABS(SUM($W218:AJ218))<ABS($I218)) -> 0 | AL218: =($I218 * ($I$212 - COUNT($W218:AK218)) / $I$213) * (ABS(SUM($W218:AK218))<ABS($I218)) -> 0 | AM218: =($I218 * ($I$212 - COUNT($W218:AL218)) / $I$213) * (ABS(SUM($W218:AL218))<ABS($I218)) -> 0 | AN218: =($I218 * ($I$212 - COUNT($W218:AM218)) / $I$213) * (ABS(SUM($W218:AM218))<ABS($I218)) -> 0 | AO218: =($I218 * ($I$212 - COUNT($W218:AN218)) / $I$213) * (ABS(SUM($W218:AN218))<ABS($I218)) -> 0 | AP218: =($I218 * ($I$212 - COUNT($W218:AO218)) / $I$213) * (ABS(SUM($W218:AO218))<ABS($I218)) -> 0 | AQ218: =($I218 * ($I$212 - COUNT($W218:AP218)) / $I$213) * (ABS(SUM($W218:AP218))<ABS($I218)) -> 0 | AR218: =($I218 * ($I$212 - COUNT($W218:AQ218)) / $I$213) * (ABS(SUM($W218:AQ218))<ABS($I218)) -> 0 | AS218: =($I218 * ($I$212 - COUNT($W218:AR218)) / $I$213) * (ABS(SUM($W218:AR218))<ABS($I218)) -> 0 | AT218: =($I218 * ($I$212 - COUNT($W218:AS218)) / $I$213) * (ABS(SUM($W218:AS218))<ABS($I218)) -> 0
E219: 2004-03-31 | G219: £m 18/19 prices | I219: 0 | J219: > | Y219: =($I219 * ($I$212 - COUNT($W219:X219)) / $I$213) * (ABS(SUM($W219:X219))<ABS($I219)) -> 0 | Z219: =($I219 * ($I$212 - COUNT($W219:Y219)) / $I$213) * (ABS(SUM($W219:Y219))<ABS($I219)) -> 0 | AA219: =($I219 * ($I$212 - COUNT($W219:Z219)) / $I$213) * (ABS(SUM($W219:Z219))<ABS($I219)) -> 0 | AB219: =($I219 * ($I$212 - COUNT($W219:AA219)) / $I$213) * (ABS(SUM($W219:AA219))<ABS($I219)) -> 0 | AC219: =($I219 * ($I$212 - COUNT($W219:AB219)) / $I$213) * (ABS(SUM($W219:AB219))<ABS($I219)) -> 0 | AD219: =($I219 * ($I$212 - COUNT($W219:AC219)) / $I$213) * (ABS(SUM($W219:AC219))<ABS($I219)) -> 0 | AE219: =($I219 * ($I$212 - COUNT($W219:AD219)) / $I$213) * (ABS(SUM($W219:AD219))<ABS($I219)) -> 0 | AF219: =($I219 * ($I$212 - COUNT($W219:AE219)) / $I$213) * (ABS(SUM($W219:AE219))<ABS($I219)) -> 0 | AG219: =($I219 * ($I$212 - COUNT($W219:AF219)) / $I$213) * (ABS(SUM($W219:AF219))<ABS($I219)) -> 0 | AH219: =($I219 * ($I$212 - COUNT($W219:AG219)) / $I$213) * (ABS(SUM($W219:AG219))<ABS($I219)) -> 0 | AI219: =($I219 * ($I$212 - COUNT($W219:AH219)) / $I$213) * (ABS(SUM($W219:AH219))<ABS($I219)) -> 0 | AJ219: =($I219 * ($I$212 - COUNT($W219:AI219)) / $I$213) * (ABS(SUM($W219:AI219))<ABS($I219)) -> 0 | AK219: =($I219 * ($I$212 - COUNT($W219:AJ219)) / $I$213) * (ABS(SUM($W219:AJ219))<ABS($I219)) -> 0 | AL219: =($I219 * ($I$212 - COUNT($W219:AK219)) / $I$213) * (ABS(SUM($W219:AK219))<ABS($I219)) -> 0 | AM219: =($I219 * ($I$212 - COUNT($W219:AL219)) / $I$213) * (ABS(SUM($W219:AL219))<ABS($I219)) -> 0 | AN219: =($I219 * ($I$212 - COUNT($W219:AM219)) / $I$213) * (ABS(SUM($W219:AM219))<ABS($I219)) -> 0 | AO219: =($I219 * ($I$212 - COUNT($W219:AN219)) / $I$213) * (ABS(SUM($W219:AN219))<ABS($I219)) -> 0 | AP219: =($I219 * ($I$212 - COUNT($W219:AO219)) / $I$213) * (ABS(SUM($W219:AO219))<ABS($I219)) -> 0 | AQ219: =($I219 * ($I$212 - COUNT($W219:AP219)) / $I$213) * (ABS(SUM($W219:AP219))<ABS($I219)) -> 0 | AR219: =($I219 * ($I$212 - COUNT($W219:AQ219)) / $I$213) * (ABS(SUM($W219:AQ219))<ABS($I219)) -> 0 | AS219: =($I219 * ($I$212 - COUNT($W219:AR219)) / $I$213) * (ABS(SUM($W219:AR219))<ABS($I219)) -> 0 | AT219: =($I219 * ($I$212 - COUNT($W219:AS219)) / $I$213) * (ABS(SUM($W219:AS219))<ABS($I219)) -> 0
E220: 2005-03-31 | G220: £m 18/19 prices | I220: 0 | J220: > | Z220: =($I220 * ($I$212 - COUNT($W220:Y220)) / $I$213) * (ABS(SUM($W220:Y220))<ABS($I220)) -> 0 | AA220: =($I220 * ($I$212 - COUNT($W220:Z220)) / $I$213) * (ABS(SUM($W220:Z220))<ABS($I220)) -> 0 | AB220: =($I220 * ($I$212 - COUNT($W220:AA220)) / $I$213) * (ABS(SUM($W220:AA220))<ABS($I220)) -> 0 | AC220: =($I220 * ($I$212 - COUNT($W220:AB220)) / $I$213) * (ABS(SUM($W220:AB220))<ABS($I220)) -> 0 | AD220: =($I220 * ($I$212 - COUNT($W220:AC220)) / $I$213) * (ABS(SUM($W220:AC220))<ABS($I220)) -> 0 | AE220: =($I220 * ($I$212 - COUNT($W220:AD220)) / $I$213) * (ABS(SUM($W220:AD220))<ABS($I220)) -> 0 | AF220: =($I220 * ($I$212 - COUNT($W220:AE220)) / $I$213) * (ABS(SUM($W220:AE220))<ABS($I220)) -> 0 | AG220: =($I220 * ($I$212 - COUNT($W220:AF220)) / $I$213) * (ABS(SUM($W220:AF220))<ABS($I220)) -> 0 | AH220: =($I220 * ($I$212 - COUNT($W220:AG220)) / $I$213) * (ABS(SUM($W220:AG220))<ABS($I220)) -> 0 | AI220: =($I220 * ($I$212 - COUNT($W220:AH220)) / $I$213) * (ABS(SUM($W220:AH220))<ABS($I220)) -> 0 | AJ220: =($I220 * ($I$212 - COUNT($W220:AI220)) / $I$213) * (ABS(SUM($W220:AI220))<ABS($I220)) -> 0 | AK220: =($I220 * ($I$212 - COUNT($W220:AJ220)) / $I$213) * (ABS(SUM($W220:AJ220))<ABS($I220)) -> 0 | AL220: =($I220 * ($I$212 - COUNT($W220:AK220)) / $I$213) * (ABS(SUM($W220:AK220))<ABS($I220)) -> 0 | AM220: =($I220 * ($I$212 - COUNT($W220:AL220)) / $I$213) * (ABS(SUM($W220:AL220))<ABS($I220)) -> 0 | AN220: =($I220 * ($I$212 - COUNT($W220:AM220)) / $I$213) * (ABS(SUM($W220:AM220))<ABS($I220)) -> 0 | AO220: =($I220 * ($I$212 - COUNT($W220:AN220)) / $I$213) * (ABS(SUM($W220:AN220))<ABS($I220)) -> 0 | AP220: =($I220 * ($I$212 - COUNT($W220:AO220)) / $I$213) * (ABS(SUM($W220:AO220))<ABS($I220)) -> 0 | AQ220: =($I220 * ($I$212 - COUNT($W220:AP220)) / $I$213) * (ABS(SUM($W220:AP220))<ABS($I220)) -> 0 | AR220: =($I220 * ($I$212 - COUNT($W220:AQ220)) / $I$213) * (ABS(SUM($W220:AQ220))<ABS($I220)) -> 0 | AS220: =($I220 * ($I$212 - COUNT($W220:AR220)) / $I$213) * (ABS(SUM($W220:AR220))<ABS($I220)) -> 0 | AT220: =($I220 * ($I$212 - COUNT($W220:AS220)) / $I$213) * (ABS(SUM($W220:AS220))<ABS($I220)) -> 0
E221: 2006-03-31 | G221: £m 18/19 prices | I221: 0 | J221: > | AA221: =($I221 * ($I$212 - COUNT($W221:Z221)) / $I$213) * (ABS(SUM($W221:Z221))<ABS($I221)) -> 0 | AB221: =($I221 * ($I$212 - COUNT($W221:AA221)) / $I$213) * (ABS(SUM($W221:AA221))<ABS($I221)) -> 0 | AC221: =($I221 * ($I$212 - COUNT($W221:AB221)) / $I$213) * (ABS(SUM($W221:AB221))<ABS($I221)) -> 0 | AD221: =($I221 * ($I$212 - COUNT($W221:AC221)) / $I$213) * (ABS(SUM($W221:AC221))<ABS($I221)) -> 0 | AE221: =($I221 * ($I$212 - COUNT($W221:AD221)) / $I$213) * (ABS(SUM($W221:AD221))<ABS($I221)) -> 0 | AF221: =($I221 * ($I$212 - COUNT($W221:AE221)) / $I$213) * (ABS(SUM($W221:AE221))<ABS($I221)) -> 0 | AG221: =($I221 * ($I$212 - COUNT($W221:AF221)) / $I$213) * (ABS(SUM($W221:AF221))<ABS($I221)) -> 0 | AH221: =($I221 * ($I$212 - COUNT($W221:AG221)) / $I$213) * (ABS(SUM($W221:AG221))<ABS($I221)) -> 0 | AI221: =($I221 * ($I$212 - COUNT($W221:AH221)) / $I$213) * (ABS(SUM($W221:AH221))<ABS($I221)) -> 0 | AJ221: =($I221 * ($I$212 - COUNT($W221:AI221)) / $I$213) * (ABS(SUM($W221:AI221))<ABS($I221)) -> 0 | AK221: =($I221 * ($I$212 - COUNT($W221:AJ221)) / $I$213) * (ABS(SUM($W221:AJ221))<ABS($I221)) -> 0 | AL221: =($I221 * ($I$212 - COUNT($W221:AK221)) / $I$213) * (ABS(SUM($W221:AK221))<ABS($I221)) -> 0 | AM221: =($I221 * ($I$212 - COUNT($W221:AL221)) / $I$213) * (ABS(SUM($W221:AL221))<ABS($I221)) -> 0 | AN221: =($I221 * ($I$212 - COUNT($W221:AM221)) / $I$213) * (ABS(SUM($W221:AM221))<ABS($I221)) -> 0 | AO221: =($I221 * ($I$212 - COUNT($W221:AN221)) / $I$213) * (ABS(SUM($W221:AN221))<ABS($I221)) -> 0 | AP221: =($I221 * ($I$212 - COUNT($W221:AO221)) / $I$213) * (ABS(SUM($W221:AO221))<ABS($I221)) -> 0 | AQ221: =($I221 * ($I$212 - COUNT($W221:AP221)) / $I$213) * (ABS(SUM($W221:AP221))<ABS($I221)) -> 0 | AR221: =($I221 * ($I$212 - COUNT($W221:AQ221)) / $I$213) * (ABS(SUM($W221:AQ221))<ABS($I221)) -> 0 | AS221: =($I221 * ($I$212 - COUNT($W221:AR221)) / $I$213) * (ABS(SUM($W221:AR221))<ABS($I221)) -> 0 | AT221: =($I221 * ($I$212 - COUNT($W221:AS221)) / $I$213) * (ABS(SUM($W221:AS221))<ABS($I221)) -> 0
E222: 2007-03-31 | G222: £m 18/19 prices | I222: 0 | J222: > | AB222: =($I222 * ($I$212 - COUNT($W222:AA222)) / $I$213) * (ABS(SUM($W222:AA222))<ABS($I222)) -> 0 | AC222: =($I222 * ($I$212 - COUNT($W222:AB222)) / $I$213) * (ABS(SUM($W222:AB222))<ABS($I222)) -> 0 | AD222: =($I222 * ($I$212 - COUNT($W222:AC222)) / $I$213) * (ABS(SUM($W222:AC222))<ABS($I222)) -> 0 | AE222: =($I222 * ($I$212 - COUNT($W222:AD222)) / $I$213) * (ABS(SUM($W222:AD222))<ABS($I222)) -> 0 | AF222: =($I222 * ($I$212 - COUNT($W222:AE222)) / $I$213) * (ABS(SUM($W222:AE222))<ABS($I222)) -> 0 | AG222: =($I222 * ($I$212 - COUNT($W222:AF222)) / $I$213) * (ABS(SUM($W222:AF222))<ABS($I222)) -> 0 | AH222: =($I222 * ($I$212 - COUNT($W222:AG222)) / $I$213) * (ABS(SUM($W222:AG222))<ABS($I222)) -> 0 | AI222: =($I222 * ($I$212 - COUNT($W222:AH222)) / $I$213) * (ABS(SUM($W222:AH222))<ABS($I222)) -> 0 | AJ222: =($I222 * ($I$212 - COUNT($W222:AI222)) / $I$213) * (ABS(SUM($W222:AI222))<ABS($I222)) -> 0 | AK222: =($I222 * ($I$212 - COUNT($W222:AJ222)) / $I$213) * (ABS(SUM($W222:AJ222))<ABS($I222)) -> 0 | AL222: =($I222 * ($I$212 - COUNT($W222:AK222)) / $I$213) * (ABS(SUM($W222:AK222))<ABS($I222)) -> 0 | AM222: =($I222 * ($I$212 - COUNT($W222:AL222)) / $I$213) * (ABS(SUM($W222:AL222))<ABS($I222)) -> 0 | AN222: =($I222 * ($I$212 - COUNT($W222:AM222)) / $I$213) * (ABS(SUM($W222:AM222))<ABS($I222)) -> 0 | AO222: =($I222 * ($I$212 - COUNT($W222:AN222)) / $I$213) * (ABS(SUM($W222:AN222))<ABS($I222)) -> 0 | AP222: =($I222 * ($I$212 - COUNT($W222:AO222)) / $I$213) * (ABS(SUM($W222:AO222))<ABS($I222)) -> 0 | AQ222: =($I222 * ($I$212 - COUNT($W222:AP222)) / $I$213) * (ABS(SUM($W222:AP222))<ABS($I222)) -> 0 | AR222: =($I222 * ($I$212 - COUNT($W222:AQ222)) / $I$213) * (ABS(SUM($W222:AQ222))<ABS($I222)) -> 0 | AS222: =($I222 * ($I$212 - COUNT($W222:AR222)) / $I$213) * (ABS(SUM($W222:AR222))<ABS($I222)) -> 0 | AT222: =($I222 * ($I$212 - COUNT($W222:AS222)) / $I$213) * (ABS(SUM($W222:AS222))<ABS($I222)) -> 0
E223: 2008-03-31 | G223: £m 18/19 prices | I223: 0 | J223: > | AC223: =($I223 * ($I$212 - COUNT($W223:AB223)) / $I$213) * (ABS(SUM($W223:AB223))<ABS($I223)) -> 0 | AD223: =($I223 * ($I$212 - COUNT($W223:AC223)) / $I$213) * (ABS(SUM($W223:AC223))<ABS($I223)) -> 0 | AE223: =($I223 * ($I$212 - COUNT($W223:AD223)) / $I$213) * (ABS(SUM($W223:AD223))<ABS($I223)) -> 0 | AF223: =($I223 * ($I$212 - COUNT($W223:AE223)) / $I$213) * (ABS(SUM($W223:AE223))<ABS($I223)) -> 0 | AG223: =($I223 * ($I$212 - COUNT($W223:AF223)) / $I$213) * (ABS(SUM($W223:AF223))<ABS($I223)) -> 0 | AH223: =($I223 * ($I$212 - COUNT($W223:AG223)) / $I$213) * (ABS(SUM($W223:AG223))<ABS($I223)) -> 0 | AI223: =($I223 * ($I$212 - COUNT($W223:AH223)) / $I$213) * (ABS(SUM($W223:AH223))<ABS($I223)) -> 0 | AJ223: =($I223 * ($I$212 - COUNT($W223:AI223)) / $I$213) * (ABS(SUM($W223:AI223))<ABS($I223)) -> 0 | AK223: =($I223 * ($I$212 - COUNT($W223:AJ223)) / $I$213) * (ABS(SUM($W223:AJ223))<ABS($I223)) -> 0 | AL223: =($I223 * ($I$212 - COUNT($W223:AK223)) / $I$213) * (ABS(SUM($W223:AK223))<ABS($I223)) -> 0 | AM223: =($I223 * ($I$212 - COUNT($W223:AL223)) / $I$213) * (ABS(SUM($W223:AL223))<ABS($I223)) -> 0 | AN223: =($I223 * ($I$212 - COUNT($W223:AM223)) / $I$213) * (ABS(SUM($W223:AM223))<ABS($I223)) -> 0 | AO223: =($I223 * ($I$212 - COUNT($W223:AN223)) / $I$213) * (ABS(SUM($W223:AN223))<ABS($I223)) -> 0 | AP223: =($I223 * ($I$212 - COUNT($W223:AO223)) / $I$213) * (ABS(SUM($W223:AO223))<ABS($I223)) -> 0 | AQ223: =($I223 * ($I$212 - COUNT($W223:AP223)) / $I$213) * (ABS(SUM($W223:AP223))<ABS($I223)) -> 0 | AR223: =($I223 * ($I$212 - COUNT($W223:AQ223)) / $I$213) * (ABS(SUM($W223:AQ223))<ABS($I223)) -> 0 | AS223: =($I223 * ($I$212 - COUNT($W223:AR223)) / $I$213) * (ABS(SUM($W223:AR223))<ABS($I223)) -> 0 | AT223: =($I223 * ($I$212 - COUNT($W223:AS223)) / $I$213) * (ABS(SUM($W223:AS223))<ABS($I223)) -> 0
E224: 2009-03-31 | G224: £m 18/19 prices | I224: 0 | J224: > | AD224: =($I224 * ($I$212 - COUNT($W224:AC224)) / $I$213) * (ABS(SUM($W224:AC224))<ABS($I224)) -> 0 | AE224: =($I224 * ($I$212 - COUNT($W224:AD224)) / $I$213) * (ABS(SUM($W224:AD224))<ABS($I224)) -> 0 | AF224: =($I224 * ($I$212 - COUNT($W224:AE224)) / $I$213) * (ABS(SUM($W224:AE224))<ABS($I224)) -> 0 | AG224: =($I224 * ($I$212 - COUNT($W224:AF224)) / $I$213) * (ABS(SUM($W224:AF224))<ABS($I224)) -> 0 | AH224: =($I224 * ($I$212 - COUNT($W224:AG224)) / $I$213) * (ABS(SUM($W224:AG224))<ABS($I224)) -> 0 | AI224: =($I224 * ($I$212 - COUNT($W224:AH224)) / $I$213) * (ABS(SUM($W224:AH224))<ABS($I224)) -> 0 | AJ224: =($I224 * ($I$212 - COUNT($W224:AI224)) / $I$213) * (ABS(SUM($W224:AI224))<ABS($I224)) -> 0 | AK224: =($I224 * ($I$212 - COUNT($W224:AJ224)) / $I$213) * (ABS(SUM($W224:AJ224))<ABS($I224)) -> 0 | AL224: =($I224 * ($I$212 - COUNT($W224:AK224)) / $I$213) * (ABS(SUM($W224:AK224))<ABS($I224)) -> 0 | AM224: =($I224 * ($I$212 - COUNT($W224:AL224)) / $I$213) * (ABS(SUM($W224:AL224))<ABS($I224)) -> 0 | AN224: =($I224 * ($I$212 - COUNT($W224:AM224)) / $I$213) * (ABS(SUM($W224:AM224))<ABS($I224)) -> 0 | AO224: =($I224 * ($I$212 - COUNT($W224:AN224)) / $I$213) * (ABS(SUM($W224:AN224))<ABS($I224)) -> 0 | AP224: =($I224 * ($I$212 - COUNT($W224:AO224)) / $I$213) * (ABS(SUM($W224:AO224))<ABS($I224)) -> 0 | AQ224: =($I224 * ($I$212 - COUNT($W224:AP224)) / $I$213) * (ABS(SUM($W224:AP224))<ABS($I224)) -> 0 | AR224: =($I224 * ($I$212 - COUNT($W224:AQ224)) / $I$213) * (ABS(SUM($W224:AQ224))<ABS($I224)) -> 0 | AS224: =($I224 * ($I$212 - COUNT($W224:AR224)) / $I$213) * (ABS(SUM($W224:AR224))<ABS($I224)) -> 0 | AT224: =($I224 * ($I$212 - COUNT($W224:AS224)) / $I$213) * (ABS(SUM($W224:AS224))<ABS($I224)) -> 0
E225: 2010-03-31 | G225: £m 18/19 prices | I225: 0 | J225: > | AE225: =($I225 * ($I$212 - COUNT($W225:AD225)) / $I$213) * (ABS(SUM($W225:AD225))<ABS($I225)) -> 0 | AF225: =($I225 * ($I$212 - COUNT($W225:AE225)) / $I$213) * (ABS(SUM($W225:AE225))<ABS($I225)) -> 0 | AG225: =($I225 * ($I$212 - COUNT($W225:AF225)) / $I$213) * (ABS(SUM($W225:AF225))<ABS($I225)) -> 0 | AH225: =($I225 * ($I$212 - COUNT($W225:AG225)) / $I$213) * (ABS(SUM($W225:AG225))<ABS($I225)) -> 0 | AI225: =($I225 * ($I$212 - COUNT($W225:AH225)) / $I$213) * (ABS(SUM($W225:AH225))<ABS($I225)) -> 0 | AJ225: =($I225 * ($I$212 - COUNT($W225:AI225)) / $I$213) * (ABS(SUM($W225:AI225))<ABS($I225)) -> 0 | AK225: =($I225 * ($I$212 - COUNT($W225:AJ225)) / $I$213) * (ABS(SUM($W225:AJ225))<ABS($I225)) -> 0 | AL225: =($I225 * ($I$212 - COUNT($W225:AK225)) / $I$213) * (ABS(SUM($W225:AK225))<ABS($I225)) -> 0 | AM225: =($I225 * ($I$212 - COUNT($W225:AL225)) / $I$213) * (ABS(SUM($W225:AL225))<ABS($I225)) -> 0 | AN225: =($I225 * ($I$212 - COUNT($W225:AM225)) / $I$213) * (ABS(SUM($W225:AM225))<ABS($I225)) -> 0 | AO225: =($I225 * ($I$212 - COUNT($W225:AN225)) / $I$213) * (ABS(SUM($W225:AN225))<ABS($I225)) -> 0 | AP225: =($I225 * ($I$212 - COUNT($W225:AO225)) / $I$213) * (ABS(SUM($W225:AO225))<ABS($I225)) -> 0 | AQ225: =($I225 * ($I$212 - COUNT($W225:AP225)) / $I$213) * (ABS(SUM($W225:AP225))<ABS($I225)) -> 0 | AR225: =($I225 * ($I$212 - COUNT($W225:AQ225)) / $I$213) * (ABS(SUM($W225:AQ225))<ABS($I225)) -> 0 | AS225: =($I225 * ($I$212 - COUNT($W225:AR225)) / $I$213) * (ABS(SUM($W225:AR225))<ABS($I225)) -> 0 | AT225: =($I225 * ($I$212 - COUNT($W225:AS225)) / $I$213) * (ABS(SUM($W225:AS225))<ABS($I225)) -> 0
E226: 2011-03-31 | G226: £m 18/19 prices | I226: 0 | J226: > | AF226: =($I226 * ($I$212 - COUNT($W226:AE226)) / $I$213) * (ABS(SUM($W226:AE226))<ABS($I226)) -> 0 | AG226: =($I226 * ($I$212 - COUNT($W226:AF226)) / $I$213) * (ABS(SUM($W226:AF226))<ABS($I226)) -> 0 | AH226: =($I226 * ($I$212 - COUNT($W226:AG226)) / $I$213) * (ABS(SUM($W226:AG226))<ABS($I226)) -> 0 | AI226: =($I226 * ($I$212 - COUNT($W226:AH226)) / $I$213) * (ABS(SUM($W226:AH226))<ABS($I226)) -> 0 | AJ226: =($I226 * ($I$212 - COUNT($W226:AI226)) / $I$213) * (ABS(SUM($W226:AI226))<ABS($I226)) -> 0 | AK226: =($I226 * ($I$212 - COUNT($W226:AJ226)) / $I$213) * (ABS(SUM($W226:AJ226))<ABS($I226)) -> 0 | AL226: =($I226 * ($I$212 - COUNT($W226:AK226)) / $I$213) * (ABS(SUM($W226:AK226))<ABS($I226)) -> 0 | AM226: =($I226 * ($I$212 - COUNT($W226:AL226)) / $I$213) * (ABS(SUM($W226:AL226))<ABS($I226)) -> 0 | AN226: =($I226 * ($I$212 - COUNT($W226:AM226)) / $I$213) * (ABS(SUM($W226:AM226))<ABS($I226)) -> 0 | AO226: =($I226 * ($I$212 - COUNT($W226:AN226)) / $I$213) * (ABS(SUM($W226:AN226))<ABS($I226)) -> 0 | AP226: =($I226 * ($I$212 - COUNT($W226:AO226)) / $I$213) * (ABS(SUM($W226:AO226))<ABS($I226)) -> 0 | AQ226: =($I226 * ($I$212 - COUNT($W226:AP226)) / $I$213) * (ABS(SUM($W226:AP226))<ABS($I226)) -> 0 | AR226: =($I226 * ($I$212 - COUNT($W226:AQ226)) / $I$213) * (ABS(SUM($W226:AQ226))<ABS($I226)) -> 0 | AS226: =($I226 * ($I$212 - COUNT($W226:AR226)) / $I$213) * (ABS(SUM($W226:AR226))<ABS($I226)) -> 0 | AT226: =($I226 * ($I$212 - COUNT($W226:AS226)) / $I$213) * (ABS(SUM($W226:AS226))<ABS($I226)) -> 0
E227: 2012-03-31 | G227: £m 18/19 prices | I227: 0 | J227: > | AG227: =($I227 * ($I$212 - COUNT($W227:AF227)) / $I$213) * (ABS(SUM($W227:AF227))<ABS($I227)) -> 0 | AH227: =($I227 * ($I$212 - COUNT($W227:AG227)) / $I$213) * (ABS(SUM($W227:AG227))<ABS($I227)) -> 0 | AI227: =($I227 * ($I$212 - COUNT($W227:AH227)) / $I$213) * (ABS(SUM($W227:AH227))<ABS($I227)) -> 0 | AJ227: =($I227 * ($I$212 - COUNT($W227:AI227)) / $I$213) * (ABS(SUM($W227:AI227))<ABS($I227)) -> 0 | AK227: =($I227 * ($I$212 - COUNT($W227:AJ227)) / $I$213) * (ABS(SUM($W227:AJ227))<ABS($I227)) -> 0 | AL227: =($I227 * ($I$212 - COUNT($W227:AK227)) / $I$213) * (ABS(SUM($W227:AK227))<ABS($I227)) -> 0 | AM227: =($I227 * ($I$212 - COUNT($W227:AL227)) / $I$213) * (ABS(SUM($W227:AL227))<ABS($I227)) -> 0 | AN227: =($I227 * ($I$212 - COUNT($W227:AM227)) / $I$213) * (ABS(SUM($W227:AM227))<ABS($I227)) -> 0 | AO227: =($I227 * ($I$212 - COUNT($W227:AN227)) / $I$213) * (ABS(SUM($W227:AN227))<ABS($I227)) -> 0 | AP227: =($I227 * ($I$212 - COUNT($W227:AO227)) / $I$213) * (ABS(SUM($W227:AO227))<ABS($I227)) -> 0 | AQ227: =($I227 * ($I$212 - COUNT($W227:AP227)) / $I$213) * (ABS(SUM($W227:AP227))<ABS($I227)) -> 0 | AR227: =($I227 * ($I$212 - COUNT($W227:AQ227)) / $I$213) * (ABS(SUM($W227:AQ227))<ABS($I227)) -> 0 | AS227: =($I227 * ($I$212 - COUNT($W227:AR227)) / $I$213) * (ABS(SUM($W227:AR227))<ABS($I227)) -> 0 | AT227: =($I227 * ($I$212 - COUNT($W227:AS227)) / $I$213) * (ABS(SUM($W227:AS227))<ABS($I227)) -> 0
E228: 2013-03-31 | G228: £m 18/19 prices | I228: 0 | AH228: =($I228 * ($I$212 - COUNT($W228:AG228)) / $I$213) * (ABS(SUM($W228:AG228))<ABS($I228)) -> 0 | AI228: =($I228 * ($I$212 - COUNT($W228:AH228)) / $I$213) * (ABS(SUM($W228:AH228))<ABS($I228)) -> 0 | AJ228: =($I228 * ($I$212 - COUNT($W228:AI228)) / $I$213) * (ABS(SUM($W228:AI228))<ABS($I228)) -> 0 | AK228: =($I228 * ($I$212 - COUNT($W228:AJ228)) / $I$213) * (ABS(SUM($W228:AJ228))<ABS($I228)) -> 0 | AL228: =($I228 * ($I$212 - COUNT($W228:AK228)) / $I$213) * (ABS(SUM($W228:AK228))<ABS($I228)) -> 0 | AM228: =($I228 * ($I$212 - COUNT($W228:AL228)) / $I$213) * (ABS(SUM($W228:AL228))<ABS($I228)) -> 0 | AN228: =($I228 * ($I$212 - COUNT($W228:AM228)) / $I$213) * (ABS(SUM($W228:AM228))<ABS($I228)) -> 0 | AO228: =($I228 * ($I$212 - COUNT($W228:AN228)) / $I$213) * (ABS(SUM($W228:AN228))<ABS($I228)) -> 0 | AP228: =($I228 * ($I$212 - COUNT($W228:AO228)) / $I$213) * (ABS(SUM($W228:AO228))<ABS($I228)) -> 0 | AQ228: =($I228 * ($I$212 - COUNT($W228:AP228)) / $I$213) * (ABS(SUM($W228:AP228))<ABS($I228)) -> 0 | AR228: =($I228 * ($I$212 - COUNT($W228:AQ228)) / $I$213) * (ABS(SUM($W228:AQ228))<ABS($I228)) -> 0 | AS228: =($I228 * ($I$212 - COUNT($W228:AR228)) / $I$213) * (ABS(SUM($W228:AR228))<ABS($I228)) -> 0 | AT228: =($I228 * ($I$212 - COUNT($W228:AS228)) / $I$213) * (ABS(SUM($W228:AS228))<ABS($I228)) -> 0
E229: 2014-03-31 | G229: £m 18/19 prices | I229: 0 | AI229: =($I229 * ($I$212 - COUNT($W229:AH229)) / $I$213) * (ABS(SUM($W229:AH229))<ABS($I229)) -> 0 | AJ229: =($I229 * ($I$212 - COUNT($W229:AI229)) / $I$213) * (ABS(SUM($W229:AI229))<ABS($I229)) -> 0 | AK229: =($I229 * ($I$212 - COUNT($W229:AJ229)) / $I$213) * (ABS(SUM($W229:AJ229))<ABS($I229)) -> 0 | AL229: =($I229 * ($I$212 - COUNT($W229:AK229)) / $I$213) * (ABS(SUM($W229:AK229))<ABS($I229)) -> 0 | AM229: =($I229 * ($I$212 - COUNT($W229:AL229)) / $I$213) * (ABS(SUM($W229:AL229))<ABS($I229)) -> 0 | AN229: =($I229 * ($I$212 - COUNT($W229:AM229)) / $I$213) * (ABS(SUM($W229:AM229))<ABS($I229)) -> 0 | AO229: =($I229 * ($I$212 - COUNT($W229:AN229)) / $I$213) * (ABS(SUM($W229:AN229))<ABS($I229)) -> 0 | AP229: =($I229 * ($I$212 - COUNT($W229:AO229)) / $I$213) * (ABS(SUM($W229:AO229))<ABS($I229)) -> 0 | AQ229: =($I229 * ($I$212 - COUNT($W229:AP229)) / $I$213) * (ABS(SUM($W229:AP229))<ABS($I229)) -> 0 | AR229: =($I229 * ($I$212 - COUNT($W229:AQ229)) / $I$213) * (ABS(SUM($W229:AQ229))<ABS($I229)) -> 0 | AS229: =($I229 * ($I$212 - COUNT($W229:AR229)) / $I$213) * (ABS(SUM($W229:AR229))<ABS($I229)) -> 0 | AT229: =($I229 * ($I$212 - COUNT($W229:AS229)) / $I$213) * (ABS(SUM($W229:AS229))<ABS($I229)) -> 0
E230: 2015-03-31 | G230: £m 18/19 prices | I230: 0 | AJ230: =($I230 * ($I$212 - COUNT($W230:AI230)) / $I$213) * (ABS(SUM($W230:AI230))<ABS($I230)) -> 0 | AK230: =($I230 * ($I$212 - COUNT($W230:AJ230)) / $I$213) * (ABS(SUM($W230:AJ230))<ABS($I230)) -> 0 | AL230: =($I230 * ($I$212 - COUNT($W230:AK230)) / $I$213) * (ABS(SUM($W230:AK230))<ABS($I230)) -> 0 | AM230: =($I230 * ($I$212 - COUNT($W230:AL230)) / $I$213) * (ABS(SUM($W230:AL230))<ABS($I230)) -> 0 | AN230: =($I230 * ($I$212 - COUNT($W230:AM230)) / $I$213) * (ABS(SUM($W230:AM230))<ABS($I230)) -> 0 | AO230: =($I230 * ($I$212 - COUNT($W230:AN230)) / $I$213) * (ABS(SUM($W230:AN230))<ABS($I230)) -> 0 | AP230: =($I230 * ($I$212 - COUNT($W230:AO230)) / $I$213) * (ABS(SUM($W230:AO230))<ABS($I230)) -> 0 | AQ230: =($I230 * ($I$212 - COUNT($W230:AP230)) / $I$213) * (ABS(SUM($W230:AP230))<ABS($I230)) -> 0 | AR230: =($I230 * ($I$212 - COUNT($W230:AQ230)) / $I$213) * (ABS(SUM($W230:AQ230))<ABS($I230)) -> 0 | AS230: =($I230 * ($I$212 - COUNT($W230:AR230)) / $I$213) * (ABS(SUM($W230:AR230))<ABS($I230)) -> 0 | AT230: =($I230 * ($I$212 - COUNT($W230:AS230)) / $I$213) * (ABS(SUM($W230:AS230))<ABS($I230)) -> 0
E231: 2016-03-31 | G231: £m 18/19 prices | I231: 0 | AK231: =($I231 * ($I$212 - COUNT($W231:AJ231)) / $I$213) * (ABS(SUM($W231:AJ231))<ABS($I231)) -> 0 | AL231: =($I231 * ($I$212 - COUNT($W231:AK231)) / $I$213) * (ABS(SUM($W231:AK231))<ABS($I231)) -> 0 | AM231: =($I231 * ($I$212 - COUNT($W231:AL231)) / $I$213) * (ABS(SUM($W231:AL231))<ABS($I231)) -> 0 | AN231: =($I231 * ($I$212 - COUNT($W231:AM231)) / $I$213) * (ABS(SUM($W231:AM231))<ABS($I231)) -> 0 | AO231: =($I231 * ($I$212 - COUNT($W231:AN231)) / $I$213) * (ABS(SUM($W231:AN231))<ABS($I231)) -> 0 | AP231: =($I231 * ($I$212 - COUNT($W231:AO231)) / $I$213) * (ABS(SUM($W231:AO231))<ABS($I231)) -> 0 | AQ231: =($I231 * ($I$212 - COUNT($W231:AP231)) / $I$213) * (ABS(SUM($W231:AP231))<ABS($I231)) -> 0 | AR231: =($I231 * ($I$212 - COUNT($W231:AQ231)) / $I$213) * (ABS(SUM($W231:AQ231))<ABS($I231)) -> 0 | AS231: =($I231 * ($I$212 - COUNT($W231:AR231)) / $I$213) * (ABS(SUM($W231:AR231))<ABS($I231)) -> 0 | AT231: =($I231 * ($I$212 - COUNT($W231:AS231)) / $I$213) * (ABS(SUM($W231:AS231))<ABS($I231)) -> 0
E232: 2017-03-31 | G232: £m 18/19 prices | I232: 0 | AL232: =($I232 * ($I$212 - COUNT($W232:AK232)) / $I$213) * (ABS(SUM($W232:AK232))<ABS($I232)) -> 0 | AM232: =($I232 * ($I$212 - COUNT($W232:AL232)) / $I$213) * (ABS(SUM($W232:AL232))<ABS($I232)) -> 0 | AN232: =($I232 * ($I$212 - COUNT($W232:AM232)) / $I$213) * (ABS(SUM($W232:AM232))<ABS($I232)) -> 0 | AO232: =($I232 * ($I$212 - COUNT($W232:AN232)) / $I$213) * (ABS(SUM($W232:AN232))<ABS($I232)) -> 0 | AP232: =($I232 * ($I$212 - COUNT($W232:AO232)) / $I$213) * (ABS(SUM($W232:AO232))<ABS($I232)) -> 0 | AQ232: =($I232 * ($I$212 - COUNT($W232:AP232)) / $I$213) * (ABS(SUM($W232:AP232))<ABS($I232)) -> 0 | AR232: =($I232 * ($I$212 - COUNT($W232:AQ232)) / $I$213) * (ABS(SUM($W232:AQ232))<ABS($I232)) -> 0 | AS232: =($I232 * ($I$212 - COUNT($W232:AR232)) / $I$213) * (ABS(SUM($W232:AR232))<ABS($I232)) -> 0 | AT232: =($I232 * ($I$212 - COUNT($W232:AS232)) / $I$213) * (ABS(SUM($W232:AS232))<ABS($I232)) -> 0
E233: 2018-03-31 | G233: £m 18/19 prices | I233: 0 | AM233: =($I233 * ($I$212 - COUNT($W233:AL233)) / $I$213) * (ABS(SUM($W233:AL233))<ABS($I233)) -> 0 | AN233: =($I233 * ($I$212 - COUNT($W233:AM233)) / $I$213) * (ABS(SUM($W233:AM233))<ABS($I233)) -> 0 | AO233: =($I233 * ($I$212 - COUNT($W233:AN233)) / $I$213) * (ABS(SUM($W233:AN233))<ABS($I233)) -> 0 | AP233: =($I233 * ($I$212 - COUNT($W233:AO233)) / $I$213) * (ABS(SUM($W233:AO233))<ABS($I233)) -> 0 | AQ233: =($I233 * ($I$212 - COUNT($W233:AP233)) / $I$213) * (ABS(SUM($W233:AP233))<ABS($I233)) -> 0 | AR233: =($I233 * ($I$212 - COUNT($W233:AQ233)) / $I$213) * (ABS(SUM($W233:AQ233))<ABS($I233)) -> 0 | AS233: =($I233 * ($I$212 - COUNT($W233:AR233)) / $I$213) * (ABS(SUM($W233:AR233))<ABS($I233)) -> 0 | AT233: =($I233 * ($I$212 - COUNT($W233:AS233)) / $I$213) * (ABS(SUM($W233:AS233))<ABS($I233)) -> 0
E234: 2019-03-31 | G234: £m 18/19 prices | I234: 0 | AN234: =($I234 * ($I$212 - COUNT($W234:AM234)) / $I$213) * (ABS(SUM($W234:AM234))<ABS($I234)) -> 0 | AO234: =($I234 * ($I$212 - COUNT($W234:AN234)) / $I$213) * (ABS(SUM($W234:AN234))<ABS($I234)) -> 0 | AP234: =($I234 * ($I$212 - COUNT($W234:AO234)) / $I$213) * (ABS(SUM($W234:AO234))<ABS($I234)) -> 0 | AQ234: =($I234 * ($I$212 - COUNT($W234:AP234)) / $I$213) * (ABS(SUM($W234:AP234))<ABS($I234)) -> 0 | AR234: =($I234 * ($I$212 - COUNT($W234:AQ234)) / $I$213) * (ABS(SUM($W234:AQ234))<ABS($I234)) -> 0 | AS234: =($I234 * ($I$212 - COUNT($W234:AR234)) / $I$213) * (ABS(SUM($W234:AR234))<ABS($I234)) -> 0 | AT234: =($I234 * ($I$212 - COUNT($W234:AS234)) / $I$213) * (ABS(SUM($W234:AS234))<ABS($I234)) -> 0
E235: 2020-03-31 | G235: £m 18/19 prices | I235: 0 | AO235: =($I235 * ($I$212 - COUNT($W235:AN235)) / $I$213) * (ABS(SUM($W235:AN235))<ABS($I235)) -> 0 | AP235: =($I235 * ($I$212 - COUNT($W235:AO235)) / $I$213) * (ABS(SUM($W235:AO235))<ABS($I235)) -> 0 | AQ235: =($I235 * ($I$212 - COUNT($W235:AP235)) / $I$213) * (ABS(SUM($W235:AP235))<ABS($I235)) -> 0 | AR235: =($I235 * ($I$212 - COUNT($W235:AQ235)) / $I$213) * (ABS(SUM($W235:AQ235))<ABS($I235)) -> 0 | AS235: =($I235 * ($I$212 - COUNT($W235:AR235)) / $I$213) * (ABS(SUM($W235:AR235))<ABS($I235)) -> 0 | AT235: =($I235 * ($I$212 - COUNT($W235:AS235)) / $I$213) * (ABS(SUM($W235:AS235))<ABS($I235)) -> 0
... 42 more rows

Sheet FuelPoor
A1: Fuel Poor calculations | AI1: CADENT: | AJ1: EAST: | AK1: LONDON: | AL1: NW: | AM1: WM: | AN1: NORTH: | AO1: SCO: | AP1: SOUTH: | AQ1: W&W:
B2: =UserInterface!G17 -> Northern
E3: Parameter | G3: Units | I3: Constant | AH3: Annual values
E4: PCFM year ending | I4: =UserInterface!$G$10 -> 2028-03-31 | K4: 1991-03-31 | L4: 1992-03-31 | M4: 1993-03-31 | N4: 1994-03-31 | O4: 1995-03-31 | P4: 1996-03-31 | Q4: 1997-03-31 | R4: 1998-03-31 | S4: 1999-03-31 | T4: 2000-03-31 | U4: 2001-03-31 | V4: 2002-03-31 | W4: 2003-03-31 | X4: 2004-03-31 | Y4: 2005-03-31 | Z4: 2006-03-31 | AA4: 2007-03-31 | AB4: 2008-03-31 | AC4: 2009-03-31 | AD4: 2010-03-31 | AE4: 2011-03-31 | AF4: 2012-03-31 | AG4: 2013-03-31 | AH4: 2014-03-31 | AI4: 2015-03-31 | AJ4: 2016-03-31 | AK4: 2017-03-31 | AL4: 2018-03-31 | AM4: 2019-03-31 | AN4: 2020-03-31 | AO4: 2021-03-31 | AP4: 2022-03-31 | AQ4: 2023-03-31 | AR4: 2024-03-31 | AS4: 2025-03-31 | AT4: 2026-03-31
B6: Fuel Poor RAV
C8: Exported values
E10: Opening Cost | G10: £m 18/19 prices | J10: > | AD10: =AC14 -> 0 | AE10: 1.496152249 | AF10: 2.911483606 | AG10: 5.883098783 | AH10: 8.582030518 | AI10: 8.582030518 | AJ10: 8.582030518 | AK10: 8.582030518 | AL10: 8.582030518 | AM10: 8.582030518 | AN10: 8.582030518 | AO10: 8.582030518 | AP10: =AO14 -> 8.582030518 | AQ10: =AP14 -> 8.582030518 | AR10: =AQ14 -> 8.582030518 | AS10: =AR14 -> 8.582030518 | AT10: =AS14 -> 8.582030518
E11: Community based scheme - Actual capex | G11: £m 18/19 prices | J11: > | AC11: =AC49+AC77+AC105+AC133+AC161 -> 0 | AD11: =AD49+AD77+AD105+AD133+AD161 -> 1.199184412 | AE11: 0.6184092287 | AF11: 0.779994077 | AG11: 1.248198482 | AH11: 0 | AI11: 0 | AJ11: 0 | AK11: 0 | AL11: 0 | AM11: 0 | AN11: 0 | AO11: 0 | AP11: =AP49+AP77+AP105+AP133+AP161 -> 0 | AQ11: 0 | AR11: 0 | AS11: 0 | AT11: 0
E12: Community based scheme - Additional customer discount | G12: £m 18/19 prices | J12: > | AC12: =AC50+AC78+AC106+AC134+AC162 -> 0 | AD12: =AD50+AD78+AD106+AD134+AD162 -> 0.2969678378 | AE12: 0.2855759955 | AF12: 0.9203788721 | AG12: 0.4521744667 | AH12: 0 | AI12: 0 | AJ12: 0 | AK12: 0 | AL12: 0 | AM12: 0 | AN12: 0 | AO12: 0 | AP12: =AP50+AP78+AP106+AP134+AP162 -> 0 | AQ12: 0 | AR12: 0 | AS12: 0 | AT12: 0
E13: One off schemes - Actual capex | G13: £m 18/19 prices | J13: > | AC13: =AC51+AC79+AC107+AC135+AC163 -> 0 | AD13: =AD51+AD79+AD107+AD135+AD163 -> 0 | AE13: =AE51+AE79+AE107+AE135+AE163 -> 0.5113461323 | AF13: 1.271242228 | AG13: 0.9985587859 | AH13: 0 | AI13: 0 | AJ13: 0 | AK13: 0 | AL13: 0 | AM13: 0 | AN13: 0 | AO13: 0 | AP13: =AP51+AP79+AP107+AP135+AP163 -> 0 | AQ13: 0 | AR13: 0 | AS13: 0 | AT13: 0
E14: Closing Cost | G14: £m 18/19 prices | J14: > | AC14: =SUM(AC10:AC13) -> 0 | AD14: =SUM(AD10:AD13) -> 1.496152249 | AE14: =SUM(AE10:AE13) -> 2.911483606 | AF14: 5.883098783 | AG14: 8.582030518 | AH14: 8.582030518 | AI14: 8.582030518 | AJ14: 8.582030518 | AK14: 8.582030518 | AL14: 8.582030518 | AM14: 8.582030518 | AN14: 8.582030518 | AO14: 8.582030518 | AP14: =SUM(AP10:AP13) -> 8.582030518 | AQ14: 8.582030518 | AR14: 8.582030518 | AS14: 8.582030518 | AT14: 8.582030518
E16: Opening Depreciation | G16: £m 18/19 prices | J16: > | AD16: =AC20 -> 0 | AE16: =AD20 -> 0 | AF16: 0.1115320202 | AG16: 0.3281404056 | AH16: 0.8157585692 | AI16: 1.487264671 | AJ16: 2.152367938 | AK16: 2.751674803 | AL16: 3.287463636 | AM16: 3.632773859 | AN16: 3.881246355 | AO16: 4.123316018 | AP16: =AO20 -> 4.358982845 | AQ16: =AP20 -> 4.588246839 | AR16: =AQ20 -> 4.811107999 | AS16: =AR20 -> 5.027566324 | AT16: =AS20 -> 5.237621816
E17: Depreciation Community based scheme - Actual capex | G17: £m 18/19 prices | J17: > | AC17: =AC57 + AC85 + AC113 + AC141 + AC169 -> 0 | AD17: =AD57 + AD85 + AD113 + AD141 + AD169 -> 0 | AE17: 0.05213845268 | AF17: =AF57 + AF85 + AF113 + AF141 + AF169 -> 0.07786717816 | AG17: 0.110023835 | AH17: 0.1617835876 | AI17: 0.1580678522 | AJ17: 0.1543521167 | AK17: 0.1506363813 | AL17: 0.1469206458 | AM17: 0.1432049104 | AN17: 0.1394891749 | AO17: 0.1357734394 | AP17: =AP57 + AP85 + AP113 + AP141 + AP169 -> 0.132057704 | AQ17: 0.1283419685 | AR17: 0.1246262331 | AS17: 0.1209104976 | AT17: 0.1171947621
E18: Depreciation Community based scheme - Additional customer discount | G18: £m 18/19 prices | J18: > | AC18: =AC58 + AC86 + AC114 + AC142 + AC170 -> 0 | AD18: 0 | AE18: 0.05939356755 | AF18: 0.1165087667 | AG18: 0.3005845411 | AH18: 0.3910194344 | AI18: =AI58 + AI86 + AI114 + AI142 + AI170 -> 0.3910194344 | AJ18: 0.3316258669 | AK18: 0.2745106678 | AL18: 0.09043489334 | AM18: 0 | AN18: 0 | AO18: 0 | AP18: =AP58 + AP86 + AP114 + AP142 + AP170 -> 0 | AQ18: 0 | AR18: 0 | AS18: 0 | AT18: 0
E19: Depreciation One off schemes - Actual capex | G19: £m 18/19 prices | J19: > | AC19: 0 | AD19: 0 | AE19: 0 | AF19: 0.02223244053 | AG19: 0.07700978752 | AH19: 0.1187030793 | AI19: 0.1160159806 | AJ19: 0.1133288819 | AK19: 0.1106417832 | AL19: 0.1079546845 | AM19: 0.1052675859 | AN19: 0.1025804872 | AO19: 0.09989338847 | AP19: =AP59 + AP87 + AP115 + AP143 + AP171 -> 0.09720628978 | AQ19: 0.09451919109 | AR19: 0.09183209239 | AS19: 0.0891449937 | AT19: 0.08645789501
E20: Closing depreciation | G20: £m 18/19 prices | J20: > | AC20: =SUM(AC16:AC19) -> 0 | AD20: =SUM(AD16:AD19) -> 0 | AE20: =SUM(AE16:AE19) -> 0.1115320202 | AF20: 0.3281404056 | AG20: 0.8157585692 | AH20: 1.487264671 | AI20: 2.152367938 | AJ20: 2.751674803 | AK20: 3.287463636 | AL20: 3.632773859 | AM20: 3.881246355 | AN20: 4.123316018 | AO20: 4.358982845 | AP20: =SUM(AP16:AP19) -> 4.588246839 | AQ20: 4.811107999 | AR20: 5.027566324 | AS20: 5.237621816 | AT20: 5.441274473
E22: Net value after regulatory depreciation | G22: £m 18/19 prices | J22: > | AC22: =AC14 - AC20 -> 0 | AD22: =AD14 - AD20 -> 1.496152249 | AE22: 2.799951586 | AF22: 5.554958377 | AG22: 7.766271949 | AH22: 7.094765847 | AI22: 6.42966258 | AJ22: 5.830355715 | AK22: 5.294566882 | AL22: 4.949256659 | AM22: 4.700784163 | AN22: 4.4587145 | AO22: 4.223047673 | AP22: =AP14 - AP20 -> 3.993783679 | AQ22: 3.770922519 | AR22: 3.554464194 | AS22: 3.344408702 | AT22: 3.140756045
C24: Fuel poor additions to RAV
E26: NPV of future transportation revenue | G26: £m 18/19 prices | J26: > | AC26: =Input!AC362 -> 0 | AD26: =Input!AD362 -> 1.496152249 | AE26: =Input!AE362 -> 0.9039852242 | AF26: =Input!AF362 -> 1.700372949 | AG26: =Input!AG362 -> 1.700372949 | AH26: =Input!AH362 -> 0 | AI26: =Input!AI362 -> 0 | AJ26: =Input!AJ362 -> 0 | AK26: =Input!AK362 -> 0 | AL26: =Input!AL362 -> 0 | AM26: =Input!AM362 -> 0 | AN26: =Input!AN362 -> 0 | AO26: =Input!AO362 -> 0 | AP26: =Input!AP362 -> 0 | AQ26: =Input!AQ362 -> 0 | AR26: =Input!AR362 -> 0 | AS26: =Input!AS362 -> 0 | AT26: =Input!AT362 -> 0
E27: Community based schemes actual capex spend | G27: £m 18/19 prices | J27: > | AC27: =Input!AC363 -> 0 | AD27: =Input!AD363 -> 1.199184412 | AE27: =Input!AE363 -> 0.6184092287 | AF27: =Input!AF363 -> 0.779994077 | AG27: =Input!AG363 -> 1.248198482 | AH27: =Input!AH363 -> 0 | AI27: =Input!AI363 -> 0 | AJ27: =Input!AJ363 -> 0 | AK27: =Input!AK363 -> 0 | AL27: =Input!AL363 -> 0 | AM27: =Input!AM363 -> 0 | AN27: =Input!AN363 -> 0 | AO27: =Input!AO363 -> 0 | AP27: =Input!AP363 -> 0 | AQ27: =Input!AQ363 -> 0 | AR27: =Input!AR363 -> 0 | AS27: =Input!AS363 -> 0 | AT27: =Input!AT363 -> 0
E28: Community based schemes additional customer discount | G28: £m 18/19 prices | J28: > | AC28: =IF(AC26>=AC27,AC26-AC27,0) -> 0 | AD28: =IF(AD26>=AD27,AD26-AD27,0) -> 0.2969678378 | AE28: =IF(AE26>=AE27,AE26-AE27,0) -> 0.2855759955 | AF28: =IF(AF26>=AF27,AF26-AF27,0) -> 0.9203788721 | AG28: =IF(AG26>=AG27,AG26-AG27,0) -> 0.4521744667 | AH28: =IF(AH26>=AH27,AH26-AH27,0) -> 0 | AI28: 0 | AJ28: 0 | AK28: 0 | AL28: 0 | AM28: 0 | AN28: 0 | AO28: 0 | AP28: 0 | AQ28: 0 | AR28: 0 | AS28: 0 | AT28: 0
E29: One off schemes actual capex spend | G29: £m 18/19 prices | J29: > | AC29: =Input!AC365 -> 0 | AD29: =Input!AD365 -> 0 | AE29: =Input!AE365 -> 0.5113461323 | AF29: =Input!AF365 -> 1.271242228 | AG29: =Input!AG365 -> 0.9985587859 | AH29: =Input!AH365 -> 0 | AI29: =Input!AI365 -> 0 | AJ29: =Input!AJ365 -> 0 | AK29: =Input!AK365 -> 0 | AL29: =Input!AL365 -> 0 | AM29: =Input!AM365 -> 0 | AN29: =Input!AN365 -> 0 | AO29: =Input!AO365 -> 0 | AP29: =Input!AP365 -> 0 | AQ29: =Input!AQ365 -> 0 | AR29: =Input!AR365 -> 0 | AS29: =Input!AS365 -> 0 | AT29: =Input!AT365 -> 0
C31: Common inputs
E33: Pre-vesting asset life | G33: years | I33: =Input!I359 -> 45
E34: Sum of digits | G34: integer | I34: =I33 * (1 + I33) / 2 -> 1035
E36: Years additional customer discount applied | G36: years | I36: =Input!I360 -> 5
B38: 2009 Schemes
C40: Input
E42: Scheme year | G42: year ending | I42: 2009-03-31
C44: RAV
D46: Cost
E48: Opening balance brought forward | G48: £m 18/19 prices | J48: > | AD48: =AC52 -> 0 | AE48: =AD52 -> 0 | AF48: 0 | AG48: 0 | AH48: 0 | AI48: 0 | AJ48: 0 | AK48: 0 | AL48: 0 | AM48: 0 | AN48: 0 | AO48: 0 | AP48: =AO52 -> 0 | AQ48: =AP52 -> 0 | AR48: =AQ52 -> 0 | AS48: =AR52 -> 0 | AT48: =AS52 -> 0
E49: Community based scheme - Actual capex | G49: £m 18/19 prices | J49: > | AC49: =IF($I42 = AC$4, AC$27, 0) -> 0 | AD49: 0 | AE49: 0 | AF49: 0 | AG49: 0 | AH49: 0 | AI49: 0 | AJ49: 0 | AK49: 0 | AL49: 0 | AM49: 0 | AN49: 0 | AO49: 0 | AP49: =IF($I42 = AP$4, AP$27, 0) -> 0 | AQ49: 0 | AR49: 0 | AS49: 0 | AT49: 0
E50: Community based scheme - Additional customer discount | G50: £m 18/19 prices | J50: > | AC50: =IF($I42 = AC$4, AC$28, 0) -> 0 | AD50: 0 | AE50: 0 | AF50: 0 | AG50: 0 | AH50: 0 | AI50: 0 | AJ50: 0 | AK50: 0 | AL50: 0 | AM50: 0 | AN50: 0 | AO50: 0 | AP50: =IF($I42 = AP$4, AP$28, 0) -> 0 | AQ50: 0 | AR50: 0 | AS50: 0 | AT50: 0
E51: One off schemes - Actual capex | G51: £m 18/19 prices | J51: > | AC51: =IF($I42 = AC$4, AC$29, 0) -> 0 | AD51: 0 | AE51: 0 | AF51: 0 | AG51: 0 | AH51: 0 | AI51: 0 | AJ51: 0 | AK51: 0 | AL51: 0 | AM51: 0 | AN51: 0 | AO51: 0 | AP51: =IF($I42 = AP$4, AP$29, 0) -> 0 | AQ51: 0 | AR51: 0 | AS51: 0 | AT51: 0
E52: Balance carried forward | G52: £m 18/19 prices | J52: > | AC52: =SUM(AC48:AC51) -> 0 | AD52: 0 | AE52: 0 | AF52: 0 | AG52: 0 | AH52: 0 | AI52: 0 | AJ52: 0 | AK52: 0 | AL52: 0 | AM52: 0 | AN52: 0 | AO52: 0 | AP52: =SUM(AP48:AP51) -> 0 | AQ52: 0 | AR52: 0 | AS52: 0 | AT52: 0
D54: Depreciation
E56: Opening balance brought forward | G56: £m 18/19 prices | J56: > | AD56: =AC60 -> 0 | AE56: =AD60 -> 0 | AF56: =AE60 -> 0 | AG56: 0 | AH56: 0 | AI56: 0 | AJ56: 0 | AK56: 0 | AL56: 0 | AM56: 0 | AN56: 0 | AO56: 0 | AP56: =AO60 -> 0 | AQ56: =AP60 -> 0 | AR56: =AQ60 -> 0 | AS56: =AR60 -> 0 | AT56: =AS60 -> 0
E57: Community based scheme - Actual capex | G57: £m 18/19 prices | J57: > | AC57: =SUM(AB49:$AB49)*($I$33-(YEAR(AC$4) - YEAR($I42)) + 1)/$I$34 -> 0 | AD57: =SUM($AB49:AC49)*($I$33-(YEAR(AD$4) - YEAR($I42)) + 1)/$I$34 -> 0 | AE57: =SUM($AB49:AD49)*($I$33-(YEAR(AE$4) - YEAR($I42)) + 1)/$I$34 -> 0 | AF57: =SUM($AB49:AE49)*($I$33-(YEAR(AF$4) - YEAR($I42)) + 1)/$I$34 -> 0 | AG57: =SUM($AB49:AF49)*($I$33-(YEAR(AG$4) - YEAR($I42)) + 1)/$I$34 -> 0 | AH57: =SUM($AB49:AG49)*($I$33-(YEAR(AH$4) - YEAR($I42)) + 1)/$I$34 -> 0 | AI57: =SUM($AB49:AH49)*($I$33-(YEAR(AI$4) - YEAR($I42)) + 1)/$I$34 -> 0 | AJ57: =SUM($AB49:AI49)*($I$33-(YEAR(AJ$4) - YEAR($I42)) + 1)/$I$34 -> 0 | AK57: =SUM($AB49:AJ49)*($I$33-(YEAR(AK$4) - YEAR($I42)) + 1)/$I$34 -> 0 | AL57: =SUM($AB49:AK49)*($I$33-(YEAR(AL$4) - YEAR($I42)) + 1)/$I$34 -> 0 | AM57: =SUM($AB49:AL49)*($I$33-(YEAR(AM$4) - YEAR($I42)) + 1)/$I$34 -> 0 | AN57: =SUM($AB49:AM49)*($I$33-(YEAR(AN$4) - YEAR($I42)) + 1)/$I$34 -> 0 | AO57: =SUM($AB49:AN49)*($I$33-(YEAR(AO$4) - YEAR($I42)) + 1)/$I$34 -> 0 | AP57: =SUM($AB49:AO49)*($I$33-(YEAR(AP$4) - YEAR($I42)) + 1)/$I$34 -> 0 | AQ57: =SUM($AB49:AP49)*($I$33-(YEAR(AQ$4) - YEAR($I42)) + 1)/$I$34 -> 0 | AR57: =SUM($AB49:AQ49)*($I$33-(YEAR(AR$4) - YEAR($I42)) + 1)/$I$34 -> 0 | AS57: =SUM($AB49:AR49)*($I$33-(YEAR(AS$4) - YEAR($I42)) + 1)/$I$34 -> 0 | AT57: =SUM($AB49:AS49)*($I$33-(YEAR(AT$4) - YEAR($I42)) + 1)/$I$34 -> 0
E58: Community based scheme - Additional customer discount | G58: £m 18/19 prices | J58: > | AC58: =IF(YEAR(AC$4) - YEAR($I42) <= $I$36, SUM(AB50:$AB50) / $I$36, 0) -> 0 | AD58: =IF(YEAR(AD$4) - YEAR($I42) <= $I$36, SUM($AB50:AC50) / $I$36, 0) -> 0 | AE58: =IF(YEAR(AE$4) - YEAR($I42) <= $I$36, SUM($AB50:AD50) / $I$36, 0) -> 0 | AF58: =IF(YEAR(AF$4) - YEAR($I42) <= $I$36, SUM($AB50:AE50) / $I$36, 0) -> 0 | AG58: =IF(YEAR(AG$4) - YEAR($I42) <= $I$36, SUM($AB50:AF50) / $I$36, 0) -> 0 | AH58: =IF(YEAR(AH$4) - YEAR($I42) <= $I$36, SUM($AB50:AG50) / $I$36, 0) -> 0 | AI58: =IF(YEAR(AI$4) - YEAR($I42) <= $I$36, SUM($AB50:AH50) / $I$36, 0) -> 0 | AJ58: =IF(YEAR(AJ$4) - YEAR($I42) <= $I$36, SUM($AB50:AI50) / $I$36, 0) -> 0 | AK58: =IF(YEAR(AK$4) - YEAR($I42) <= $I$36, SUM($AB50:AJ50) / $I$36, 0) -> 0 | AL58: =IF(YEAR(AL$4) - YEAR($I42) <= $I$36, SUM($AB50:AK50) / $I$36, 0) -> 0 | AM58: =IF(YEAR(AM$4) - YEAR($I42) <= $I$36, SUM($AB50:AL50) / $I$36, 0) -> 0 | AN58: =IF(YEAR(AN$4) - YEAR($I42) <= $I$36, SUM($AB50:AM50) / $I$36, 0) -> 0 | AO58: =IF(YEAR(AO$4) - YEAR($I42) <= $I$36, SUM($AB50:AN50) / $I$36, 0) -> 0 | AP58: =IF(YEAR(AP$4) - YEAR($I42) <= $I$36, SUM($AB50:AO50) / $I$36, 0) -> 0 | AQ58: =IF(YEAR(AQ$4) - YEAR($I42) <= $I$36, SUM($AB50:AP50) / $I$36, 0) -> 0 | AR58: =IF(YEAR(AR$4) - YEAR($I42) <= $I$36, SUM($AB50:AQ50) / $I$36, 0) -> 0 | AS58: =IF(YEAR(AS$4) - YEAR($I42) <= $I$36, SUM($AB50:AR50) / $I$36, 0) -> 0 | AT58: =IF(YEAR(AT$4) - YEAR($I42) <= $I$36, SUM($AB50:AS50) / $I$36, 0) -> 0
E59: One off schemes - Actual capex | G59: £m 18/19 prices | J59: > | AC59: =SUM(AB51:$AB51)*($I$33-(YEAR(AC$4) - YEAR($I42)) + 1)/$I$34 -> 0 | AD59: =SUM($AB51:AC51)*($I$33-(YEAR(AD$4) - YEAR($I42)) + 1)/$I$34 -> 0 | AE59: =SUM($AB51:AD51)*($I$33-(YEAR(AE$4) - YEAR($I42)) + 1)/$I$34 -> 0 | AF59: =SUM($AB51:AE51)*($I$33-(YEAR(AF$4) - YEAR($I42)) + 1)/$I$34 -> 0 | AG59: =SUM($AB51:AF51)*($I$33-(YEAR(AG$4) - YEAR($I42)) + 1)/$I$34 -> 0 | AH59: =SUM($AB51:AG51)*($I$33-(YEAR(AH$4) - YEAR($I42)) + 1)/$I$34 -> 0 | AI59: =SUM($AB51:AH51)*($I$33-(YEAR(AI$4) - YEAR($I42)) + 1)/$I$34 -> 0 | AJ59: =SUM($AB51:AI51)*($I$33-(YEAR(AJ$4) - YEAR($I42)) + 1)/$I$34 -> 0 | AK59: =SUM($AB51:AJ51)*($I$33-(YEAR(AK$4) - YEAR($I42)) + 1)/$I$34 -> 0 | AL59: =SUM($AB51:AK51)*($I$33-(YEAR(AL$4) - YEAR($I42)) + 1)/$I$34 -> 0 | AM59: =SUM($AB51:AL51)*($I$33-(YEAR(AM$4) - YEAR($I42)) + 1)/$I$34 -> 0 | AN59: =SUM($AB51:AM51)*($I$33-(YEAR(AN$4) - YEAR($I42)) + 1)/$I$34 -> 0 | AO59: =SUM($AB51:AN51)*($I$33-(YEAR(AO$4) - YEAR($I42)) + 1)/$I$34 -> 0 | AP59: =SUM($AB51:AO51)*($I$33-(YEAR(AP$4) - YEAR($I42)) + 1)/$I$34 -> 0 | AQ59: =SUM($AB51:AP51)*($I$33-(YEAR(AQ$4) - YEAR($I42)) + 1)/$I$34 -> 0 | AR59: =SUM($AB51:AQ51)*($I$33-(YEAR(AR$4) - YEAR($I42)) + 1)/$I$34 -> 0 | AS59: =SUM($AB51:AR51)*($I$33-(YEAR(AS$4) - YEAR($I42)) + 1)/$I$34 -> 0 | AT59: =SUM($AB51:AS51)*($I$33-(YEAR(AT$4) - YEAR($I42)) + 1)/$I$34 -> 0
E60: Closing value carried forward | G60: £m 18/19 prices | J60: > | AC60: =SUM(AC56:AC59) -> 0 | AD60: 0 | AE60: 0 | AF60: 0 | AG60: 0 | AH60: 0 | AI60: 0 | AJ60: 0 | AK60: 0 | AL60: 0 | AM60: 0 | AN60: 0 | AO60: 0 | AP60: =SUM(AP56:AP59) -> 0 | AQ60: 0 | AR60: 0 | AS60: 0 | AT60: 0
D62: Net value after regulatory depreciation
E64: Net value after regulatory depreciation | G64: £m 18/19 prices | J64: > | AC64: =AC52-AC60 -> 0 | AD64: =AD52-AD60 -> 0 | AE64: 0 | AF64: 0 | AG64: 0 | AH64: 0 | AI64: 0 | AJ64: 0 | AK64: 0 | AL64: 0 | AM64: 0 | AN64: 0 | AO64: 0 | AP64: 0 | AQ64: 0 | AR64: 0 | AS64: 0 | AT64: 0
B66: 2010 Schemes
C68: Input
E70: Scheme year | G70: year ending | I70: 2010-03-31
C72: RAV
D74: Cost
E76: Opening balance brought forward | G76: £m 18/19 prices | J76: > | AD76: =AC80 -> 0 | AE76: =AD80 -> 1.496152249 | AF76: 1.496152249 | AG76: 1.496152249 | AH76: 1.496152249 | AI76: 1.496152249 | AJ76: 1.496152249 | AK76: 1.496152249 | AL76: 1.496152249 | AM76: 1.496152249 | AN76: 1.496152249 | AO76: 1.496152249 | AP76: =AO80 -> 1.496152249 | AQ76: =AP80 -> 1.496152249 | AR76: =AQ80 -> 1.496152249 | AS76: =AR80 -> 1.496152249 | AT76: =AS80 -> 1.496152249
E77: Community based scheme - Actual capex | G77: £m 18/19 prices | J77: > | AC77: =IF($I70 = AC$4, AC$27, 0) -> 0 | AD77: 1.199184412 | AE77: 0 | AF77: 0 | AG77: 0 | AH77: 0 | AI77: 0 | AJ77: 0 | AK77: 0 | AL77: 0 | AM77: 0 | AN77: 0 | AO77: 0 | AP77: =IF($I70 = AP$4, AP$27, 0) -> 0 | AQ77: 0 | AR77: 0 | AS77: 0 | AT77: 0
E78: Community based scheme - Additional customer discount | G78: £m 18/19 prices | J78: > | AC78: =IF($I70 = AC$4, AC$28, 0) -> 0 | AD78: 0.2969678378 | AE78: 0 | AF78: 0 | AG78: 0 | AH78: 0 | AI78: 0 | AJ78: 0 | AK78: 0 | AL78: 0 | AM78: 0 | AN78: 0 | AO78: 0 | AP78: =IF($I70 = AP$4, AP$28, 0) -> 0 | AQ78: 0 | AR78: 0 | AS78: 0 | AT78: 0
E79: One off schemes - Actual capex | G79: £m 18/19 prices | J79: > | AC79: =IF($I70 = AC$4, AC$29, 0) -> 0 | AD79: =IF($I70 = AD$4, AD$29, 0) -> 0 | AE79: 0 | AF79: 0 | AG79: 0 | AH79: 0 | AI79: 0 | AJ79: 0 | AK79: 0 | AL79: 0 | AM79: 0 | AN79: 0 | AO79: 0 | AP79: =IF($I70 = AP$4, AP$29, 0) -> 0 | AQ79: 0 | AR79: 0 | AS79: 0 | AT79: 0
E80: Balance carried forward | G80: £m 18/19 prices | J80: > | AC80: =SUM(AC76:AC79) -> 0 | AD80: 1.496152249 | AE80: 1.496152249 | AF80: 1.496152249 | AG80: 1.496152249 | AH80: 1.496152249 | AI80: 1.496152249 | AJ80: 1.496152249 | AK80: 1.496152249 | AL80: 1.496152249 | AM80: 1.496152249 | AN80: 1.496152249 | AO80: 1.496152249 | AP80: =SUM(AP76:AP79) -> 1.496152249 | AQ80: 1.496152249 | AR80: 1.496152249 | AS80: 1.496152249 | AT80: 1.496152249
D82: Depreciation
E84: Opening balance brought forward | G84: £m 18/19 prices | J84: > | AD84: =AC88 -> 0 | AE84: =AD88 -> 0 | AF84: =AE88 -> 0.1115320202 | AG84: 0.2219054082 | AH84: 0.3311201638 | AI84: 0.4391762872 | AJ84: 0.5460737783 | AK84: 0.5924190696 | AL84: 0.6376057286 | AM84: 0.6816337553 | AN84: 0.7245031497 | AO84: 0.7662139118 | AP84: =AO88 -> 0.8067660417 | AQ84: =AP88 -> 0.8461595393 | AR84: =AQ88 -> 0.8843944046 | AS84: =AR88 -> 0.9214706376 | AT84: =AS88 -> 0.9573882383
E85: Community based scheme - Actual capex | G85: £m 18/19 prices | J85: > | AC85: =SUM(AB77:$AB77)*($I$33-(YEAR(AC$4) - YEAR($I70)) + 1)/$I$34 -> 0 | AD85: =SUM($AB77:AC77)*($I$33-(YEAR(AD$4) - YEAR($I70)) + 1)/$I$34 -> 0 | AE85: =SUM($AB77:AD77)*($I$33-(YEAR(AE$4) - YEAR($I70)) + 1)/$I$34 -> 0.05213845268 | AF85: =SUM($AB77:AE77)*($I$33-(YEAR(AF$4) - YEAR($I70)) + 1)/$I$34 -> 0.05097982039 | AG85: =SUM($AB77:AF77)*($I$33-(YEAR(AG$4) - YEAR($I70)) + 1)/$I$34 -> 0.04982118811 | AH85: =SUM($AB77:AG77)*($I$33-(YEAR(AH$4) - YEAR($I70)) + 1)/$I$34 -> 0.04866255583 | AI85: =SUM($AB77:AH77)*($I$33-(YEAR(AI$4) - YEAR($I70)) + 1)/$I$34 -> 0.04750392355 | AJ85: =SUM($AB77:AI77)*($I$33-(YEAR(AJ$4) - YEAR($I70)) + 1)/$I$34 -> 0.04634529127 | AK85: =SUM($AB77:AJ77)*($I$33-(YEAR(AK$4) - YEAR($I70)) + 1)/$I$34 -> 0.04518665899 | AL85: =SUM($AB77:AK77)*($I$33-(YEAR(AL$4) - YEAR($I70)) + 1)/$I$34 -> 0.0440280267 | AM85: =SUM($AB77:AL77)*($I$33-(YEAR(AM$4) - YEAR($I70)) + 1)/$I$34 -> 0.04286939442 | AN85: =SUM($AB77:AM77)*($I$33-(YEAR(AN$4) - YEAR($I70)) + 1)/$I$34 -> 0.04171076214 | AO85: =SUM($AB77:AN77)*($I$33-(YEAR(AO$4) - YEAR($I70)) + 1)/$I$34 -> 0.04055212986 | AP85: =SUM($AB77:AO77)*($I$33-(YEAR(AP$4) - YEAR($I70)) + 1)/$I$34 -> 0.03939349758 | AQ85: =SUM($AB77:AP77)*($I$33-(YEAR(AQ$4) - YEAR($I70)) + 1)/$I$34 -> 0.0382348653 | AR85: =SUM($AB77:AQ77)*($I$33-(YEAR(AR$4) - YEAR($I70)) + 1)/$I$34 -> 0.03707623301 | AS85: =SUM($AB77:AR77)*($I$33-(YEAR(AS$4) - YEAR($I70)) + 1)/$I$34 -> 0.03591760073 | AT85: =SUM($AB77:AS77)*($I$33-(YEAR(AT$4) - YEAR($I70)) + 1)/$I$34 -> 0.03475896845
E86: Community based scheme - Additional customer discount | G86: £m 18/19 prices | J86: > | AC86: =IF(YEAR(AC$4) - YEAR($I70) <= $I$36, SUM(AB78:$AB78) / $I$36, 0) -> 0 | AD86: =IF(YEAR(AD$4) - YEAR($I70) <= $I$36, SUM($AB78:AC78) / $I$36, 0) -> 0 | AE86: =IF(YEAR(AE$4) - YEAR($I70) <= $I$36, SUM($AB78:AD78) / $I$36, 0) -> 0.05939356755 | AF86: =IF(YEAR(AF$4) - YEAR($I70) <= $I$36, SUM($AB78:AE78) / $I$36, 0) -> 0.05939356755 | AG86: =IF(YEAR(AG$4) - YEAR($I70) <= $I$36, SUM($AB78:AF78) / $I$36, 0) -> 0.05939356755 | AH86: =IF(YEAR(AH$4) - YEAR($I70) <= $I$36, SUM($AB78:AG78) / $I$36, 0) -> 0.05939356755 | AI86: =IF(YEAR(AI$4) - YEAR($I70) <= $I$36, SUM($AB78:AH78) / $I$36, 0) -> 0.05939356755 | AJ86: =IF(YEAR(AJ$4) - YEAR($I70) <= $I$36, SUM($AB78:AI78) / $I$36, 0) -> 0 | AK86: =IF(YEAR(AK$4) - YEAR($I70) <= $I$36, SUM($AB78:AJ78) / $I$36, 0) -> 0 | AL86: =IF(YEAR(AL$4) - YEAR($I70) <= $I$36, SUM($AB78:AK78) / $I$36, 0) -> 0 | AM86: =IF(YEAR(AM$4) - YEAR($I70) <= $I$36, SUM($AB78:AL78) / $I$36, 0) -> 0 | AN86: =IF(YEAR(AN$4) - YEAR($I70) <= $I$36, SUM($AB78:AM78) / $I$36, 0) -> 0 | AO86: =IF(YEAR(AO$4) - YEAR($I70) <= $I$36, SUM($AB78:AN78) / $I$36, 0) -> 0 | AP86: =IF(YEAR(AP$4) - YEAR($I70) <= $I$36, SUM($AB78:AO78) / $I$36, 0) -> 0 | AQ86: =IF(YEAR(AQ$4) - YEAR($I70) <= $I$36, SUM($AB78:AP78) / $I$36, 0) -> 0 | AR86: =IF(YEAR(AR$4) - YEAR($I70) <= $I$36, SUM($AB78:AQ78) / $I$36, 0) -> 0 | AS86: =IF(YEAR(AS$4) - YEAR($I70) <= $I$36, SUM($AB78:AR78) / $I$36, 0) -> 0 | AT86: =IF(YEAR(AT$4) - YEAR($I70) <= $I$36, SUM($AB78:AS78) / $I$36, 0) -> 0
E87: One off schemes - Actual capex | G87: £m 18/19 prices | J87: > | AC87: =SUM(AB79:$AB79)*($I$33-(YEAR(AC$4) - YEAR($I70)) + 1)/$I$34 -> 0 | AD87: =SUM($AB79:AC79)*($I$33-(YEAR(AD$4) - YEAR($I70)) + 1)/$I$34 -> 0 | AE87: =SUM($AB79:AD79)*($I$33-(YEAR(AE$4) - YEAR($I70)) + 1)/$I$34 -> 0 | AF87: =SUM($AB79:AE79)*($I$33-(YEAR(AF$4) - YEAR($I70)) + 1)/$I$34 -> 0 | AG87: =SUM($AB79:AF79)*($I$33-(YEAR(AG$4) - YEAR($I70)) + 1)/$I$34 -> 0 | AH87: =SUM($AB79:AG79)*($I$33-(YEAR(AH$4) - YEAR($I70)) + 1)/$I$34 -> 0 | AI87: =SUM($AB79:AH79)*($I$33-(YEAR(AI$4) - YEAR($I70)) + 1)/$I$34 -> 0 | AJ87: =SUM($AB79:AI79)*($I$33-(YEAR(AJ$4) - YEAR($I70)) + 1)/$I$34 -> 0 | AK87: =SUM($AB79:AJ79)*($I$33-(YEAR(AK$4) - YEAR($I70)) + 1)/$I$34 -> 0 | AL87: =SUM($AB79:AK79)*($I$33-(YEAR(AL$4) - YEAR($I70)) + 1)/$I$34 -> 0 | AM87: =SUM($AB79:AL79)*($I$33-(YEAR(AM$4) - YEAR($I70)) + 1)/$I$34 -> 0 | AN87: =SUM($AB79:AM79)*($I$33-(YEAR(AN$4) - YEAR($I70)) + 1)/$I$34 -> 0 | AO87: =SUM($AB79:AN79)*($I$33-(YEAR(AO$4) - YEAR($I70)) + 1)/$I$34 -> 0 | AP87: =SUM($AB79:AO79)*($I$33-(YEAR(AP$4) - YEAR($I70)) + 1)/$I$34 -> 0 | AQ87: =SUM($AB79:AP79)*($I$33-(YEAR(AQ$4) - YEAR($I70)) + 1)/$I$34 -> 0 | AR87: =SUM($AB79:AQ79)*($I$33-(YEAR(AR$4) - YEAR($I70)) + 1)/$I$34 -> 0 | AS87: =SUM($AB79:AR79)*($I$33-(YEAR(AS$4) - YEAR($I70)) + 1)/$I$34 -> 0 | AT87: =SUM($AB79:AS79)*($I$33-(YEAR(AT$4) - YEAR($I70)) + 1)/$I$34 -> 0
E88: Closing value carried forward | G88: £m 18/19 prices | J88: > | AC88: =SUM(AC84:AC87) -> 0 | AD88: 0 | AE88: 0.1115320202 | AF88: 0.2219054082 | AG88: 0.3311201638 | AH88: 0.4391762872 | AI88: 0.5460737783 | AJ88: 0.5924190696 | AK88: 0.6376057286 | AL88: 0.6816337553 | AM88: 0.7245031497 | AN88: 0.7662139118 | AO88: 0.8067660417 | AP88: =SUM(AP84:AP87) -> 0.8461595393 | AQ88: 0.8843944046 | AR88: 0.9214706376 | AS88: 0.9573882383 | AT88: 0.9921472068
D90: Net value after regulatory depreciation
E92: Net value after regulatory depreciation | G92: £m 18/19 prices | J92: > | AC92: =AC80-AC88 -> 0 | AD92: =AD80-AD88 -> 1.496152249 | AE92: 1.384620229 | AF92: 1.274246841 | AG92: 1.165032085 | AH92: 1.056975962 | AI92: 0.950078471 | AJ92: 0.9037331797 | AK92: 0.8585465207 | AL92: 0.814518494 | AM92: 0.7716490996 | AN92: 0.7299383375 | AO92: 0.6893862076 | AP92: 0.64999271 | AQ92: 0.6117578447 | AR92: 0.5746816117 | AS92: 0.538764011 | AT92: 0.5040050425
B94: 2011 Schemes
C96: Input
E98: Scheme year | G98: year ending | I98: 2011-03-31
C100: RAV
D102: Cost
E104: Opening balance brought forward | G104: £m 18/19 prices | J104: > | AD104: =AC108 -> 0 | AE104: =AD108 -> 0 | AF104: 1.415331357 | AG104: 1.415331357 | AH104: 1.415331357 | AI104: 1.415331357 | AJ104: 1.415331357 | AK104: 1.415331357 | AL104: 1.415331357 | AM104: 1.415331357 | AN104: 1.415331357 | AO104: 1.415331357 | AP104: =AO108 -> 1.415331357 | AQ104: =AP108 -> 1.415331357 | AR104: =AQ108 -> 1.415331357 | AS104: =AR108 -> 1.415331357 | AT104: =AS108 -> 1.415331357
E105: Community based scheme - Actual capex | G105: £m 18/19 prices | J105: > | AC105: =IF($I98 = AC$4, AC$27, 0) -> 0 | AD105: 0 | AE105: 0.6184092287 | AF105: 0 | AG105: 0 | AH105: 0 | AI105: 0 | AJ105: 0 | AK105: 0 | AL105: 0 | AM105: 0 | AN105: 0 | AO105: 0 | AP105: =IF($I98 = AP$4, AP$27, 0) -> 0 | AQ105: 0 | AR105: 0 | AS105: 0 | AT105: 0
E106: Community based scheme - Additional customer discount | G106: £m 18/19 prices | J106: > | AC106: =IF($I98 = AC$4, AC$28, 0) -> 0 | AD106: 0 | AE106: 0.2855759955 | AF106: 0 | AG106: 0 | AH106: 0 | AI106: 0 | AJ106: 0 | AK106: 0 | AL106: 0 | AM106: 0 | AN106: 0 | AO106: 0 | AP106: =IF($I98 = AP$4, AP$28, 0) -> 0 | AQ106: 0 | AR106: 0 | AS106: 0 | AT106: 0
E107: One off schemes - Actual capex | G107: £m 18/19 prices | J107: > | AC107: =IF($I98 = AC$4, AC$29, 0) -> 0 | AD107: 0 | AE107: 0.5113461323 | AF107: 0 | AG107: 0 | AH107: 0 | AI107: 0 | AJ107: 0 | AK107: 0 | AL107: 0 | AM107: 0 | AN107: 0 | AO107: 0 | AP107: =IF($I98 = AP$4, AP$29, 0) -> 0 | AQ107: 0 | AR107: 0 | AS107: 0 | AT107: 0
E108: Balance carried forward | G108: £m 18/19 prices | J108: > | AC108: =SUM(AC104:AC107) -> 0 | AD108: 0 | AE108: 1.415331357 | AF108: 1.415331357 | AG108: 1.415331357 | AH108: 1.415331357 | AI108: 1.415331357 | AJ108: 1.415331357 | AK108: 1.415331357 | AL108: 1.415331357 | AM108: 1.415331357 | AN108: 1.415331357 | AO108: 1.415331357 | AP108: =SUM(AP104:AP107) -> 1.415331357 | AQ108: 1.415331357 | AR108: 1.415331357 | AS108: 1.415331357 | AT108: 1.415331357
D110: Depreciation
E112: Opening balance brought forward | G112: £m 18/19 prices | J112: > | AD112: =AC116 -> 0 | AE112: =AD116 -> 0 | AF112: =AE116 -> 0 | AG112: 0.1062349974 | AH112: 0.2113784437 | AI112: 0.315430339 | AJ112: 0.4183906832 | AK112: 0.5202594763 | AL112: 0.5639215192 | AM112: 0.6064920111 | AN112: 0.6479709519 | AO112: 0.6883583416 | AP112: =AO116 -> 0.7276541803 | AQ112: =AP116 -> 0.7658584678 | AR112: =AQ116 -> 0.8029712043 | AS112: =AR116 -> 0.8389923898 | AT112: =AS116 -> 0.8739220241
E113: Community based scheme - Actual capex | G113: £m 18/19 prices | J113: > | AC113: =SUM(AB105:$AB105)*($I$33-(YEAR(AC$4) - YEAR($I98)) + 1)/$I$34 -> 0 | AD113: =SUM($AB105:AC105)*($I$33-(YEAR(AD$4) - YEAR($I98)) + 1)/$I$34 -> 0 | AE113: =SUM($AB105:AD105)*($I$33-(YEAR(AE$4) - YEAR($I98)) + 1)/$I$34 -> 0 | AF113: =SUM($AB105:AE105)*($I$33-(YEAR(AF$4) - YEAR($I98)) + 1)/$I$34 -> 0.02688735777 | AG113: =SUM($AB105:AF105)*($I$33-(YEAR(AG$4) - YEAR($I98)) + 1)/$I$34 -> 0.02628986093 | AH113: =SUM($AB105:AG105)*($I$33-(YEAR(AH$4) - YEAR($I98)) + 1)/$I$34 -> 0.02569236409 | AI113: =SUM($AB105:AH105)*($I$33-(YEAR(AI$4) - YEAR($I98)) + 1)/$I$34 -> 0.02509486725 | AJ113: =SUM($AB105:AI105)*($I$33-(YEAR(AJ$4) - YEAR($I98)) + 1)/$I$34 -> 0.02449737041 | AK113: =SUM($AB105:AJ105)*($I$33-(YEAR(AK$4) - YEAR($I98)) + 1)/$I$34 -> 0.02389987357 | AL113: =SUM($AB105:AK105)*($I$33-(YEAR(AL$4) - YEAR($I98)) + 1)/$I$34 -> 0.02330237673 | AM113: =SUM($AB105:AL105)*($I$33-(YEAR(AM$4) - YEAR($I98)) + 1)/$I$34 -> 0.0227048799 | AN113: =SUM($AB105:AM105)*($I$33-(YEAR(AN$4) - YEAR($I98)) + 1)/$I$34 -> 0.02210738306 | AO113: =SUM($AB105:AN105)*($I$33-(YEAR(AO$4) - YEAR($I98)) + 1)/$I$34 -> 0.02150988622 | AP113: =SUM($AB105:AO105)*($I$33-(YEAR(AP$4) - YEAR($I98)) + 1)/$I$34 -> 0.02091238938 | AQ113: =SUM($AB105:AP105)*($I$33-(YEAR(AQ$4) - YEAR($I98)) + 1)/$I$34 -> 0.02031489254 | AR113: =SUM($AB105:AQ105)*($I$33-(YEAR(AR$4) - YEAR($I98)) + 1)/$I$34 -> 0.0197173957 | AS113: =SUM($AB105:AR105)*($I$33-(YEAR(AS$4) - YEAR($I98)) + 1)/$I$34 -> 0.01911989886 | AT113: =SUM($AB105:AS105)*($I$33-(YEAR(AT$4) - YEAR($I98)) + 1)/$I$34 -> 0.01852240202
E114: Community based scheme - Additional customer discount | G114: £m 18/19 prices | J114: > | AC114: =IF(YEAR(AC$4) - YEAR($I98) <= $I$36, SUM(AB106:$AB106) / $I$36, 0) -> 0 | AD114: =IF(YEAR(AD$4) - YEAR($I98) <= $I$36, SUM($AB106:AC106) / $I$36, 0) -> 0 | AE114: =IF(YEAR(AE$4) - YEAR($I98) <= $I$36, SUM($AB106:AD106) / $I$36, 0) -> 0 | AF114: =IF(YEAR(AF$4) - YEAR($I98) <= $I$36, SUM($AB106:AE106) / $I$36, 0) -> 0.0571151991 | AG114: =IF(YEAR(AG$4) - YEAR($I98) <= $I$36, SUM($AB106:AF106) / $I$36, 0) -> 0.0571151991 | AH114: =IF(YEAR(AH$4) - YEAR($I98) <= $I$36, SUM($AB106:AG106) / $I$36, 0) -> 0.0571151991 | AI114: =IF(YEAR(AI$4) - YEAR($I98) <= $I$36, SUM($AB106:AH106) / $I$36, 0) -> 0.0571151991 | AJ114: =IF(YEAR(AJ$4) - YEAR($I98) <= $I$36, SUM($AB106:AI106) / $I$36, 0) -> 0.0571151991 | AK114: =IF(YEAR(AK$4) - YEAR($I98) <= $I$36, SUM($AB106:AJ106) / $I$36, 0) -> 0 | AL114: =IF(YEAR(AL$4) - YEAR($I98) <= $I$36, SUM($AB106:AK106) / $I$36, 0) -> 0 | AM114: =IF(YEAR(AM$4) - YEAR($I98) <= $I$36, SUM($AB106:AL106) / $I$36, 0) -> 0 | AN114: =IF(YEAR(AN$4) - YEAR($I98) <= $I$36, SUM($AB106:AM106) / $I$36, 0) -> 0 | AO114: =IF(YEAR(AO$4) - YEAR($I98) <= $I$36, SUM($AB106:AN106) / $I$36, 0) -> 0 | AP114: =IF(YEAR(AP$4) - YEAR($I98) <= $I$36, SUM($AB106:AO106) / $I$36, 0) -> 0 | AQ114: =IF(YEAR(AQ$4) - YEAR($I98) <= $I$36, SUM($AB106:AP106) / $I$36, 0) -> 0 | AR114: =IF(YEAR(AR$4) - YEAR($I98) <= $I$36, SUM($AB106:AQ106) / $I$36, 0) -> 0 | AS114: =IF(YEAR(AS$4) - YEAR($I98) <= $I$36, SUM($AB106:AR106) / $I$36, 0) -> 0 | AT114: =IF(YEAR(AT$4) - YEAR($I98) <= $I$36, SUM($AB106:AS106) / $I$36, 0) -> 0
E115: One off schemes - Actual capex | G115: £m 18/19 prices | J115: > | AC115: =SUM(AB107:$AB107)*($I$33-(YEAR(AC$4) - YEAR($I98)) + 1)/$I$34 -> 0 | AD115: =SUM($AB107:AC107)*($I$33-(YEAR(AD$4) - YEAR($I98)) + 1)/$I$34 -> 0 | AE115: =SUM($AB107:AD107)*($I$33-(YEAR(AE$4) - YEAR($I98)) + 1)/$I$34 -> 0 | AF115: =SUM($AB107:AE107)*($I$33-(YEAR(AF$4) - YEAR($I98)) + 1)/$I$34 -> 0.02223244053 | AG115: =SUM($AB107:AF107)*($I$33-(YEAR(AG$4) - YEAR($I98)) + 1)/$I$34 -> 0.0217383863 | AH115: =SUM($AB107:AG107)*($I$33-(YEAR(AH$4) - YEAR($I98)) + 1)/$I$34 -> 0.02124433207 | AI115: =SUM($AB107:AH107)*($I$33-(YEAR(AI$4) - YEAR($I98)) + 1)/$I$34 -> 0.02075027783 | AJ115: =SUM($AB107:AI107)*($I$33-(YEAR(AJ$4) - YEAR($I98)) + 1)/$I$34 -> 0.0202562236 | AK115: =SUM($AB107:AJ107)*($I$33-(YEAR(AK$4) - YEAR($I98)) + 1)/$I$34 -> 0.01976216936 | AL115: =SUM($AB107:AK107)*($I$33-(YEAR(AL$4) - YEAR($I98)) + 1)/$I$34 -> 0.01926811513 | AM115: =SUM($AB107:AL107)*($I$33-(YEAR(AM$4) - YEAR($I98)) + 1)/$I$34 -> 0.0187740609 | AN115: =SUM($AB107:AM107)*($I$33-(YEAR(AN$4) - YEAR($I98)) + 1)/$I$34 -> 0.01828000666 | AO115: =SUM($AB107:AN107)*($I$33-(YEAR(AO$4) - YEAR($I98)) + 1)/$I$34 -> 0.01778595243 | AP115: =SUM($AB107:AO107)*($I$33-(YEAR(AP$4) - YEAR($I98)) + 1)/$I$34 -> 0.01729189819 | AQ115: =SUM($AB107:AP107)*($I$33-(YEAR(AQ$4) - YEAR($I98)) + 1)/$I$34 -> 0.01679784396 | AR115: =SUM($AB107:AQ107)*($I$33-(YEAR(AR$4) - YEAR($I98)) + 1)/$I$34 -> 0.01630378972 | AS115: =SUM($AB107:AR107)*($I$33-(YEAR(AS$4) - YEAR($I98)) + 1)/$I$34 -> 0.01580973549 | AT115: =SUM($AB107:AS107)*($I$33-(YEAR(AT$4) - YEAR($I98)) + 1)/$I$34 -> 0.01531568126
E116: Closing value carried forward | G116: £m 18/19 prices | J116: > | AC116: =SUM(AC112:AC115) -> 0 | AD116: 0 | AE116: 0 | AF116: 0.1062349974 | AG116: 0.2113784437 | AH116: 0.315430339 | AI116: 0.4183906832 | AJ116: 0.5202594763 | AK116: 0.5639215192 | AL116: 0.6064920111 | AM116: 0.6479709519 | AN116: 0.6883583416 | AO116: 0.7276541803 | AP116: =SUM(AP112:AP115) -> 0.7658584678 | AQ116: 0.8029712043 | AR116: 0.8389923898 | AS116: 0.8739220241 | AT116: 0.9077601074
D118: Net value after regulatory depreciation
E120: Net value after regulatory depreciation | G120: £m 18/19 prices | J120: > | AC120: =AC108-AC116 -> 0 | AD120: =AD108-AD116 -> 0 | AE120: 1.415331357 | AF120: 1.309096359 | AG120: 1.203952913 | AH120: 1.099901018 | AI120: 0.9969406733 | AJ120: 0.8950718802 | AK120: 0.8514098373 | AL120: 0.8088393454 | AM120: 0.7673604046 | AN120: 0.7269730149 | AO120: 0.6876771763 | AP120: =AP108-AP116 -> 0.6494728887 | AQ120: 0.6123601522 | AR120: 0.5763389668 | AS120: 0.5414093324 | AT120: 0.5075712491
B122: 2012 Schemes
C124: Input
E126: Scheme year | G126: year ending | I126: 2012-03-31
C128: RAV
D130: Cost
E132: Opening balance brought forward | G132: £m 18/19 prices | J132: > | AD132: =AC136 -> 0 | AE132: =AD136 -> 0 | AF132: 0 | AG132: 2.971615177 | AH132: 2.971615177 | AI132: 2.971615177 | AJ132: 2.971615177 | AK132: 2.971615177 | AL132: 2.971615177 | AM132: 2.971615177 | AN132: 2.971615177 | AO132: 2.971615177 | AP132: =AO136 -> 2.971615177 | AQ132: =AP136 -> 2.971615177 | AR132: =AQ136 -> 2.971615177 | AS132: =AR136 -> 2.971615177 | AT132: =AS136 -> 2.971615177
E133: Community based scheme - Actual capex | G133: £m 18/19 prices | J133: > | AC133: =IF($I126 = AC$4, AC$27, 0) -> 0 | AD133: 0 | AE133: 0 | AF133: 0.779994077 | AG133: 0 | AH133: 0 | AI133: 0 | AJ133: 0 | AK133: 0 | AL133: 0 | AM133: 0 | AN133: 0 | AO133: 0 | AP133: =IF($I126 = AP$4, AP$27, 0) -> 0 | AQ133: 0 | AR133: 0 | AS133: 0 | AT133: 0
E134: Community based scheme - Additional customer discount | G134: £m 18/19 prices | J134: > | AC134: =IF($I126 = AC$4, AC$28, 0) -> 0 | AD134: 0 | AE134: 0 | AF134: =IF($I126 = AF$4, AF$28, 0) -> 0.9203788721 | AG134: 0 | AH134: 0 | AI134: 0 | AJ134: 0 | AK134: 0 | AL134: 0 | AM134: 0 | AN134: 0 | AO134: 0 | AP134: =IF($I126 = AP$4, AP$28, 0) -> 0 | AQ134: 0 | AR134: 0 | AS134: 0 | AT134: 0
E135: One off schemes - Actual capex | G135: £m 18/19 prices | J135: > | AC135: =IF($I126 = AC$4, AC$29, 0) -> 0 | AD135: 0 | AE135: 0 | AF135: 1.271242228 | AG135: 0 | AH135: 0 | AI135: 0 | AJ135: 0 | AK135: 0 | AL135: 0 | AM135: 0 | AN135: 0 | AO135: 0 | AP135: =IF($I126 = AP$4, AP$29, 0) -> 0 | AQ135: 0 | AR135: 0 | AS135: 0 | AT135: 0
E136: Balance carried forward | G136: £m 18/19 prices | J136: > | AC136: =SUM(AC132:AC135) -> 0 | AD136: 0 | AE136: 0 | AF136: 2.971615177 | AG136: 2.971615177 | AH136: 2.971615177 | AI136: 2.971615177 | AJ136: 2.971615177 | AK136: 2.971615177 | AL136: 2.971615177 | AM136: 2.971615177 | AN136: 2.971615177 | AO136: 2.971615177 | AP136: =SUM(AP132:AP135) -> 2.971615177 | AQ136: 2.971615177 | AR136: 2.971615177 | AS136: 2.971615177 | AT136: 2.971615177
D138: Depreciation
E140: Opening balance brought forward | G140: £m 18/19 prices | J140: > | AD140: =AC144 -> 0 | AE140: =AD144 -> 0 | AF140: =AE144 -> 0 | AG140: 0 | AH140: 0.2732599616 | AI140: 0.5445380524 | AJ140: 0.8138342723 | AK140: 1.081148621 | AL140: 1.3464811 | AM140: 1.425755933 | AN140: 1.503048895 | AO140: 1.578359986 | AP140: =AO144 -> 1.651689207 | AQ140: =AP144 -> 1.723036557 | AR140: =AQ144 -> 1.792402036 | AS140: =AR144 -> 1.859785644 | AT140: =AS144 -> 1.925187381
E141: Community based scheme - Actual capex | G141: £m 18/19 prices | J141: > | AC141: =SUM(AB133:$AB133)*($I$33-(YEAR(AC$4) - YEAR($I126)) + 1)/$I$34 -> 0 | AD141: =SUM($AB133:AC133)*($I$33-(YEAR(AD$4) - YEAR($I126)) + 1)/$I$34 -> 0 | AE141: =SUM($AB133:AD133)*($I$33-(YEAR(AE$4) - YEAR($I126)) + 1)/$I$34 -> 0 | AF141: =SUM($AB133:AE133)*($I$33-(YEAR(AF$4) - YEAR($I126)) + 1)/$I$34 -> 0 | AG141: =SUM($AB133:AF133)*($I$33-(YEAR(AG$4) - YEAR($I126)) + 1)/$I$34 -> 0.03391278596 | AH141: =SUM($AB133:AG133)*($I$33-(YEAR(AH$4) - YEAR($I126)) + 1)/$I$34 -> 0.03315916849 | AI141: =SUM($AB133:AH133)*($I$33-(YEAR(AI$4) - YEAR($I126)) + 1)/$I$34 -> 0.03240555102 | AJ141: =SUM($AB133:AI133)*($I$33-(YEAR(AJ$4) - YEAR($I126)) + 1)/$I$34 -> 0.03165193356 | AK141: =SUM($AB133:AJ133)*($I$33-(YEAR(AK$4) - YEAR($I126)) + 1)/$I$34 -> 0.03089831609 | AL141: =SUM($AB133:AK133)*($I$33-(YEAR(AL$4) - YEAR($I126)) + 1)/$I$34 -> 0.03014469863 | AM141: =SUM($AB133:AL133)*($I$33-(YEAR(AM$4) - YEAR($I126)) + 1)/$I$34 -> 0.02939108116 | AN141: =SUM($AB133:AM133)*($I$33-(YEAR(AN$4) - YEAR($I126)) + 1)/$I$34 -> 0.0286374637 | AO141: =SUM($AB133:AN133)*($I$33-(YEAR(AO$4) - YEAR($I126)) + 1)/$I$34 -> 0.02788384623 | AP141: =SUM($AB133:AO133)*($I$33-(YEAR(AP$4) - YEAR($I126)) + 1)/$I$34 -> 0.02713022876 | AQ141: =SUM($AB133:AP133)*($I$33-(YEAR(AQ$4) - YEAR($I126)) + 1)/$I$34 -> 0.0263766113 | AR141: =SUM($AB133:AQ133)*($I$33-(YEAR(AR$4) - YEAR($I126)) + 1)/$I$34 -> 0.02562299383 | AS141: =SUM($AB133:AR133)*($I$33-(YEAR(AS$4) - YEAR($I126)) + 1)/$I$34 -> 0.02486937637 | AT141: =SUM($AB133:AS133)*($I$33-(YEAR(AT$4) - YEAR($I126)) + 1)/$I$34 -> 0.0241157589
E142: Community based scheme - Additional customer discount | G142: £m 18/19 prices | J142: > | AC142: =IF(YEAR(AC$4) - YEAR($I126) <= $I$36, SUM(AB134:$AB134) / $I$36, 0) -> 0 | AD142: =IF(YEAR(AD$4) - YEAR($I126) <= $I$36, SUM($AB134:AC134) / $I$36, 0) -> 0 | AE142: =IF(YEAR(AE$4) - YEAR($I126) <= $I$36, SUM($AB134:AD134) / $I$36, 0) -> 0 | AF142: =IF(YEAR(AF$4) - YEAR($I126) <= $I$36, SUM($AB134:AE134) / $I$36, 0) -> 0 | AG142: =IF(YEAR(AG$4) - YEAR($I126) <= $I$36, SUM($AB134:AF134) / $I$36, 0) -> 0.1840757744 | AH142: =IF(YEAR(AH$4) - YEAR($I126) <= $I$36, SUM($AB134:AG134) / $I$36, 0) -> 0.1840757744 | AI142: =IF(YEAR(AI$4) - YEAR($I126) <= $I$36, SUM($AB134:AH134) / $I$36, 0) -> 0.1840757744 | AJ142: =IF(YEAR(AJ$4) - YEAR($I126) <= $I$36, SUM($AB134:AI134) / $I$36, 0) -> 0.1840757744 | AK142: =IF(YEAR(AK$4) - YEAR($I126) <= $I$36, SUM($AB134:AJ134) / $I$36, 0) -> 0.1840757744 | AL142: =IF(YEAR(AL$4) - YEAR($I126) <= $I$36, SUM($AB134:AK134) / $I$36, 0) -> 0 | AM142: =IF(YEAR(AM$4) - YEAR($I126) <= $I$36, SUM($AB134:AL134) / $I$36, 0) -> 0 | AN142: =IF(YEAR(AN$4) - YEAR($I126) <= $I$36, SUM($AB134:AM134) / $I$36, 0) -> 0 | AO142: =IF(YEAR(AO$4) - YEAR($I126) <= $I$36, SUM($AB134:AN134) / $I$36, 0) -> 0 | AP142: =IF(YEAR(AP$4) - YEAR($I126) <= $I$36, SUM($AB134:AO134) / $I$36, 0) -> 0 | AQ142: =IF(YEAR(AQ$4) - YEAR($I126) <= $I$36, SUM($AB134:AP134) / $I$36, 0) -> 0 | AR142: =IF(YEAR(AR$4) - YEAR($I126) <= $I$36, SUM($AB134:AQ134) / $I$36, 0) -> 0 | AS142: =IF(YEAR(AS$4) - YEAR($I126) <= $I$36, SUM($AB134:AR134) / $I$36, 0) -> 0 | AT142: =IF(YEAR(AT$4) - YEAR($I126) <= $I$36, SUM($AB134:AS134) / $I$36, 0) -> 0
E143: One off schemes - Actual capex | G143: £m 18/19 prices | J143: > | AC143: =SUM(AB135:$AB135)*($I$33-(YEAR(AC$4) - YEAR($I126)) + 1)/$I$34 -> 0 | AD143: =SUM($AB135:AC135)*($I$33-(YEAR(AD$4) - YEAR($I126)) + 1)/$I$34 -> 0 | AE143: =SUM($AB135:AD135)*($I$33-(YEAR(AE$4) - YEAR($I126)) + 1)/$I$34 -> 0 | AF143: =SUM($AB135:AE135)*($I$33-(YEAR(AF$4) - YEAR($I126)) + 1)/$I$34 -> 0 | AG143: =SUM($AB135:AF135)*($I$33-(YEAR(AG$4) - YEAR($I126)) + 1)/$I$34 -> 0.05527140122 | AH143: =SUM($AB135:AG135)*($I$33-(YEAR(AH$4) - YEAR($I126)) + 1)/$I$34 -> 0.05404314786 | AI143: =SUM($AB135:AH135)*($I$33-(YEAR(AI$4) - YEAR($I126)) + 1)/$I$34 -> 0.0528148945 | AJ143: =SUM($AB135:AI135)*($I$33-(YEAR(AJ$4) - YEAR($I126)) + 1)/$I$34 -> 0.05158664114 | AK143: =SUM($AB135:AJ135)*($I$33-(YEAR(AK$4) - YEAR($I126)) + 1)/$I$34 -> 0.05035838778 | AL143: =SUM($AB135:AK135)*($I$33-(YEAR(AL$4) - YEAR($I126)) + 1)/$I$34 -> 0.04913013442 | AM143: =SUM($AB135:AL135)*($I$33-(YEAR(AM$4) - YEAR($I126)) + 1)/$I$34 -> 0.04790188106 | AN143: =SUM($AB135:AM135)*($I$33-(YEAR(AN$4) - YEAR($I126)) + 1)/$I$34 -> 0.0466736277 | AO143: =SUM($AB135:AN135)*($I$33-(YEAR(AO$4) - YEAR($I126)) + 1)/$I$34 -> 0.04544537434 | AP143: =SUM($AB135:AO135)*($I$33-(YEAR(AP$4) - YEAR($I126)) + 1)/$I$34 -> 0.04421712098 | AQ143: =SUM($AB135:AP135)*($I$33-(YEAR(AQ$4) - YEAR($I126)) + 1)/$I$34 -> 0.04298886762 | AR143: =SUM($AB135:AQ135)*($I$33-(YEAR(AR$4) - YEAR($I126)) + 1)/$I$34 -> 0.04176061425 | AS143: =SUM($AB135:AR135)*($I$33-(YEAR(AS$4) - YEAR($I126)) + 1)/$I$34 -> 0.04053236089 | AT143: =SUM($AB135:AS135)*($I$33-(YEAR(AT$4) - YEAR($I126)) + 1)/$I$34 -> 0.03930410753
E144: Closing value carried forward | G144: £m 18/19 prices | J144: > | AC144: =SUM(AC140:AC143) -> 0 | AD144: 0 | AE144: 0 | AF144: 0 | AG144: 0.2732599616 | AH144: 0.5445380524 | AI144: 0.8138342723 | AJ144: 1.081148621 | AK144: 1.3464811 | AL144: 1.425755933 | AM144: 1.503048895 | AN144: 1.578359986 | AO144: 1.651689207 | AP144: =SUM(AP140:AP143) -> 1.723036557 | AQ144: 1.792402036 | AR144: 1.859785644 | AS144: 1.925187381 | AT144: 1.988607247
D146: Net value after regulatory depreciation
E148: Net value after regulatory depreciation | G148: £m 18/19 prices | J148: > | AC148: =AC136-AC144 -> 0 | AD148: =AD136-AD144 -> 0 | AE148: 0 | AF148: 2.971615177 | AG148: 2.698355216 | AH148: 2.427077125 | AI148: 2.157780905 | AJ148: 1.890466556 | AK148: 1.625134077 | AL148: 1.545859244 | AM148: 1.468566282 | AN148: 1.393255191 | AO148: 1.31992597 | AP148: =AP136-AP144 -> 1.24857862 | AQ148: 1.179213142 | AR148: 1.111829533 | AS148: 1.046427796 | AT148: 0.9830079298
B150: 2013 Schemes
C152: Input
E154: Scheme year | G154: year ending | I154: 2013-03-31
C156: RAV
D158: Cost
E160: Opening balance brought forward | G160: £m 18/19 prices | J160: > | AD160: =AC164 -> 0 | AE160: =AD164 -> 0 | AF160: 0 | AG160: 0 | AH160: 2.698931735 | AI160: 2.698931735 | AJ160: 2.698931735 | AK160: 2.698931735 | AL160: 2.698931735 | AM160: 2.698931735 | AN160: 2.698931735 | AO160: 2.698931735 | AP160: =AO164 -> 2.698931735 | AQ160: =AP164 -> 2.698931735 | AR160: =AQ164 -> 2.698931735 | AS160: =AR164 -> 2.698931735 | AT160: =AS164 -> 2.698931735
E161: Community based scheme - Actual capex | G161: £m 18/19 prices | J161: > | AC161: =IF($I154 = AC$4, AC$27, 0) -> 0 | AD161: 0 | AE161: 0 | AF161: 0 | AG161: 1.248198482 | AH161: 0 | AI161: 0 | AJ161: 0 | AK161: 0 | AL161: 0 | AM161: 0 | AN161: 0 | AO161: 0 | AP161: =IF($I154 = AP$4, AP$27, 0) -> 0 | AQ161: 0 | AR161: 0 | AS161: 0 | AT161: 0
E162: Community based scheme - Additional customer discount | G162: £m 18/19 prices | J162: > | AC162: =IF($I154 = AC$4, AC$28, 0) -> 0 | AD162: 0 | AE162: 0 | AF162: 0 | AG162: 0.4521744667 | AH162: 0 | AI162: 0 | AJ162: 0 | AK162: 0 | AL162: 0 | AM162: 0 | AN162: 0 | AO162: 0 | AP162: =IF($I154 = AP$4, AP$28, 0) -> 0 | AQ162: 0 | AR162: 0 | AS162: 0 | AT162: 0
E163: One off schemes - Actual capex | G163: £m 18/19 prices | J163: > | AC163: =IF($I154 = AC$4, AC$29, 0) -> 0 | AD163: 0 | AE163: 0 | AF163: 0 | AG163: 0.9985587859 | AH163: 0 | AI163: 0 | AJ163: 0 | AK163: 0 | AL163: 0 | AM163: 0 | AN163: 0 | AO163: 0 | AP163: =IF($I154 = AP$4, AP$29, 0) -> 0 | AQ163: 0 | AR163: 0 | AS163: 0 | AT163: 0
E164: Balance carried forward | G164: £m 18/19 prices | J164: > | AC164: =SUM(AC160:AC163) -> 0 | AD164: 0 | AE164: 0 | AF164: 0 | AG164: 2.698931735 | AH164: 2.698931735 | AI164: 2.698931735 | AJ164: 2.698931735 | AK164: 2.698931735 | AL164: 2.698931735 | AM164: 2.698931735 | AN164: 2.698931735 | AO164: 2.698931735 | AP164: =SUM(AP160:AP163) -> 2.698931735 | AQ164: 2.698931735 | AR164: 2.698931735 | AS164: 2.698931735 | AT164: 2.698931735
D166: Depreciation
E168: Opening balance brought forward | G168: £m 18/19 prices | J168: > | AD168: =AC172 -> 0 | AE168: =AD172 -> 0 | AF168: =AE172 -> 0 | AG168: 0 | AH168: 0 | AI168: 0.188119992 | AJ168: 0.374069204 | AK168: 0.557847636 | AL168: 0.739455288 | AM168: 0.9188921601 | AN168: 1.005723359 | AO168: 1.090383778 | AP168: =AO172 -> 1.172873417 | AQ168: =AP172 -> 1.253192275 | AR168: =AQ172 -> 1.331340354 | AS168: =AR172 -> 1.407317653 | AT168: =AS172 -> 1.481124172
E169: Community based scheme - Actual capex | G169: £m 18/19 prices | J169: > | AC169: =SUM(AB161:$AB161)*($I$33-(YEAR(AC$4) - YEAR($I154)) + 1)/$I$34 -> 0 | AD169: =SUM($AB161:AC161)*($I$33-(YEAR(AD$4) - YEAR($I154)) + 1)/$I$34 -> 0 | AE169: =SUM($AB161:AD161)*($I$33-(YEAR(AE$4) - YEAR($I154)) + 1)/$I$34 -> 0 | AF169: =SUM($AB161:AE161)*($I$33-(YEAR(AF$4) - YEAR($I154)) + 1)/$I$34 -> 0 | AG169: =SUM($AB161:AF161)*($I$33-(YEAR(AG$4) - YEAR($I154)) + 1)/$I$34 -> 0 | AH169: =SUM($AB161:AG161)*($I$33-(YEAR(AH$4) - YEAR($I154)) + 1)/$I$34 -> 0.05426949924 | AI169: =SUM($AB161:AH161)*($I$33-(YEAR(AI$4) - YEAR($I154)) + 1)/$I$34 -> 0.05306351036 | AJ169: =SUM($AB161:AI161)*($I$33-(YEAR(AJ$4) - YEAR($I154)) + 1)/$I$34 -> 0.05185752149 | AK169: =SUM($AB161:AJ161)*($I$33-(YEAR(AK$4) - YEAR($I154)) + 1)/$I$34 -> 0.05065153262 | AL169: =SUM($AB161:AK161)*($I$33-(YEAR(AL$4) - YEAR($I154)) + 1)/$I$34 -> 0.04944554375 | AM169: =SUM($AB161:AL161)*($I$33-(YEAR(AM$4) - YEAR($I154)) + 1)/$I$34 -> 0.04823955488 | AN169: =SUM($AB161:AM161)*($I$33-(YEAR(AN$4) - YEAR($I154)) + 1)/$I$34 -> 0.047033566 | AO169: =SUM($AB161:AN161)*($I$33-(YEAR(AO$4) - YEAR($I154)) + 1)/$I$34 -> 0.04582757713 | AP169: =SUM($AB161:AO161)*($I$33-(YEAR(AP$4) - YEAR($I154)) + 1)/$I$34 -> 0.04462158826 | AQ169: =SUM($AB161:AP161)*($I$33-(YEAR(AQ$4) - YEAR($I154)) + 1)/$I$34 -> 0.04341559939 | AR169: =SUM($AB161:AQ161)*($I$33-(YEAR(AR$4) - YEAR($I154)) + 1)/$I$34 -> 0.04220961052 | AS169: =SUM($AB161:AR161)*($I$33-(YEAR(AS$4) - YEAR($I154)) + 1)/$I$34 -> 0.04100362165 | AT169: =SUM($AB161:AS161)*($I$33-(YEAR(AT$4) - YEAR($I154)) + 1)/$I$34 -> 0.03979763277
E170: Community based scheme - Additional customer discount | G170: £m 18/19 prices | J170: > | AC170: =IF(YEAR(AC$4) - YEAR($I154) <= $I$36, SUM(AB162:$AB162) / $I$36, 0) -> 0 | AD170: =IF(YEAR(AD$4) - YEAR($I154) <= $I$36, SUM($AB162:AC162) / $I$36, 0) -> 0 | AE170: =IF(YEAR(AE$4) - YEAR($I154) <= $I$36, SUM($AB162:AD162) / $I$36, 0) -> 0 | AF170: =IF(YEAR(AF$4) - YEAR($I154) <= $I$36, SUM($AB162:AE162) / $I$36, 0) -> 0 | AG170: =IF(YEAR(AG$4) - YEAR($I154) <= $I$36, SUM($AB162:AF162) / $I$36, 0) -> 0 | AH170: =IF(YEAR(AH$4) - YEAR($I154) <= $I$36, SUM($AB162:AG162) / $I$36, 0) -> 0.09043489334 | AI170: =IF(YEAR(AI$4) - YEAR($I154) <= $I$36, SUM($AB162:AH162) / $I$36, 0) -> 0.09043489334 | AJ170: =IF(YEAR(AJ$4) - YEAR($I154) <= $I$36, SUM($AB162:AI162) / $I$36, 0) -> 0.09043489334 | AK170: =IF(YEAR(AK$4) - YEAR($I154) <= $I$36, SUM($AB162:AJ162) / $I$36, 0) -> 0.09043489334 | AL170: =IF(YEAR(AL$4) - YEAR($I154) <= $I$36, SUM($AB162:AK162) / $I$36, 0) -> 0.09043489334 | AM170: =IF(YEAR(AM$4) - YEAR($I154) <= $I$36, SUM($AB162:AL162) / $I$36, 0) -> 0 | AN170: =IF(YEAR(AN$4) - YEAR($I154) <= $I$36, SUM($AB162:AM162) / $I$36, 0) -> 0 | AO170: =IF(YEAR(AO$4) - YEAR($I154) <= $I$36, SUM($AB162:AN162) / $I$36, 0) -> 0 | AP170: =IF(YEAR(AP$4) - YEAR($I154) <= $I$36, SUM($AB162:AO162) / $I$36, 0) -> 0 | AQ170: =IF(YEAR(AQ$4) - YEAR($I154) <= $I$36, SUM($AB162:AP162) / $I$36, 0) -> 0 | AR170: =IF(YEAR(AR$4) - YEAR($I154) <= $I$36, SUM($AB162:AQ162) / $I$36, 0) -> 0 | AS170: =IF(YEAR(AS$4) - YEAR($I154) <= $I$36, SUM($AB162:AR162) / $I$36, 0) -> 0 | AT170: =IF(YEAR(AT$4) - YEAR($I154) <= $I$36, SUM($AB162:AS162) / $I$36, 0) -> 0
E171: One off schemes - Actual capex | G171: £m 18/19 prices | J171: > | AC171: =SUM(AB163:$AB163)*($I$33-(YEAR(AC$4) - YEAR($I154)) + 1)/$I$34 -> 0 | AD171: =SUM($AB163:AC163)*($I$33-(YEAR(AD$4) - YEAR($I154)) + 1)/$I$34 -> 0 | AE171: =SUM($AB163:AD163)*($I$33-(YEAR(AE$4) - YEAR($I154)) + 1)/$I$34 -> 0 | AF171: =SUM($AB163:AE163)*($I$33-(YEAR(AF$4) - YEAR($I154)) + 1)/$I$34 -> 0 | AG171: =SUM($AB163:AF163)*($I$33-(YEAR(AG$4) - YEAR($I154)) + 1)/$I$34 -> 0 | AH171: =SUM($AB163:AG163)*($I$33-(YEAR(AH$4) - YEAR($I154)) + 1)/$I$34 -> 0.04341559939 | AI171: =SUM($AB163:AH163)*($I$33-(YEAR(AI$4) - YEAR($I154)) + 1)/$I$34 -> 0.04245080829 | AJ171: =SUM($AB163:AI163)*($I$33-(YEAR(AJ$4) - YEAR($I154)) + 1)/$I$34 -> 0.04148601719 | AK171: =SUM($AB163:AJ163)*($I$33-(YEAR(AK$4) - YEAR($I154)) + 1)/$I$34 -> 0.0405212261 | AL171: =SUM($AB163:AK163)*($I$33-(YEAR(AL$4) - YEAR($I154)) + 1)/$I$34 -> 0.039556435 | AM171: =SUM($AB163:AL163)*($I$33-(YEAR(AM$4) - YEAR($I154)) + 1)/$I$34 -> 0.0385916439 | AN171: =SUM($AB163:AM163)*($I$33-(YEAR(AN$4) - YEAR($I154)) + 1)/$I$34 -> 0.0376268528 | AO171: =SUM($AB163:AN163)*($I$33-(YEAR(AO$4) - YEAR($I154)) + 1)/$I$34 -> 0.03666206171 | AP171: =SUM($AB163:AO163)*($I$33-(YEAR(AP$4) - YEAR($I154)) + 1)/$I$34 -> 0.03569727061 | AQ171: =SUM($AB163:AP163)*($I$33-(YEAR(AQ$4) - YEAR($I154)) + 1)/$I$34 -> 0.03473247951 | AR171: =SUM($AB163:AQ163)*($I$33-(YEAR(AR$4) - YEAR($I154)) + 1)/$I$34 -> 0.03376768841 | AS171: =SUM($AB163:AR163)*($I$33-(YEAR(AS$4) - YEAR($I154)) + 1)/$I$34 -> 0.03280289732 | AT171: =SUM($AB163:AS163)*($I$33-(YEAR(AT$4) - YEAR($I154)) + 1)/$I$34 -> 0.03183810622
E172: Closing value carried forward | G172: £m 18/19 prices | J172: > | AC172: =SUM(AC168:AC171) -> 0 | AD172: 0 | AE172: 0 | AF172: 0 | AG172: 0 | AH172: 0.188119992 | AI172: 0.374069204 | AJ172: 0.557847636 | AK172: 0.739455288 | AL172: 0.9188921601 | AM172: 1.005723359 | AN172: 1.090383778 | AO172: 1.172873417 | AP172: =SUM(AP168:AP171) -> 1.253192275 | AQ172: 1.331340354 | AR172: 1.407317653 | AS172: 1.481124172 | AT172: 1.552759911
D174: Net value after regulatory depreciation
E176: Net value after regulatory depreciation | G176: £m 18/19 prices | J176: > | AC176: =AC164-AC172 -> 0 | AD176: =AD164-AD172 -> 0 | AE176: 0 | AF176: 0 | AG176: 2.698931735 | AH176: 2.510811743 | AI176: 2.324862531 | AJ176: 2.141084099 | AK176: 1.959476447 | AL176: 1.780039575 | AM176: 1.693208376 | AN176: 1.608547957 | AO176: 1.526058319 | AP176: =AP164-AP172 -> 1.44573946 | AQ176: 1.367591381 | AR176: 1.291614082 | AS176: 1.217807563 | AT176: 1.146171824
B178: End of sheet

Sheet Return&RAV
A1: Return & RAV | AI1: CADENT: | AJ1: EAST: | AK1: LONDON: | AL1: NW: | AM1: WM: | AN1: NORTH: | AO1: SCO: | AP1: SOUTH: | AQ1: W&W:
B2: =UserInterface!G17 -> Northern
E3: Parameter | G3: Units | I3: Constant | AH3: Annual values
E4: PCFM year ending | I4: =UserInterface!$G$10 -> 2028-03-31 | K4: 1991-03-31 | L4: 1992-03-31 | M4: 1993-03-31 | N4: 1994-03-31 | O4: 1995-03-31 | P4: 1996-03-31 | Q4: 1997-03-31 | R4: 1998-03-31 | S4: 1999-03-31 | T4: 2000-03-31 | U4: 2001-03-31 | V4: 2002-03-31 | W4: 2003-03-31 | X4: 2004-03-31 | Y4: 2005-03-31 | Z4: 2006-03-31 | AA4: 2007-03-31 | AB4: 2008-03-31 | AC4: 2009-03-31 | AD4: 2010-03-31 | AE4: 2011-03-31 | AF4: 2012-03-31 | AG4: 2013-03-31 | AH4: 2014-03-31 | AI4: 2015-03-31 | AJ4: 2016-03-31 | AK4: 2017-03-31 | AL4: 2018-03-31 | AM4: 2019-03-31 | AN4: 2020-03-31 | AO4: 2021-03-31 | AP4: 2022-03-31 | AQ4: 2023-03-31 | AR4: 2024-03-31 | AS4: 2025-03-31 | AT4: 2026-03-31
B6: Return
C8: Return base
C9: Note: The "Return base" is calculated such that the net present value of the stream of depreciation and return flowing from a RAV addition is equal to the present value of the addition itself.
D11: Present value of closing RAV
E13: Vanilla WACC | G13: annual real % | AP13: =Input!AP68 -> 0.0351639786 | AQ13: =Input!AQ68 -> 0.03468292998 | AR13: =Input!AR68 -> 0.03431136442 | AS13: =Input!AS68 -> 0.03402879016 | AT13: =Input!AT68 -> 0.03382360663
E14: Single year discount factor | G14: scalar | AP14: =1 / (1 + AP13) -> 0.9660305233 | AQ14: 0.9664796538 | AR14: 0.9668268516 | AS14: 0.9670910612 | AT14: 0.9672830003
E16: Closing RAV | G16: £m 18/19 prices | AP16: =AP44 -> 2277.985136 | AQ16: 2326.676242 | AR16: 2371.606904 | AS16: 2407.678559 | AT16: 2433.654277
E18: Discounted closing RAV | G18: £m 18/19 prices | AP18: =AP16 * AP14 -> 2200.603173 | AQ18: 2248.685249 | AR18: 2292.933236 | AS18: 2328.444412 | AT18: 2354.032411
D20: NPV-neutral RAV return base
E22: Opening RAV (after transfers) | G22: £m 18/19 prices | AP22: =AP41 -> 2232.522 | AQ22: 2277.985136 | AR22: 2326.676242 | AS22: 2371.606904 | AT22: 2407.678559
E23: Discounted closing RAV | G23: £m 18/19 prices | AP23: =AP18 -> 2200.603173 | AQ23: 2248.685249 | AR23: 2292.933236 | AS23: 2328.444412 | AT23: 2354.032411
E25: NPV-neutral RAV return base | G25: £m 18/19 prices | AP25: =AVERAGE(AP22:AP23) -> 2216.562586 | AQ25: 2263.335192 | AR25: 2309.804739 | AS25: 2350.025658 | AT25: 2380.855485
C27: Return on RAV
E29: NPV-neutral RAV return base | G29: £m 18/19 prices | AP29: =AP25 -> 2216.562586 | AQ29: 2263.335192 | AR29: 2309.804739 | AS29: 2350.025658 | AT29: 2380.855485
E30: Vanilla WACC | G30: annual real % | AP30: =AP13 -> 0.0351639786 | AQ30: 0.03468292998 | AR30: 0.03431136442 | AS30: 0.03402879016 | AT30: 0.03382360663
E32: Return | G32: £m 18/19 prices | AP32: =AP29 * AP30 -> 77.94315936 | AQ32: 78.499096 | AR32: 79.25255213 | AS32: 79.96853 | AT32: 80.52911937
B34: RAV
B35: Note: The RAV is presented separate pre-vesting and post-vesting balances brought together to form a combined "Running total."
C37: Running total
E39: Opening RAV (before transfers) | G39: £m 18/19 prices | AH39: =(AH51 - AH60) + (AH77 - AH86) -> 2071.046013 | AI39: =AH44 -> 2055.762118 | AJ39: 2069.017873 | AK39: 2097.199082 | AL39: 2130.19584 | AM39: 2159.191971 | AN39: 2184.78607 | AO39: 2212.234983 | AP39: =AO44 -> 2232.522 | AQ39: =AP44 -> 2277.985136 | AR39: =AQ44 -> 2326.676242 | AS39: =AR44 -> 2371.606904 | AT39: =AS44 -> 2407.678559
E40: Transfers | G40: £m 18/19 prices | AH40: =(AH52 - AH61) + (AH78 - AH87) -> 0 | AI40: =(AI52 - AI61) + (AI78 - AI87) -> 0 | AJ40: 0 | AK40: 0 | AL40: 0 | AM40: 0 | AN40: 0 | AO40: 0 | AP40: =(AP52 - AP61) + (AP78 - AP87) -> 0 | AQ40: 0 | AR40: 0 | AS40: 0 | AT40: 0
E41: Opening RAV (after transfers) | G41: £m 18/19 prices | AH41: =SUM(AH39:AH40) -> 2071.046013 | AI41: 2055.762118 | AJ41: 2069.017873 | AK41: 2097.199082 | AL41: 2130.19584 | AM41: 2159.191971 | AN41: 2184.78607 | AO41: 2212.234983 | AP41: =SUM(AP39:AP40) -> 2232.522 | AQ41: 2277.985136 | AR41: 2326.676242 | AS41: 2371.606904 | AT41: 2407.678559
E42: Net additions (after disposals) | G42: £m 18/19 prices | AH42: =AH54 + AH80 -> 88.12843562 | AI42: =AI54 + AI80 -> 118.3956461 | AJ42: =AJ54 + AJ80 -> 125.6495071 | AK42: 131.4505245 | AL42: 134.7828895 | AM42: 140.9399265 | AN42: 152.581717 | AO42: 157.6913424 | AP42: =AP54 + AP80 -> 161.3808306 | AQ42: 168.5048905 | AR42: 168.7943547 | AS42: 163.8350339 | AT42: 157.2600753
E43: Depreciation | G43: £m 18/19 prices | AH43: =-(AH63 + AH89) -> -103.4123308 | AI43: =-(AI63 + AI89) -> -105.1398918 | AJ43: -97.46829799 | AK43: -98.45376647 | AL43: -105.7867587 | AM43: -115.3458274 | AN43: -125.1328033 | AO43: -137.4043257 | AP43: =-(AP63 + AP89) -> -115.917695 | AQ43: -119.8137846 | AR43: -123.8636924 | AS43: -127.763379 | AT43: -131.2843566
E44: Closing RAV | G44: £m 18/19 prices | AH44: =SUM(AH41:AH43) -> 2055.762118 | AI44: =SUM(AI41:AI43) -> 2069.017873 | AJ44: 2097.199082 | AK44: 2130.19584 | AL44: 2159.191971 | AM44: 2184.78607 | AN44: 2212.234983 | AO44: 2232.522 | AP44: =SUM(AP41:AP43) -> 2277.985136 | AQ44: 2326.676242 | AR44: 2371.606904 | AS44: 2407.678559 | AT44: 2433.654277
C46: Pre-vesting balance
C47: Note: Pre-vesting RAV opening balances are inputs to the model. The continued depreciation of these assets uses annual depreciation rates calculated on the "Depn" sheet.
D49: Cost
E51: Opening balance brought forward (before transfers) | G51: £m 18/19 prices | AH51: =Input!AH316 -> 1799.090956 | AI51: =AH56 -> 1798.959051 | AJ51: =AI56 -> 1798.696445 | AK51: 1798.696445 | AL51: 1798.696445 | AM51: 1798.696445 | AN51: 1798.696445 | AO51: 1798.696445 | AP51: =AO56 -> 1798.696445 | AQ51: =AP56 -> 1798.696445 | AR51: =AQ56 -> 1798.696445 | AS51: =AR56 -> 1798.696445 | AT51: =AS56 -> 1798.696445
E52: Transfers | G52: £m 18/19 prices
E53: Opening balance brought forward (after transfers) | G53: £m 18/19 prices | AH53: =SUM(AH51:AH52) -> 1799.090956 | AI53: =SUM(AI51:AI52) -> 1798.959051 | AJ53: 1798.696445 | AK53: 1798.696445 | AL53: 1798.696445 | AM53: 1798.696445 | AN53: 1798.696445 | AO53: 1798.696445 | AP53: =SUM(AP51:AP52) -> 1798.696445 | AQ53: 1798.696445 | AR53: 1798.696445 | AS53: 1798.696445 | AT53: 1798.696445
E54: Net additions (after disposals) | G54: £m 18/19 prices | AH54: =-Input!AH320 -> -0.1319044775 | AI54: =-Input!AI320 -> -0.2626058609 | AJ54: =-Input!AJ320 -> 0 | AK54: =-Input!AK320 -> 0 | AL54: =-Input!AL320 -> 0 | AM54: =-Input!AM320 -> 0 | AN54: =-Input!AN320 -> 0 | AO54: =-Input!AO320 -> 0 | AP54: =-Input!AP320 -> 0 | AQ54: =-Input!AQ320 -> 0 | AR54: =-Input!AR320 -> 0 | AS54: =-Input!AS320 -> 0 | AT54: =-Input!AT320 -> 0
E55: Removals | G55: £m 18/19 prices
E56: Closing value carried forward | G56: £m 18/19 prices | AH56: =AH53 + AH54 - AH55 -> 1798.959051 | AI56: =AI53 + AI54 - AI55 -> 1798.696445 | AJ56: 1798.696445 | AK56: 1798.696445 | AL56: 1798.696445 | AM56: 1798.696445 | AN56: 1798.696445 | AO56: 1798.696445 | AP56: =AP53 + AP54 - AP55 -> 1798.696445 | AQ56: 1798.696445 | AR56: 1798.696445 | AS56: 1798.696445 | AT56: 1798.696445
D58: Cumulative depreciation
E60: Opening balance brought forward (before transfers) | G60: £m 18/19 prices | AH60: =Input!AH317 -> 632.5625401 | AI60: =AH65 -> 683.2887889 | AJ60: =AI65 -> 732.8841512 | AK60: 781.3452709 | AL60: 828.6793879 | AM60: 874.8865021 | AN60: 919.9666135 | AO60: 963.9197222 | AP60: =AO65 -> 1006.745828 | AQ60: =AP65 -> 1048.444931 | AR60: =AQ65 -> 1089.017031 | AS60: =AR65 -> 1128.462129 | AT60: =AS65 -> 1166.780223
E61: Transfers | G61: £m 18/19 prices
E62: Opening balance brought forward (after transfers) | G62: £m 18/19 prices | AH62: =SUM(AH60:AH61) -> 632.5625401 | AI62: =SUM(AI60:AI61) -> 683.2887889 | AJ62: 732.8841512 | AK62: 781.3452709 | AL62: 828.6793879 | AM62: 874.8865021 | AN62: 919.9666135 | AO62: 963.9197222 | AP62: =SUM(AP60:AP61) -> 1006.745828 | AQ62: 1048.444931 | AR62: 1089.017031 | AS62: 1128.462129 | AT62: 1166.780223
E63: Depreciation | G63: £m 18/19 prices | AH63: =AH51 * Depn!AH31 -> 50.72624875 | AI63: =AI51 * Depn!AI31 -> 49.59536231 | AJ63: =AJ51 * Depn!AJ31 -> 48.46111977 | AK63: =AK51 * Depn!AK31 -> 47.33411698 | AL63: =AL51 * Depn!AL31 -> 46.20711419 | AM63: =AM51 * Depn!AM31 -> 45.08011141 | AN63: =AN51 * Depn!AN31 -> 43.95310862 | AO63: =AO51 * Depn!AO31 -> 42.82610584 | AP63: =AP51 * Depn!AP31 -> 41.69910305 | AQ63: =AQ51 * Depn!AQ31 -> 40.57210027 | AR63: =AR51 * Depn!AR31 -> 39.44509748 | AS63: =AS51 * Depn!AS31 -> 38.3180947 | AT63: =AT51 * Depn!AT31 -> 37.19109191
E64: Removals | G64: £m 18/19 prices | AH64: =AH55 -> 0 | AI64: 0 | AJ64: 0 | AK64: 0 | AL64: 0 | AM64: 0 | AN64: 0 | AO64: 0 | AP64: =AP55 -> 0 | AQ64: 0 | AR64: 0 | AS64: 0 | AT64: 0
E65: Closing value carried forward | G65: £m 18/19 prices | AH65: =AH62 + AH63 - AH64 -> 683.2887889 | AI65: =AI62 + AI63 - AI64 -> 732.8841512 | AJ65: 781.3452709 | AK65: 828.6793879 | AL65: 874.8865021 | AM65: 919.9666135 | AN65: 963.9197222 | AO65: 1006.745828 | AP65: =AP62 + AP63 - AP64 -> 1048.444931 | AQ65: 1089.017031 | AR65: 1128.462129 | AS65: 1166.780223 | AT65: 1203.971315
D67: Asset balance
E69: Net value after regulatory depreciation | G69: £m 18/19 prices | AH69: =AH56 - AH65 -> 1115.670262 | AI69: 1065.812294 | AJ69: 1017.351174 | AK69: 970.0170573 | AL69: 923.8099431 | AM69: 878.7298317 | AN69: 834.7767231 | AO69: 791.9506172 | AP69: =AP56 - AP65 -> 750.2515142 | AQ69: 709.6794139 | AR69: 670.2343164 | AS69: 631.9162217 | AT69: 594.7251298
C71: Post-vesting balance
C72: Note: Post-vesting RAV opening balances are generated from calculations built up since vesting. Net additions (after disposals), depreciation and removals are calculated principally on the "Depn" sheet.
C73: Assets with non-standard depreciation policies applied or that are transferred to the RAV during the price control are also brought into the RAV here.
D75: Cost
E77: Opening balance brought forward (before transfers) | G77: £m 18/19 prices | AH77: =Depn!AH280 + AH105 -> 1015.177339 | AI77: =AH82 -> 1103.437679 | AJ77: 1222.095931 | AK77: 1347.745438 | AL77: 1479.195963 | AM77: 1613.978852 | AN77: 1754.918779 | AO77: 1907.500496 | AP77: =AO82 -> 2065.191838 | AQ77: =AP82 -> 2226.572669 | AR77: =AQ82 -> 2395.077559 | AS77: =AR82 -> 2563.871914 | AT77: =AS82 -> 2727.706948
E78: Transfers | G78: £m 18/19 prices
E79: Opening balance brought forward (after transfers) | G79: £m 18/19 prices | AH79: =SUM(AH77:AH78) -> 1015.177339 | AI79: 1103.437679 | AJ79: 1222.095931 | AK79: 1347.745438 | AL79: 1479.195963 | AM79: 1613.978852 | AN79: 1754.918779 | AO79: 1907.500496 | AP79: =SUM(AP77:AP78) -> 2065.191838 | AQ79: 2226.572669 | AR79: 2395.077559 | AS79: 2563.871914 | AT79: 2727.706948
E80: Net additions (after disposals) | G80: £m 18/19 prices | AH80: =Depn!AH17 + AH106 -> 88.26034009 | AI80: =Depn!AI17 + AI106 -> 118.658252 | AJ80: =Depn!AJ17 + AJ106 -> 125.6495071 | AK80: =Depn!AK17 + AK106 -> 131.4505245 | AL80: =Depn!AL17 + AL106 -> 134.7828895 | AM80: =Depn!AM17 + AM106 -> 140.9399265 | AN80: =Depn!AN17 + AN106 -> 152.581717 | AO80: =Depn!AO17 + AO106 -> 157.6913424 | AP80: =Depn!AP17 + AP106 -> 161.3808306 | AQ80: =Depn!AQ17 + AQ106 -> 168.5048905 | AR80: =Depn!AR17 + AR106 -> 168.7943547 | AS80: =Depn!AS17 + AS106 -> 163.8350339 | AT80: =Depn!AT17 + AT106 -> 157.2600753
E81: Removals | G81: £m 18/19 prices | AH81: =Depn!AH271 -> 0 | AI81: =Depn!AI271 -> 0 | AJ81: =Depn!AJ271 -> 0 | AK81: =Depn!AK271 -> 0 | AL81: =Depn!AL271 -> 0 | AM81: =Depn!AM271 -> 0 | AN81: =Depn!AN271 -> 0 | AO81: =Depn!AO271 -> 0 | AP81: =Depn!AP271 -> 0 | AQ81: =Depn!AQ271 -> 0 | AR81: =Depn!AR271 -> 0 | AS81: =Depn!AS271 -> 0 | AT81: =Depn!AT271 -> 0
E82: Closing value carried forward | G82: £m 18/19 prices | AH82: =AH79 + AH80 - AH81 -> 1103.437679 | AI82: =AI79 + AI80 - AI81 -> 1222.095931 | AJ82: 1347.745438 | AK82: 1479.195963 | AL82: 1613.978852 | AM82: 1754.918779 | AN82: 1907.500496 | AO82: 2065.191838 | AP82: =AP79 + AP80 - AP81 -> 2226.572669 | AQ82: 2395.077559 | AR82: 2563.871914 | AS82: 2727.706948 | AT82: 2884.967023
D84: Cumulative depreciation
E86: Opening balance brought forward (before transfers) | G86: £m 18/19 prices | AH86: =Depn!AH281 + AH111 -> 110.6597413 | AI86: =AH91 -> 163.3458234 | AJ86: 218.8903529 | AK86: 267.8975311 | AL86: 319.0171806 | AM86: 378.5968251 | AN86: 448.8625411 | AO86: 530.0422357 | AP86: =AO91 -> 624.6204556 | AQ86: =AP91 -> 698.8390475 | AR86: =AQ91 -> 778.0807318 | AS86: =AR91 -> 862.4993267 | AT86: =AS91 -> 951.9446111
G87: £m 18/19 prices
E88: Opening balance brought forward (after transfers) | G88: £m 18/19 prices | AH88: =SUM(AH86:AH87) -> 110.6597413 | AI88: 163.3458234 | AJ88: 218.8903529 | AK88: 267.8975311 | AL88: 319.0171806 | AM88: 378.5968251 | AN88: 448.8625411 | AO88: 530.0422357 | AP88: =SUM(AP86:AP87) -> 624.6204556 | AQ88: 698.8390475 | AR88: 778.0807318 | AS88: 862.4993267 | AT88: 951.9446111
E89: Depreciation | G89: £m 18/19 prices | AH89: =Depn!AH171 + Depn!AH206 + Depn!AH242 + AH112 -> 52.68608207 | AI89: =Depn!AI171 + Depn!AI206 + Depn!AI242 + AI112 -> 55.54452947 | AJ89: =Depn!AJ171 + Depn!AJ206 + Depn!AJ242 + AJ112 -> 49.00717823 | AK89: =Depn!AK171 + Depn!AK206 + Depn!AK242 + AK112 -> 51.11964949 | AL89: =Depn!AL171 + Depn!AL206 + Depn!AL242 + AL112 -> 59.57964449 | AM89: =Depn!AM171 + Depn!AM206 + Depn!AM242 + AM112 -> 70.265716 | AN89: =Depn!AN171 + Depn!AN206 + Depn!AN242 + AN112 -> 81.17969466 | AO89: =Depn!AO171 + Depn!AO206 + Depn!AO242 + AO112 -> 94.57821982 | AP89: =Depn!AP171 + Depn!AP206 + Depn!AP242 + AP112 -> 74.21859192 | AQ89: =Depn!AQ171 + Depn!AQ206 + Depn!AQ242 + AQ112 -> 79.24168432 | AR89: =Depn!AR171 + Depn!AR206 + Depn!AR242 + AR112 -> 84.41859495 | AS89: =Depn!AS171 + Depn!AS206 + Depn!AS242 + AS112 -> 89.44528432 | AT89: =Depn!AT171 + Depn!AT206 + Depn!AT242 + AT112 -> 94.09326471
E90: Removals | G90: £m 18/19 prices | AH90: =AH81 -> 0 | AI90: 0 | AJ90: 0 | AK90: 0 | AL90: 0 | AM90: 0 | AN90: 0 | AO90: 0 | AP90: =AP81 -> 0 | AQ90: 0 | AR90: 0 | AS90: 0 | AT90: 0
E91: Closing value carried forward | G91: £m 18/19 prices | AH91: =AH88 + AH89 - AH90 -> 163.3458234 | AI91: =AI88 + AI89 - AI90 -> 218.8903529 | AJ91: 267.8975311 | AK91: 319.0171806 | AL91: 378.5968251 | AM91: 448.8625411 | AN91: 530.0422357 | AO91: 624.6204556 | AP91: =AP88 + AP89 - AP90 -> 698.8390475 | AQ91: 778.0807318 | AR91: 862.4993267 | AS91: 951.9446111 | AT91: 1046.037876
D93: Asset balance
E95: Net value after regulatory depreciation | G95: £m 18/19 prices | AH95: =AH82 - AH91 -> 940.091856 | AI95: 1003.205579 | AJ95: 1079.847907 | AK95: 1160.178782 | AL95: 1235.382027 | AM95: 1306.056238 | AN95: 1377.45826 | AO95: 1440.571383 | AP95: =AP82 - AP91 -> 1527.733621 | AQ95: 1616.996828 | AR95: 1701.372587 | AS95: 1775.762337 | AT95: 1838.929148
B97: Project balances included in post-vesting RAV
B98: Note: Assets non-standard depreciation policies applied or that are transferred to the RAV during the price control are also provided below.
C100: Fuel Poor
C101: Note: Fuel Poor calculations are separate due to the depreciation profile of additional customer discount
D103: Cost
E105: Opening balance brought forward | G105: £m 18/19 prices | AH105: =FuelPoor!AH10 -> 8.582030518 | AI105: =AH107 -> 8.582030518 | AJ105: 8.582030518 | AK105: 8.582030518 | AL105: 8.582030518 | AM105: 8.582030518 | AN105: 8.582030518 | AO105: 8.582030518 | AP105: =AO107 -> 8.582030518 | AQ105: =AP107 -> 8.582030518 | AR105: =AQ107 -> 8.582030518 | AS105: =AR107 -> 8.582030518 | AT105: =AS107 -> 8.582030518
E106: Net additions (after disposals) | G106: £m 18/19 prices | AH106: =SUM(FuelPoor!AH11:AH13) -> 0 | AI106: =SUM(FuelPoor!AI11:AI13) -> 0 | AJ106: =SUM(FuelPoor!AJ11:AJ13) -> 0 | AK106: =SUM(FuelPoor!AK11:AK13) -> 0 | AL106: =SUM(FuelPoor!AL11:AL13) -> 0 | AM106: =SUM(FuelPoor!AM11:AM13) -> 0 | AN106: =SUM(FuelPoor!AN11:AN13) -> 0 | AO106: =SUM(FuelPoor!AO11:AO13) -> 0 | AP106: =SUM(FuelPoor!AP11:AP13) -> 0 | AQ106: =SUM(FuelPoor!AQ11:AQ13) -> 0 | AR106: =SUM(FuelPoor!AR11:AR13) -> 0 | AS106: =SUM(FuelPoor!AS11:AS13) -> 0 | AT106: =SUM(FuelPoor!AT11:AT13) -> 0
E107: Balance carried forward | G107: £m 18/19 prices | AH107: =AH105+AH106 -> 8.582030518 | AI107: 8.582030518 | AJ107: 8.582030518 | AK107: 8.582030518 | AL107: 8.582030518 | AM107: 8.582030518 | AN107: 8.582030518 | AO107: 8.582030518 | AP107: =AP105+AP106 -> 8.582030518 | AQ107: 8.582030518 | AR107: 8.582030518 | AS107: 8.582030518 | AT107: 8.582030518
D109: Accumulated depreciation
E111: Opening balance brought forward | G111: £m 18/19 prices | AH111: =FuelPoor!AH16 -> 0.8157585692 | AI111: =AH113 -> 1.487264671 | AJ111: 2.152367938 | AK111: 2.751674803 | AL111: 3.287463636 | AM111: 3.632773859 | AN111: 3.881246355 | AO111: 4.123316018 | AP111: =AO113 -> 4.358982845 | AQ111: =AP113 -> 4.588246839 | AR111: =AQ113 -> 4.811107999 | AS111: =AR113 -> 5.027566324 | AT111: =AS113 -> 5.237621816
E112: Regulatory depreciation | G112: £m 18/19 prices | AH112: =SUM(FuelPoor!AH17:AH19) -> 0.6715061014 | AI112: =SUM(FuelPoor!AI17:AI19) -> 0.6651032672 | AJ112: =SUM(FuelPoor!AJ17:AJ19) -> 0.5993068655 | AK112: =SUM(FuelPoor!AK17:AK19) -> 0.5357888323 | AL112: =SUM(FuelPoor!AL17:AL19) -> 0.3453102237 | AM112: =SUM(FuelPoor!AM17:AM19) -> 0.2484724962 | AN112: =SUM(FuelPoor!AN17:AN19) -> 0.2420696621 | AO112: =SUM(FuelPoor!AO17:AO19) -> 0.2356668279 | AP112: =SUM(FuelPoor!AP17:AP19) -> 0.2292639938 | AQ112: =SUM(FuelPoor!AQ17:AQ19) -> 0.2228611596 | AR112: =SUM(FuelPoor!AR17:AR19) -> 0.2164583255 | AS112: =SUM(FuelPoor!AS17:AS19) -> 0.2100554913 | AT112: =SUM(FuelPoor!AT17:AT19) -> 0.2036526572
E113: Closing value carried forward | G113: £m 18/19 prices | AH113: =AH111+AH112 -> 1.487264671 | AI113: 2.152367938 | AJ113: 2.751674803 | AK113: 3.287463636 | AL113: 3.632773859 | AM113: 3.881246355 | AN113: 4.123316018 | AO113: 4.358982845 | AP113: =AP111+AP112 -> 4.588246839 | AQ113: 4.811107999 | AR113: 5.027566324 | AS113: 5.237621816 | AT113: 5.441274473
D115: Net value after regulatory depreciation
E117: Included in RAV | G117: text | AH117: =YEAR(AH$4) >= YEAR($Z$4) -> TRUE | AI117: TRUE | AJ117: TRUE | AK117: TRUE | AL117: TRUE | AM117: TRUE | AN117: TRUE | AO117: TRUE | AP117: TRUE | AQ117: TRUE | AR117: TRUE | AS117: TRUE | AT117: TRUE
E118: Net value after regulatory depreciation | G118: £m 18/19 prices | AH118: =AH107-AH113 -> 7.094765847 | AI118: 6.42966258 | AJ118: 5.830355715 | AK118: 5.294566882 | AL118: 4.949256659 | AM118: 4.700784163 | AN118: 4.4587145 | AO118: 4.223047673 | AP118: =AP107-AP113 -> 3.993783679 | AQ118: 3.770922519 | AR118: 3.554464194 | AS118: 3.344408702 | AT118: 3.140756045
B120: End of sheet

Sheet TaxPools
A1: Tax Pools | AI1: CADENT: | AJ1: EAST: | AK1: LONDON: | AL1: NW: | AM1: WM: | AN1: NORTH: | AO1: SCO: | AP1: SOUTH: | AQ1: W&W:
B2: =UserInterface!G17 -> Northern
E3: Parameter | G3: Units | I3: Constant | AH3: Annual values
E4: PCFM year ending | I4: =UserInterface!$G$10 -> 2028-03-31 | K4: 1991-03-31 | L4: 1992-03-31 | M4: 1993-03-31 | N4: 1994-03-31 | O4: 1995-03-31 | P4: 1996-03-31 | Q4: 1997-03-31 | R4: 1998-03-31 | S4: 1999-03-31 | T4: 2000-03-31 | U4: 2001-03-31 | V4: 2002-03-31 | W4: 2003-03-31 | X4: 2004-03-31 | Y4: 2005-03-31 | Z4: 2006-03-31 | AA4: 2007-03-31 | AB4: 2008-03-31 | AC4: 2009-03-31 | AD4: 2010-03-31 | AE4: 2011-03-31 | AF4: 2012-03-31 | AG4: 2013-03-31 | AH4: 2014-03-31 | AI4: 2015-03-31 | AJ4: 2016-03-31 | AK4: 2017-03-31 | AL4: 2018-03-31 | AM4: 2019-03-31 | AN4: 2020-03-31 | AO4: 2021-03-31 | AP4: 2022-03-31 | AQ4: 2023-03-31 | AR4: 2024-03-31 | AS4: 2025-03-31 | AT4: 2026-03-31
B6: Tax pool additions
B7: Note: Actual totex is combined with other expenditure and allocated to tax pools. Each cost sub-category can have its own percentage split between each pool.
C9: Expenditure categories allocated to tax pools
D11: Actual totex
E13: Load related capex | G13: £m 18/19 prices | AH13: =Totex!AH77 -> 23.66437778 | AI13: =Totex!AI77 -> 29.16863494 | AJ13: =Totex!AJ77 -> 39.8046141 | AK13: =Totex!AK77 -> 33.19531512 | AL13: =Totex!AL77 -> 27.77328335 | AM13: =Totex!AM77 -> 32.62032305 | AN13: =Totex!AN77 -> 33.86719093 | AO13: =Totex!AO77 -> 35.20545848 | AP13: =Totex!AP77 -> 28.83030261 | AQ13: =Totex!AQ77 -> 36.71064392 | AR13: =Totex!AR77 -> 40.72257892 | AS13: =Totex!AS77 -> 36.41405352 | AT13: =Totex!AT77 -> 32.06273022
E14: Non-load related capex - other | G14: £m 18/19 prices | AH14: =Totex!AH78 -> 22.44813574 | AI14: =Totex!AI78 -> 26.07059324 | AJ14: =Totex!AJ78 -> 28.61381934 | AK14: =Totex!AK78 -> 33.56750435 | AL14: =Totex!AL78 -> 28.18507408 | AM14: =Totex!AM78 -> 28.62937606 | AN14: =Totex!AN78 -> 28.3731481 | AO14: =Totex!AO78 -> 21.69278447 | AP14: =Totex!AP78 -> 25.21849609 | AQ14: =Totex!AQ78 -> 25.32276764 | AR14: =Totex!AR78 -> 22.04242266 | AS14: =Totex!AS78 -> 22.13376328 | AT14: =Totex!AT78 -> 20.54626479
E15: Controllable opex | G15: £m 18/19 prices | AH15: =Totex!AH79 -> 89.82254748 | AI15: =Totex!AI79 -> 91.28205694 | AJ15: =Totex!AJ79 -> 85.60311474 | AK15: =Totex!AK79 -> 84.19004334 | AL15: =Totex!AL79 -> 83.68289756 | AM15: =Totex!AM79 -> 80.57780819 | AN15: =Totex!AN79 -> 85.69559814 | AO15: =Totex!AO79 -> 87.49376707 | AP15: =Totex!AP79 -> 87.82689644 | AQ15: =Totex!AQ79 -> 86.56301282 | AR15: =Totex!AR79 -> 85.81641898 | AS15: =Totex!AS79 -> 84.19843206 | AT15: =Totex!AT79 -> 84.90971894
E16: Repex | G16: £m 18/19 prices | AH16: =Totex!AH80 -> 99.33626704 | AI16: =Totex!AI80 -> 104.2167858 | AJ16: =Totex!AJ80 -> 93.95979647 | AK16: =Totex!AK80 -> 91.2647359 | AL16: =Totex!AL80 -> 93.87813823 | AM16: =Totex!AM80 -> 97.11098431 | AN16: =Totex!AN80 -> 98.28782943 | AO16: =Totex!AO80 -> 89.37588341 | AP16: =Totex!AP80 -> 107.3320319 | AQ16: =Totex!AQ80 -> 106.67759 | AR16: =Totex!AR80 -> 106.0293531 | AS16: =Totex!AS80 -> 105.3872171 | AT16: =Totex!AT80 -> 104.7510803
E17: Actual totex | G17: £m 18/19 prices | AH17: =SUM(AH13:AH16) -> 235.271328 | AI17: 250.7380709 | AJ17: 247.9813446 | AK17: 242.2175987 | AL17: 233.5193932 | AM17: 238.9384916 | AN17: 246.2237666 | AO17: 233.7678934 | AP17: =SUM(AP13:AP16) -> 249.2077271 | AQ17: 255.2740144 | AR17: 254.6107737 | AS17: 248.133466 | AT17: 242.2697943
D19: Actual non-totex
E21: Non-controllable opex | G21: £m 18/19 prices | AH21: =Input!AH265 -> 63.50685963 | AI21: =Input!AI265 -> 62.83905088 | AJ21: =Input!AJ265 -> 60.02681534 | AK21: =Input!AK265 -> 59.2091302 | AL21: =Input!AL265 -> 59.4315614 | AM21: =Input!AM265 -> 60.02980927 | AN21: =Input!AN265 -> 67.05370422 | AO21: =Input!AO265 -> 72.9274522 | AP21: =Input!AP265 -> 95.2060747 | AQ21: =Input!AQ265 -> 95.07182142 | AR21: =Input!AR265 -> 92.8992488 | AS21: =Input!AS265 -> 91.38408185 | AT21: =Input!AT265 -> 89.38540756
E22: Actual non-totex | G22: £m 18/19 prices | AH22: =SUM(AH21:AH21) -> 63.50685963 | AI22: 62.83905088 | AJ22: 60.02681534 | AK22: 59.2091302 | AL22: 59.4315614 | AM22: 60.02980927 | AN22: 67.05370422 | AO22: 72.9274522 | AP22: =SUM(AP21:AP21) -> 95.2060747 | AQ22: 95.07182142 | AR22: 92.8992488 | AS22: 91.38408185 | AT22: 89.38540756
D24: Combined actual totex and non-totex
E26: Load related capex | G26: £m 18/19 prices | AH26: =AH13 -> 23.66437778 | AI26: =AI13 -> 29.16863494 | AJ26: 39.8046141 | AK26: 33.19531512 | AL26: 27.77328335 | AM26: 32.62032305 | AN26: 33.86719093 | AO26: 35.20545848 | AP26: =AP13 -> 28.83030261 | AQ26: 36.71064392 | AR26: 40.72257892 | AS26: 36.41405352 | AT26: 32.06273022
E27: Non-load related capex - other | G27: £m 18/19 prices | AH27: =AH14 -> 22.44813574 | AI27: =AI14 -> 26.07059324 | AJ27: 28.61381934 | AK27: 33.56750435 | AL27: 28.18507408 | AM27: 28.62937606 | AN27: 28.3731481 | AO27: 21.69278447 | AP27: =AP14 -> 25.21849609 | AQ27: 25.32276764 | AR27: 22.04242266 | AS27: 22.13376328 | AT27: 20.54626479
E28: Opex | G28: £m 18/19 prices | AH28: =AH21 + AH15 -> 153.3294071 | AI28: 154.1211078 | AJ28: 145.6299301 | AK28: 143.3991735 | AL28: 143.114459 | AM28: 140.6076175 | AN28: 152.7493024 | AO28: 160.4212193 | AP28: =AP21 + AP15 -> 183.0329711 | AQ28: 181.6348342 | AR28: 178.7156678 | AS28: 175.5825139 | AT28: 174.2951265
E29: Repex | G29: £m 18/19 prices | AH29: =AH16 -> 99.33626704 | AI29: 104.2167858 | AJ29: 93.95979647 | AK29: 91.2647359 | AL29: 93.87813823 | AM29: 97.11098431 | AN29: 98.28782943 | AO29: 89.37588341 | AP29: =AP16 -> 107.3320319 | AQ29: 106.67759 | AR29: 106.0293531 | AS29: 105.3872171 | AT29: 104.7510803
C31: Tax pool allocation
D33: General pool
E35: Load related capex allocation | G35: % | AH35: =Input!AH397 -> 0.0029 | AI35: =Input!AI397 -> 0.0029 | AJ35: =Input!AJ397 -> 0.0029 | AK35: =Input!AK397 -> 0.0029 | AL35: =Input!AL397 -> 0.0029 | AM35: =Input!AM397 -> 0.0029 | AN35: =Input!AN397 -> 0.0029 | AO35: =Input!AO397 -> 0.0029 | AP35: =Input!AP397 -> 0.0371299937 | AQ35: =Input!AQ397 -> 0.03832174526 | AR35: =Input!AR397 -> 0.03714532969 | AS35: =Input!AS397 -> 0.03756561727 | AT35: =Input!AT397 -> 0.03741134246
E36: Non-load related capex - other allocation | G36: % | AH36: =Input!AH398 -> 0.8975609839 | AI36: =Input!AI398 -> 0.8975609839 | AJ36: =Input!AJ398 -> 0.8975609839 | AK36: =Input!AK398 -> 0.8975609839 | AL36: =Input!AL398 -> 0.8975609839 | AM36: =Input!AM398 -> 0.8975609839 | AN36: =Input!AN398 -> 0.8975609839 | AO36: =Input!AO398 -> 0.8975609839 | AP36: =Input!AP398 -> 0.9353237109 | AQ36: =Input!AQ398 -> 0.9459800784 | AR36: =Input!AR398 -> 0.9415282804 | AS36: =Input!AS398 -> 0.9424556472 | AT36: =Input!AT398 -> 0.9418573874
E37: Opex allocation | G37: % | AH37: =Input!AH399 -> 0 | AI37: =Input!AI399 -> 0 | AJ37: =Input!AJ399 -> 0 | AK37: =Input!AK399 -> 0 | AL37: =Input!AL399 -> 0 | AM37: =Input!AM399 -> 0 | AN37: =Input!AN399 -> 0 | AO37: =Input!AO399 -> 0 | AP37: =Input!AP399 -> 0 | AQ37: =Input!AQ399 -> 0 | AR37: =Input!AR399 -> 0 | AS37: =Input!AS399 -> 0 | AT37: =Input!AT399 -> 0
E38: Repex allocation | G38: % | AH38: =Input!AH400 -> 0 | AI38: =Input!AI400 -> 0 | AJ38: =Input!AJ400 -> 0 | AK38: =Input!AK400 -> 0 | AL38: =Input!AL400 -> 0 | AM38: =Input!AM400 -> 0 | AN38: =Input!AN400 -> 0 | AO38: =Input!AO400 -> 0 | AP38: =Input!AP400 -> 0 | AQ38: =Input!AQ400 -> 0 | AR38: =Input!AR400 -> 0 | AS38: =Input!AS400 -> 0 | AT38: =Input!AT400 -> 0
E40: General pool additions | G40: £m 18/19 prices | AH40: =SUMPRODUCT(AH$26:AH$29,AH35:AH38) -> 20.2171975 | AI40: 23.48453636 | AJ40: 25.79808122 | AK40: 30.22514864 | AL40: 25.37836535 | AM40: 25.79120988 | AN40: 25.56484557 | AO40: 19.5726928 | AP40: =SUMPRODUCT(AP$26:AP$29,AP35:AP38) -> 24.6579263 | AQ40: 25.36164966 | AR40: 22.26621792 | AS40: 22.22800659 | AT40: 20.55116105
D42: Special Rate pool
E44: Load related capex allocation | G44: % | AH44: =Input!AH404 -> 0.9887 | AI44: =Input!AI404 -> 0.9887 | AJ44: =Input!AJ404 -> 0.9887 | AK44: =Input!AK404 -> 0.9887 | AL44: =Input!AL404 -> 0.9887 | AM44: =Input!AM404 -> 0.9887 | AN44: =Input!AN404 -> 0.9887 | AO44: =Input!AO404 -> 0.9887 | AP44: =Input!AP404 -> 0.857487423 | AQ44: =Input!AQ404 -> 0.8624116709 | AR44: =Input!AR404 -> 0.8517694567 | AS44: =Input!AS404 -> 0.8504670429 | AT44: =Input!AT404 -> 0.8528666563
E45: Non-load related capex - other allocation | G45: % | AH45: =Input!AH405 -> 0.01627111379 | AI45: =Input!AI405 -> 0.01627111379 | AJ45: =Input!AJ405 -> 0.01627111379 | AK45: =Input!AK405 -> 0.01627111379 | AL45: =Input!AL405 -> 0.01627111379 | AM45: =Input!AM405 -> 0.01627111379 | AN45: =Input!AN405 -> 0.01627111379 | AO45: =Input!AO405 -> 0.01627111379 | AP45: =Input!AP405 -> 0.02565519096 | AQ45: =Input!AQ405 -> 0.01994664257 | AR45: =Input!AR405 -> 0.0195910428 | AS45: =Input!AS405 -> 0.02006275768 | AT45: =Input!AT405 -> 0.02143351666
E46: Opex allocation | G46: % | AH46: =Input!AH406 -> 0 | AI46: =Input!AI406 -> 0 | AJ46: =Input!AJ406 -> 0 | AK46: =Input!AK406 -> 0 | AL46: =Input!AL406 -> 0 | AM46: =Input!AM406 -> 0 | AN46: =Input!AN406 -> 0 | AO46: =Input!AO406 -> 0 | AP46: =Input!AP406 -> 0 | AQ46: =Input!AQ406 -> 0 | AR46: =Input!AR406 -> 0 | AS46: =Input!AS406 -> 0 | AT46: =Input!AT406 -> 0
E47: Repex allocation | G47: % | AH47: =Input!AH407 -> 0 | AI47: =Input!AI407 -> 0 | AJ47: =Input!AJ407 -> 0 | AK47: =Input!AK407 -> 0 | AL47: =Input!AL407 -> 0 | AM47: =Input!AM407 -> 0 | AN47: =Input!AN407 -> 0 | AO47: =Input!AO407 -> 0 | AP47: =Input!AP407 -> 0 | AQ47: =Input!AQ407 -> 0 | AR47: =Input!AR407 -> 0 | AS47: =Input!AS407 -> 0 | AT47: =Input!AT407 -> 0
E49: Special Rate pool additions | G49: £m 18/19 prices | AH49: =SUMPRODUCT(AH$26:AH$29,AH44:AH47) -> 23.76222648 | AI49: 29.26322696 | AJ49: 39.82040067 | AK49: 33.36638874 | AL49: 27.91804779 | AM49: 32.71754524 | AN49: 33.94615439 | AO49: 35.16060256 | AP49: =SUMPRODUCT(AP$26:AP$29,AP44:AP47) -> 25.36860722 | AQ49: 32.16479196 | AR49: 35.11808296 | AS49: 31.41301675 | AT49: 27.78561223
D51: Structures and Buildings pool
E53: Load related capex allocation | G53: % | AH53: =Input!AH411 -> 0 | AI53: =Input!AI411 -> 0 | AJ53: =Input!AJ411 -> 0 | AK53: =Input!AK411 -> 0 | AL53: =Input!AL411 -> 0 | AM53: =Input!AM411 -> 0 | AN53: =Input!AN411 -> 0 | AO53: =Input!AO411 -> 0 | AP53: =Input!AP411 -> 0 | AQ53: =Input!AQ411 -> 0 | AR53: =Input!AR411 -> 0 | AS53: =Input!AS411 -> 0 | AT53: =Input!AT411 -> 0
E54: Non-load related capex - other allocation | G54: % | AH54: =Input!AH412 -> 0 | AI54: =Input!AI412 -> 0 | AJ54: =Input!AJ412 -> 0 | AK54: =Input!AK412 -> 0 | AL54: =Input!AL412 -> 0 | AM54: =Input!AM412 -> 0 | AN54: =Input!AN412 -> 0 | AO54: =Input!AO412 -> 0 | AP54: =Input!AP412 -> 0 | AQ54: =Input!AQ412 -> 0 | AR54: =Input!AR412 -> 0 | AS54: =Input!AS412 -> 0 | AT54: =Input!AT412 -> 0
E55: Opex allocation | G55: % | AH55: =Input!AH413 -> 0 | AI55: =Input!AI413 -> 0 | AJ55: =Input!AJ413 -> 0 | AK55: =Input!AK413 -> 0 | AL55: =Input!AL413 -> 0 | AM55: =Input!AM413 -> 0 | AN55: =Input!AN413 -> 0 | AO55: =Input!AO413 -> 0 | AP55: =Input!AP413 -> 0 | AQ55: =Input!AQ413 -> 0 | AR55: =Input!AR413 -> 0 | AS55: =Input!AS413 -> 0 | AT55: =Input!AT413 -> 0
E56: Repex allocation | G56: % | AH56: =Input!AH414 -> 0 | AI56: =Input!AI414 -> 0 | AJ56: =Input!AJ414 -> 0 | AK56: =Input!AK414 -> 0 | AL56: =Input!AL414 -> 0 | AM56: =Input!AM414 -> 0 | AN56: =Input!AN414 -> 0 | AO56: =Input!AO414 -> 0 | AP56: =Input!AP414 -> 0 | AQ56: =Input!AQ414 -> 0 | AR56: =Input!AR414 -> 0 | AS56: =Input!AS414 -> 0 | AT56: =Input!AT414 -> 0
E58: Structures and Buildings pool additions | G58: £m 18/19 prices | AH58: =SUMPRODUCT(AH$26:AH$29,AH53:AH56) -> 0 | AI58: 0 | AJ58: 0 | AK58: 0 | AL58: 0 | AM58: 0 | AN58: 0 | AO58: 0 | AP58: 0 | AQ58: 0 | AR58: 0 | AS58: 0 | AT58: 0
D60: Deferred revenue pool
E62: Load related capex allocation | G62: % | AH62: =Input!AH418 -> 0 | AI62: =Input!AI418 -> 0 | AJ62: =Input!AJ418 -> 0 | AK62: =Input!AK418 -> 0 | AL62: =Input!AL418 -> 0 | AM62: =Input!AM418 -> 0 | AN62: =Input!AN418 -> 0 | AO62: =Input!AO418 -> 0 | AP62: =Input!AP418 -> 0.01655929331 | AQ62: =Input!AQ418 -> 0.01826139027 | AR62: =Input!AR418 -> 0.02191366832 | AS62: =Input!AS418 -> 0.02131322479 | AT62: =Input!AT418 -> 0.02059269254
E63: Non-load related capex - other allocation | G63: % | AH63: =Input!AH419 -> 0 | AI63: =Input!AI419 -> 0 | AJ63: =Input!AJ419 -> 0 | AK63: =Input!AK419 -> 0 | AL63: =Input!AL419 -> 0 | AM63: =Input!AM419 -> 0 | AN63: =Input!AN419 -> 0 | AO63: =Input!AO419 -> 0 | AP63: =Input!AP419 -> 0.0004376371328 | AQ63: =Input!AQ419 -> 0.0003792855151 | AR63: =Input!AR419 -> 0.0004551426181 | AS63: =Input!AS419 -> 0.0004002920975 | AT63: =Input!AT419 -> 0.0003344714727
E64: Opex allocation | G64: % | AH64: =Input!AH420 -> 0 | AI64: =Input!AI420 -> 0 | AJ64: =Input!AJ420 -> 0 | AK64: =Input!AK420 -> 0 | AL64: =Input!AL420 -> 0 | AM64: =Input!AM420 -> 0 | AN64: =Input!AN420 -> 0 | AO64: =Input!AO420 -> 0 | AP64: =Input!AP420 -> 0 | AQ64: =Input!AQ420 -> 0 | AR64: =Input!AR420 -> 0 | AS64: =Input!AS420 -> 0 | AT64: =Input!AT420 -> 0
E65: Repex allocation | G65: % | AH65: =Input!AH421 -> 0 | AI65: =Input!AI421 -> 0 | AJ65: =Input!AJ421 -> 1 | AK65: =Input!AK421 -> 1 | AL65: =Input!AL421 -> 1 | AM65: =Input!AM421 -> 1 | AN65: =Input!AN421 -> 1 | AO65: =Input!AO421 -> 1 | AP65: =Input!AP421 -> 0.999090419 | AQ65: =Input!AQ421 -> 0.9992723352 | AR65: =Input!AR421 -> 0.9991268022 | AS65: =Input!AS421 -> 0.9991340789 | AT65: =Input!AT421 -> 0.9991428109
E67: Deferred revenue pool additions | G67: £m 18/19 prices | AH67: =SUMPRODUCT(AH$26:AH$29,AH62:AH65) -> 0 | AI67: 0 | AJ67: 93.95979647 | AK67: 91.2647359 | AL67: 93.87813823 | AM67: 97.11098431 | AN67: 98.28782943 | AO67: 89.37588341 | AP67: =SUMPRODUCT(AP$26:AP$29,AP62:AP65) -> 107.7228507 | AQ67: 107.2799565 | AR67: 106.839182 | AS67: 106.080921 | AT67: 105.3284189
D69: Revenue pool
E71: Load related capex allocation | G71: % | AH71: =Input!AH425 -> 0 | AI71: =Input!AI425 -> 0 | AJ71: =Input!AJ425 -> 0 | AK71: =Input!AK425 -> 0 | AL71: =Input!AL425 -> 0 | AM71: =Input!AM425 -> 0 | AN71: =Input!AN425 -> 0 | AO71: =Input!AO425 -> 0 | AP71: =Input!AP425 -> 0 | AQ71: =Input!AQ425 -> 0 | AR71: =Input!AR425 -> 0 | AS71: =Input!AS425 -> 0 | AT71: =Input!AT425 -> 0
E72: Non-load related capex - other allocation | G72: % | AH72: =Input!AH426 -> 0 | AI72: =Input!AI426 -> 0 | AJ72: =Input!AJ426 -> 0 | AK72: =Input!AK426 -> 0 | AL72: =Input!AL426 -> 0 | AM72: =Input!AM426 -> 0 | AN72: =Input!AN426 -> 0 | AO72: =Input!AO426 -> 0 | AP72: =Input!AP426 -> 0 | AQ72: =Input!AQ426 -> 0 | AR72: =Input!AR426 -> 0 | AS72: =Input!AS426 -> 0 | AT72: =Input!AT426 -> 0
E73: Opex allocation | G73: % | AH73: =Input!AH427 -> 1 | AI73: =Input!AI427 -> 1 | AJ73: =Input!AJ427 -> 1 | AK73: =Input!AK427 -> 1 | AL73: =Input!AL427 -> 1 | AM73: =Input!AM427 -> 1 | AN73: =Input!AN427 -> 1 | AO73: =Input!AO427 -> 1 | AP73: =Input!AP427 -> 1 | AQ73: =Input!AQ427 -> 1 | AR73: =Input!AR427 -> 1 | AS73: =Input!AS427 -> 1 | AT73: =Input!AT427 -> 1
E74: Repex allocation | G74: % | AH74: =Input!AH428 -> 1 | AI74: =Input!AI428 -> 1 | AJ74: =Input!AJ428 -> 0 | AK74: =Input!AK428 -> 0 | AL74: =Input!AL428 -> 0 | AM74: =Input!AM428 -> 0 | AN74: =Input!AN428 -> 0 | AO74: =Input!AO428 -> 0 | AP74: =Input!AP428 -> 0 | AQ74: =Input!AQ428 -> 0 | AR74: =Input!AR428 -> 0 | AS74: =Input!AS428 -> 0 | AT74: =Input!AT428 -> 0
E76: Revenue pool additions | G76: £m 18/19 prices | AH76: =SUMPRODUCT(AH$26:AH$29,AH71:AH74) -> 252.6656741 | AI76: =SUMPRODUCT(AI$26:AI$29,AI71:AI74) -> 258.3378936 | AJ76: 145.6299301 | AK76: 143.3991735 | AL76: 143.114459 | AM76: 140.6076175 | AN76: 152.7493024 | AO76: 160.4212193 | AP76: =SUMPRODUCT(AP$26:AP$29,AP71:AP74) -> 183.0329711 | AQ76: 181.6348342 | AR76: 178.7156678 | AS76: 175.5825139 | AT76: 174.2951265
D78: Non-qualifying expenditure
E80: Load related capex allocation | G80: % | AH80: =Input!AH432 -> 0.0084 | AI80: =Input!AI432 -> 0.0084 | AJ80: =Input!AJ432 -> 0.0084 | AK80: =Input!AK432 -> 0.0084 | AL80: =Input!AL432 -> 0.0084 | AM80: =Input!AM432 -> 0.0084 | AN80: =Input!AN432 -> 0.0084 | AO80: =Input!AO432 -> 0.0084 | AP80: =Input!AP432 -> 0.08883708717 | AQ80: =Input!AQ432 -> 0.08101271526 | AR80: =Input!AR432 -> 0.08918000856 | AS80: =Input!AS432 -> 0.0906640971 | AT80: =Input!AT432 -> 0.08913371395
E81: Non-load related capex - other allocation | G81: % | AH81: =Input!AH433 -> 0.0861679023 | AI81: =Input!AI433 -> 0.0861679023 | AJ81: =Input!AJ433 -> 0.0861679023 | AK81: =Input!AK433 -> 0.0861679023 | AL81: =Input!AL433 -> 0.0861679023 | AM81: =Input!AM433 -> 0.0861679023 | AN81: =Input!AN433 -> 0.0861679023 | AO81: =Input!AO433 -> 0.0861679023 | AP81: =Input!AP433 -> 0.03857717966 | AQ81: =Input!AQ433 -> 0.03369549077 | AR81: =Input!AR433 -> 0.03841816463 | AS81: =Input!AS433 -> 0.03708078603 | AT81: =Input!AT433 -> 0.03637498864
E82: Opex allocation | G82: % | AH82: =Input!AH434 -> 0 | AI82: =Input!AI434 -> 0 | AJ82: =Input!AJ434 -> 0 | AK82: =Input!AK434 -> 0 | AL82: =Input!AL434 -> 0 | AM82: =Input!AM434 -> 0 | AN82: =Input!AN434 -> 0 | AO82: =Input!AO434 -> 0 | AP82: =Input!AP434 -> 0 | AQ82: =Input!AQ434 -> 0 | AR82: =Input!AR434 -> 0 | AS82: =Input!AS434 -> 0 | AT82: =Input!AT434 -> 0
E83: Repex allocation | G83: % | AH83: =Input!AH435 -> 0 | AI83: =Input!AI435 -> 0 | AJ83: =Input!AJ435 -> 0 | AK83: =Input!AK435 -> 0 | AL83: =Input!AL435 -> 0 | AM83: =Input!AM435 -> 0 | AN83: =Input!AN435 -> 0 | AO83: =Input!AO435 -> 0 | AP83: =Input!AP435 -> 0.0009153296 | AQ83: =Input!AQ435 -> 0.00073456312 | AR83: =Input!AR435 -> 0.000881475744 | AS83: =Input!AS435 -> 0.0008739384928 | AT83: =Input!AT435 -> 0.0008648937914
E85: Non-qualifying expenditure | G85: £m 18/19 prices | AH85: =SUMPRODUCT(AH$26:AH$29,AH80:AH83) -> 2.133089541 | AI85: 2.491464865 | AJ85: 2.799951548 | AK85: 3.171282082 | AL85: 2.66194429 | AM85: 2.740943993 | AN85: 2.729339057 | AO85: 2.164947584 | AP85: =SUMPRODUCT(AP$26:AP$29,AP80:AP83) -> 3.632302746 | AQ85: 3.90565345 | AR85: 4.571931662 | AS85: 4.21428657 | AT85: 3.695838932
B87: Capital allowances
B88: Note: Special, General and deferred revenue capital allowances are calculated for the tax allowance calculation.
B89: When "non-core" assets are transferred to the RAV their tax book value is moved into the "Transfer" line.
C91: General pool
E93: Capital allowance rate | G93: % | AH93: =TaxTrigger!AH100 -> 0.18 | AI93: =TaxTrigger!AI100 -> 0.18 | AJ93: =TaxTrigger!AJ100 -> 0.18 | AK93: =TaxTrigger!AK100 -> 0.18 | AL93: =TaxTrigger!AL100 -> 0.18 | AM93: =TaxTrigger!AM100 -> 0.18 | AN93: =TaxTrigger!AN100 -> 0.18 | AO93: =TaxTrigger!AO100 -> 0.18 | AP93: =TaxTrigger!AP100 -> 0.18 | AQ93: =TaxTrigger!AQ100 -> 0.18 | AR93: =TaxTrigger!AR100 -> 0.18 | AS93: =TaxTrigger!AS100 -> 0.18 | AT93: =TaxTrigger!AT100 -> 0.18
E95: Opening balance brought forward | G95: £m nominal | AH95: =Input!AH383 -> 50.266 | AI95: =AH100 -> 55.94857356 | AJ95: 63.32425642 | AK95: 71.29761082 | AL95: 81.6463249 | AM95: 87.14322785 | AN95: =AM100 -> 92.60623894 | AO95: =AN100 -> 97.50878504 | AP95: =AO100 -> 96.9406022 | AQ95: =AP100 -> 101.3126517 | AR95: =AQ100 -> 105.9693151 | AS95: =AR100 -> 107.3955718 | AT95: =AS100 -> 108.9391688
E96: Revisions | G96: £m nominal
E97: Capex additions | G97: £m nominal | AH97: =AH40 * GDNpf -> 17.96396776 | AI97: 21.27612939 | AJ97: 23.62404946 | AK97: 28.27107808 | AL97: 24.62590418 | AM97: 25.79120988 | AN97: 26.30691355 | AO97: 20.71146154 | AP97: 26.61141213 | AQ97: 27.91822031 | AR97: 25.00089444 | AS97: 25.45707302 | AT97: 24.00729197
E98: Tax book value pre-depreciation | G98: £m nominal | AH98: =SUM(AH95:AH97) -> 68.22996776 | AI98: 77.22470296 | AJ98: 86.94830588 | AK98: 99.56868891 | AL98: 106.2722291 | AM98: 112.9344377 | AN98: 118.9131525 | AO98: 118.2202466 | AP98: 123.5520143 | AQ98: 129.2308721 | AR98: 130.9702095 | AS98: 132.8526448 | AT98: 132.9464607
E99: General pool capital allowance (reducing balance) | G99: £m nominal | AH99: =-AH98*AH93 -> -12.2813942 | AI99: -13.90044653 | AJ99: -15.65069506 | AK99: -17.922364 | AL99: -19.12900123 | AM99: -20.32819879 | AN99: -21.40436745 | AO99: -21.27964438 | AP99: -22.23936258 | AQ99: -23.26155697 | AR99: -23.57463771 | AS99: -23.91347607 | AT99: -23.93036293
E100: Closing balance carried forward | G100: £m nominal | AH100: =AH98+AH99 -> 55.94857356 | AI100: 63.32425642 | AJ100: 71.29761082 | AK100: 81.6463249 | AL100: 87.14322785 | AM100: 92.60623894 | AN100: 97.50878504 | AO100: 96.9406022 | AP100: =AP98+AP99 -> 101.3126517 | AQ100: 105.9693151 | AR100: 107.3955718 | AS100: 108.9391688 | AT100: 109.0160978
C102: Special Rates pool
E104: Capital allowance rate | G104: % | AH104: =TaxTrigger!AH110 -> 0.08 | AI104: =TaxTrigger!AI110 -> 0.08 | AJ104: =TaxTrigger!AJ110 -> 0.08 | AK104: =TaxTrigger!AK110 -> 0.08 | AL104: =TaxTrigger!AL110 -> 0.08 | AM104: =TaxTrigger!AM110 -> 0.08 | AN104: =TaxTrigger!AN110 -> 0.06 | AO104: =TaxTrigger!AO110 -> 0.06 | AP104: =TaxTrigger!AP110 -> 0.06 | AQ104: =TaxTrigger!AQ110 -> 0.06 | AR104: =TaxTrigger!AR110 -> 0.06 | AS104: =TaxTrigger!AS110 -> 0.06 | AT104: =TaxTrigger!AT110 -> 0.06
E106: Opening balance brought forward | G106: £m nominal | AH106: =Input!AH385 -> 195.132 | AI106: =AH111 -> 198.9462273 | AJ106: 207.4210275 | AK106: 224.374863 | AL106: =AK111 -> 235.1373706 | AM106: =AL111 -> 241.2494439 | AN106: =AM111 -> 252.04963 | AO106: =AN111 -> 269.7622675 | AP106: =AO111 -> 288.5504529 | AQ106: =AP111 -> 296.9731176 | AR106: =AQ111 -> 312.4374521 | AS106: =AR111 -> 330.7565242 | AT106: =AS111 -> 344.7289405
E107: Revisions | G107: £m nominal
E108: Capex additions | G108: £m nominal | AH108: =AH49 * GDNpf -> 21.11389921 | AI108: 26.51141132 | AJ108: 36.46469313 | AK108: 31.20923548 | AL108: 27.09028578 | AM108: 32.71754524 | AN108: 34.9315057 | AO108: 37.20629937 | AP108: 27.37839565 | AQ108: 35.40715057 | AR108: 39.4311907 | AS108: 35.97639122 | AT108: 32.45837564
E109: Tax book value pre-depreciation | G109: £m nominal | AH109: =SUM(AH106:AH108) -> 216.2458992 | AI109: 225.4576386 | AJ109: 243.8857206 | AK109: 255.5840985 | AL109: 262.2276564 | AM109: 273.9669891 | AN109: 286.9811357 | AO109: 306.9685669 | AP109: 315.9288485 | AQ109: 332.3802682 | AR109: 351.8686428 | AS109: 366.7329154 | AT109: 377.1873162
E110: Special Rates capital allowance (reducing balance) | G110: £m nominal | AH110: =-AH109*AH104 -> -17.29967194 | AI110: -18.03661109 | AJ110: -19.51085765 | AK110: -20.44672788 | AL110: -20.97821251 | AM110: -21.91735913 | AN110: -17.21886814 | AO110: -18.41811401 | AP110: -18.95573091 | AQ110: -19.94281609 | AR110: -21.11211857 | AS110: -22.00397493 | AT110: -22.63123897
E111: Closing balance carried forward | G111: £m nominal | AH111: =AH109 + AH110 -> 198.9462273 | AI111: 207.4210275 | AJ111: 224.374863 | AK111: 235.1373706 | AL111: 241.2494439 | AM111: 252.04963 | AN111: 269.7622675 | AO111: 288.5504529 | AP111: =AP109 + AP110 -> 296.9731176 | AQ111: 312.4374521 | AR111: 330.7565242 | AS111: 344.7289405 | AT111: 354.5560772
C113: Structures and Buildings pool
E115: Capital allowance rate | G115: % | AH115: =TaxTrigger!AH120 -> 0 | AI115: =TaxTrigger!AI120 -> 0 | AJ115: =TaxTrigger!AJ120 -> 0 | AK115: =TaxTrigger!AK120 -> 0 | AL115: =TaxTrigger!AL120 -> 0 | AM115: =TaxTrigger!AM120 -> 0 | AN115: =TaxTrigger!AN120 -> 0 | AO115: =TaxTrigger!AO120 -> 0 | AP115: =TaxTrigger!AP120 -> 0 | AQ115: =TaxTrigger!AQ120 -> 0 | AR115: =TaxTrigger!AR120 -> 0 | AS115: =TaxTrigger!AS120 -> 0 | AT115: =TaxTrigger!AT120 -> 0
E117: Opening balance brought forward | G117: £m nominal | AH117: =Input!AH387 -> 0 | AI117: =AH122 -> 0 | AJ117: =AI122 -> 0 | AK117: =AJ122 -> 0 | AL117: =AK122 -> 0 | AM117: =AL122 -> 0 | AN117: =AM122 -> 0 | AO117: =AN122 -> 0 | AP117: =AO122 -> 0 | AQ117: =AP122 -> 0 | AR117: =AQ122 -> 0 | AS117: =AR122 -> 0 | AT117: =AS122 -> 0
E118: Revisions | G118: £m nominal
E119: Capex additions | G119: £m nominal | AH119: =AH58 * GDNpf -> 0 | AI119: 0 | AJ119: 0 | AK119: 0 | AL119: 0 | AM119: 0 | AN119: 0 | AO119: 0 | AP119: 0 | AQ119: 0 | AR119: 0 | AS119: 0 | AT119: 0
E120: Tax book value pre-depreciation | G120: £m nominal | AH120: =SUM(AH117:AH119) -> 0 | AI120: 0 | AJ120: 0 | AK120: 0 | AL120: 0 | AM120: 0 | AN120: 0 | AO120: 0 | AP120: 0 | AQ120: 0 | AR120: 0 | AS120: 0 | AT120: 0
E121: Structures and Buildings capital allowance (straight line) | G121: £m nominal | AH121: =-($AH$117+SUM($AG119:AG119))*AH115 -> 0 | AI121: =-($AH$117+SUM($AG119:AH119))*AI115 -> 0 | AJ121: =-($AH$117+SUM($AG119:AI119))*AJ115 -> 0 | AK121: =-($AH$117+SUM($AG119:AJ119))*AK115 -> 0 | AL121: =-($AH$117+SUM($AG119:AK119))*AL115 -> 0 | AM121: =-($AH$117+SUM($AG119:AL119))*AM115 -> 0 | AN121: =-($AH$117+SUM($AG119:AM119))*AN115 -> 0 | AO121: =-($AH$117+SUM($AG119:AN119))*AO115 -> 0 | AP121: =-($AH$117+SUM($AG119:AO119))*AP115 -> 0 | AQ121: =-($AH$117+SUM($AG119:AP119))*AQ115 -> 0 | AR121: =-($AH$117+SUM($AG119:AQ119))*AR115 -> 0 | AS121: =-($AH$117+SUM($AG119:AR119))*AS115 -> 0 | AT121: =-($AH$117+SUM($AG119:AS119))*AT115 -> 0
E122: Closing balance carried forward | G122: £m nominal | AH122: =AH120 + AH121 -> 0 | AI122: 0 | AJ122: 0 | AK122: 0 | AL122: 0 | AM122: 0 | AN122: 0 | AO122: 0 | AP122: 0 | AQ122: 0 | AR122: 0 | AS122: 0 | AT122: 0
C124: Deferred revenue expenditure
E126: Capital allowance rate | G126: % | AH126: =TaxTrigger!AH130 -> 0.0222 | AI126: =TaxTrigger!AI130 -> 0.0222 | AJ126: =TaxTrigger!AJ130 -> 0.0222 | AK126: =TaxTrigger!AK130 -> 0.0222 | AL126: =TaxTrigger!AL130 -> 0.0222 | AM126: =TaxTrigger!AM130 -> 0.0222 | AN126: =TaxTrigger!AN130 -> 0.0222 | AO126: =TaxTrigger!AO130 -> 0.0222 | AP126: =TaxTrigger!AP130 -> 0.0222 | AQ126: =TaxTrigger!AQ130 -> 0.0222 | AR126: =TaxTrigger!AR130 -> 0.0222 | AS126: =TaxTrigger!AS130 -> 0.0222 | AT126: =TaxTrigger!AT130 -> 0.0222
E128: Opening balance brought forward | G128: £m nominal | AH128: =Input!AH389 -> 0 | AI128: =AH134 -> 0 | AJ128: =AI134 -> 0 | AK128: 86.04170443 | AL128: 169.4960049 | AM128: =AL134 -> 256.7854675 | AN128: =AM134 -> 348.0689338 | AO128: =AN134 -> 441.2263715 | AP128: =AO134 -> 525.5735704 | AQ128: =AP134 -> 629.5023032 | AR128: =AQ134 -> 732.6873723 | AS128: =AR134 -> 835.1173612 | AT128: =AS134 -> 936.4146528
E129: Transfer | G129: £m nominal
E130: Revisions | G130: £m nominal
E131: Capex additions | G131: £m nominal | AH131: =AH67 * GDNpf -> 0 | AI131: 0 | AJ131: 86.04170443 | AK131: 85.36442633 | AL131: 91.09467867 | AM131: 97.11098431 | AN131: 101.1408195 | AO131: 94.57590689 | AP131: 116.2570259 | AQ131: 118.0942683 | AR131: 119.9608807 | AS131: 121.491315 | AT131: 123.0417152
E132: Tax book value pre-depreciation | G132: £m nominal | AH132: =SUM(AH128:AH131) -> 0 | AI132: 0 | AJ132: 86.04170443 | AK132: 171.4061308 | AL132: 260.5906836 | AM132: 353.8964518 | AN132: 449.2097533 | AO132: 535.8022784 | AP132: 641.8305963 | AQ132: 747.5965714 | AR132: 852.6482531 | AS132: 956.6086762 | AT132: 1059.456368
E133: Deferred revenue expenditure capital allowance (straight line) | G133: £m nominal | AH133: =-($AH$128+SUM($AG131:AG131))*AH126 -> 0 | AI133: =-($AH$128+SUM($AG131:AH131))*AI126 -> 0 | AJ133: =-($AH$128+SUM($AG131:AI131))*AJ126 -> 0 | AK133: =-($AH$128+SUM($AG131:AJ131))*AK126 -> -1.910125838 | AL133: =-($AH$128+SUM($AG131:AK131))*AL126 -> -3.805216103 | AM133: =-($AH$128+SUM($AG131:AL131))*AM126 -> -5.827517969 | AN133: =-($AH$128+SUM($AG131:AM131))*AN126 -> -7.983381821 | AO133: =-($AH$128+SUM($AG131:AN131))*AO126 -> -10.22870801 | AP133: =-($AH$128+SUM($AG131:AO131))*AP126 -> -12.32829315 | AQ133: =-($AH$128+SUM($AG131:AP131))*AQ126 -> -14.90919912 | AR133: =-($AH$128+SUM($AG131:AQ131))*AR126 -> -17.53089188 | AS133: =-($AH$128+SUM($AG131:AR131))*AS126 -> -20.19402343 | AT133: =-($AH$128+SUM($AG131:AS131))*AT126 -> -22.89113062
E134: Closing balance carried forward | G134: £m nominal | AH134: =AH132+AH133 -> 0 | AI134: 0 | AJ134: 86.04170443 | AK134: 169.4960049 | AL134: 256.7854675 | AM134: 348.0689338 | AN134: 441.2263715 | AO134: 525.5735704 | AP134: =AP132+AP133 -> 629.5023032 | AQ134: 732.6873723 | AR134: 835.1173612 | AS134: 936.4146528 | AT134: 1036.565237
C136: Total capital allowances
E138: Special Rates pool | G138: £m nominal | AP138: =-AP110 -> 18.95573091 | AQ138: =-AQ110 -> 19.94281609 | AR138: =-AR110 -> 21.11211857 | AS138: =-AS110 -> 22.00397493 | AT138: =-AT110 -> 22.63123897
E139: General pool | G139: £m nominal | AP139: =-AP99 -> 22.23936258 | AQ139: =-AQ99 -> 23.26155697 | AR139: =-AR99 -> 23.57463771 | AS139: =-AS99 -> 23.91347607 | AT139: =-AT99 -> 23.93036293
E140: Structures and Buildings pool | G140: £m nominal | AP140: =-AP121 -> 0 | AQ140: =-AQ121 -> 0 | AR140: =-AR121 -> 0 | AS140: =-AS121 -> 0 | AT140: =-AT121 -> 0
E141: Deferred revenue expenditure | G141: £m nominal | AP141: =-AP133 -> 12.32829315 | AQ141: =-AQ133 -> 14.90919912 | AR141: =-AR133 -> 17.53089188 | AS141: =-AS133 -> 20.19402343 | AT141: =-AT133 -> 22.89113062
E142: Capital allowances | G142: £m nominal | AP142: =SUM(AP138:AP141) -> 53.52338664 | AQ142: 58.11357218 | AR142: 62.21764816 | AS142: 66.11147443 | AT142: 69.45273252
B144: End of sheet

Sheet Finance&Tax
A1: Finance & Tax | AI1: CADENT: | AJ1: EAST: | AK1: LONDON: | AL1: NW: | AM1: WM: | AN1: NORTH: | AO1: SCO: | AP1: SOUTH: | AQ1: W&W:
B2: =UserInterface!G17 -> Northern
E3: Parameter | G3: Units | I3: Constant | AH3: Annual values
E4: PCFM year ending | I4: =UserInterface!$G$10 -> 2028-03-31 | K4: 1991-03-31 | L4: 1992-03-31 | M4: 1993-03-31 | N4: 1994-03-31 | O4: 1995-03-31 | P4: 1996-03-31 | Q4: 1997-03-31 | R4: 1998-03-31 | S4: 1999-03-31 | T4: 2000-03-31 | U4: 2001-03-31 | V4: 2002-03-31 | W4: 2003-03-31 | X4: 2004-03-31 | Y4: 2005-03-31 | Z4: 2006-03-31 | AA4: 2007-03-31 | AB4: 2008-03-31 | AC4: 2009-03-31 | AD4: 2010-03-31 | AE4: 2011-03-31 | AF4: 2012-03-31 | AG4: 2013-03-31 | AH4: 2014-03-31 | AI4: 2015-03-31 | AJ4: 2016-03-31 | AK4: 2017-03-31 | AL4: 2018-03-31 | AM4: 2019-03-31 | AN4: 2020-03-31 | AO4: 2021-03-31 | AP4: 2022-03-31 | AQ4: 2023-03-31 | AR4: 2024-03-31 | AS4: 2025-03-31 | AT4: 2026-03-31
B6: Net debt
B7: Note: Net debt is calculated to generate interest paid (for the tax calculation) and gearing levels (for equity issuance calculations).
B8: "Core" net debt is distinct from "Non-core" net debt. Non-core net debt relates to assets held outside the main RAV and receiving a pre-tax income.
C10: Core net debt
C11: Note: The company opens the price control at its notionally geared level. Any equity issuance required to reach this level is not shown.
C12: Equity issuance (if any) occurs at the start of the year and may be followed by transfers to or from non-core net debt (to equalise opening gearing levels across the company).
